Workbook

Sheet Choix_Critères
B1: Variante "climat" 4.2.4.
A2: Quelles sont les espèces recommandées au vu de mes priorités ? | F2: Notice d'utilisation
B3: 1. Quel type d’espace public est aménagé ?
B5: Stationnement | F5: Choisissez le type d'espace public objet du projet de végétalisation
B8: 2. caractérisez votre projet : quelles sont les attentes en termes de végétalisation ? | F8: La caractérisation du projet passe par l'expression de l'exigence en matière de résistance aux aléas climatiques, puis par l'expression de l'importance relative des services écosystémiques attendus, puis enfin par l'expression des contraintes éliminatoires.
G9: l
F10: renseignez les cellules orange par des valeurs comprises entre 0 et 10.
B13: 2.1. Il est important d'implanter des végétaux qui soient autant que possible, adaptés au climat local, adaptés aux spécificités du climat urbain, adaptés aux conséquences attendues du changement climatique. Quelle importance accordez-vous à ce critère ? | F13: Caractérisez l'importance pour votre projet, de l'adaptation au climat urbain dans le contexte du changement climatique, au besoin en vous inspirant des exemples ci-dessous :
F14: 10 : Projet en contexte très difficile, très exposé aux difficultés du climat urbain ou aux effets d'épisodes climatiques remettant en cause la survie des végétaux.
B15: 21. Adaptation au climat urbain | C15: 7 | D15: =C15/$C$29 -> 0.2121212121 | F15: 8 : Projet en contexte difficile pour la survie des végétaux
F16: 2 : Projet en contexte peu sensible : espace naturel, zone humide, …
B19: 2.2. Parmi les suivants, quels critères sont à prendre en compte de manière prioritaire dans l’aménagement ?
C20: Importance du critère | F20: 10 : cet enjeu est majeur pour le projet, c'est la motivation du projet.
B21: 221. Support de biodiversité | C21: 9 | D21: =C21/$C$29 -> 0.2727272727 | F21: 8 : c'est l'enjeu le plus important du projet.
B22: 222. Régulation du climat local | C22: 2 | D22: 0.06060606061 | F22: 6 : c'est un des enjeux importants du projet.
B23: 223. Absorption des polluants | C23: 2 | D23: 0.06060606061 | F23: 4 : cet enjeu est pris en compte, mais il n'est pas jugé prioritaire.
B24: 224. Fixation des particules fines | C24: 3 | D24: 0.09090909091 | F24: 2 : c'est un enjeu très secondaire dans le cadre du projet.
B25: 225. Risque allergique | C25: 5 | D25: 0.1515151515 | F25: remarque : tous les services rendus par les végétaux sont importants et
B26: 226. Rôle paysager | C26: 5 | D26: 0.1515151515 | F26: interdépendants. Il est recommandé de ne pas utiliser les valeurs 0 ou 1,
F27: et marginalement 2 ou 3.
F28: remarque : pour la biodiversité, la valeur minimale est de 4.
B29: Total | C29: =SUM(C21:C26)+Crit7 -> 33 | F29: Pour une utilisation équilibrée de l'outil, il est souhaitable que la somme des pondérations choisies soit située entre 25 et 40.
B32: 3. Quels sont les critères éliminatoires ?
D33: Elimination des espèces présentant…
B34: 31. racines superficielles | D34: 3. Des contraintes fortes | F34: Indiquez ici selon quels critères vous souhaitez éliminer des espèces. Critère très défavorable au projet : éliminez toutes les espèces présentant cette contrainte à un niveau faible, moyen ou fort : choisissez 1. Critère défavorable au projet : éliminez les espèces présentant cette contrainte à un niveau moyen ou fort : choisissez 2. Critère un peu défavorable au projet : éliminez les espèces présentant cette contrainte à un niveau fort forte : choisissez 3.
B35: 32. branches cassantes | D35: 4. Critère non discriminant
B36: 33. espèces sensibles au chablis | D36: 4. Critère non discriminant
B37: 34. fructifications pouvant entraîner des dommages | D37: 4. Critère non discriminant
B38: 35. dépôt de miellat | D38: 4. Critère non discriminant
B39: 36. fruits toxiques | D39: 4. Critère non discriminant
B40: 37. arbre de grande hauteur | D40: 3. Des contraintes fortes
B41: 38. arbre de grande envergure | D41: 4. Critère non discriminant
B43: 4. J'appuie sur ce bouton
F44: Appuyez sur le bouton pour proposer des espèces adaptées aux critères choisis
B45: Au vu des priorités définies, nous vous recommandons les essences suivantes :
B47: Aubépine épineuse & Aubépine monogyne
B48: Érable plane
B49: Tilleul à petites feuilles
B50: Cornouiller sanguin
B51: Fusain d’Europe
B52: Houx
B53: Érable sycomore
B54: Chêne pédonculé
B55: Chêne sessile
B56: If
B57: Il s'agit des dix espèces présentant les meilleurs résultats pour les critères sélectionnés.
B58: Elles sont présentées sans ordre de préférence, comme un panel d'espèces adaptées.
B59: L'analyse menée ne dispense pas d'un examen de l'adaptation à la texture, la structure et l'alimentation en eau du sol.

Sheet Base_Arbres
A1: Nom vernaculaire | B1: Nom scientifique | C1: 11. Absorption des polluants | D1: 12. Fixation des particules fines | E1: 13. Régulation du climat local | F1: 14. Support de biodiversité | G1: 15. Risque allergique | H1: 17. Adaptation au climat urbain, dans le cadre du changement climatique | I1: racines superficielles | J1: branches cassantes | K1: espèce sensible au chablis | L1: fructification pouvant entraîner des dommages | M1: dépôt de miellat | N1: fruits toxiques | O1: arbre de grande hauteur | P1: arbre de grande envergure
A2: Abelia | B2: Abelia floribunda | C2: 2.755102041 | D2: 4.302325581 | E2: 1.339285714 | F2: 2 | G2: 0 | H2: 2 | I2: 0 | J2: 0 | K2: 0 | L2: 0 | M2: 0 | N2: 0 | O2: 0 | P2: 0
A3: Sapin du colorado | B3: Abies concolor | C3: 1.020408163 | D3: 8.604651163 | E3: 9.285714286 | F3: 1 | G3: 0 | H3: 8 | I3: 2. Moyenne | J3: 0 | K3: 2. Moyenne | L3: 0 | M3: 0 | N3: 0 | O3: 1. Faible | P3: 2. Moyenne
A4: Sapin d'Espagne | B4: Abies pinsapo | C4: 1.632653061 | D4: 8.720930233 | E4: 5.982142857 | F4: 1 | G4: 0 | H4: 7 | I4: 2. Moyenne | J4: 0 | K4: 2. Moyenne | L4: 0 | M4: 0 | N4: 0 | O4: 0 | P4: 0
A5: Érable champêtre | B5: Acer campestre | C5: 6.12244898 | D5: 0.6976744186 | E5: 1.875 | F5: 6 | G5: -2 | H5: 9 | I5: 0 | J5: 0 | K5: 0 | L5: 0 | M5: 2. Moyenne | N5: 0 | O5: 0 | P5: 0
A6: Erable de Montpellier | B6: Acer monspessulanum | C6: 6.224489796 | D6: 0.5813953488 | E6: 2.410714286 | F6: 2 | G6: -2 | H6: 8 | I6: 0 | J6: 0 | K6: 0 | L6: 0 | M6: 1. Faible | N6: 0 | O6: 0 | P6: 0
A7: Érable plane | B7: Acer platanoïdes | C7: 8.87755102 | D7: 4.418604651 | E7: 7.767857143 | F7: 7 | G7: -2 | H7: 8 | I7: 2. Moyenne | J7: 0 | K7: 0 | L7: 1. Faible | M7: 2. Moyenne | N7: 0 | O7: 1. Faible | P7: 2. Moyenne
A8: Érable sycomore | B8: Acer pseudoplatanus | C8: 9.387755102 | D8: 5.348837209 | E8: 8.660714286 | F8: 7 | G8: -2 | H8: 5 | I8: 2. Moyenne | J8: 0 | K8: 0 | L8: 1. Faible | M8: 2. Moyenne | N8: 0 | O8: 2. Moyenne | P8: 2. Moyenne
A9: Érable hybride | B9: Acer rubrum fremanii | C9: 3.163265306 | D9: 7.093023256 | E9: 4.553571429 | F9: 2 | G9: -2 | H9: 6 | I9: 0 | J9: 0 | K9: 0 | L9: 0 | M9: 2. Moyenne | N9: 0 | O9: 1. Faible | P9: 2. Moyenne
A10: Érable à sucre | B10: Acer saccharum | C10: 7.857142857 | D10: 2.441860465 | E10: 4.017857143 | F10: 2 | G10: -4 | H10: 4 | I10: 0 | J10: 0 | K10: 0 | L10: 0 | M10: 2. Moyenne | N10: 0 | O10: 3. Forte | P10: 2. Moyenne
A11: Marronnier d’Inde | B11: Aesculus hypocastanum | C11: 9.591836735 | D11: 6.046511628 | E11: 9.017857143 | F11: 5 | G11: -2 | H11: 6 | I11: 3. Forte | J11: 2. Moyenne | K11: 0 | L11: 3. Forte | M11: 0 | N11: 1. Faible | O11: 2. Moyenne | P11: 2. Moyenne
A12: Marronnier rouge | B12: Aesculus x carnea | C12: 8.673469388 | D12: 3.372093023 | E12: 7.410714286 | F12: 4 | G12: -2 | H12: 7 | I12: 2. Moyenne | J12: 2. Moyenne | K12: 0 | L12: 2. Moyenne | M12: 0 | N12: 1. Faible | O12: 0 | P12: 1. Faible
A13: Aulne glutineux | B13: Alnus glutinosa | C13: 6.224489796 | D13: 1.279069767 | E13: 2.589285714 | F13: 8 | G13: -6 | H13: 6 | I13: 0 | J13: 0 | K13: 0 | L13: 0 | M13: 0 | N13: 0 | O13: 2. Moyenne | P13: 0
A14: Aulne blanc | B14: Alnus incana | C14: 2.244897959 | D14: 6.046511628 | E14: 2.678571429 | F14: 2 | G14: -6 | H14: 7 | I14: 0 | J14: 0 | K14: 0 | L14: 0 | M14: 0 | N14: 0 | O14: 0 | P14: 0
A15: Amélanchier | B15: Amelanchier ovalis | C15: 4.795918367 | D15: 0.1162790698 | E15: 0.7142857143 | F15: 4 | G15: 0 | H15: 9 | I15: 0 | J15: 0 | K15: 0 | L15: 0 | M15: 0 | N15: 0 | O15: 0 | P15: 0
A16: Épine vinette | B16: Berberis vulgaris | C16: 4.897959184 | D16: 0 | E16: 0.9821428571 | F16: 4 | G16: 0 | H16: 8 | I16: 0 | J16: 0 | K16: 0 | L16: 0 | M16: 0 | N16: 1. Faible | O16: 0 | P16: 0
A17: Bouleau verruqueux | B17: Betula pendula Roth | C17: 6.326530612 | D17: 0.8139534884 | E17: 1.339285714 | F17: 5 | G17: -10 | H17: 8 | I17: 2. Moyenne | J17: 0 | K17: 2. Moyenne | L17: 0 | M17: 0 | N17: 0 | O17: 0 | P17: 0
A18: Callicarpe, arbre aux bonbons | B18: Callicarpa (genre) | C18: 1.530612245 | D18: 6.046511628 | E18: 2.857142857 | F18: 4 | G18: 0 | H18: 3 | I18: 0 | J18: 0 | K18: 0 | L18: 0 | M18: 0 | N18: 0 | O18: 0 | P18: 0
A19: Charme commun | B19: Carpinus betulus | C19: 5.408163265 | D19: 8.720930233 | E19: 8.035714286 | F19: 4 | G19: -6 | H19: 7 | I19: 0 | J19: 0 | K19: 0 | L19: 0 | M19: 0 | N19: 0 | O19: 0 | P19: 1. Faible
A20: Catalpa | B20: Catalpa bignonioides | C20: 4.285714286 | D20: 8.372093023 | E20: 6.339285714 | F20: 3 | G20: 0 | H20: 8 | I20: 0 | J20: 1. Faible | K20: 0 | L20: 0 | M20: 0 | N20: 0 | O20: 0 | P20: 2. Moyenne
A21: Cèdre de l’Atlas | B21: Cedrus atlantica | C21: 0.7142857143 | D21: 8.953488372 | E21: 4.821428571 | F21: 1 | G21: -2 | H21: 8 | I21: 2. Moyenne | J21: 2. Moyenne | K21: 0 | L21: 0 | M21: 0 | N21: 0 | O21: 2. Moyenne | P21: 3. Forte
A22: Cèdre du Liban | B22: Cedrus libani | C22: 0.2040816327 | D22: 9.302325581 | E22: 5.714285714 | F22: 1 | G22: -2 | H22: 8 | I22: 2. Moyenne | J22: 2. Moyenne | K22: 0 | L22: 0 | M22: 0 | N22: 0 | O22: 2. Moyenne | P22: 3. Forte
A23: Micocoulier de Provence | B23: Celtis australis | C23: 5.714285714 | D23: 8.953488372 | E23: 8.392857143 | F23: 2 | G23: -2 | H23: 8 | I23: 0 | J23: 0 | K23: 0 | L23: 0 | M23: 0 | N23: 0 | O23: 0 | P23: 0
A24: Micocoulier occidental | B24: Celtis occidentalis | C24: 7.448979592 | D24: 1.860465116 | E24: 4.642857143 | F24: 2 | G24: 0 | H24: 8 | I24: 0 | J24: 0 | K24: 0 | L24: 0 | M24: 0 | N24: 0 | O24: 1. Faible | P24: 1. Faible
A25: Arbre de Judée | B25: Cercis siliquastrum | C25: 6.836734694 | D25: 1.395348837 | E25: 4.196428571 | F25: 3 | G25: 0 | H25: 7 | I25: 0 | J25: 0 | K25: 0 | L25: 0 | M25: 0 | N25: 0 | O25: 0 | P25: 0
A26: Cornouiller des pagodes | B26: Cornus controversa | C26: 4.285714286 | D26: 7.674418605 | E26: 6.339285714 | F26: 3 | G26: 0 | H26: 3 | I26: 0 | J26: 0 | K26: 0 | L26: 0 | M26: 0 | N26: 2. Moyenne | O26: 0 | P26: 1. Faible
A27: Cornouiller mâle | B27: Cornus mas | C27: 0.5102040816 | D27: 5 | E27: 1.785714286 | F27: 6 | G27: 0 | H27: 8 | I27: 0 | J27: 0 | K27: 0 | L27: 0 | M27: 0 | N27: 0 | O27: 0 | P27: 0
A28: Cornouiller sanguin | B28: Cornus sanguinea | C28: 0.2040816327 | D28: 3.953488372 | E28: 0.3571428571 | F28: 6 | G28: 0 | H28: 7 | I28: 0 | J28: 0 | K28: 0 | L28: 0 | M28: 0 | N28: 1. Faible | O28: 0 | P28: 0
A29: Noisetier | B29: Corylus avellana | C29: 1.632653061 | D29: 5.23255814 | E29: 2.5 | F29: 8 | G29: -4 | H29: 5 | I29: 0 | J29: 0 | K29: 0 | L29: 2. Moyenne | M29: 0 | N29: 0 | O29: 0 | P29: 0
A30: Noisetier de Byzance | B30: Corylus colurna | C30: 7.448979592 | D30: 1.744186047 | E30: 4.910714286 | F30: 3 | G30: -4 | H30: 9 | I30: 0 | J30: 0 | K30: 0 | L30: 2. Moyenne | M30: 0 | N30: 0 | O30: 1. Faible | P30: 2. Moyenne
A31: Cotoneaster à feuilles de saule | B31: Cotoneaster salicifolius | C31: 2.244897959 | D31: 3.139534884 | E31: 0.1785714286 | F31: 4 | G31: 0 | H31: 6 | I31: 0 | J31: 0 | K31: 0 | L31: 0 | M31: 0 | N31: 2. Moyenne | O31: 0 | P31: 0
A32: Aubépine épineuse & Aubépine monogyne | B32: Crataegus laevigata & Crataegus monogyna | C32: 3.673469388 | D32: 0.3488372093 | E32: 1.071428571 | F32: 6 | G32: 0 | H32: 9 | I32: 0 | J32: 0 | K32: 0 | L32: 0 | M32: 0 | N32: 0 | O32: 0 | P32: 0
A33: Fusain d’Europe | B33: Euonymus europaeus | C33: 5.306122449 | D33: 0.1162790698 | E33: 0.7142857143 | F33: 6 | G33: 0 | H33: 7 | I33: 0 | J33: 0 | K33: 0 | L33: 0 | M33: 0 | N33: 2. Moyenne | O33: 0 | P33: 0
A34: Frêne à fleurs | B34: Fraxinus ornus | C34: 8.571428571 | D34: 2.906976744 | E34: 4.464285714 | F34: 5 | G34: -6 | H34: 8 | I34: 2. Moyenne | J34: 0 | K34: 0 | L34: 1. Faible | M34: 0 | N34: 0 | O34: 0 | P34: 0
A35: Ginkgo | B35: Gingko biloba | C35: 8.265306122 | D35: 3.604651163 | E35: 6.517857143 | F35: 1 | G35: 0 | H35: 9 | I35: 0 | J35: 0 | K35: 0 | L35: 3. Forte | M35: 0 | N35: 2. Moyenne | O35: 3. Forte | P35: 2. Moyenne
A36: Févier d’Amérique | B36: Gleditsia triacanthos | C36: 4.897959184 | D36: 8.023255814 | E36: 3.303571429 | F36: 4 | G36: 0 | H36: 8 | I36: 0 | J36: 0 | K36: 0 | L36: 2. Moyenne | M36: 0 | N36: 0 | O36: 0 | P36: 0
A37: Lierre grimpant | B37: Hedera helix | C37: 0 | D37: 0 | E37: 0 | F37: 10 | G37: 0 | H37: 8 | I37: 3. Forte | J37: 0 | K37: 0 | L37: 0 | M37: 0 | N37: 3. Forte | O37: 0 | P37: 0
A38: Houx | B38: Ilex aquifolium | C38: 4.795918367 | D38: 6.511627907 | E38: 6.339285714 | F38: 7 | G38: 0 | H38: 4 | I38: 0 | J38: 0 | K38: 0 | L38: 0 | M38: 0 | N38: 1. Faible | O38: 0 | P38: 0
A39: Genévrier commun | B39: Juniperus communis | C39: 0 | D39: 5.930232558 | E39: 2.5 | F39: 4 | G39: -4 | H39: 5 | I39: 0 | J39: 0 | K39: 0 | L39: 0 | M39: 0 | N39: 0 | O39: 0 | P39: 0
A40: Savonnier | B40: Koelreuteria paniculata | C40: 8.673469388 | D40: 2.790697674 | E40: 6.517857143 | F40: 1 | G40: 0 | H40: 6 | I40: 0 | J40: 0 | K40: 0 | L40: 0 | M40: 0 | N40: 0 | O40: 0 | P40: 1. Faible
A41: Mélèze d’Europe | B41: Larix decidua | C41: 6.428571429 | D41: 0.4651162791 | E41: 0.2678571429 | F41: 1 | G41: 0 | H41: 6 | I41: 0 | J41: 2. Moyenne | K41: 0 | L41: 0 | M41: 0 | N41: 0 | O41: 1. Faible | P41: 2. Moyenne
A42: Lavande | B42: Lavandula angustifolia | C42: 2.857142857 | D42: 4.069767442 | E42: 0.5357142857 | F42: 4 | G42: 0 | H42: 7 | I42: 0 | J42: 0 | K42: 0 | L42: 0 | M42: 0 | N42: 0 | O42: 0 | P42: 0
A43: Troène commun | B43: Ligustrum vulgare | C43: 2.959183673 | D43: 4.186046512 | E43: 0.8035714286 | F43: 6 | G43: -6 | H43: 8 | I43: 0 | J43: 0 | K43: 0 | L43: 0 | M43: 0 | N43: 1. Faible | O43: 0 | P43: 0
A44: Copalme d’Amérique | B44: Liquidambar styraciflua | C44: 8.265306122 | D44: 2.209302326 | E44: 6.160714286 | F44: 2 | G44: 0 | H44: 4 | I44: 0 | J44: 0 | K44: 0 | L44: 0 | M44: 0 | N44: 0 | O44: 2. Moyenne | P44: 2. Moyenne
A45: Tulipier de Virginie | B45: Liriodendron tulipifera | C45: 9.285714286 | D45: 4.302325581 | E45: 7.946428571 | F45: 2 | G45: 0 | H45: 5 | I45: 2. Moyenne | J45: 2. Moyenne | K45: 0 | L45: 0 | M45: 0 | N45: 0 | O45: 2. Moyenne | P45: 3. Forte
A46: Magnolia à grandes fleurs | B46: Magnolia grandiflora | C46: 6.326530612 | D46: 8.255813953 | E46: 8.839285714 | F46: 1 | G46: -2 | H46: 3 | I46: 0 | J46: 0 | K46: 0 | L46: 0 | M46: 0 | N46: 0 | O46: 0 | P46: 2. Moyenne
A47: Charme houblon | B47: Ostrya caprinifolia | C47: 2.551020408 | D47: 6.395348837 | E47: 3.571428571 | F47: 1 | G47: -4 | H47: 8 | I47: 0 | J47: 0 | K47: 0 | L47: 0 | M47: 0 | N47: 0 | O47: 0 | P47: 1. Faible
A48: Vigne vierge | B48: Parthenocissus quinquefolia | C48: 0 | D48: 0 | E48: 0 | F48: 2 | G48: 0 | H48: 6 | I48: 0 | J48: 0 | K48: 0 | L48: 0 | M48: 0 | N48: 1. Faible | O48: 0 | P48: 0
A49: Paulownia tomenteux ou impérial | B49: Paulownia tomentosa | C49: 4.897959184 | D49: 8.837209302 | E49: 6.696428571 | F49: 1 | G49: 0 | H49: 7 | I49: 2. Moyenne | J49: 2. Moyenne | K49: 0 | L49: 2. Moyenne | M49: 0 | N49: 0 | O49: 0 | P49: 2. Moyenne
A50: Seringa, Jasmin des poètes | B50: Philadelphus coronarius | C50: 2.040816327 | D50: 6.046511628 | E50: 3.303571429 | F50: 2 | G50: 0 | H50: 7 | I50: 0 | J50: 0 | K50: 0 | L50: 0 | M50: 3. Forte | N50: 0 | O50: 0 | P50: 0
A51: Photinia | B51: Photinia serratifolia | C51: 8.265306122 | D51: 2.558139535 | E51: 7.410714286 | F51: 2 | G51: 0 | H51: 4 | I51: 0 | J51: 0 | K51: 0 | L51: 0 | M51: 0 | N51: 0 | O51: 0 | P51: 1. Faible
A52: Epicéa commun | B52: Picea abies | C52: 0.2040816327 | D52: 8.488372093 | E52: 4.553571429 | F52: 4 | G52: 0 | H52: 2 | I52: 3. Forte | J52: 0 | K52: 3. Forte | L52: 2. Moyenne | M52: 0 | N52: 0 | O52: 3. Forte | P52: 3. Forte
A53: Pin sylvestre | B53: Pinus sylvestris | C53: 1.224489796 | D53: 8.372093023 | E53: 4.375 | F53: 5 | G53: 0 | H53: 8 | I53: 2. Moyenne | J53: 2. Moyenne | K53: 2. Moyenne | L53: 2. Moyenne | M53: 0 | N53: 0 | O53: 3. Forte | P53: 2. Moyenne
A54: Platane | B54: Platanus vulgaris, x hybrida, x hispanica | C54: 9.795918367 | D54: 7.906976744 | E54: 9.642857143 | F54: 4 | G54: -6 | H54: 7 | I54: 2. Moyenne | J54: 0 | K54: 0 | L54: 2. Moyenne | M54: 0 | N54: 0 | O54: 3. Forte | P54: 3. Forte
A55: Peuplier blanc | B55: Populus alba | C55: 3.265306122 | D55: 7.093023256 | E55: 4.285714286 | F55: 8 | G55: -4 | H55: 7 | I55: 2. Moyenne | J55: 2. Moyenne | K55: 0 | L55: 0 | M55: 0 | N55: 0 | O55: 2. Moyenne | P55: 0
A56: Tremble | B56: Populus tremula | C56: 6.93877551 | D56: 1.162790698 | E56: 3.392857143 | F56: 6 | G56: -2 | H56: 8 | I56: 2. Moyenne | J56: 2. Moyenne | K56: 0 | L56: 0 | M56: 2. Moyenne | N56: 0 | O56: 1. Faible | P56: 2. Moyenne
A57: Merisier | B57: Prunus avium | C57: 8.367346939 | D57: 3.023255814 | E57: 6.428571429 | F57: 8 | G57: 0 | H57: 5 | I57: 2. Moyenne | J57: 0 | K57: 0 | L57: 2. Moyenne | M57: 2. Moyenne | N57: 0 | O57: 2. Moyenne | P57: 1. Faible
A58: Cerisier à grappes | B58: Prunus padus | C58: 7.142857143 | D58: 1.976744186 | E58: 4.375 | F58: 7 | G58: 0 | H58: 5 | I58: 2. Moyenne | J58: 0 | K58: 0 | L58: 0 | M58: 0 | N58: 0 | O58: 0 | P58: 0
A59: Cerisier de Sargent et à fleurs | B59: Prunus sargentii-subhirtella | C59: 8.469387755 | D59: 3.255813953 | E59: 6.160714286 | F59: 2 | G59: 0 | H59: 7 | I59: 2. Moyenne | J59: 0 | K59: 0 | L59: 0 | M59: 0 | N59: 0 | O59: 0 | P59: 1. Faible
A60: Prunelier | B60: Prunus spinosa | C60: 0 | D60: 4.069767442 | E60: 0.625 | F60: 9 | G60: 0 | H60: 8 | I60: 0 | J60: 0 | K60: 0 | L60: 0 | M60: 0 | N60: 0 | O60: 0 | P60: 1. Faible
A61: Buisson ardent | B61: Pyracantha coccinea | C61: 2.448979592 | D61: 3.837209302 | E61: 0.2678571429 | F61: 5 | G61: 0 | H61: 8 | I61: 0 | J61: 0 | K61: 0 | L61: 0 | M61: 0 | N61: 1. Faible | O61: 0 | P61: 0
A62: Poirier de Chine | B62: Pyrus calleryana | C62: 6.530612245 | D62: 1.046511628 | E62: 3.482142857 | F62: 4 | G62: -4 | H62: 9 | I62: 0 | J62: 2. Moyenne | K62: 0 | L62: 2. Moyenne | M62: 0 | N62: 0 | O62: 0 | P62: 0
A63: Chêne blanc | B63: Quercus alba | C63: 3.265306122 | D63: 7.325581395 | E63: 4.642857143 | F63: 3 | G63: -8 | H63: 7 | I63: 2. Moyenne | J63: 0 | K63: 0 | L63: 2. Moyenne | M63: 0 | N63: 0 | O63: 1. Faible | P63: 2. Moyenne
A64: Chêne chevelu de bourgogne | B64: Quercus cerris | C64: 4.387755102 | D64: 9.069767442 | E64: 6.875 | F64: 2 | G64: -8 | H64: 9 | I64: 2. Moyenne | J64: 0 | K64: 0 | L64: 2. Moyenne | M64: 0 | N64: 0 | O64: 2. Moyenne | P64: 2. Moyenne
A65: Chêne de Hongrie | B65: Quercus frainetto | C65: 9.183673469 | D65: 5.348837209 | E65: 8.303571429 | F65: 2 | G65: -8 | H65: 8 | I65: 2. Moyenne | J65: 0 | K65: 0 | L65: 2. Moyenne | M65: 0 | N65: 0 | O65: 2. Moyenne | P65: 2. Moyenne
A66: Chêne vert | B66: Quercus ilex | C66: 0.2040816327 | D66: 9.534883721 | E66: 6.071428571 | F66: 2 | G66: -8 | H66: 8 | I66: 2. Moyenne | J66: 0 | K66: 0 | L66: 2. Moyenne | M66: 0 | N66: 0 | O66: 0 | P66: 0
A67: Chêne du Caucase | B67: Quercus macranthera | C67: 5.204081633 | D67: 8.837209302 | E67: 7.232142857 | F67: 2 | G67: -8 | H67: 6 | I67: 2. Moyenne | J67: 0 | K67: 0 | L67: 2. Moyenne | M67: 0 | N67: 0 | O67: 1. Faible | P67: 2. Moyenne
A68: Chêne sessile | B68: Quercus petraea | C68: 9.081632653 | D68: 4.88372093 | E68: 8.035714286 | F68: 9 | G68: -8 | H68: 9 | I68: 2. Moyenne | J68: 0 | K68: 0 | L68: 2. Moyenne | M68: 0 | N68: 0 | O68: 2. Moyenne | P68: 2. Moyenne
A69: Chêne pédonculé | B69: Quercus robur | C69: 8.87755102 | D69: 3.837209302 | E69: 7.5 | F69: 9 | G69: -8 | H69: 9 | I69: 2. Moyenne | J69: 0 | K69: 0 | L69: 2. Moyenne | M69: 0 | N69: 0 | O69: 2. Moyenne | P69: 2. Moyenne
A70: Chêne rouge d’Amérique | B70: Quercus rubra | C70: 9.693877551 | D70: 6.511627907 | E70: 9.196428571 | F70: 2 | G70: -8 | H70: 8 | I70: 2. Moyenne | J70: 0 | K70: 0 | L70: 2. Moyenne | M70: 0 | N70: 0 | O70: 1. Faible | P70: 2. Moyenne
A71: Chêne de Turner | B71: Quercus x turneri pseudoturneri | C71: 0.7142857143 | D71: 9.302325581 | E71: 4.285714286 | F71: 4 | G71: -8 | H71: 8 | I71: 2. Moyenne | J71: 0 | K71: 0 | L71: 1. Faible | M71: 0 | N71: 0 | O71: 0 | P71: 1. Faible
A72: Saule blanc | B72: Salix alba | C72: 7.755102041 | D72: 2.209302326 | E72: 5.089285714 | F72: 9 | G72: -4 | H72: 6 | I72: 2. Moyenne | J72: 2. Moyenne | K72: 0 | L72: 0 | M72: 2. Moyenne | N72: 0 | O72: 1. Faible | P72: 2. Moyenne
A73: Saule pourpre | B73: Salix purpurea | C73: 1.530612245 | D73: 5.581395349 | E73: 3.214285714 | F73: 7 | G73: -4 | H73: 6 | I73: 1. Faible | J73: 0 | K73: 0 | L73: 0 | M73: 0 | N73: 0 | O73: 0 | P73: 0
A74: Saule des vanniers | B74: Salix viminalis | C74: 3.87755102 | D74: 7.906976744 | E74: 5.089285714 | F74: 9 | G74: -4 | H74: 3 | I74: 2. Moyenne | J74: 0 | K74: 0 | L74: 0 | M74: 2. Moyenne | N74: 0 | O74: 0 | P74: 0
A75: Sureau noir | B75: Sambucus nigra | C75: 7.755102041 | D75: 1.279069767 | E75: 3.660714286 | F75: 6 | G75: 0 | H75: 8 | I75: 0 | J75: 0 | K75: 0 | L75: 2. Moyenne | M75: 0 | N75: 0 | O75: 0 | P75: 0
A76: Séquoia géant | B76: Sequoiadendron giganteum | C76: 4.285714286 | D76: 9.534883721 | E76: 8.214285714 | F76: 2 | G76: 0 | H76: 2 | I76: 2. Moyenne | J76: 2. Moyenne | K76: 0 | L76: 2. Moyenne | M76: 0 | N76: 0 | O76: 3. Forte | P76: 3. Forte
A77: Séquoia toujours vert | B77: Sequoias sempervirens | C77: 0.2040816327 | D77: 8.604651163 | E77: 5.357142857 | F77: 2 | G77: 0 | H77: 1 | I77: 2. Moyenne | J77: 2. Moyenne | K77: 0 | L77: 2. Moyenne | M77: 0 | N77: 0 | O77: 3. Forte | P77: 3. Forte
A78: Sophora du Japon | B78: Sophora japonica | C78: 7.040816327 | D78: 9.534883721 | E78: 9.464285714 | F78: 2 | G78: 0 | H78: 9 | I78: 3. Forte | J78: 1. Faible | K78: 0 | L78: 3. Forte | M78: 0 | N78: 1. Faible | O78: 1. Faible | P78: 2. Moyenne
A79: Alisier blanc | B79: Sorbus aria | C79: 2.244897959 | D79: 6.627906977 | E79: 4.107142857 | F79: 5 | G79: 0 | H79: 7 | I79: 0 | J79: 0 | K79: 0 | L79: 0 | M79: 0 | N79: 0 | O79: 0 | P79: 0
A80: Sorbier des oiseleurs | B80: Sorbus aucuparia, y compris S. aucuparia fastigiata | C80: 3.367346939 | D80: 8.372093023 | E80: 4.732142857 | F80: 5 | G80: 0 | H80: 4 | I80: 0 | J80: 0 | K80: 0 | L80: 0 | M80: 0 | N80: 1. Faible | O80: 0 | P80: 0
A81: autres sorbiers ( Alisier de Suède : sorbus intermédia, yc cultivar Brouwers , Sorbus x thuringiaca) | B81: Sorbus intermedia, Sorbus intermedia Brouwers, Sorbus x thuringiaca | C81: 7.346938776 | D81: 2.209302326 | E81: 4.821428571 | F81: 3 | G81: 0 | H81: 7 | I81: 0 | J81: 0 | K81: 0 | L81: 0 | M81: 0 | N81: 0 | O81: 0 | P81: 0
A82: Alisier torminal | B82: Sorbus torminalis | C82: 3.469387755 | D82: 7.558139535 | E82: 4.196428571 | F82: 5 | G82: 0 | H82: 6 | I82: 0 | J82: 0 | K82: 0 | L82: 0 | M82: 0 | N82: 0 | O82: 0 | P82: 1. Faible
A83: Lilas commun | B83: Syringa vulgaris | C83: 5.204081633 | D83: 0.2325581395 | E83: 0.625 | F83: 2 | G83: -2 | H83: 6 | I83: 0 | J83: 0 | K83: 0 | L83: 0 | M83: 0 | N83: 0 | O83: 0 | P83: 0
A84: If | B84: Taxus baccata | C84: 0.2040816327 | D84: 8.255813953 | E84: 3.660714286 | F84: 4 | G84: 0 | H84: 9 | I84: 0 | J84: 0 | K84: 0 | L84: 0 | M84: 0 | N84: 3. Forte | O84: 1. Faible | P84: 2. Moyenne
A85: Tilleul à petites feuilles | B85: Tilia cordata | C85: 3.163265306 | D85: 6.976744186 | E85: 5.089285714 | F85: 7 | G85: -2 | H85: 9 | I85: 2. Moyenne | J85: 0 | K85: 0 | L85: 0 | M85: 3. Forte | N85: 0 | O85: 1. Faible | P85: 1. Faible
A86: Tilleul à grandes feuilles | B86: Tilia Platyphyllos | C86: 5.714285714 | D86: 9.186046512 | E86: 8.482142857 | F86: 7 | G86: -2 | H86: 7 | I86: 2. Moyenne | J86: 0 | K86: 0 | L86: 0 | M86: 3. Forte | N86: 0 | O86: 3. Forte | P86: 2. Moyenne
A87: orme résistant à la graphiose | B87: Ulmus x resista Lutèce | C87: 8.06122449 | D87: 3.372093023 | E87: 5.982142857 | F87: 3 | G87: -4 | H87: 6 | I87: 2. Moyenne | J87: 0 | K87: 0 | L87: 0 | M87: 0 | N87: 0 | O87: 2. Moyenne | P87: 2. Moyenne
A88: Viorne lantane | B88: Viburnum lantana | C88: 0.9183673469 | D88: 5.23255814 | E88: 2.232142857 | F88: 4 | G88: 0 | H88: 8 | I88: 0 | J88: 0 | K88: 0 | L88: 0 | M88: 0 | N88: 1. Faible | O88: 0 | P88: 0
A89: Viorne obier | B89: Viburnum opulus | C89: 1.530612245 | D89: 5.813953488 | E89: 1.964285714 | F89: 4 | G89: 0 | H89: 4 | I89: 0 | J89: 0 | K89: 0 | L89: 0 | M89: 0 | N89: 2. Moyenne | O89: 0 | P89: 0

Sheet Base_Typologie
A2: Critère de notation des essences en fonction de la typologie : | C2: Emblématique | D2: 10
C3: Possible | D3: 6
C4: Autre | D4: 2
B5: 1 | C5: 2 | D5: 3 | E5: 4 | F5: 5 | G5: 6 | H5: 7 | I5: 8 | J5: 9 | K5: 10 | L5: 11 | M5: 12
B6: Voirie urbaine | C6: Voirie périurbaine à inter urbaine | D6: Stationnement | E6: Espaces intermédiaires | F6: Place | G6: Placette | H6: Parc | I6: Cours, square, aire de jeux | J6: Usoirs communaux | K6: Pistes cyclables / cheminement piéton | L6: Berges de cours d'eau | M6: Noues et bassin d'orage : prairie urbaine, plaine de jeux
A7: Abelia | B7: Autre | C7: Possible | D7: Emblématique | E7: Emblématique | F7: Autre | G7: Autre | H7: Autre | I7: Emblématique | J7: Autre | K7: Possible | L7: Autre | M7: Autre
A8: Sapin du colorado | B8: Autre | C8: Autre | D8: Autre | E8: Emblématique | F8: Autre | G8: Autre | H8: Emblématique | I8: Autre | J8: Autre | K8: Autre | L8: Autre | M8: Autre
A9: Sapin d'Espagne | B9: Autre | C9: Emblématique | D9: Autre | E9: Emblématique | F9: Autre | G9: Autre | H9: Emblématique | I9: Possible | J9: Autre | K9: Autre | L9: Autre | M9: Autre
A10: Érable champêtre | B10: Emblématique | C10: Possible | D10: Autre | E10: Autre | F10: Autre | G10: Possible | H10: Possible | I10: Possible | J10: Emblématique | K10: Emblématique | L10: Possible | M10: Possible
A11: Erable de Montpellier | B11: Possible | C11: Emblématique | D11: Emblématique | E11: Possible | F11: Autre | G11: Possible | H11: Emblématique | I11: Autre | J11: Autre | K11: Autre | L11: Autre | M11: Autre
A12: Érable plane | B12: Possible | C12: Emblématique | D12: Emblématique | E12: Autre | F12: Possible | G12: Autre | H12: Possible | I12: Autre | J12: Autre | K12: Autre | L12: Emblématique | M12: Autre
A13: Érable sycomore | B13: Autre | C13: Emblématique | D13: Emblématique | E13: Autre | F13: Autre | G13: Autre | H13: Possible | I13: Autre | J13: Autre | K13: Autre | L13: Emblématique | M13: Possible
A14: Érable hybride | B14: Autre | C14: Emblématique | D14: Autre | E14: Autre | F14: Autre | G14: Autre | H14: Possible | I14: Possible | J14: Autre | K14: Possible | L14: Emblématique | M14: Emblématique
A15: Érable à sucre | B15: Autre | C15: Autre | D15: Autre | E15: Autre | F15: Autre | G15: Autre | H15: Autre | I15: Autre | J15: Autre | K15: Autre | L15: Autre | M15: Autre
A16: Marronnier d’Inde | B16: Possible | C16: Emblématique | D16: Autre | E16: Autre | F16: Emblématique | G16: Emblématique | H16: Possible | I16: Autre | J16: Autre | K16: Autre | L16: Autre | M16: Possible
A17: Marronnier rouge | B17: Possible | C17: Emblématique | D17: Autre | E17: Autre | F17: Emblématique | G17: Emblématique | H17: Possible | I17: Autre | J17: Autre | K17: Autre | L17: Autre | M17: Possible
A18: Aulne glutineux | B18: Autre | C18: Autre | D18: Autre | E18: Autre | F18: Autre | G18: Autre | H18: Emblématique | I18: Autre | J18: Autre | K18: Autre | L18: Emblématique | M18: Emblématique
A19: Aulne blanc | B19: Emblématique | C19: Autre | D19: Autre | E19: Autre | F19: Possible | G19: Autre | H19: Autre | I19: Autre | J19: Autre | K19: Autre | L19: Emblématique | M19: Emblématique
A20: Amélanchier | B20: Autre | C20: Possible | D20: Possible | E20: Possible | F20: Autre | G20: Autre | H20: Possible | I20: Possible | J20: Emblématique | K20: Emblématique | L20: Possible | M20: Possible
A21: Épine vinette | B21: Autre | C21: Autre | D21: Autre | E21: Emblématique | F21: Autre | G21: Autre | H21: Autre | I21: Autre | J21: Emblématique | K21: Autre | L21: Autre | M21: Autre
A22: Bouleau verruqueux | B22: Autre | C22: Autre | D22: Autre | E22: Emblématique | F22: Autre | G22: Autre | H22: Possible | I22: Autre | J22: Autre | K22: Emblématique | L22: Autre | M22: Emblématique
A23: Callicarpe, arbre aux bonbons | B23: Autre | C23: Autre | D23: Emblématique | E23: Emblématique | F23: Autre | G23: Possible | H23: Possible | I23: Autre | J23: Autre | K23: Emblématique | L23: Autre | M23: Autre
A24: Charme commun | B24: Autre | C24: Emblématique | D24: Autre | E24: Autre | F24: Autre | G24: Autre | H24: Possible | I24: Emblématique | J24: Emblématique | K24: Possible | L24: Autre | M24: Autre
A25: Catalpa | B25: Possible | C25: Emblématique | D25: Autre | E25: Autre | F25: Emblématique | G25: Possible | H25: Emblématique | I25: Autre | J25: Autre | K25: Autre | L25: Autre | M25: Autre
A26: Cèdre de l’Atlas | B26: Autre | C26: Autre | D26: Autre | E26: Emblématique | F26: Autre | G26: Autre | H26: Emblématique | I26: Autre | J26: Autre | K26: Possible | L26: Autre | M26: Emblématique
A27: Cèdre du Liban | B27: Autre | C27: Autre | D27: Autre | E27: Emblématique | F27: Autre | G27: Autre | H27: Emblématique | I27: Autre | J27: Autre | K27: Possible | L27: Autre | M27: Emblématique
A28: Micocoulier de Provence | B28: Possible | C28: Emblématique | D28: Autre | E28: Autre | F28: Emblématique | G28: Autre | H28: Emblématique | I28: Autre | J28: Autre | K28: Autre | L28: Autre | M28: Autre
A29: Micocoulier occidental | B29: Possible | C29: Emblématique | D29: Autre | E29: Autre | F29: Emblématique | G29: Autre | H29: Emblématique | I29: Autre | J29: Autre | K29: Autre | L29: Autre | M29: Autre
A30: Arbre de Judée | B30: Possible | C30: Possible | D30: Autre | E30: Emblématique | F30: Possible | G30: Emblématique | H30: Emblématique | I30: Possible | J30: Autre | K30: Autre | L30: Autre | M30: Autre
A31: Cornouiller des pagodes | B31: Autre | C31: Possible | D31: Possible | E31: Autre | F31: Autre | G31: Autre | H31: Possible | I31: Autre | J31: Emblématique | K31: Possible | L31: Emblématique | M31: Emblématique
A32: Cornouiller mâle | B32: Autre | C32: Emblématique | D32: Autre | E32: Autre | F32: Autre | G32: Autre | H32: Possible | I32: Autre | J32: Emblématique | K32: Autre | L32: Autre | M32: Emblématique
A33: Cornouiller sanguin | B33: Autre | C33: Emblématique | D33: Emblématique | E33: Possible | F33: Autre | G33: Autre | H33: Possible | I33: Emblématique | J33: Possible | K33: Possible | L33: Autre | M33: Possible
A34: Noisetier | B34: Autre | C34: Emblématique | D34: Autre | E34: Autre | F34: Autre | G34: Autre | H34: Autre | I34: Autre | J34: Autre | K34: Emblématique | L34: Autre | M34: Emblématique
A35: Noisetier de Byzance | B35: Emblématique | C35: Emblématique | D35: Autre | E35: Autre | F35: Autre | G35: Autre | H35: Emblématique | I35: Possible | J35: Autre | K35: Autre | L35: Autre | M35: Autre
A36: Cotoneaster à feuilles de saule | B36: Autre | C36: Emblématique | D36: Emblématique | E36: Emblématique | F36: Autre | G36: Autre | H36: Autre | I36: Possible | J36: Autre | K36: Autre | L36: Autre | M36: Autre
A37: Aubépine épineuse & Aubépine monogyne | B37: Autre | C37: Possible | D37: Possible | E37: Emblématique | F37: Autre | G37: Autre | H37: Possible | I37: Possible | J37: Emblématique | K37: Emblématique | L37: Possible | M37: Possible
A38: Fusain d’Europe | B38: Autre | C38: Emblématique | D38: Emblématique | E38: Possible | F38: Autre | G38: Autre | H38: Possible | I38: Possible | J38: Possible | K38: Emblématique | L38: Autre | M38: Autre
A39: Frêne à fleurs | B39: Possible | C39: Emblématique | D39: Possible | E39: Emblématique | F39: Autre | G39: Autre | H39: Autre | I39: Emblématique | J39: Possible | K39: Possible | L39: Autre | M39: Possible
A40: Ginkgo | B40: Possible | C40: Emblématique | D40: Autre | E40: Emblématique | F40: Autre | G40: Possible | H40: Emblématique | I40: Autre | J40: Autre | K40: Autre | L40: Autre | M40: Autre
A41: Févier d’Amérique | B41: Possible | C41: Autre | D41: Autre | E41: Emblématique | F41: Emblématique | G41: Autre | H41: Emblématique | I41: Autre | J41: Autre | K41: Autre | L41: Autre | M41: Autre
A42: Lierre grimpant | B42: Emblématique | C42: Emblématique | D42: Emblématique | E42: Autre | F42: Autre | G42: Autre | H42: Autre | I42: Autre | J42: Autre | K42: Autre | L42: Autre | M42: Autre
A43: Houx | B43: Autre | C43: Autre | D43: Emblématique | E43: Possible | F43: Possible | G43: Autre | H43: Emblématique | I43: Autre | J43: Autre | K43: Autre | L43: Autre | M43: Autre
A44: Genévrier commun | B44: Autre | C44: Emblématique | D44: Emblématique | E44: Emblématique | F44: Autre | G44: Autre | H44: Autre | I44: Autre | J44: Autre | K44: Autre | L44: Autre | M44: Autre
A45: Savonnier | B45: Emblématique | C45: Emblématique | D45: Emblématique | E45: Possible | F45: Autre | G45: Possible | H45: Autre | I45: Possible | J45: Autre | K45: Autre | L45: Autre | M45: Autre
A46: Mélèze d’Europe | B46: Autre | C46: Autre | D46: Autre | E46: Autre | F46: Autre | G46: Autre | H46: Emblématique | I46: Autre | J46: Autre | K46: Autre | L46: Autre | M46: Possible
A47: Lavande | B47: Autre | C47: Possible | D47: Possible | E47: Emblématique | F47: Autre | G47: Autre | H47: Emblématique | I47: Emblématique | J47: Autre | K47: Autre | L47: Autre | M47: Autre
A48: Troène commun | B48: Emblématique | C48: Possible | D48: Emblématique | E48: Possible | F48: Autre | G48: Possible | H48: Autre | I48: Emblématique | J48: Possible | K48: Possible | L48: Possible | M48: Autre
A49: Copalme d’Amérique | B49: Autre | C49: Emblématique | D49: Possible | E49: Autre | F49: Possible | G49: Possible | H49: Emblématique | I49: Possible | J49: Autre | K49: Possible | L49: Autre | M49: Emblématique
A50: Tulipier de Virginie | B50: Autre | C50: Emblématique | D50: Autre | E50: Autre | F50: Autre | G50: Autre | H50: Emblématique | I50: Autre | J50: Autre | K50: Autre | L50: Autre | M50: Emblématique
A51: Magnolia à grandes fleurs | B51: Autre | C51: Autre | D51: Possible | E51: Emblématique | F51: Possible | G51: Emblématique | H51: Possible | I51: Autre | J51: Autre | K51: Autre | L51: Autre | M51: Autre
A52: Charme houblon | B52: Autre | C52: Emblématique | D52: Possible | E52: Autre | F52: Possible | G52: Possible | H52: Autre | I52: Possible | J52: Autre | K52: Autre | L52: Emblématique | M52: Emblématique
A53: Vigne vierge | B53: Autre | C53: Autre | D53: Autre | E53: Autre | F53: Autre | G53: Autre | H53: Autre | I53: Autre | J53: Autre | K53: Autre | L53: Autre | M53: Autre
A54: Paulownia tomenteux ou impérial | B54: Possible | C54: Emblématique | D54: Emblématique | E54: Possible | F54: Emblématique | G54: Possible | H54: Possible | I54: Autre | J54: Autre | K54: Autre | L54: Autre | M54: Autre
A55: Seringa, Jasmin des poètes | B55: Autre | C55: Autre | D55: Possible | E55: Possible | F55: Autre | G55: Autre | H55: Possible | I55: Emblématique | J55: Emblématique | K55: Emblématique | L55: Autre | M55: Possible
A56: Photinia | B56: Autre | C56: Possible | D56: Emblématique | E56: Emblématique | F56: Autre | G56: Autre | H56: Possible | I56: Emblématique | J56: Autre | K56: Autre | L56: Autre | M56: Autre
A57: Epicéa commun | B57: Autre | C57: Autre | D57: Autre | E57: Emblématique | F57: Autre | G57: Autre | H57: Emblématique | I57: Autre | J57: Autre | K57: Autre | L57: Autre | M57: Emblématique
A58: Pin sylvestre | B58: Autre | C58: Emblématique | D58: Autre | E58: Emblématique | F58: Possible | G58: Autre | H58: Emblématique | I58: Autre | J58: Autre | K58: Autre | L58: Autre | M58: Autre
A59: Poirier de Chine | B59: Emblématique | C59: Autre | D59: Autre | E59: Autre | F59: Autre | G59: Autre | H59: Autre | I59: Emblématique | J59: Possible | K59: Emblématique | L59: Autre | M59: Autre
A60: Platane | B60: Emblématique | C60: Possible | D60: Emblématique | E60: Possible | F60: Emblématique | G60: Possible | H60: Autre | I60: Autre | J60: Autre | K60: Autre | L60: Autre | M60: Autre
A61: Peuplier blanc | B61: Autre | C61: Emblématique | D61: Autre | E61: Autre | F61: Autre | G61: Autre | H61: Possible | I61: Autre | J61: Autre | K61: Autre | L61: Emblématique | M61: Emblématique
A62: Tremble | B62: Autre | C62: Emblématique | D62: Autre | E62: Autre | F62: Autre | G62: Autre | H62: Possible | I62: Autre | J62: Autre | K62: Emblématique | L62: Possible | M62: Emblématique
A63: Merisier | B63: Emblématique | C63: Emblématique | D63: Autre | E63: Emblématique | F63: Autre | G63: Autre | H63: Possible | I63: Possible | J63: Possible | K63: Possible | L63: Autre | M63: Possible
A64: Cerisier à grappes | B64: Autre | C64: Emblématique | D64: Autre | E64: Possible | F64: Autre | G64: Autre | H64: Autre | I64: Emblématique | J64: Possible | K64: Emblématique | L64: Possible | M64: Possible
A65: Cerisier de Sargent et à fleurs | B65: Autre | C65: Emblématique | D65: Autre | E65: Possible | F65: Autre | G65: Autre | H65: Autre | I65: Emblématique | J65: Emblématique | K65: Possible | L65: Autre | M65: Possible
A66: Prunelier | B66: Autre | C66: Autre | D66: Autre | E66: Emblématique | F66: Autre | G66: Autre | H66: Autre | I66: Autre | J66: Emblématique | K66: Emblématique | L66: Autre | M66: Possible
A67: Buisson ardent | B67: Autre | C67: Autre | D67: Autre | E67: Autre | F67: Autre | G67: Autre | H67: Autre | I67: Autre | J67: Autre | K67: Autre | L67: Autre | M67: Autre
A68: Chêne blanc | B68: Autre | C68: Autre | D68: Autre | E68: Autre | F68: Autre | G68: Autre | H68: Emblématique | I68: Possible | J68: Autre | K68: Autre | L68: Emblématique | M68: Emblématique
A69: Chêne chevelu de bourgogne | B69: Possible | C69: Emblématique | D69: Autre | E69: Emblématique | F69: Possible | G69: Emblématique | H69: Autre | I69: Autre | J69: Autre | K69: Autre | L69: Autre | M69: Possible
A70: Chêne de Hongrie | B70: Possible | C70: Emblématique | D70: Autre | E70: Possible | F70: Emblématique | G70: Possible | H70: Possible | I70: Autre | J70: Autre | K70: Autre | L70: Possible | M70: Emblématique
A71: Chêne vert | B71: Emblématique | C71: Autre | D71: Autre | E71: Autre | F71: Emblématique | G71: Emblématique | H71: Possible | I71: Autre | J71: Autre | K71: Possible | L71: Autre | M71: Autre
A72: Chêne du Caucase | B72: Emblématique | C72: Emblématique | D72: Autre | E72: Emblématique | F72: Possible | G72: Autre | H72: Autre | I72: Autre | J72: Autre | K72: Possible | L72: Possible | M72: Autre
A73: Chêne sessile | B73: Possible | C73: Emblématique | D73: Autre | E73: Autre | F73: Possible | G73: Emblématique | H73: Emblématique | I73: Possible | J73: Autre | K73: Autre | L73: Autre | M73: Possible
A74: Chêne pédonculé | B74: Autre | C74: Possible | D74: Autre | E74: Autre | F74: Autre | G74: Autre | H74: Emblématique | I74: Autre | J74: Autre | K74: Emblématique | L74: Autre | M74: Emblématique
A75: Chêne rouge d’Amérique | B75: Possible | C75: Possible | D75: Autre | E75: Possible | F75: Emblématique | G75: Emblématique | H75: Possible | I75: Autre | J75: Autre | K75: Autre | L75: Emblématique | M75: Autre
A76: Chêne de Turner | B76: Autre | C76: Autre | D76: Autre | E76: Autre | F76: Autre | G76: Autre | H76: Emblématique | I76: Emblématique | J76: Autre | K76: Autre | L76: Autre | M76: Emblématique
A77: Saule blanc | B77: Autre | C77: Autre | D77: Autre | E77: Autre | F77: Autre | G77: Autre | H77: Emblématique | I77: Autre | J77: Autre | K77: Autre | L77: Emblématique | M77: Emblématique
A78: Saule pourpre | B78: Autre | C78: Possible | D78: Possible | E78: Autre | F78: Possible | G78: Possible | H78: Emblématique | I78: Autre | J78: Possible | K78: Possible | L78: Emblématique | M78: Emblématique
A79: Saule des vanniers | B79: Autre | C79: Possible | D79: Possible | E79: Possible | F79: Possible | G79: Possible | H79: Emblématique | I79: Emblématique | J79: Possible | K79: Possible | L79: Emblématique | M79: Possible
A80: Sureau noir | B80: Emblématique | C80: Possible | D80: Autre | E80: Autre | F80: Autre | G80: Autre | H80: Autre | I80: Autre | J80: Autre | K80: Emblématique | L80: Emblématique | M80: Possible
A81: Séquoia géant | B81: Autre | C81: Autre | D81: Autre | E81: Autre | F81: Autre | G81: Emblématique | H81: Emblématique | I81: Autre | J81: Autre | K81: Autre | L81: Autre | M81: Autre
A82: Séquoia toujours vert | B82: Autre | C82: Autre | D82: Autre | E82: Autre | F82: Autre | G82: Emblématique | H82: Emblématique | I82: Autre | J82: Autre | K82: Autre | L82: Autre | M82: Autre
A83: Sophora du Japon | B83: Possible | C83: Emblématique | D83: Autre | E83: Emblématique | F83: Autre | G83: Autre | H83: Emblématique | I83: Autre | J83: Autre | K83: Possible | L83: Autre | M83: Possible
A84: Alisier blanc | B84: Emblématique | C84: Possible | D84: Possible | E84: Autre | F84: Autre | G84: Autre | H84: Autre | I84: Emblématique | J84: Autre | K84: Emblématique | L84: Autre | M84: Autre
A85: Sorbier des oiseleurs | B85: Possible | C85: Possible | D85: Possible | E85: Emblématique | F85: Autre | G85: Autre | H85: Autre | I85: Possible | J85: Emblématique | K85: Emblématique | L85: Autre | M85: Autre
A86: autres sorbiers ( Alisier de Suède : sorbus intermédia, yc cultivar Brouwers , Sorbus x thuringiaca) | B86: Autre | C86: Emblématique | D86: Autre | E86: Autre | F86: Autre | G86: Autre | H86: Possible | I86: Emblématique | J86: Emblématique | K86: Possible | L86: Autre | M86: Autre
A87: Alisier torminal | B87: Autre | C87: Autre | D87: Autre | E87: Autre | F87: Autre | G87: Autre | H87: Autre | I87: Emblématique | J87: Emblématique | K87: Emblématique | L87: Autre | M87: Autre
A88: Lilas commun | B88: Autre | C88: Possible | D88: Possible | E88: Possible | F88: Autre | G88: Autre | H88: Emblématique | I88: Emblématique | J88: Emblématique | K88: Possible | L88: Autre | M88: Possible
A89: If | B89: Autre | C89: Possible | D89: Possible | E89: Autre | F89: Autre | G89: Autre | H89: Emblématique | I89: Autre | J89: Autre | K89: Autre | L89: Autre | M89: Autre
A90: Tilleul à petites feuilles | B90: Emblématique | C90: Emblématique | D90: Emblématique | E90: Autre | F90: Autre | G90: Autre | H90: Possible | I90: Possible | J90: Autre | K90: Possible | L90: Autre | M90: Possible
A91: Tilleul à grandes feuilles | B91: Emblématique | C91: Possible | D91: Autre | E91: Possible | F91: Emblématique | G91: Emblématique | H91: Autre | I91: Autre | J91: Autre | K91: Autre | L91: Autre | M91: Autre
A92: orme résistant à la graphiose | B92: Emblématique | C92: Emblématique | D92: Autre | E92: Autre | F92: Autre | G92: Autre | H92: Possible | I92: Autre | J92: Autre | K92: Autre | L92: Autre | M92: Emblématique
A93: Viorne lantane | B93: Autre | C93: Possible | D93: Possible | E93: Possible | F93: Autre | G93: Autre | H93: Possible | I93: Possible | J93: Emblématique | K93: Emblématique | L93: Autre | M93: Emblématique
A94: Viorne obier | B94: Autre | C94: Autre | D94: Possible | E94: Emblématique | F94: Autre | G94: Autre | H94: Emblématique | I94: Possible | J94: Emblématique | K94: Emblématique | L94: Autre | M94: Possible
A95: =IF(Base_Arbres!$A90<>"",Base_Arbres!$A90,"") -> 
A96: =IF(Base_Arbres!$A91<>"",Base_Arbres!$A91,"") -> 
A97: =IF(Base_Arbres!$A92<>"",Base_Arbres!$A92,"") -> 
A98: =IF(Base_Arbres!$A93<>"",Base_Arbres!$A93,"") -> 
A99: =IF(Base_Arbres!$A94<>"",Base_Arbres!$A94,"") -> 
A100: =IF(Base_Arbres!$A95<>"",Base_Arbres!$A95,"") -> 
A101: =IF(Base_Arbres!$A96<>"",Base_Arbres!$A96,"") -> 
A102: =IF(Base_Arbres!$A97<>"",Base_Arbres!$A97,"") -> 
A103: =IF(Base_Arbres!$A98<>"",Base_Arbres!$A98,"") -> 
A104: =IF(Base_Arbres!$A99<>"",Base_Arbres!$A99,"") -> 
A105: =IF(Base_Arbres!$A100<>"",Base_Arbres!$A100,"") -> 
A106: =IF(Base_Arbres!$A101<>"",Base_Arbres!$A101,"") -> 
A107: =IF(Base_Arbres!$A102<>"",Base_Arbres!$A102,"") -> 
A108: =IF(Base_Arbres!$A103<>"",Base_Arbres!$A103,"") -> 
A109: =IF(Base_Arbres!$A104<>"",Base_Arbres!$A104,"") -> 
A110: =IF(Base_Arbres!$A105<>"",Base_Arbres!$A105,"") -> 
A111: =IF(Base_Arbres!$A106<>"",Base_Arbres!$A106,"") -> 
A112: =IF(Base_Arbres!$A107<>"",Base_Arbres!$A107,"") -> 
A113: =IF(Base_Arbres!$A108<>"",Base_Arbres!$A108,"") -> 
A114: =IF(Base_Arbres!$A109<>"",Base_Arbres!$A109,"") -> 
A115: =IF(Base_Arbres!$A110<>"",Base_Arbres!$A110,"") -> 
A116: =IF(Base_Arbres!$A111<>"",Base_Arbres!$A111,"") -> 
A117: =IF(Base_Arbres!$A112<>"",Base_Arbres!$A112,"") -> 
A118: =IF(Base_Arbres!$A113<>"",Base_Arbres!$A113,"") -> 
A119: =IF(Base_Arbres!$A114<>"",Base_Arbres!$A114,"") -> 
A120: =IF(Base_Arbres!$A115<>"",Base_Arbres!$A115,"") -> 
A121: =IF(Base_Arbres!$A116<>"",Base_Arbres!$A116,"") -> 
A122: =IF(Base_Arbres!$A117<>"",Base_Arbres!$A117,"") -> 
A123: =IF(Base_Arbres!$A118<>"",Base_Arbres!$A118,"") -> 
A124: =IF(Base_Arbres!$A119<>"",Base_Arbres!$A119,"") -> 
A125: =IF(Base_Arbres!$A120<>"",Base_Arbres!$A120,"") -> 
A126: =IF(Base_Arbres!$A121<>"",Base_Arbres!$A121,"") -> 
A127: =IF(Base_Arbres!$A122<>"",Base_Arbres!$A122,"") -> 
A128: =IF(Base_Arbres!$A123<>"",Base_Arbres!$A123,"") -> 
A129: =IF(Base_Arbres!$A124<>"",Base_Arbres!$A124,"") -> 
A130: =IF(Base_Arbres!$A125<>"",Base_Arbres!$A125,"") -> 
A131: =IF(Base_Arbres!$A126<>"",Base_Arbres!$A126,"") -> 
A132: =IF(Base_Arbres!$A127<>"",Base_Arbres!$A127,"") -> 
A133: =IF(Base_Arbres!$A128<>"",Base_Arbres!$A128,"") -> 
A134: =IF(Base_Arbres!$A129<>"",Base_Arbres!$A129,"") -> 
A135: =IF(Base_Arbres!$A130<>"",Base_Arbres!$A130,"") -> 
A136: =IF(Base_Arbres!$A131<>"",Base_Arbres!$A131,"") -> 
A137: =IF(Base_Arbres!$A132<>"",Base_Arbres!$A132,"") -> 
A138: =IF(Base_Arbres!$A133<>"",Base_Arbres!$A133,"") -> 
A139: =IF(Base_Arbres!$A134<>"",Base_Arbres!$A134,"") -> 
A140: =IF(Base_Arbres!$A135<>"",Base_Arbres!$A135,"") -> 
A141: =IF(Base_Arbres!$A136<>"",Base_Arbres!$A136,"") -> 
A142: =IF(Base_Arbres!$A137<>"",Base_Arbres!$A137,"") -> 
A143: =IF(Base_Arbres!$A138<>"",Base_Arbres!$A138,"") -> 
A144: =IF(Base_Arbres!$A139<>"",Base_Arbres!$A139,"") -> 
A145: =IF(Base_Arbres!$A140<>"",Base_Arbres!$A140,"") -> 
A146: =IF(Base_Arbres!$A141<>"",Base_Arbres!$A141,"") -> 
A147: =IF(Base_Arbres!$A142<>"",Base_Arbres!$A142,"") -> 
A148: =IF(Base_Arbres!$A143<>"",Base_Arbres!$A143,"") -> 
A149: =IF(Base_Arbres!$A144<>"",Base_Arbres!$A144,"") -> 
A150: =IF(Base_Arbres!$A145<>"",Base_Arbres!$A145,"") -> 
A151: =IF(Base_Arbres!$A146<>"",Base_Arbres!$A146,"") -> 
A152: =IF(Base_Arbres!$A147<>"",Base_Arbres!$A147,"") -> 
A153: =IF(Base_Arbres!$A148<>"",Base_Arbres!$A148,"") -> 
A154: =IF(Base_Arbres!$A149<>"",Base_Arbres!$A149,"") -> 
A155: =IF(Base_Arbres!$A150<>"",Base_Arbres!$A150,"") -> 
A156: =IF(Base_Arbres!$A151<>"",Base_Arbres!$A151,"") -> 
A157: =IF(Base_Arbres!$A152<>"",Base_Arbres!$A152,"") -> 
A158: =IF(Base_Arbres!$A153<>"",Base_Arbres!$A153,"") -> 
A159: =IF(Base_Arbres!$A154<>"",Base_Arbres!$A154,"") -> 
A160: =IF(Base_Arbres!$A155<>"",Base_Arbres!$A155,"") -> 
A161: =IF(Base_Arbres!$A156<>"",Base_Arbres!$A156,"") -> 
A162: =IF(Base_Arbres!$A157<>"",Base_Arbres!$A157,"") -> 
A163: =IF(Base_Arbres!$A158<>"",Base_Arbres!$A158,"") -> 
A164: =IF(Base_Arbres!$A159<>"",Base_Arbres!$A159,"") -> 
A165: =IF(Base_Arbres!$A160<>"",Base_Arbres!$A160,"") -> 
A166: =IF(Base_Arbres!$A161<>"",Base_Arbres!$A161,"") -> 
A167: =IF(Base_Arbres!$A162<>"",Base_Arbres!$A162,"") -> 
A168: =IF(Base_Arbres!$A163<>"",Base_Arbres!$A163,"") -> 
A169: =IF(Base_Arbres!$A164<>"",Base_Arbres!$A164,"") -> 
A170: =IF(Base_Arbres!$A165<>"",Base_Arbres!$A165,"") -> 
A171: =IF(Base_Arbres!$A166<>"",Base_Arbres!$A166,"") -> 
A172: =IF(Base_Arbres!$A167<>"",Base_Arbres!$A167,"") -> 
A173: =IF(Base_Arbres!$A168<>"",Base_Arbres!$A168,"") -> 
A174: =IF(Base_Arbres!$A169<>"",Base_Arbres!$A169,"") -> 
A175: =IF(Base_Arbres!$A170<>"",Base_Arbres!$A170,"") -> 
A176: =IF(Base_Arbres!$A171<>"",Base_Arbres!$A171,"") -> 
A177: =IF(Base_Arbres!$A172<>"",Base_Arbres!$A172,"") -> 
A178: =IF(Base_Arbres!$A173<>"",Base_Arbres!$A173,"") -> 
A179: =IF(Base_Arbres!$A174<>"",Base_Arbres!$A174,"") -> 
A180: =IF(Base_Arbres!$A175<>"",Base_Arbres!$A175,"") -> 
A181: =IF(Base_Arbres!$A176<>"",Base_Arbres!$A176,"") -> 
A182: =IF(Base_Arbres!$A177<>"",Base_Arbres!$A177,"") -> 
A183: =IF(Base_Arbres!$A178<>"",Base_Arbres!$A178,"") -> 
A184: =IF(Base_Arbres!$A179<>"",Base_Arbres!$A179,"") -> 
A185: =IF(Base_Arbres!$A180<>"",Base_Arbres!$A180,"") -> 
A186: =IF(Base_Arbres!$A181<>"",Base_Arbres!$A181,"") -> 
A187: =IF(Base_Arbres!$A182<>"",Base_Arbres!$A182,"") -> 
A188: =IF(Base_Arbres!$A183<>"",Base_Arbres!$A183,"") -> 
A189: =IF(Base_Arbres!$A184<>"",Base_Arbres!$A184,"") -> 
A190: =IF(Base_Arbres!$A185<>"",Base_Arbres!$A185,"") -> 
A191: =IF(Base_Arbres!$A186<>"",Base_Arbres!$A186,"") -> 
A192: =IF(Base_Arbres!$A187<>"",Base_Arbres!$A187,"") -> 
A193: =IF(Base_Arbres!$A188<>"",Base_Arbres!$A188,"") -> 
A194: =IF(Base_Arbres!$A189<>"",Base_Arbres!$A189,"") -> 
A195: =IF(Base_Arbres!$A190<>"",Base_Arbres!$A190,"") -> 
A196: =IF(Base_Arbres!$A191<>"",Base_Arbres!$A191,"") -> 
A197: =IF(Base_Arbres!$A192<>"",Base_Arbres!$A192,"") -> 
A198: =IF(Base_Arbres!$A193<>"",Base_Arbres!$A193,"") -> 
A199: =IF(Base_Arbres!$A194<>"",Base_Arbres!$A194,"") -> 
A200: =IF(Base_Arbres!$A195<>"",Base_Arbres!$A195,"") -> 
A201: =IF(Base_Arbres!$A196<>"",Base_Arbres!$A196,"") -> 
... 804 more rows

Sheet Version
A1: Version | B1: Date | C1: Commentaires
A2: Version 1 | B2: 2017-07-01 | C2: Fonctionnalités de base
A3: Version 2 | B3: 2018-10-07 | C3: - Mise en place des critères - Mise en place de la notation de 1 à 10 - Mise en place des données réelles au 01/11/2018
A4: Version 3 | B4: 2019-01-07 | C4: - Modification des libellés des critères - Importation des données : Base Arbres et Base Typologie. - Ajout du critère : "17. Adaptation au climat urbain, dans le cadre du changement climatique"
A5: Version 4 | B5: 2019-03-11 | C5: - Ajout des critères éliminatoires
A6: Version 4.1 | B6: 2019-03-12 | C6: - Correction d'un bug dans le tri des essences
A7: Version 4.1.2 | B7: 2019-03-14 | C7: - mise en forme et texte de l'onglet "choix critères"
A8: Version 4.2.1 | B8: 2019-06-15 | C8: Version "climat"
A9: Version 4.2.2 | B9: 2019-08-10 | C9: Version "climat" mise en forme
A10: Version 4.2.3 | B10: 2019-09-23 | C10: masquage des onglets techniques verroullage des feuilles de calcul verrouillage des parties non modifiables de l'interface
A11: Version 4.2.4 | B11: 2019-11-15 | C11: corrections techniques suppression du type paysager n°13

Sheet Tableau_Tri
A1: Nom | B1: 11. Absorption des polluants | C1: 12. Fixation des particules fines | D1: 13. Régulation du climat local | E1: 14. Support de biodiversité | F1: 15. Risque allergique | G1: 16. Impact paysager | H1: 17. adaptation au climat urbain | I1: Multiplicateur Critères Racines | J1: Multiplicateur Critères Branches | K1: Multiplicateur Critères Chablis | L1: Multiplicateur Critères Fructification | M1: Multiplicateur Critères Miellat | N1: Multiplicateur Critères Toxique | O1: Multiplicateur Critères Hauteur | P1: Multiplicateur Critères Envergure | Q1: Note totale
A2: =IF(Base_Arbres!A85<>"",Base_Arbres!A85,"") -> Tilleul à petites feuilles | B2: =IF(Base_Arbres!A85<>"",VLOOKUP($A2,Base_Arbres,3,FALSE)*Crit1,"") -> 6.326530612 | C2: =IF(Base_Arbres!A85<>"",VLOOKUP($A2,Base_Arbres,4,FALSE)*Crit2,"") -> 20.93023256 | D2: =IF(Base_Arbres!A85<>"",VLOOKUP($A2,Base_Arbres,5,FALSE)*Crit3,"") -> 10.17857143 | E2: =IF(Base_Arbres!A85<>"",VLOOKUP($A2,Base_Arbres,6,FALSE)*Crit4,"") -> 63 | F2: =IF(Base_Arbres!A85<>"",VLOOKUP($A2,Base_Arbres,7,FALSE)*Crit5,"") -> -10 | G2: =IF(ISNA(VLOOKUP(INDEX(Base_Typologie!$A$6:$R$1005,MATCH(A2,Base_Typologie!$A:$A,0)-5,MATCH(Typologie_Espace_Public,Base_Typologie!$6:$6,0)),TableauScoreTypologie,2,FALSE)*Crit6),0,VLOOKUP(INDEX(Base_Typologie!$A$6:$R$1005,MATCH(A2,Base_Typologie!$A:$A,0)-5,MATCH(Typologie_Espace_Public,Base_Typologie!$6:$6,0)),TableauScoreTypologie,2,FALSE)*Crit6) -> 50 | H2: =IF(Base_Arbres!G85<>"",VLOOKUP($A2,Base_Arbres,8,FALSE)*Crit7,"")*1.5 -> 94.5 | I2: =IF(A2<>"",IF(LEFT(VLOOKUP($A2,Base_Arbres,9,FALSE),1)>=LEFT(Cont_Racines,1),0,1),0) -> 1 | J2: =IF(A2<>"",IF(LEFT(VLOOKUP($A2,Base_Arbres,10,FALSE),1)>=LEFT(Cont_Branches,1),0,1),0) -> 1 | K2: =IF(A2<>"",IF(LEFT(VLOOKUP($A2,Base_Arbres,11,FALSE),1)>=LEFT(Cont_Chablis,1),0,1),0) -> 1 | L2: =IF(A2<>"",IF(LEFT(VLOOKUP($A2,Base_Arbres,12,FALSE),1)>=LEFT(Cont_Fructifications,1),0,1),0) -> 1 | M2: =IF(A2<>"",IF(LEFT(VLOOKUP($A2,Base_Arbres,13,FALSE),1)>=LEFT(Cont_Miellat,1),0,1),0) -> 1 | N2: =IF(A2<>"",IF(LEFT(VLOOKUP($A2,Base_Arbres,14,FALSE),1)>=LEFT(Cont_Fruits_Toxiques,1),0,1),0) -> 1 | O2: =IF(A2<>"",IF(LEFT(VLOOKUP($A2,Base_Arbres,15,FALSE),1)>=LEFT(Cont_Hauteur,1),0,1),0) -> 1 | P2: =IF(A2<>"",IF(LEFT(VLOOKUP($A2,Base_Arbres,16,FALSE),1)>=LEFT(Cont_Envergure,1),0,1),0) -> 1 | Q2: =SUM(B2:H2)*I2*J2*K2*L2*M2*N2*O2*P2 -> 234.9353346
A3: =IF(Base_Arbres!A7<>"",Base_Arbres!A7,"") -> Érable plane | B3: =IF(Base_Arbres!A7<>"",VLOOKUP($A3,Base_Arbres,3,FALSE)*Crit1,"") -> 17.75510204 | C3: =IF(Base_Arbres!A7<>"",VLOOKUP($A3,Base_Arbres,4,FALSE)*Crit2,"") -> 13.25581395 | D3: =IF(Base_Arbres!A7<>"",VLOOKUP($A3,Base_Arbres,5,FALSE)*Crit3,"") -> 15.53571429 | E3: =IF(Base_Arbres!A7<>"",VLOOKUP($A3,Base_Arbres,6,FALSE)*Crit4,"") -> 63 | F3: =IF(Base_Arbres!A7<>"",VLOOKUP($A3,Base_Arbres,7,FALSE)*Crit5,"") -> -10 | G3: =IF(ISNA(VLOOKUP(INDEX(Base_Typologie!$A$6:$R$1005,MATCH(A3,Base_Typologie!$A:$A,0)-5,MATCH(Typologie_Espace_Public,Base_Typologie!$6:$6,0)),TableauScoreTypologie,2,FALSE)*Crit6),0,VLOOKUP(INDEX(Base_Typologie!$A$6:$R$1005,MATCH(A3,Base_Typologie!$A:$A,0)-5,MATCH(Typologie_Espace_Public,Base_Typologie!$6:$6,0)),TableauScoreTypologie,2,FALSE)*Crit6) -> 50 | H3: =IF(Base_Arbres!G7<>"",VLOOKUP($A3,Base_Arbres,8,FALSE)*Crit7,"")*1.5 -> 84 | I3: =IF(A3<>"",IF(LEFT(VLOOKUP($A3,Base_Arbres,9,FALSE),1)>=LEFT(Cont_Racines,1),0,1),0) -> 1 | J3: =IF(A3<>"",IF(LEFT(VLOOKUP($A3,Base_Arbres,10,FALSE),1)>=LEFT(Cont_Branches,1),0,1),0) -> 1 | K3: =IF(A3<>"",IF(LEFT(VLOOKUP($A3,Base_Arbres,11,FALSE),1)>=LEFT(Cont_Chablis,1),0,1),0) -> 1 | L3: =IF(A3<>"",IF(LEFT(VLOOKUP($A3,Base_Arbres,12,FALSE),1)>=LEFT(Cont_Fructifications,1),0,1),0) -> 1 | M3: =IF(A3<>"",IF(LEFT(VLOOKUP($A3,Base_Arbres,13,FALSE),1)>=LEFT(Cont_Miellat,1),0,1),0) -> 1 | N3: =IF(A3<>"",IF(LEFT(VLOOKUP($A3,Base_Arbres,14,FALSE),1)>=LEFT(Cont_Fruits_Toxiques,1),0,1),0) -> 1 | O3: =IF(A3<>"",IF(LEFT(VLOOKUP($A3,Base_Arbres,15,FALSE),1)>=LEFT(Cont_Hauteur,1),0,1),0) -> 1 | P3: =IF(A3<>"",IF(LEFT(VLOOKUP($A3,Base_Arbres,16,FALSE),1)>=LEFT(Cont_Envergure,1),0,1),0) -> 1 | Q3: =SUM(B3:H3)*I3*J3*K3*L3*M3*N3*O3*P3 -> 233.5466303
A4: =IF(Base_Arbres!A8<>"",Base_Arbres!A8,"") -> Érable sycomore | B4: =IF(Base_Arbres!A8<>"",VLOOKUP($A4,Base_Arbres,3,FALSE)*Crit1,"") -> 18.7755102 | C4: =IF(Base_Arbres!A8<>"",VLOOKUP($A4,Base_Arbres,4,FALSE)*Crit2,"") -> 16.04651163 | D4: =IF(Base_Arbres!A8<>"",VLOOKUP($A4,Base_Arbres,5,FALSE)*Crit3,"") -> 17.32142857 | E4: =IF(Base_Arbres!A8<>"",VLOOKUP($A4,Base_Arbres,6,FALSE)*Crit4,"") -> 63 | F4: =IF(Base_Arbres!A8<>"",VLOOKUP($A4,Base_Arbres,7,FALSE)*Crit5,"") -> -10 | G4: =IF(ISNA(VLOOKUP(INDEX(Base_Typologie!$A$6:$R$1005,MATCH(A4,Base_Typologie!$A:$A,0)-5,MATCH(Typologie_Espace_Public,Base_Typologie!$6:$6,0)),TableauScoreTypologie,2,FALSE)*Crit6),0,VLOOKUP(INDEX(Base_Typologie!$A$6:$R$1005,MATCH(A4,Base_Typologie!$A:$A,0)-5,MATCH(Typologie_Espace_Public,Base_Typologie!$6:$6,0)),TableauScoreTypologie,2,FALSE)*Crit6) -> 50 | H4: =IF(Base_Arbres!G8<>"",VLOOKUP($A4,Base_Arbres,8,FALSE)*Crit7,"")*1.5 -> 52.5 | I4: =IF(A4<>"",IF(LEFT(VLOOKUP($A4,Base_Arbres,9,FALSE),1)>=LEFT(Cont_Racines,1),0,1),0) -> 1 | J4: =IF(A4<>"",IF(LEFT(VLOOKUP($A4,Base_Arbres,10,FALSE),1)>=LEFT(Cont_Branches,1),0,1),0) -> 1 | K4: =IF(A4<>"",IF(LEFT(VLOOKUP($A4,Base_Arbres,11,FALSE),1)>=LEFT(Cont_Chablis,1),0,1),0) -> 1 | L4: =IF(A4<>"",IF(LEFT(VLOOKUP($A4,Base_Arbres,12,FALSE),1)>=LEFT(Cont_Fructifications,1),0,1),0) -> 1 | M4: =IF(A4<>"",IF(LEFT(VLOOKUP($A4,Base_Arbres,13,FALSE),1)>=LEFT(Cont_Miellat,1),0,1),0) -> 1 | N4: =IF(A4<>"",IF(LEFT(VLOOKUP($A4,Base_Arbres,14,FALSE),1)>=LEFT(Cont_Fruits_Toxiques,1),0,1),0) -> 1 | O4: =IF(A4<>"",IF(LEFT(VLOOKUP($A4,Base_Arbres,15,FALSE),1)>=LEFT(Cont_Hauteur,1),0,1),0) -> 1 | P4: =IF(A4<>"",IF(LEFT(VLOOKUP($A4,Base_Arbres,16,FALSE),1)>=LEFT(Cont_Envergure,1),0,1),0) -> 1 | Q4: =SUM(B4:H4)*I4*J4*K4*L4*M4*N4*O4*P4 -> 207.6434504
A5: =IF(Base_Arbres!A38<>"",Base_Arbres!A38,"") -> Houx | B5: =IF(Base_Arbres!A38<>"",VLOOKUP($A5,Base_Arbres,3,FALSE)*Crit1,"") -> 9.591836735 | C5: =IF(Base_Arbres!A38<>"",VLOOKUP($A5,Base_Arbres,4,FALSE)*Crit2,"") -> 19.53488372 | D5: =IF(Base_Arbres!A38<>"",VLOOKUP($A5,Base_Arbres,5,FALSE)*Crit3,"") -> 12.67857143 | E5: =IF(Base_Arbres!A38<>"",VLOOKUP($A5,Base_Arbres,6,FALSE)*Crit4,"") -> 63 | F5: =IF(Base_Arbres!A38<>"",VLOOKUP($A5,Base_Arbres,7,FALSE)*Crit5,"") -> 0 | G5: =IF(ISNA(VLOOKUP(INDEX(Base_Typologie!$A$6:$R$1005,MATCH(A5,Base_Typologie!$A:$A,0)-5,MATCH(Typologie_Espace_Public,Base_Typologie!$6:$6,0)),TableauScoreTypologie,2,FALSE)*Crit6),0,VLOOKUP(INDEX(Base_Typologie!$A$6:$R$1005,MATCH(A5,Base_Typologie!$A:$A,0)-5,MATCH(Typologie_Espace_Public,Base_Typologie!$6:$6,0)),TableauScoreTypologie,2,FALSE)*Crit6) -> 50 | H5: =IF(Base_Arbres!G38<>"",VLOOKUP($A5,Base_Arbres,8,FALSE)*Crit7,"")*1.5 -> 42 | I5: =IF(A5<>"",IF(LEFT(VLOOKUP($A5,Base_Arbres,9,FALSE),1)>=LEFT(Cont_Racines,1),0,1),0) -> 1 | J5: =IF(A5<>"",IF(LEFT(VLOOKUP($A5,Base_Arbres,10,FALSE),1)>=LEFT(Cont_Branches,1),0,1),0) -> 1 | K5: =IF(A5<>"",IF(LEFT(VLOOKUP($A5,Base_Arbres,11,FALSE),1)>=LEFT(Cont_Chablis,1),0,1),0) -> 1 | L5: =IF(A5<>"",IF(LEFT(VLOOKUP($A5,Base_Arbres,12,FALSE),1)>=LEFT(Cont_Fructifications,1),0,1),0) -> 1 | M5: =IF(A5<>"",IF(LEFT(VLOOKUP($A5,Base_Arbres,13,FALSE),1)>=LEFT(Cont_Miellat,1),0,1),0) -> 1 | N5: =IF(A5<>"",IF(LEFT(VLOOKUP($A5,Base_Arbres,14,FALSE),1)>=LEFT(Cont_Fruits_Toxiques,1),0,1),0) -> 1 | O5: =IF(A5<>"",IF(LEFT(VLOOKUP($A5,Base_Arbres,15,FALSE),1)>=LEFT(Cont_Hauteur,1),0,1),0) -> 1 | P5: =IF(A5<>"",IF(LEFT(VLOOKUP($A5,Base_Arbres,16,FALSE),1)>=LEFT(Cont_Envergure,1),0,1),0) -> 1 | Q5: =SUM(B5:H5)*I5*J5*K5*L5*M5*N5*O5*P5 -> 196.8052919
A6: =IF(Base_Arbres!A68<>"",Base_Arbres!A68,"") -> Chêne sessile | B6: =IF(Base_Arbres!A68<>"",VLOOKUP($A6,Base_Arbres,3,FALSE)*Crit1,"") -> 18.16326531 | C6: =IF(Base_Arbres!A68<>"",VLOOKUP($A6,Base_Arbres,4,FALSE)*Crit2,"") -> 14.65116279 | D6: =IF(Base_Arbres!A68<>"",VLOOKUP($A6,Base_Arbres,5,FALSE)*Crit3,"") -> 16.07142857 | E6: =IF(Base_Arbres!A68<>"",VLOOKUP($A6,Base_Arbres,6,FALSE)*Crit4,"") -> 81 | F6: =IF(Base_Arbres!A68<>"",VLOOKUP($A6,Base_Arbres,7,FALSE)*Crit5,"") -> -40 | G6: =IF(ISNA(VLOOKUP(INDEX(Base_Typologie!$A$6:$R$1005,MATCH(A6,Base_Typologie!$A:$A,0)-5,MATCH(Typologie_Espace_Public,Base_Typologie!$6:$6,0)),TableauScoreTypologie,2,FALSE)*Crit6),0,VLOOKUP(INDEX(Base_Typologie!$A$6:$R$1005,MATCH(A6,Base_Typologie!$A:$A,0)-5,MATCH(Typologie_Espace_Public,Base_Typologie!$6:$6,0)),TableauScoreTypologie,2,FALSE)*Crit6) -> 10 | H6: =IF(Base_Arbres!G68<>"",VLOOKUP($A6,Base_Arbres,8,FALSE)*Crit7,"")*1.5 -> 94.5 | I6: =IF(A6<>"",IF(LEFT(VLOOKUP($A6,Base_Arbres,9,FALSE),1)>=LEFT(Cont_Racines,1),0,1),0) -> 1 | J6: =IF(A6<>"",IF(LEFT(VLOOKUP($A6,Base_Arbres,10,FALSE),1)>=LEFT(Cont_Branches,1),0,1),0) -> 1 | K6: =IF(A6<>"",IF(LEFT(VLOOKUP($A6,Base_Arbres,11,FALSE),1)>=LEFT(Cont_Chablis,1),0,1),0) -> 1 | L6: =IF(A6<>"",IF(LEFT(VLOOKUP($A6,Base_Arbres,12,FALSE),1)>=LEFT(Cont_Fructifications,1),0,1),0) -> 1 | M6: =IF(A6<>"",IF(LEFT(VLOOKUP($A6,Base_Arbres,13,FALSE),1)>=LEFT(Cont_Miellat,1),0,1),0) -> 1 | N6: =IF(A6<>"",IF(LEFT(VLOOKUP($A6,Base_Arbres,14,FALSE),1)>=LEFT(Cont_Fruits_Toxiques,1),0,1),0) -> 1 | O6: =IF(A6<>"",IF(LEFT(VLOOKUP($A6,Base_Arbres,15,FALSE),1)>=LEFT(Cont_Hauteur,1),0,1),0) -> 1 | P6: =IF(A6<>"",IF(LEFT(VLOOKUP($A6,Base_Arbres,16,FALSE),1)>=LEFT(Cont_Envergure,1),0,1),0) -> 1 | Q6: =SUM(B6:H6)*I6*J6*K6*L6*M6*N6*O6*P6 -> 194.3858567
A7: =IF(Base_Arbres!A84<>"",Base_Arbres!A84,"") -> If | B7: =IF(Base_Arbres!A84<>"",VLOOKUP($A7,Base_Arbres,3,FALSE)*Crit1,"") -> 0.4081632653 | C7: =IF(Base_Arbres!A84<>"",VLOOKUP($A7,Base_Arbres,4,FALSE)*Crit2,"") -> 24.76744186 | D7: =IF(Base_Arbres!A84<>"",VLOOKUP($A7,Base_Arbres,5,FALSE)*Crit3,"") -> 7.321428571 | E7: =IF(Base_Arbres!A84<>"",VLOOKUP($A7,Base_Arbres,6,FALSE)*Crit4,"") -> 36 | F7: =IF(Base_Arbres!A84<>"",VLOOKUP($A7,Base_Arbres,7,FALSE)*Crit5,"") -> 0 | G7: =IF(ISNA(VLOOKUP(INDEX(Base_Typologie!$A$6:$R$1005,MATCH(A7,Base_Typologie!$A:$A,0)-5,MATCH(Typologie_Espace_Public,Base_Typologie!$6:$6,0)),TableauScoreTypologie,2,FALSE)*Crit6),0,VLOOKUP(INDEX(Base_Typologie!$A$6:$R$1005,MATCH(A7,Base_Typologie!$A:$A,0)-5,MATCH(Typologie_Espace_Public,Base_Typologie!$6:$6,0)),TableauScoreTypologie,2,FALSE)*Crit6) -> 30 | H7: =IF(Base_Arbres!G84<>"",VLOOKUP($A7,Base_Arbres,8,FALSE)*Crit7,"")*1.5 -> 94.5 | I7: =IF(A7<>"",IF(LEFT(VLOOKUP($A7,Base_Arbres,9,FALSE),1)>=LEFT(Cont_Racines,1),0,1),0) -> 1 | J7: =IF(A7<>"",IF(LEFT(VLOOKUP($A7,Base_Arbres,10,FALSE),1)>=LEFT(Cont_Branches,1),0,1),0) -> 1 | K7: =IF(A7<>"",IF(LEFT(VLOOKUP($A7,Base_Arbres,11,FALSE),1)>=LEFT(Cont_Chablis,1),0,1),0) -> 1 | L7: =IF(A7<>"",IF(LEFT(VLOOKUP($A7,Base_Arbres,12,FALSE),1)>=LEFT(Cont_Fructifications,1),0,1),0) -> 1 | M7: =IF(A7<>"",IF(LEFT(VLOOKUP($A7,Base_Arbres,13,FALSE),1)>=LEFT(Cont_Miellat,1),0,1),0) -> 1 | N7: =IF(A7<>"",IF(LEFT(VLOOKUP($A7,Base_Arbres,14,FALSE),1)>=LEFT(Cont_Fruits_Toxiques,1),0,1),0) -> 1 | O7: =IF(A7<>"",IF(LEFT(VLOOKUP($A7,Base_Arbres,15,FALSE),1)>=LEFT(Cont_Hauteur,1),0,1),0) -> 1 | P7: =IF(A7<>"",IF(LEFT(VLOOKUP($A7,Base_Arbres,16,FALSE),1)>=LEFT(Cont_Envergure,1),0,1),0) -> 1 | Q7: =SUM(B7:H7)*I7*J7*K7*L7*M7*N7*O7*P7 -> 192.9970337
A8: =IF(Base_Arbres!A28<>"",Base_Arbres!A28,"") -> Cornouiller sanguin | B8: =IF(Base_Arbres!A28<>"",VLOOKUP($A8,Base_Arbres,3,FALSE)*Crit1,"") -> 0.4081632653 | C8: =IF(Base_Arbres!A28<>"",VLOOKUP($A8,Base_Arbres,4,FALSE)*Crit2,"") -> 11.86046512 | D8: =IF(Base_Arbres!A28<>"",VLOOKUP($A8,Base_Arbres,5,FALSE)*Crit3,"") -> 0.7142857143 | E8: =IF(Base_Arbres!A28<>"",VLOOKUP($A8,Base_Arbres,6,FALSE)*Crit4,"") -> 54 | F8: =IF(Base_Arbres!A28<>"",VLOOKUP($A8,Base_Arbres,7,FALSE)*Crit5,"") -> 0 | G8: =IF(ISNA(VLOOKUP(INDEX(Base_Typologie!$A$6:$R$1005,MATCH(A8,Base_Typologie!$A:$A,0)-5,MATCH(Typologie_Espace_Public,Base_Typologie!$6:$6,0)),TableauScoreTypologie,2,FALSE)*Crit6),0,VLOOKUP(INDEX(Base_Typologie!$A$6:$R$1005,MATCH(A8,Base_Typologie!$A:$A,0)-5,MATCH(Typologie_Espace_Public,Base_Typologie!$6:$6,0)),TableauScoreTypologie,2,FALSE)*Crit6) -> 50 | H8: =IF(Base_Arbres!G28<>"",VLOOKUP($A8,Base_Arbres,8,FALSE)*Crit7,"")*1.5 -> 73.5 | I8: =IF(A8<>"",IF(LEFT(VLOOKUP($A8,Base_Arbres,9,FALSE),1)>=LEFT(Cont_Racines,1),0,1),0) -> 1 | J8: =IF(A8<>"",IF(LEFT(VLOOKUP($A8,Base_Arbres,10,FALSE),1)>=LEFT(Cont_Branches,1),0,1),0) -> 1 | K8: =IF(A8<>"",IF(LEFT(VLOOKUP($A8,Base_Arbres,11,FALSE),1)>=LEFT(Cont_Chablis,1),0,1),0) -> 1 | L8: =IF(A8<>"",IF(LEFT(VLOOKUP($A8,Base_Arbres,12,FALSE),1)>=LEFT(Cont_Fructifications,1),0,1),0) -> 1 | M8: =IF(A8<>"",IF(LEFT(VLOOKUP($A8,Base_Arbres,13,FALSE),1)>=LEFT(Cont_Miellat,1),0,1),0) -> 1 | N8: =IF(A8<>"",IF(LEFT(VLOOKUP($A8,Base_Arbres,14,FALSE),1)>=LEFT(Cont_Fruits_Toxiques,1),0,1),0) -> 1 | O8: =IF(A8<>"",IF(LEFT(VLOOKUP($A8,Base_Arbres,15,FALSE),1)>=LEFT(Cont_Hauteur,1),0,1),0) -> 1 | P8: =IF(A8<>"",IF(LEFT(VLOOKUP($A8,Base_Arbres,16,FALSE),1)>=LEFT(Cont_Envergure,1),0,1),0) -> 1 | Q8: =SUM(B8:H8)*I8*J8*K8*L8*M8*N8*O8*P8 -> 190.4829141
A9: =IF(Base_Arbres!A33<>"",Base_Arbres!A33,"") -> Fusain d’Europe | B9: =IF(Base_Arbres!A33<>"",VLOOKUP($A9,Base_Arbres,3,FALSE)*Crit1,"") -> 10.6122449 | C9: =IF(Base_Arbres!A33<>"",VLOOKUP($A9,Base_Arbres,4,FALSE)*Crit2,"") -> 0.3488372093 | D9: =IF(Base_Arbres!A33<>"",VLOOKUP($A9,Base_Arbres,5,FALSE)*Crit3,"") -> 1.428571429 | E9: =IF(Base_Arbres!A33<>"",VLOOKUP($A9,Base_Arbres,6,FALSE)*Crit4,"") -> 54 | F9: =IF(Base_Arbres!A33<>"",VLOOKUP($A9,Base_Arbres,7,FALSE)*Crit5,"") -> 0 | G9: =IF(ISNA(VLOOKUP(INDEX(Base_Typologie!$A$6:$R$1005,MATCH(A9,Base_Typologie!$A:$A,0)-5,MATCH(Typologie_Espace_Public,Base_Typologie!$6:$6,0)),TableauScoreTypologie,2,FALSE)*Crit6),0,VLOOKUP(INDEX(Base_Typologie!$A$6:$R$1005,MATCH(A9,Base_Typologie!$A:$A,0)-5,MATCH(Typologie_Espace_Public,Base_Typologie!$6:$6,0)),TableauScoreTypologie,2,FALSE)*Crit6) -> 50 | H9: =IF(Base_Arbres!G33<>"",VLOOKUP($A9,Base_Arbres,8,FALSE)*Crit7,"")*1.5 -> 73.5 | I9: =IF(A9<>"",IF(LEFT(VLOOKUP($A9,Base_Arbres,9,FALSE),1)>=LEFT(Cont_Racines,1),0,1),0) -> 1 | J9: =IF(A9<>"",IF(LEFT(VLOOKUP($A9,Base_Arbres,10,FALSE),1)>=LEFT(Cont_Branches,1),0,1),0) -> 1 | K9: =IF(A9<>"",IF(LEFT(VLOOKUP($A9,Base_Arbres,11,FALSE),1)>=LEFT(Cont_Chablis,1),0,1),0) -> 1 | L9: =IF(A9<>"",IF(LEFT(VLOOKUP($A9,Base_Arbres,12,FALSE),1)>=LEFT(Cont_Fructifications,1),0,1),0) -> 1 | M9: =IF(A9<>"",IF(LEFT(VLOOKUP($A9,Base_Arbres,13,FALSE),1)>=LEFT(Cont_Miellat,1),0,1),0) -> 1 | N9: =IF(A9<>"",IF(LEFT(VLOOKUP($A9,Base_Arbres,14,FALSE),1)>=LEFT(Cont_Fruits_Toxiques,1),0,1),0) -> 1 | O9: =IF(A9<>"",IF(LEFT(VLOOKUP($A9,Base_Arbres,15,FALSE),1)>=LEFT(Cont_Hauteur,1),0,1),0) -> 1 | P9: =IF(A9<>"",IF(LEFT(VLOOKUP($A9,Base_Arbres,16,FALSE),1)>=LEFT(Cont_Envergure,1),0,1),0) -> 1 | Q9: =SUM(B9:H9)*I9*J9*K9*L9*M9*N9*O9*P9 -> 189.8896535
A10: =IF(Base_Arbres!A69<>"",Base_Arbres!A69,"") -> Chêne pédonculé | B10: =IF(Base_Arbres!A69<>"",VLOOKUP($A10,Base_Arbres,3,FALSE)*Crit1,"") -> 17.75510204 | C10: =IF(Base_Arbres!A69<>"",VLOOKUP($A10,Base_Arbres,4,FALSE)*Crit2,"") -> 11.51162791 | D10: =IF(Base_Arbres!A69<>"",VLOOKUP($A10,Base_Arbres,5,FALSE)*Crit3,"") -> 15 | E10: =IF(Base_Arbres!A69<>"",VLOOKUP($A10,Base_Arbres,6,FALSE)*Crit4,"") -> 81 | F10: =IF(Base_Arbres!A69<>"",VLOOKUP($A10,Base_Arbres,7,FALSE)*Crit5,"") -> -40 | G10: =IF(ISNA(VLOOKUP(INDEX(Base_Typologie!$A$6:$R$1005,MATCH(A10,Base_Typologie!$A:$A,0)-5,MATCH(Typologie_Espace_Public,Base_Typologie!$6:$6,0)),TableauScoreTypologie,2,FALSE)*Crit6),0,VLOOKUP(INDEX(Base_Typologie!$A$6:$R$1005,MATCH(A10,Base_Typologie!$A:$A,0)-5,MATCH(Typologie_Espace_Public,Base_Typologie!$6:$6,0)),TableauScoreTypologie,2,FALSE)*Crit6) -> 10 | H10: =IF(Base_Arbres!G69<>"",VLOOKUP($A10,Base_Arbres,8,FALSE)*Crit7,"")*1.5 -> 94.5 | I10: =IF(A10<>"",IF(LEFT(VLOOKUP($A10,Base_Arbres,9,FALSE),1)>=LEFT(Cont_Racines,1),0,1),0) -> 1 | J10: =IF(A10<>"",IF(LEFT(VLOOKUP($A10,Base_Arbres,10,FALSE),1)>=LEFT(Cont_Branches,1),0,1),0) -> 1 | K10: =IF(A10<>"",IF(LEFT(VLOOKUP($A10,Base_Arbres,11,FALSE),1)>=LEFT(Cont_Chablis,1),0,1),0) -> 1 | L10: =IF(A10<>"",IF(LEFT(VLOOKUP($A10,Base_Arbres,12,FALSE),1)>=LEFT(Cont_Fructifications,1),0,1),0) -> 1 | M10: =IF(A10<>"",IF(LEFT(VLOOKUP($A10,Base_Arbres,13,FALSE),1)>=LEFT(Cont_Miellat,1),0,1),0) -> 1 | N10: =IF(A10<>"",IF(LEFT(VLOOKUP($A10,Base_Arbres,14,FALSE),1)>=LEFT(Cont_Fruits_Toxiques,1),0,1),0) -> 1 | O10: =IF(A10<>"",IF(LEFT(VLOOKUP($A10,Base_Arbres,15,FALSE),1)>=LEFT(Cont_Hauteur,1),0,1),0) -> 1 | P10: =IF(A10<>"",IF(LEFT(VLOOKUP($A10,Base_Arbres,16,FALSE),1)>=LEFT(Cont_Envergure,1),0,1),0) -> 1 | Q10: =SUM(B10:H10)*I10*J10*K10*L10*M10*N10*O10*P10 -> 189.7667299
A11: =IF(Base_Arbres!A32<>"",Base_Arbres!A32,"") -> Aubépine épineuse & Aubépine monogyne | B11: =IF(Base_Arbres!A32<>"",VLOOKUP($A11,Base_Arbres,3,FALSE)*Crit1,"") -> 7.346938776 | C11: =IF(Base_Arbres!A32<>"",VLOOKUP($A11,Base_Arbres,4,FALSE)*Crit2,"") -> 1.046511628 | D11: =IF(Base_Arbres!A32<>"",VLOOKUP($A11,Base_Arbres,5,FALSE)*Crit3,"") -> 2.142857143 | E11: =IF(Base_Arbres!A32<>"",VLOOKUP($A11,Base_Arbres,6,FALSE)*Crit4,"") -> 54 | F11: =IF(Base_Arbres!A32<>"",VLOOKUP($A11,Base_Arbres,7,FALSE)*Crit5,"") -> 0 | G11: =IF(ISNA(VLOOKUP(INDEX(Base_Typologie!$A$6:$R$1005,MATCH(A11,Base_Typologie!$A:$A,0)-5,MATCH(Typologie_Espace_Public,Base_Typologie!$6:$6,0)),TableauScoreTypologie,2,FALSE)*Crit6),0,VLOOKUP(INDEX(Base_Typologie!$A$6:$R$1005,MATCH(A11,Base_Typologie!$A:$A,0)-5,MATCH(Typologie_Espace_Public,Base_Typologie!$6:$6,0)),TableauScoreTypologie,2,FALSE)*Crit6) -> 30 | H11: =IF(Base_Arbres!G32<>"",VLOOKUP($A11,Base_Arbres,8,FALSE)*Crit7,"")*1.5 -> 94.5 | I11: =IF(A11<>"",IF(LEFT(VLOOKUP($A11,Base_Arbres,9,FALSE),1)>=LEFT(Cont_Racines,1),0,1),0) -> 1 | J11: =IF(A11<>"",IF(LEFT(VLOOKUP($A11,Base_Arbres,10,FALSE),1)>=LEFT(Cont_Branches,1),0,1),0) -> 1 | K11: =IF(A11<>"",IF(LEFT(VLOOKUP($A11,Base_Arbres,11,FALSE),1)>=LEFT(Cont_Chablis,1),0,1),0) -> 1 | L11: =IF(A11<>"",IF(LEFT(VLOOKUP($A11,Base_Arbres,12,FALSE),1)>=LEFT(Cont_Fructifications,1),0,1),0) -> 1 | M11: =IF(A11<>"",IF(LEFT(VLOOKUP($A11,Base_Arbres,13,FALSE),1)>=LEFT(Cont_Miellat,1),0,1),0) -> 1 | N11: =IF(A11<>"",IF(LEFT(VLOOKUP($A11,Base_Arbres,14,FALSE),1)>=LEFT(Cont_Fruits_Toxiques,1),0,1),0) -> 1 | O11: =IF(A11<>"",IF(LEFT(VLOOKUP($A11,Base_Arbres,15,FALSE),1)>=LEFT(Cont_Hauteur,1),0,1),0) -> 1 | P11: =IF(A11<>"",IF(LEFT(VLOOKUP($A11,Base_Arbres,16,FALSE),1)>=LEFT(Cont_Envergure,1),0,1),0) -> 1 | Q11: =SUM(B11:H11)*I11*J11*K11*L11*M11*N11*O11*P11 -> 189.0363075
A12: =IF(Base_Arbres!A60<>"",Base_Arbres!A60,"") -> Prunelier | B12: =IF(Base_Arbres!A60<>"",VLOOKUP($A12,Base_Arbres,3,FALSE)*Crit1,"") -> 0 | C12: =IF(Base_Arbres!A60<>"",VLOOKUP($A12,Base_Arbres,4,FALSE)*Crit2,"") -> 12.20930233 | D12: =IF(Base_Arbres!A60<>"",VLOOKUP($A12,Base_Arbres,5,FALSE)*Crit3,"") -> 1.25 | E12: =IF(Base_Arbres!A60<>"",VLOOKUP($A12,Base_Arbres,6,FALSE)*Crit4,"") -> 81 | F12: =IF(Base_Arbres!A60<>"",VLOOKUP($A12,Base_Arbres,7,FALSE)*Crit5,"") -> 0 | G12: =IF(ISNA(VLOOKUP(INDEX(Base_Typologie!$A$6:$R$1005,MATCH(A12,Base_Typologie!$A:$A,0)-5,MATCH(Typologie_Espace_Public,Base_Typologie!$6:$6,0)),TableauScoreTypologie,2,FALSE)*Crit6),0,VLOOKUP(INDEX(Base_Typologie!$A$6:$R$1005,MATCH(A12,Base_Typologie!$A:$A,0)-5,MATCH(Typologie_Espace_Public,Base_Typologie!$6:$6,0)),TableauScoreTypologie,2,FALSE)*Crit6) -> 10 | H12: =IF(Base_Arbres!G60<>"",VLOOKUP($A12,Base_Arbres,8,FALSE)*Crit7,"")*1.5 -> 84 | I12: =IF(A12<>"",IF(LEFT(VLOOKUP($A12,Base_Arbres,9,FALSE),1)>=LEFT(Cont_Racines,1),0,1),0) -> 1 | J12: =IF(A12<>"",IF(LEFT(VLOOKUP($A12,Base_Arbres,10,FALSE),1)>=LEFT(Cont_Branches,1),0,1),0) -> 1 | K12: =IF(A12<>"",IF(LEFT(VLOOKUP($A12,Base_Arbres,11,FALSE),1)>=LEFT(Cont_Chablis,1),0,1),0) -> 1 | L12: =IF(A12<>"",IF(LEFT(VLOOKUP($A12,Base_Arbres,12,FALSE),1)>=LEFT(Cont_Fructifications,1),0,1),0) -> 1 | M12: =IF(A12<>"",IF(LEFT(VLOOKUP($A12,Base_Arbres,13,FALSE),1)>=LEFT(Cont_Miellat,1),0,1),0) -> 1 | N12: =IF(A12<>"",IF(LEFT(VLOOKUP($A12,Base_Arbres,14,FALSE),1)>=LEFT(Cont_Fruits_Toxiques,1),0,1),0) -> 1 | O12: =IF(A12<>"",IF(LEFT(VLOOKUP($A12,Base_Arbres,15,FALSE),1)>=LEFT(Cont_Hauteur,1),0,1),0) -> 1 | P12: =IF(A12<>"",IF(LEFT(VLOOKUP($A12,Base_Arbres,16,FALSE),1)>=LEFT(Cont_Envergure,1),0,1),0) -> 1 | Q12: =SUM(B12:H12)*I12*J12*K12*L12*M12*N12*O12*P12 -> 188.4593023
A13: =IF(Base_Arbres!A49<>"",Base_Arbres!A49,"") -> Paulownia tomenteux ou impérial | B13: =IF(Base_Arbres!A49<>"",VLOOKUP($A13,Base_Arbres,3,FALSE)*Crit1,"") -> 9.795918367 | C13: =IF(Base_Arbres!A49<>"",VLOOKUP($A13,Base_Arbres,4,FALSE)*Crit2,"") -> 26.51162791 | D13: =IF(Base_Arbres!A49<>"",VLOOKUP($A13,Base_Arbres,5,FALSE)*Crit3,"") -> 13.39285714 | E13: =IF(Base_Arbres!A49<>"",VLOOKUP($A13,Base_Arbres,6,FALSE)*Crit4,"") -> 9 | F13: =IF(Base_Arbres!A49<>"",VLOOKUP($A13,Base_Arbres,7,FALSE)*Crit5,"") -> 0 | G13: =IF(ISNA(VLOOKUP(INDEX(Base_Typologie!$A$6:$R$1005,MATCH(A13,Base_Typologie!$A:$A,0)-5,MATCH(Typologie_Espace_Public,Base_Typologie!$6:$6,0)),TableauScoreTypologie,2,FALSE)*Crit6),0,VLOOKUP(INDEX(Base_Typologie!$A$6:$R$1005,MATCH(A13,Base_Typologie!$A:$A,0)-5,MATCH(Typologie_Espace_Public,Base_Typologie!$6:$6,0)),TableauScoreTypologie,2,FALSE)*Crit6) -> 50 | H13: =IF(Base_Arbres!G49<>"",VLOOKUP($A13,Base_Arbres,8,FALSE)*Crit7,"")*1.5 -> 73.5 | I13: =IF(A13<>"",IF(LEFT(VLOOKUP($A13,Base_Arbres,9,FALSE),1)>=LEFT(Cont_Racines,1),0,1),0) -> 1 | J13: =IF(A13<>"",IF(LEFT(VLOOKUP($A13,Base_Arbres,10,FALSE),1)>=LEFT(Cont_Branches,1),0,1),0) -> 1 | K13: =IF(A13<>"",IF(LEFT(VLOOKUP($A13,Base_Arbres,11,FALSE),1)>=LEFT(Cont_Chablis,1),0,1),0) -> 1 | L13: =IF(A13<>"",IF(LEFT(VLOOKUP($A13,Base_Arbres,12,FALSE),1)>=LEFT(Cont_Fructifications,1),0,1),0) -> 1 | M13: =IF(A13<>"",IF(LEFT(VLOOKUP($A13,Base_Arbres,13,FALSE),1)>=LEFT(Cont_Miellat,1),0,1),0) -> 1 | N13: =IF(A13<>"",IF(LEFT(VLOOKUP($A13,Base_Arbres,14,FALSE),1)>=LEFT(Cont_Fruits_Toxiques,1),0,1),0) -> 1 | O13: =IF(A13<>"",IF(LEFT(VLOOKUP($A13,Base_Arbres,15,FALSE),1)>=LEFT(Cont_Hauteur,1),0,1),0) -> 1 | P13: =IF(A13<>"",IF(LEFT(VLOOKUP($A13,Base_Arbres,16,FALSE),1)>=LEFT(Cont_Envergure,1),0,1),0) -> 1 | Q13: =SUM(B13:H13)*I13*J13*K13*L13*M13*N13*O13*P13 -> 182.2004034
A14: =IF(Base_Arbres!A79<>"",Base_Arbres!A79,"") -> Alisier blanc | B14: =IF(Base_Arbres!A79<>"",VLOOKUP($A14,Base_Arbres,3,FALSE)*Crit1,"") -> 4.489795918 | C14: =IF(Base_Arbres!A79<>"",VLOOKUP($A14,Base_Arbres,4,FALSE)*Crit2,"") -> 19.88372093 | D14: =IF(Base_Arbres!A79<>"",VLOOKUP($A14,Base_Arbres,5,FALSE)*Crit3,"") -> 8.214285714 | E14: =IF(Base_Arbres!A79<>"",VLOOKUP($A14,Base_Arbres,6,FALSE)*Crit4,"") -> 45 | F14: =IF(Base_Arbres!A79<>"",VLOOKUP($A14,Base_Arbres,7,FALSE)*Crit5,"") -> 0 | G14: =IF(ISNA(VLOOKUP(INDEX(Base_Typologie!$A$6:$R$1005,MATCH(A14,Base_Typologie!$A:$A,0)-5,MATCH(Typologie_Espace_Public,Base_Typologie!$6:$6,0)),TableauScoreTypologie,2,FALSE)*Crit6),0,VLOOKUP(INDEX(Base_Typologie!$A$6:$R$1005,MATCH(A14,Base_Typologie!$A:$A,0)-5,MATCH(Typologie_Espace_Public,Base_Typologie!$6:$6,0)),TableauScoreTypologie,2,FALSE)*Crit6) -> 30 | H14: =IF(Base_Arbres!G79<>"",VLOOKUP($A14,Base_Arbres,8,FALSE)*Crit7,"")*1.5 -> 73.5 | I14: =IF(A14<>"",IF(LEFT(VLOOKUP($A14,Base_Arbres,9,FALSE),1)>=LEFT(Cont_Racines,1),0,1),0) -> 1 | J14: =IF(A14<>"",IF(LEFT(VLOOKUP($A14,Base_Arbres,10,FALSE),1)>=LEFT(Cont_Branches,1),0,1),0) -> 1 | K14: =IF(A14<>"",IF(LEFT(VLOOKUP($A14,Base_Arbres,11,FALSE),1)>=LEFT(Cont_Chablis,1),0,1),0) -> 1 | L14: =IF(A14<>"",IF(LEFT(VLOOKUP($A14,Base_Arbres,12,FALSE),1)>=LEFT(Cont_Fructifications,1),0,1),0) -> 1 | M14: =IF(A14<>"",IF(LEFT(VLOOKUP($A14,Base_Arbres,13,FALSE),1)>=LEFT(Cont_Miellat,1),0,1),0) -> 1 | N14: =IF(A14<>"",IF(LEFT(VLOOKUP($A14,Base_Arbres,14,FALSE),1)>=LEFT(Cont_Fruits_Toxiques,1),0,1),0) -> 1 | O14: =IF(A14<>"",IF(LEFT(VLOOKUP($A14,Base_Arbres,15,FALSE),1)>=LEFT(Cont_Hauteur,1),0,1),0) -> 1 | P14: =IF(A14<>"",IF(LEFT(VLOOKUP($A14,Base_Arbres,16,FALSE),1)>=LEFT(Cont_Envergure,1),0,1),0) -> 1 | Q14: =SUM(B14:H14)*I14*J14*K14*L14*M14*N14*O14*P14 -> 181.0878026
A15: =IF(Base_Arbres!A43<>"",Base_Arbres!A43,"") -> Troène commun | B15: =IF(Base_Arbres!A43<>"",VLOOKUP($A15,Base_Arbres,3,FALSE)*Crit1,"") -> 5.918367347 | C15: =IF(Base_Arbres!A43<>"",VLOOKUP($A15,Base_Arbres,4,FALSE)*Crit2,"") -> 12.55813953 | D15: =IF(Base_Arbres!A43<>"",VLOOKUP($A15,Base_Arbres,5,FALSE)*Crit3,"") -> 1.607142857 | E15: =IF(Base_Arbres!A43<>"",VLOOKUP($A15,Base_Arbres,6,FALSE)*Crit4,"") -> 54 | F15: =IF(Base_Arbres!A43<>"",VLOOKUP($A15,Base_Arbres,7,FALSE)*Crit5,"") -> -30 | G15: =IF(ISNA(VLOOKUP(INDEX(Base_Typologie!$A$6:$R$1005,MATCH(A15,Base_Typologie!$A:$A,0)-5,MATCH(Typologie_Espace_Public,Base_Typologie!$6:$6,0)),TableauScoreTypologie,2,FALSE)*Crit6),0,VLOOKUP(INDEX(Base_Typologie!$A$6:$R$1005,MATCH(A15,Base_Typologie!$A:$A,0)-5,MATCH(Typologie_Espace_Public,Base_Typologie!$6:$6,0)),TableauScoreTypologie,2,FALSE)*Crit6) -> 50 | H15: =IF(Base_Arbres!G43<>"",VLOOKUP($A15,Base_Arbres,8,FALSE)*Crit7,"")*1.5 -> 84 | I15: =IF(A15<>"",IF(LEFT(VLOOKUP($A15,Base_Arbres,9,FALSE),1)>=LEFT(Cont_Racines,1),0,1),0) -> 1 | J15: =IF(A15<>"",IF(LEFT(VLOOKUP($A15,Base_Arbres,10,FALSE),1)>=LEFT(Cont_Branches,1),0,1),0) -> 1 | K15: =IF(A15<>"",IF(LEFT(VLOOKUP($A15,Base_Arbres,11,FALSE),1)>=LEFT(Cont_Chablis,1),0,1),0) -> 1 | L15: =IF(A15<>"",IF(LEFT(VLOOKUP($A15,Base_Arbres,12,FALSE),1)>=LEFT(Cont_Fructifications,1),0,1),0) -> 1 | M15: =IF(A15<>"",IF(LEFT(VLOOKUP($A15,Base_Arbres,13,FALSE),1)>=LEFT(Cont_Miellat,1),0,1),0) -> 1 | N15: =IF(A15<>"",IF(LEFT(VLOOKUP($A15,Base_Arbres,14,FALSE),1)>=LEFT(Cont_Fruits_Toxiques,1),0,1),0) -> 1 | O15: =IF(A15<>"",IF(LEFT(VLOOKUP($A15,Base_Arbres,15,FALSE),1)>=LEFT(Cont_Hauteur,1),0,1),0) -> 1 | P15: =IF(A15<>"",IF(LEFT(VLOOKUP($A15,Base_Arbres,16,FALSE),1)>=LEFT(Cont_Envergure,1),0,1),0) -> 1 | Q15: =SUM(B15:H15)*I15*J15*K15*L15*M15*N15*O15*P15 -> 178.0836497
A16: =IF(Base_Arbres!A75<>"",Base_Arbres!A75,"") -> Sureau noir | B16: =IF(Base_Arbres!A75<>"",VLOOKUP($A16,Base_Arbres,3,FALSE)*Crit1,"") -> 15.51020408 | C16: =IF(Base_Arbres!A75<>"",VLOOKUP($A16,Base_Arbres,4,FALSE)*Crit2,"") -> 3.837209302 | D16: =IF(Base_Arbres!A75<>"",VLOOKUP($A16,Base_Arbres,5,FALSE)*Crit3,"") -> 7.321428571 | E16: =IF(Base_Arbres!A75<>"",VLOOKUP($A16,Base_Arbres,6,FALSE)*Crit4,"") -> 54 | F16: =IF(Base_Arbres!A75<>"",VLOOKUP($A16,Base_Arbres,7,FALSE)*Crit5,"") -> 0 | G16: =IF(ISNA(VLOOKUP(INDEX(Base_Typologie!$A$6:$R$1005,MATCH(A16,Base_Typologie!$A:$A,0)-5,MATCH(Typologie_Espace_Public,Base_Typologie!$6:$6,0)),TableauScoreTypologie,2,FALSE)*Crit6),0,VLOOKUP(INDEX(Base_Typologie!$A$6:$R$1005,MATCH(A16,Base_Typologie!$A:$A,0)-5,MATCH(Typologie_Espace_Public,Base_Typologie!$6:$6,0)),TableauScoreTypologie,2,FALSE)*Crit6) -> 10 | H16: =IF(Base_Arbres!G75<>"",VLOOKUP($A16,Base_Arbres,8,FALSE)*Crit7,"")*1.5 -> 84 | I16: =IF(A16<>"",IF(LEFT(VLOOKUP($A16,Base_Arbres,9,FALSE),1)>=LEFT(Cont_Racines,1),0,1),0) -> 1 | J16: =IF(A16<>"",IF(LEFT(VLOOKUP($A16,Base_Arbres,10,FALSE),1)>=LEFT(Cont_Branches,1),0,1),0) -> 1 | K16: =IF(A16<>"",IF(LEFT(VLOOKUP($A16,Base_Arbres,11,FALSE),1)>=LEFT(Cont_Chablis,1),0,1),0) -> 1 | L16: =IF(A16<>"",IF(LEFT(VLOOKUP($A16,Base_Arbres,12,FALSE),1)>=LEFT(Cont_Fructifications,1),0,1),0) -> 1 | M16: =IF(A16<>"",IF(LEFT(VLOOKUP($A16,Base_Arbres,13,FALSE),1)>=LEFT(Cont_Miellat,1),0,1),0) -> 1 | N16: =IF(A16<>"",IF(LEFT(VLOOKUP($A16,Base_Arbres,14,FALSE),1)>=LEFT(Cont_Fruits_Toxiques,1),0,1),0) -> 1 | O16: =IF(A16<>"",IF(LEFT(VLOOKUP($A16,Base_Arbres,15,FALSE),1)>=LEFT(Cont_Hauteur,1),0,1),0) -> 1 | P16: =IF(A16<>"",IF(LEFT(VLOOKUP($A16,Base_Arbres,16,FALSE),1)>=LEFT(Cont_Envergure,1),0,1),0) -> 1 | Q16: =SUM(B16:H16)*I16*J16*K16*L16*M16*N16*O16*P16 -> 174.668842
A17: =IF(Base_Arbres!A57<>"",Base_Arbres!A57,"") -> Merisier | B17: =IF(Base_Arbres!A57<>"",VLOOKUP($A17,Base_Arbres,3,FALSE)*Crit1,"") -> 16.73469388 | C17: =IF(Base_Arbres!A57<>"",VLOOKUP($A17,Base_Arbres,4,FALSE)*Crit2,"") -> 9.069767442 | D17: =IF(Base_Arbres!A57<>"",VLOOKUP($A17,Base_Arbres,5,FALSE)*Crit3,"") -> 12.85714286 | E17: =IF(Base_Arbres!A57<>"",VLOOKUP($A17,Base_Arbres,6,FALSE)*Crit4,"") -> 72 | F17: =IF(Base_Arbres!A57<>"",VLOOKUP($A17,Base_Arbres,7,FALSE)*Crit5,"") -> 0 | G17: =IF(ISNA(VLOOKUP(INDEX(Base_Typologie!$A$6:$R$1005,MATCH(A17,Base_Typologie!$A:$A,0)-5,MATCH(Typologie_Espace_Public,Base_Typologie!$6:$6,0)),TableauScoreTypologie,2,FALSE)*Crit6),0,VLOOKUP(INDEX(Base_Typologie!$A$6:$R$1005,MATCH(A17,Base_Typologie!$A:$A,0)-5,MATCH(Typologie_Espace_Public,Base_Typologie!$6:$6,0)),TableauScoreTypologie,2,FALSE)*Crit6) -> 10 | H17: =IF(Base_Arbres!G57<>"",VLOOKUP($A17,Base_Arbres,8,FALSE)*Crit7,"")*1.5 -> 52.5 | I17: =IF(A17<>"",IF(LEFT(VLOOKUP($A17,Base_Arbres,9,FALSE),1)>=LEFT(Cont_Racines,1),0,1),0) -> 1 | J17: =IF(A17<>"",IF(LEFT(VLOOKUP($A17,Base_Arbres,10,FALSE),1)>=LEFT(Cont_Branches,1),0,1),0) -> 1 | K17: =IF(A17<>"",IF(LEFT(VLOOKUP($A17,Base_Arbres,11,FALSE),1)>=LEFT(Cont_Chablis,1),0,1),0) -> 1 | L17: =IF(A17<>"",IF(LEFT(VLOOKUP($A17,Base_Arbres,12,FALSE),1)>=LEFT(Cont_Fructifications,1),0,1),0) -> 1 | M17: =IF(A17<>"",IF(LEFT(VLOOKUP($A17,Base_Arbres,13,FALSE),1)>=LEFT(Cont_Miellat,1),0,1),0) -> 1 | N17: =IF(A17<>"",IF(LEFT(VLOOKUP($A17,Base_Arbres,14,FALSE),1)>=LEFT(Cont_Fruits_Toxiques,1),0,1),0) -> 1 | O17: =IF(A17<>"",IF(LEFT(VLOOKUP($A17,Base_Arbres,15,FALSE),1)>=LEFT(Cont_Hauteur,1),0,1),0) -> 1 | P17: =IF(A17<>"",IF(LEFT(VLOOKUP($A17,Base_Arbres,16,FALSE),1)>=LEFT(Cont_Envergure,1),0,1),0) -> 1 | Q17: =SUM(B17:H17)*I17*J17*K17*L17*M17*N17*O17*P17 -> 173.1616042
A18: =IF(Base_Arbres!A88<>"",Base_Arbres!A88,"") -> Viorne lantane | B18: =IF(Base_Arbres!A88<>"",VLOOKUP($A18,Base_Arbres,3,FALSE)*Crit1,"") -> 1.836734694 | C18: =IF(Base_Arbres!A88<>"",VLOOKUP($A18,Base_Arbres,4,FALSE)*Crit2,"") -> 15.69767442 | D18: =IF(Base_Arbres!A88<>"",VLOOKUP($A18,Base_Arbres,5,FALSE)*Crit3,"") -> 4.464285714 | E18: =IF(Base_Arbres!A88<>"",VLOOKUP($A18,Base_Arbres,6,FALSE)*Crit4,"") -> 36 | F18: =IF(Base_Arbres!A88<>"",VLOOKUP($A18,Base_Arbres,7,FALSE)*Crit5,"") -> 0 | G18: =IF(ISNA(VLOOKUP(INDEX(Base_Typologie!$A$6:$R$1005,MATCH(A18,Base_Typologie!$A:$A,0)-5,MATCH(Typologie_Espace_Public,Base_Typologie!$6:$6,0)),TableauScoreTypologie,2,FALSE)*Crit6),0,VLOOKUP(INDEX(Base_Typologie!$A$6:$R$1005,MATCH(A18,Base_Typologie!$A:$A,0)-5,MATCH(Typologie_Espace_Public,Base_Typologie!$6:$6,0)),TableauScoreTypologie,2,FALSE)*Crit6) -> 30 | H18: =IF(Base_Arbres!G88<>"",VLOOKUP($A18,Base_Arbres,8,FALSE)*Crit7,"")*1.5 -> 84 | I18: =IF(A18<>"",IF(LEFT(VLOOKUP($A18,Base_Arbres,9,FALSE),1)>=LEFT(Cont_Racines,1),0,1),0) -> 1 | J18: =IF(A18<>"",IF(LEFT(VLOOKUP($A18,Base_Arbres,10,FALSE),1)>=LEFT(Cont_Branches,1),0,1),0) -> 1 | K18: =IF(A18<>"",IF(LEFT(VLOOKUP($A18,Base_Arbres,11,FALSE),1)>=LEFT(Cont_Chablis,1),0,1),0) -> 1 | L18: =IF(A18<>"",IF(LEFT(VLOOKUP($A18,Base_Arbres,12,FALSE),1)>=LEFT(Cont_Fructifications,1),0,1),0) -> 1 | M18: =IF(A18<>"",IF(LEFT(VLOOKUP($A18,Base_Arbres,13,FALSE),1)>=LEFT(Cont_Miellat,1),0,1),0) -> 1 | N18: =IF(A18<>"",IF(LEFT(VLOOKUP($A18,Base_Arbres,14,FALSE),1)>=LEFT(Cont_Fruits_Toxiques,1),0,1),0) -> 1 | O18: =IF(A18<>"",IF(LEFT(VLOOKUP($A18,Base_Arbres,15,FALSE),1)>=LEFT(Cont_Hauteur,1),0,1),0) -> 1 | P18: =IF(A18<>"",IF(LEFT(VLOOKUP($A18,Base_Arbres,16,FALSE),1)>=LEFT(Cont_Envergure,1),0,1),0) -> 1 | Q18: =SUM(B18:H18)*I18*J18*K18*L18*M18*N18*O18*P18 -> 171.9986948
A19: =IF(Base_Arbres!A55<>"",Base_Arbres!A55,"") -> Peuplier blanc | B19: =IF(Base_Arbres!A55<>"",VLOOKUP($A19,Base_Arbres,3,FALSE)*Crit1,"") -> 6.530612245 | C19: =IF(Base_Arbres!A55<>"",VLOOKUP($A19,Base_Arbres,4,FALSE)*Crit2,"") -> 21.27906977 | D19: =IF(Base_Arbres!A55<>"",VLOOKUP($A19,Base_Arbres,5,FALSE)*Crit3,"") -> 8.571428571 | E19: =IF(Base_Arbres!A55<>"",VLOOKUP($A19,Base_Arbres,6,FALSE)*Crit4,"") -> 72 | F19: =IF(Base_Arbres!A55<>"",VLOOKUP($A19,Base_Arbres,7,FALSE)*Crit5,"") -> -20 | G19: =IF(ISNA(VLOOKUP(INDEX(Base_Typologie!$A$6:$R$1005,MATCH(A19,Base_Typologie!$A:$A,0)-5,MATCH(Typologie_Espace_Public,Base_Typologie!$6:$6,0)),TableauScoreTypologie,2,FALSE)*Crit6),0,VLOOKUP(INDEX(Base_Typologie!$A$6:$R$1005,MATCH(A19,Base_Typologie!$A:$A,0)-5,MATCH(Typologie_Espace_Public,Base_Typologie!$6:$6,0)),TableauScoreTypologie,2,FALSE)*Crit6) -> 10 | H19: =IF(Base_Arbres!G55<>"",VLOOKUP($A19,Base_Arbres,8,FALSE)*Crit7,"")*1.5 -> 73.5 | I19: =IF(A19<>"",IF(LEFT(VLOOKUP($A19,Base_Arbres,9,FALSE),1)>=LEFT(Cont_Racines,1),0,1),0) -> 1 | J19: =IF(A19<>"",IF(LEFT(VLOOKUP($A19,Base_Arbres,10,FALSE),1)>=LEFT(Cont_Branches,1),0,1),0) -> 1 | K19: =IF(A19<>"",IF(LEFT(VLOOKUP($A19,Base_Arbres,11,FALSE),1)>=LEFT(Cont_Chablis,1),0,1),0) -> 1 | L19: =IF(A19<>"",IF(LEFT(VLOOKUP($A19,Base_Arbres,12,FALSE),1)>=LEFT(Cont_Fructifications,1),0,1),0) -> 1 | M19: =IF(A19<>"",IF(LEFT(VLOOKUP($A19,Base_Arbres,13,FALSE),1)>=LEFT(Cont_Miellat,1),0,1),0) -> 1 | N19: =IF(A19<>"",IF(LEFT(VLOOKUP($A19,Base_Arbres,14,FALSE),1)>=LEFT(Cont_Fruits_Toxiques,1),0,1),0) -> 1 | O19: =IF(A19<>"",IF(LEFT(VLOOKUP($A19,Base_Arbres,15,FALSE),1)>=LEFT(Cont_Hauteur,1),0,1),0) -> 1 | P19: =IF(A19<>"",IF(LEFT(VLOOKUP($A19,Base_Arbres,16,FALSE),1)>=LEFT(Cont_Envergure,1),0,1),0) -> 1 | Q19: =SUM(B19:H19)*I19*J19*K19*L19*M19*N19*O19*P19 -> 171.8811106
A20: =IF(Base_Arbres!A15<>"",Base_Arbres!A15,"") -> Amélanchier | B20: =IF(Base_Arbres!A15<>"",VLOOKUP($A20,Base_Arbres,3,FALSE)*Crit1,"") -> 9.591836735 | C20: =IF(Base_Arbres!A15<>"",VLOOKUP($A20,Base_Arbres,4,FALSE)*Crit2,"") -> 0.3488372093 | D20: =IF(Base_Arbres!A15<>"",VLOOKUP($A20,Base_Arbres,5,FALSE)*Crit3,"") -> 1.428571429 | E20: =IF(Base_Arbres!A15<>"",VLOOKUP($A20,Base_Arbres,6,FALSE)*Crit4,"") -> 36 | F20: =IF(Base_Arbres!A15<>"",VLOOKUP($A20,Base_Arbres,7,FALSE)*Crit5,"") -> 0 | G20: =IF(ISNA(VLOOKUP(INDEX(Base_Typologie!$A$6:$R$1005,MATCH(A20,Base_Typologie!$A:$A,0)-5,MATCH(Typologie_Espace_Public,Base_Typologie!$6:$6,0)),TableauScoreTypologie,2,FALSE)*Crit6),0,VLOOKUP(INDEX(Base_Typologie!$A$6:$R$1005,MATCH(A20,Base_Typologie!$A:$A,0)-5,MATCH(Typologie_Espace_Public,Base_Typologie!$6:$6,0)),TableauScoreTypologie,2,FALSE)*Crit6) -> 30 | H20: =IF(Base_Arbres!G15<>"",VLOOKUP($A20,Base_Arbres,8,FALSE)*Crit7,"")*1.5 -> 94.5 | I20: =IF(A20<>"",IF(LEFT(VLOOKUP($A20,Base_Arbres,9,FALSE),1)>=LEFT(Cont_Racines,1),0,1),0) -> 1 | J20: =IF(A20<>"",IF(LEFT(VLOOKUP($A20,Base_Arbres,10,FALSE),1)>=LEFT(Cont_Branches,1),0,1),0) -> 1 | K20: =IF(A20<>"",IF(LEFT(VLOOKUP($A20,Base_Arbres,11,FALSE),1)>=LEFT(Cont_Chablis,1),0,1),0) -> 1 | L20: =IF(A20<>"",IF(LEFT(VLOOKUP($A20,Base_Arbres,12,FALSE),1)>=LEFT(Cont_Fructifications,1),0,1),0) -> 1 | M20: =IF(A20<>"",IF(LEFT(VLOOKUP($A20,Base_Arbres,13,FALSE),1)>=LEFT(Cont_Miellat,1),0,1),0) -> 1 | N20: =IF(A20<>"",IF(LEFT(VLOOKUP($A20,Base_Arbres,14,FALSE),1)>=LEFT(Cont_Fruits_Toxiques,1),0,1),0) -> 1 | O20: =IF(A20<>"",IF(LEFT(VLOOKUP($A20,Base_Arbres,15,FALSE),1)>=LEFT(Cont_Hauteur,1),0,1),0) -> 1 | P20: =IF(A20<>"",IF(LEFT(VLOOKUP($A20,Base_Arbres,16,FALSE),1)>=LEFT(Cont_Envergure,1),0,1),0) -> 1 | Q20: =SUM(B20:H20)*I20*J20*K20*L20*M20*N20*O20*P20 -> 171.8692454
A21: =IF(Base_Arbres!A36<>"",Base_Arbres!A36,"") -> Févier d’Amérique | B21: =IF(Base_Arbres!A36<>"",VLOOKUP($A21,Base_Arbres,3,FALSE)*Crit1,"") -> 9.795918367 | C21: =IF(Base_Arbres!A36<>"",VLOOKUP($A21,Base_Arbres,4,FALSE)*Crit2,"") -> 24.06976744 | D21: =IF(Base_Arbres!A36<>"",VLOOKUP($A21,Base_Arbres,5,FALSE)*Crit3,"") -> 6.607142857 | E21: =IF(Base_Arbres!A36<>"",VLOOKUP($A21,Base_Arbres,6,FALSE)*Crit4,"") -> 36 | F21: =IF(Base_Arbres!A36<>"",VLOOKUP($A21,Base_Arbres,7,FALSE)*Crit5,"") -> 0 | G21: =IF(ISNA(VLOOKUP(INDEX(Base_Typologie!$A$6:$R$1005,MATCH(A21,Base_Typologie!$A:$A,0)-5,MATCH(Typologie_Espace_Public,Base_Typologie!$6:$6,0)),TableauScoreTypologie,2,FALSE)*Crit6),0,VLOOKUP(INDEX(Base_Typologie!$A$6:$R$1005,MATCH(A21,Base_Typologie!$A:$A,0)-5,MATCH(Typologie_Espace_Public,Base_Typologie!$6:$6,0)),TableauScoreTypologie,2,FALSE)*Crit6) -> 10 | H21: =IF(Base_Arbres!G36<>"",VLOOKUP($A21,Base_Arbres,8,FALSE)*Crit7,"")*1.5 -> 84 | I21: =IF(A21<>"",IF(LEFT(VLOOKUP($A21,Base_Arbres,9,FALSE),1)>=LEFT(Cont_Racines,1),0,1),0) -> 1 | J21: =IF(A21<>"",IF(LEFT(VLOOKUP($A21,Base_Arbres,10,FALSE),1)>=LEFT(Cont_Branches,1),0,1),0) -> 1 | K21: =IF(A21<>"",IF(LEFT(VLOOKUP($A21,Base_Arbres,11,FALSE),1)>=LEFT(Cont_Chablis,1),0,1),0) -> 1 | L21: =IF(A21<>"",IF(LEFT(VLOOKUP($A21,Base_Arbres,12,FALSE),1)>=LEFT(Cont_Fructifications,1),0,1),0) -> 1 | M21: =IF(A21<>"",IF(LEFT(VLOOKUP($A21,Base_Arbres,13,FALSE),1)>=LEFT(Cont_Miellat,1),0,1),0) -> 1 | N21: =IF(A21<>"",IF(LEFT(VLOOKUP($A21,Base_Arbres,14,FALSE),1)>=LEFT(Cont_Fruits_Toxiques,1),0,1),0) -> 1 | O21: =IF(A21<>"",IF(LEFT(VLOOKUP($A21,Base_Arbres,15,FALSE),1)>=LEFT(Cont_Hauteur,1),0,1),0) -> 1 | P21: =IF(A21<>"",IF(LEFT(VLOOKUP($A21,Base_Arbres,16,FALSE),1)>=LEFT(Cont_Envergure,1),0,1),0) -> 1 | Q21: =SUM(B21:H21)*I21*J21*K21*L21*M21*N21*O21*P21 -> 170.4728287
A22: =IF(Base_Arbres!A27<>"",Base_Arbres!A27,"") -> Cornouiller mâle | B22: =IF(Base_Arbres!A27<>"",VLOOKUP($A22,Base_Arbres,3,FALSE)*Crit1,"") -> 1.020408163 | C22: =IF(Base_Arbres!A27<>"",VLOOKUP($A22,Base_Arbres,4,FALSE)*Crit2,"") -> 15 | D22: =IF(Base_Arbres!A27<>"",VLOOKUP($A22,Base_Arbres,5,FALSE)*Crit3,"") -> 3.571428571 | E22: =IF(Base_Arbres!A27<>"",VLOOKUP($A22,Base_Arbres,6,FALSE)*Crit4,"") -> 54 | F22: =IF(Base_Arbres!A27<>"",VLOOKUP($A22,Base_Arbres,7,FALSE)*Crit5,"") -> 0 | G22: =IF(ISNA(VLOOKUP(INDEX(Base_Typologie!$A$6:$R$1005,MATCH(A22,Base_Typologie!$A:$A,0)-5,MATCH(Typologie_Espace_Public,Base_Typologie!$6:$6,0)),TableauScoreTypologie,2,FALSE)*Crit6),0,VLOOKUP(INDEX(Base_Typologie!$A$6:$R$1005,MATCH(A22,Base_Typologie!$A:$A,0)-5,MATCH(Typologie_Espace_Public,Base_Typologie!$6:$6,0)),TableauScoreTypologie,2,FALSE)*Crit6) -> 10 | H22: =IF(Base_Arbres!G27<>"",VLOOKUP($A22,Base_Arbres,8,FALSE)*Crit7,"")*1.5 -> 84 | I22: =IF(A22<>"",IF(LEFT(VLOOKUP($A22,Base_Arbres,9,FALSE),1)>=LEFT(Cont_Racines,1),0,1),0) -> 1 | J22: =IF(A22<>"",IF(LEFT(VLOOKUP($A22,Base_Arbres,10,FALSE),1)>=LEFT(Cont_Branches,1),0,1),0) -> 1 | K22: =IF(A22<>"",IF(LEFT(VLOOKUP($A22,Base_Arbres,11,FALSE),1)>=LEFT(Cont_Chablis,1),0,1),0) -> 1 | L22: =IF(A22<>"",IF(LEFT(VLOOKUP($A22,Base_Arbres,12,FALSE),1)>=LEFT(Cont_Fructifications,1),0,1),0) -> 1 | M22: =IF(A22<>"",IF(LEFT(VLOOKUP($A22,Base_Arbres,13,FALSE),1)>=LEFT(Cont_Miellat,1),0,1),0) -> 1 | N22: =IF(A22<>"",IF(LEFT(VLOOKUP($A22,Base_Arbres,14,FALSE),1)>=LEFT(Cont_Fruits_Toxiques,1),0,1),0) -> 1 | O22: =IF(A22<>"",IF(LEFT(VLOOKUP($A22,Base_Arbres,15,FALSE),1)>=LEFT(Cont_Hauteur,1),0,1),0) -> 1 | P22: =IF(A22<>"",IF(LEFT(VLOOKUP($A22,Base_Arbres,16,FALSE),1)>=LEFT(Cont_Envergure,1),0,1),0) -> 1 | Q22: =SUM(B22:H22)*I22*J22*K22*L22*M22*N22*O22*P22 -> 167.5918367
A23: =IF(Base_Arbres!A20<>"",Base_Arbres!A20,"") -> Catalpa | B23: =IF(Base_Arbres!A20<>"",VLOOKUP($A23,Base_Arbres,3,FALSE)*Crit1,"") -> 8.571428571 | C23: =IF(Base_Arbres!A20<>"",VLOOKUP($A23,Base_Arbres,4,FALSE)*Crit2,"") -> 25.11627907 | D23: =IF(Base_Arbres!A20<>"",VLOOKUP($A23,Base_Arbres,5,FALSE)*Crit3,"") -> 12.67857143 | E23: =IF(Base_Arbres!A20<>"",VLOOKUP($A23,Base_Arbres,6,FALSE)*Crit4,"") -> 27 | F23: =IF(Base_Arbres!A20<>"",VLOOKUP($A23,Base_Arbres,7,FALSE)*Crit5,"") -> 0 | G23: =IF(ISNA(VLOOKUP(INDEX(Base_Typologie!$A$6:$R$1005,MATCH(A23,Base_Typologie!$A:$A,0)-5,MATCH(Typologie_Espace_Public,Base_Typologie!$6:$6,0)),TableauScoreTypologie,2,FALSE)*Crit6),0,VLOOKUP(INDEX(Base_Typologie!$A$6:$R$1005,MATCH(A23,Base_Typologie!$A:$A,0)-5,MATCH(Typologie_Espace_Public,Base_Typologie!$6:$6,0)),TableauScoreTypologie,2,FALSE)*Crit6) -> 10 | H23: =IF(Base_Arbres!G20<>"",VLOOKUP($A23,Base_Arbres,8,FALSE)*Crit7,"")*1.5 -> 84 | I23: =IF(A23<>"",IF(LEFT(VLOOKUP($A23,Base_Arbres,9,FALSE),1)>=LEFT(Cont_Racines,1),0,1),0) -> 1 | J23: =IF(A23<>"",IF(LEFT(VLOOKUP($A23,Base_Arbres,10,FALSE),1)>=LEFT(Cont_Branches,1),0,1),0) -> 1 | K23: =IF(A23<>"",IF(LEFT(VLOOKUP($A23,Base_Arbres,11,FALSE),1)>=LEFT(Cont_Chablis,1),0,1),0) -> 1 | L23: =IF(A23<>"",IF(LEFT(VLOOKUP($A23,Base_Arbres,12,FALSE),1)>=LEFT(Cont_Fructifications,1),0,1),0) -> 1 | M23: =IF(A23<>"",IF(LEFT(VLOOKUP($A23,Base_Arbres,13,FALSE),1)>=LEFT(Cont_Miellat,1),0,1),0) -> 1 | N23: =IF(A23<>"",IF(LEFT(VLOOKUP($A23,Base_Arbres,14,FALSE),1)>=LEFT(Cont_Fruits_Toxiques,1),0,1),0) -> 1 | O23: =IF(A23<>"",IF(LEFT(VLOOKUP($A23,Base_Arbres,15,FALSE),1)>=LEFT(Cont_Hauteur,1),0,1),0) -> 1 | P23: =IF(A23<>"",IF(LEFT(VLOOKUP($A23,Base_Arbres,16,FALSE),1)>=LEFT(Cont_Envergure,1),0,1),0) -> 1 | Q23: =SUM(B23:H23)*I23*J23*K23*L23*M23*N23*O23*P23 -> 167.3662791
A24: =IF(Base_Arbres!A5<>"",Base_Arbres!A5,"") -> Érable champêtre | B24: =IF(Base_Arbres!A5<>"",VLOOKUP($A24,Base_Arbres,3,FALSE)*Crit1,"") -> 12.24489796 | C24: =IF(Base_Arbres!A5<>"",VLOOKUP($A24,Base_Arbres,4,FALSE)*Crit2,"") -> 2.093023256 | D24: =IF(Base_Arbres!A5<>"",VLOOKUP($A24,Base_Arbres,5,FALSE)*Crit3,"") -> 3.75 | E24: =IF(Base_Arbres!A5<>"",VLOOKUP($A24,Base_Arbres,6,FALSE)*Crit4,"") -> 54 | F24: =IF(Base_Arbres!A5<>"",VLOOKUP($A24,Base_Arbres,7,FALSE)*Crit5,"") -> -10 | G24: =IF(ISNA(VLOOKUP(INDEX(Base_Typologie!$A$6:$R$1005,MATCH(A24,Base_Typologie!$A:$A,0)-5,MATCH(Typologie_Espace_Public,Base_Typologie!$6:$6,0)),TableauScoreTypologie,2,FALSE)*Crit6),0,VLOOKUP(INDEX(Base_Typologie!$A$6:$R$1005,MATCH(A24,Base_Typologie!$A:$A,0)-5,MATCH(Typologie_Espace_Public,Base_Typologie!$6:$6,0)),TableauScoreTypologie,2,FALSE)*Crit6) -> 10 | H24: =IF(Base_Arbres!G5<>"",VLOOKUP($A24,Base_Arbres,8,FALSE)*Crit7,"")*1.5 -> 94.5 | I24: =IF(A24<>"",IF(LEFT(VLOOKUP($A24,Base_Arbres,9,FALSE),1)>=LEFT(Cont_Racines,1),0,1),0) -> 1 | J24: =IF(A24<>"",IF(LEFT(VLOOKUP($A24,Base_Arbres,10,FALSE),1)>=LEFT(Cont_Branches,1),0,1),0) -> 1 | K24: =IF(A24<>"",IF(LEFT(VLOOKUP($A24,Base_Arbres,11,FALSE),1)>=LEFT(Cont_Chablis,1),0,1),0) -> 1 | L24: =IF(A24<>"",IF(LEFT(VLOOKUP($A24,Base_Arbres,12,FALSE),1)>=LEFT(Cont_Fructifications,1),0,1),0) -> 1 | M24: =IF(A24<>"",IF(LEFT(VLOOKUP($A24,Base_Arbres,13,FALSE),1)>=LEFT(Cont_Miellat,1),0,1),0) -> 1 | N24: =IF(A24<>"",IF(LEFT(VLOOKUP($A24,Base_Arbres,14,FALSE),1)>=LEFT(Cont_Fruits_Toxiques,1),0,1),0) -> 1 | O24: =IF(A24<>"",IF(LEFT(VLOOKUP($A24,Base_Arbres,15,FALSE),1)>=LEFT(Cont_Hauteur,1),0,1),0) -> 1 | P24: =IF(A24<>"",IF(LEFT(VLOOKUP($A24,Base_Arbres,16,FALSE),1)>=LEFT(Cont_Envergure,1),0,1),0) -> 1 | Q24: =SUM(B24:H24)*I24*J24*K24*L24*M24*N24*O24*P24 -> 166.5879212
A25: =IF(Base_Arbres!A72<>"",Base_Arbres!A72,"") -> Saule blanc | B25: =IF(Base_Arbres!A72<>"",VLOOKUP($A25,Base_Arbres,3,FALSE)*Crit1,"") -> 15.51020408 | C25: =IF(Base_Arbres!A72<>"",VLOOKUP($A25,Base_Arbres,4,FALSE)*Crit2,"") -> 6.627906977 | D25: =IF(Base_Arbres!A72<>"",VLOOKUP($A25,Base_Arbres,5,FALSE)*Crit3,"") -> 10.17857143 | E25: =IF(Base_Arbres!A72<>"",VLOOKUP($A25,Base_Arbres,6,FALSE)*Crit4,"") -> 81 | F25: =IF(Base_Arbres!A72<>"",VLOOKUP($A25,Base_Arbres,7,FALSE)*Crit5,"") -> -20 | G25: =IF(ISNA(VLOOKUP(INDEX(Base_Typologie!$A$6:$R$1005,MATCH(A25,Base_Typologie!$A:$A,0)-5,MATCH(Typologie_Espace_Public,Base_Typologie!$6:$6,0)),TableauScoreTypologie,2,FALSE)*Crit6),0,VLOOKUP(INDEX(Base_Typologie!$A$6:$R$1005,MATCH(A25,Base_Typologie!$A:$A,0)-5,MATCH(Typologie_Espace_Public,Base_Typologie!$6:$6,0)),TableauScoreTypologie,2,FALSE)*Crit6) -> 10 | H25: =IF(Base_Arbres!G72<>"",VLOOKUP($A25,Base_Arbres,8,FALSE)*Crit7,"")*1.5 -> 63 | I25: =IF(A25<>"",IF(LEFT(VLOOKUP($A25,Base_Arbres,9,FALSE),1)>=LEFT(Cont_Racines,1),0,1),0) -> 1 | J25: =IF(A25<>"",IF(LEFT(VLOOKUP($A25,Base_Arbres,10,FALSE),1)>=LEFT(Cont_Branches,1),0,1),0) -> 1 | K25: =IF(A25<>"",IF(LEFT(VLOOKUP($A25,Base_Arbres,11,FALSE),1)>=LEFT(Cont_Chablis,1),0,1),0) -> 1 | L25: =IF(A25<>"",IF(LEFT(VLOOKUP($A25,Base_Arbres,12,FALSE),1)>=LEFT(Cont_Fructifications,1),0,1),0) -> 1 | M25: =IF(A25<>"",IF(LEFT(VLOOKUP($A25,Base_Arbres,13,FALSE),1)>=LEFT(Cont_Miellat,1),0,1),0) -> 1 | N25: =IF(A25<>"",IF(LEFT(VLOOKUP($A25,Base_Arbres,14,FALSE),1)>=LEFT(Cont_Fruits_Toxiques,1),0,1),0) -> 1 | O25: =IF(A25<>"",IF(LEFT(VLOOKUP($A25,Base_Arbres,15,FALSE),1)>=LEFT(Cont_Hauteur,1),0,1),0) -> 1 | P25: =IF(A25<>"",IF(LEFT(VLOOKUP($A25,Base_Arbres,16,FALSE),1)>=LEFT(Cont_Envergure,1),0,1),0) -> 1 | Q25: =SUM(B25:H25)*I25*J25*K25*L25*M25*N25*O25*P25 -> 166.3166825
A26: =IF(Base_Arbres!A74<>"",Base_Arbres!A74,"") -> Saule des vanniers | B26: =IF(Base_Arbres!A74<>"",VLOOKUP($A26,Base_Arbres,3,FALSE)*Crit1,"") -> 7.755102041 | C26: =IF(Base_Arbres!A74<>"",VLOOKUP($A26,Base_Arbres,4,FALSE)*Crit2,"") -> 23.72093023 | D26: =IF(Base_Arbres!A74<>"",VLOOKUP($A26,Base_Arbres,5,FALSE)*Crit3,"") -> 10.17857143 | E26: =IF(Base_Arbres!A74<>"",VLOOKUP($A26,Base_Arbres,6,FALSE)*Crit4,"") -> 81 | F26: =IF(Base_Arbres!A74<>"",VLOOKUP($A26,Base_Arbres,7,FALSE)*Crit5,"") -> -20 | G26: =IF(ISNA(VLOOKUP(INDEX(Base_Typologie!$A$6:$R$1005,MATCH(A26,Base_Typologie!$A:$A,0)-5,MATCH(Typologie_Espace_Public,Base_Typologie!$6:$6,0)),TableauScoreTypologie,2,FALSE)*Crit6),0,VLOOKUP(INDEX(Base_Typologie!$A$6:$R$1005,MATCH(A26,Base_Typologie!$A:$A,0)-5,MATCH(Typologie_Espace_Public,Base_Typologie!$6:$6,0)),TableauScoreTypologie,2,FALSE)*Crit6) -> 30 | H26: =IF(Base_Arbres!G74<>"",VLOOKUP($A26,Base_Arbres,8,FALSE)*Crit7,"")*1.5 -> 31.5 | I26: =IF(A26<>"",IF(LEFT(VLOOKUP($A26,Base_Arbres,9,FALSE),1)>=LEFT(Cont_Racines,1),0,1),0) -> 1 | J26: =IF(A26<>"",IF(LEFT(VLOOKUP($A26,Base_Arbres,10,FALSE),1)>=LEFT(Cont_Branches,1),0,1),0) -> 1 | K26: =IF(A26<>"",IF(LEFT(VLOOKUP($A26,Base_Arbres,11,FALSE),1)>=LEFT(Cont_Chablis,1),0,1),0) -> 1 | L26: =IF(A26<>"",IF(LEFT(VLOOKUP($A26,Base_Arbres,12,FALSE),1)>=LEFT(Cont_Fructifications,1),0,1),0) -> 1 | M26: =IF(A26<>"",IF(LEFT(VLOOKUP($A26,Base_Arbres,13,FALSE),1)>=LEFT(Cont_Miellat,1),0,1),0) -> 1 | N26: =IF(A26<>"",IF(LEFT(VLOOKUP($A26,Base_Arbres,14,FALSE),1)>=LEFT(Cont_Fruits_Toxiques,1),0,1),0) -> 1 | O26: =IF(A26<>"",IF(LEFT(VLOOKUP($A26,Base_Arbres,15,FALSE),1)>=LEFT(Cont_Hauteur,1),0,1),0) -> 1 | P26: =IF(A26<>"",IF(LEFT(VLOOKUP($A26,Base_Arbres,16,FALSE),1)>=LEFT(Cont_Envergure,1),0,1),0) -> 1 | Q26: =SUM(B26:H26)*I26*J26*K26*L26*M26*N26*O26*P26 -> 164.1546037
A27: =IF(Base_Arbres!A34<>"",Base_Arbres!A34,"") -> Frêne à fleurs | B27: =IF(Base_Arbres!A34<>"",VLOOKUP($A27,Base_Arbres,3,FALSE)*Crit1,"") -> 17.14285714 | C27: =IF(Base_Arbres!A34<>"",VLOOKUP($A27,Base_Arbres,4,FALSE)*Crit2,"") -> 8.720930233 | D27: =IF(Base_Arbres!A34<>"",VLOOKUP($A27,Base_Arbres,5,FALSE)*Crit3,"") -> 8.928571429 | E27: =IF(Base_Arbres!A34<>"",VLOOKUP($A27,Base_Arbres,6,FALSE)*Crit4,"") -> 45 | F27: =IF(Base_Arbres!A34<>"",VLOOKUP($A27,Base_Arbres,7,FALSE)*Crit5,"") -> -30 | G27: =IF(ISNA(VLOOKUP(INDEX(Base_Typologie!$A$6:$R$1005,MATCH(A27,Base_Typologie!$A:$A,0)-5,MATCH(Typologie_Espace_Public,Base_Typologie!$6:$6,0)),TableauScoreTypologie,2,FALSE)*Crit6),0,VLOOKUP(INDEX(Base_Typologie!$A$6:$R$1005,MATCH(A27,Base_Typologie!$A:$A,0)-5,MATCH(Typologie_Espace_Public,Base_Typologie!$6:$6,0)),TableauScoreTypologie,2,FALSE)*Crit6) -> 30 | H27: =IF(Base_Arbres!G34<>"",VLOOKUP($A27,Base_Arbres,8,FALSE)*Crit7,"")*1.5 -> 84 | I27: =IF(A27<>"",IF(LEFT(VLOOKUP($A27,Base_Arbres,9,FALSE),1)>=LEFT(Cont_Racines,1),0,1),0) -> 1 | J27: =IF(A27<>"",IF(LEFT(VLOOKUP($A27,Base_Arbres,10,FALSE),1)>=LEFT(Cont_Branches,1),0,1),0) -> 1 | K27: =IF(A27<>"",IF(LEFT(VLOOKUP($A27,Base_Arbres,11,FALSE),1)>=LEFT(Cont_Chablis,1),0,1),0) -> 1 | L27: =IF(A27<>"",IF(LEFT(VLOOKUP($A27,Base_Arbres,12,FALSE),1)>=LEFT(Cont_Fructifications,1),0,1),0) -> 1 | M27: =IF(A27<>"",IF(LEFT(VLOOKUP($A27,Base_Arbres,13,FALSE),1)>=LEFT(Cont_Miellat,1),0,1),0) -> 1 | N27: =IF(A27<>"",IF(LEFT(VLOOKUP($A27,Base_Arbres,14,FALSE),1)>=LEFT(Cont_Fruits_Toxiques,1),0,1),0) -> 1 | O27: =IF(A27<>"",IF(LEFT(VLOOKUP($A27,Base_Arbres,15,FALSE),1)>=LEFT(Cont_Hauteur,1),0,1),0) -> 1 | P27: =IF(A27<>"",IF(LEFT(VLOOKUP($A27,Base_Arbres,16,FALSE),1)>=LEFT(Cont_Envergure,1),0,1),0) -> 1 | Q27: =SUM(B27:H27)*I27*J27*K27*L27*M27*N27*O27*P27 -> 163.7923588
A28: =IF(Base_Arbres!A31<>"",Base_Arbres!A31,"") -> Cotoneaster à feuilles de saule | B28: =IF(Base_Arbres!A31<>"",VLOOKUP($A28,Base_Arbres,3,FALSE)*Crit1,"") -> 4.489795918 | C28: =IF(Base_Arbres!A31<>"",VLOOKUP($A28,Base_Arbres,4,FALSE)*Crit2,"") -> 9.418604651 | D28: =IF(Base_Arbres!A31<>"",VLOOKUP($A28,Base_Arbres,5,FALSE)*Crit3,"") -> 0.3571428571 | E28: =IF(Base_Arbres!A31<>"",VLOOKUP($A28,Base_Arbres,6,FALSE)*Crit4,"") -> 36 | F28: =IF(Base_Arbres!A31<>"",VLOOKUP($A28,Base_Arbres,7,FALSE)*Crit5,"") -> 0 | G28: =IF(ISNA(VLOOKUP(INDEX(Base_Typologie!$A$6:$R$1005,MATCH(A28,Base_Typologie!$A:$A,0)-5,MATCH(Typologie_Espace_Public,Base_Typologie!$6:$6,0)),TableauScoreTypologie,2,FALSE)*Crit6),0,VLOOKUP(INDEX(Base_Typologie!$A$6:$R$1005,MATCH(A28,Base_Typologie!$A:$A,0)-5,MATCH(Typologie_Espace_Public,Base_Typologie!$6:$6,0)),TableauScoreTypologie,2,FALSE)*Crit6) -> 50 | H28: =IF(Base_Arbres!G31<>"",VLOOKUP($A28,Base_Arbres,8,FALSE)*Crit7,"")*1.5 -> 63 | I28: =IF(A28<>"",IF(LEFT(VLOOKUP($A28,Base_Arbres,9,FALSE),1)>=LEFT(Cont_Racines,1),0,1),0) -> 1 | J28: =IF(A28<>"",IF(LEFT(VLOOKUP($A28,Base_Arbres,10,FALSE),1)>=LEFT(Cont_Branches,1),0,1),0) -> 1 | K28: =IF(A28<>"",IF(LEFT(VLOOKUP($A28,Base_Arbres,11,FALSE),1)>=LEFT(Cont_Chablis,1),0,1),0) -> 1 | L28: =IF(A28<>"",IF(LEFT(VLOOKUP($A28,Base_Arbres,12,FALSE),1)>=LEFT(Cont_Fructifications,1),0,1),0) -> 1 | M28: =IF(A28<>"",IF(LEFT(VLOOKUP($A28,Base_Arbres,13,FALSE),1)>=LEFT(Cont_Miellat,1),0,1),0) -> 1 | N28: =IF(A28<>"",IF(LEFT(VLOOKUP($A28,Base_Arbres,14,FALSE),1)>=LEFT(Cont_Fruits_Toxiques,1),0,1),0) -> 1 | O28: =IF(A28<>"",IF(LEFT(VLOOKUP($A28,Base_Arbres,15,FALSE),1)>=LEFT(Cont_Hauteur,1),0,1),0) -> 1 | P28: =IF(A28<>"",IF(LEFT(VLOOKUP($A28,Base_Arbres,16,FALSE),1)>=LEFT(Cont_Envergure,1),0,1),0) -> 1 | Q28: =SUM(B28:H28)*I28*J28*K28*L28*M28*N28*O28*P28 -> 163.2655434
A29: =IF(Base_Arbres!A73<>"",Base_Arbres!A73,"") -> Saule pourpre | B29: =IF(Base_Arbres!A73<>"",VLOOKUP($A29,Base_Arbres,3,FALSE)*Crit1,"") -> 3.06122449 | C29: =IF(Base_Arbres!A73<>"",VLOOKUP($A29,Base_Arbres,4,FALSE)*Crit2,"") -> 16.74418605 | D29: =IF(Base_Arbres!A73<>"",VLOOKUP($A29,Base_Arbres,5,FALSE)*Crit3,"") -> 6.428571429 | E29: =IF(Base_Arbres!A73<>"",VLOOKUP($A29,Base_Arbres,6,FALSE)*Crit4,"") -> 63 | F29: =IF(Base_Arbres!A73<>"",VLOOKUP($A29,Base_Arbres,7,FALSE)*Crit5,"") -> -20 | G29: =IF(ISNA(VLOOKUP(INDEX(Base_Typologie!$A$6:$R$1005,MATCH(A29,Base_Typologie!$A:$A,0)-5,MATCH(Typologie_Espace_Public,Base_Typologie!$6:$6,0)),TableauScoreTypologie,2,FALSE)*Crit6),0,VLOOKUP(INDEX(Base_Typologie!$A$6:$R$1005,MATCH(A29,Base_Typologie!$A:$A,0)-5,MATCH(Typologie_Espace_Public,Base_Typologie!$6:$6,0)),TableauScoreTypologie,2,FALSE)*Crit6) -> 30 | H29: =IF(Base_Arbres!G73<>"",VLOOKUP($A29,Base_Arbres,8,FALSE)*Crit7,"")*1.5 -> 63 | I29: =IF(A29<>"",IF(LEFT(VLOOKUP($A29,Base_Arbres,9,FALSE),1)>=LEFT(Cont_Racines,1),0,1),0) -> 1 | J29: =IF(A29<>"",IF(LEFT(VLOOKUP($A29,Base_Arbres,10,FALSE),1)>=LEFT(Cont_Branches,1),0,1),0) -> 1 | K29: =IF(A29<>"",IF(LEFT(VLOOKUP($A29,Base_Arbres,11,FALSE),1)>=LEFT(Cont_Chablis,1),0,1),0) -> 1 | L29: =IF(A29<>"",IF(LEFT(VLOOKUP($A29,Base_Arbres,12,FALSE),1)>=LEFT(Cont_Fructifications,1),0,1),0) -> 1 | M29: =IF(A29<>"",IF(LEFT(VLOOKUP($A29,Base_Arbres,13,FALSE),1)>=LEFT(Cont_Miellat,1),0,1),0) -> 1 | N29: =IF(A29<>"",IF(LEFT(VLOOKUP($A29,Base_Arbres,14,FALSE),1)>=LEFT(Cont_Fruits_Toxiques,1),0,1),0) -> 1 | O29: =IF(A29<>"",IF(LEFT(VLOOKUP($A29,Base_Arbres,15,FALSE),1)>=LEFT(Cont_Hauteur,1),0,1),0) -> 1 | P29: =IF(A29<>"",IF(LEFT(VLOOKUP($A29,Base_Arbres,16,FALSE),1)>=LEFT(Cont_Envergure,1),0,1),0) -> 1 | Q29: =SUM(B29:H29)*I29*J29*K29*L29*M29*N29*O29*P29 -> 162.233982
A30: =IF(Base_Arbres!A56<>"",Base_Arbres!A56,"") -> Tremble | B30: =IF(Base_Arbres!A56<>"",VLOOKUP($A30,Base_Arbres,3,FALSE)*Crit1,"") -> 13.87755102 | C30: =IF(Base_Arbres!A56<>"",VLOOKUP($A30,Base_Arbres,4,FALSE)*Crit2,"") -> 3.488372093 | D30: =IF(Base_Arbres!A56<>"",VLOOKUP($A30,Base_Arbres,5,FALSE)*Crit3,"") -> 6.785714286 | E30: =IF(Base_Arbres!A56<>"",VLOOKUP($A30,Base_Arbres,6,FALSE)*Crit4,"") -> 54 | F30: =IF(Base_Arbres!A56<>"",VLOOKUP($A30,Base_Arbres,7,FALSE)*Crit5,"") -> -10 | G30: =IF(ISNA(VLOOKUP(INDEX(Base_Typologie!$A$6:$R$1005,MATCH(A30,Base_Typologie!$A:$A,0)-5,MATCH(Typologie_Espace_Public,Base_Typologie!$6:$6,0)),TableauScoreTypologie,2,FALSE)*Crit6),0,VLOOKUP(INDEX(Base_Typologie!$A$6:$R$1005,MATCH(A30,Base_Typologie!$A:$A,0)-5,MATCH(Typologie_Espace_Public,Base_Typologie!$6:$6,0)),TableauScoreTypologie,2,FALSE)*Crit6) -> 10 | H30: =IF(Base_Arbres!G56<>"",VLOOKUP($A30,Base_Arbres,8,FALSE)*Crit7,"")*1.5 -> 84 | I30: =IF(A30<>"",IF(LEFT(VLOOKUP($A30,Base_Arbres,9,FALSE),1)>=LEFT(Cont_Racines,1),0,1),0) -> 1 | J30: =IF(A30<>"",IF(LEFT(VLOOKUP($A30,Base_Arbres,10,FALSE),1)>=LEFT(Cont_Branches,1),0,1),0) -> 1 | K30: =IF(A30<>"",IF(LEFT(VLOOKUP($A30,Base_Arbres,11,FALSE),1)>=LEFT(Cont_Chablis,1),0,1),0) -> 1 | L30: =IF(A30<>"",IF(LEFT(VLOOKUP($A30,Base_Arbres,12,FALSE),1)>=LEFT(Cont_Fructifications,1),0,1),0) -> 1 | M30: =IF(A30<>"",IF(LEFT(VLOOKUP($A30,Base_Arbres,13,FALSE),1)>=LEFT(Cont_Miellat,1),0,1),0) -> 1 | N30: =IF(A30<>"",IF(LEFT(VLOOKUP($A30,Base_Arbres,14,FALSE),1)>=LEFT(Cont_Fruits_Toxiques,1),0,1),0) -> 1 | O30: =IF(A30<>"",IF(LEFT(VLOOKUP($A30,Base_Arbres,15,FALSE),1)>=LEFT(Cont_Hauteur,1),0,1),0) -> 1 | P30: =IF(A30<>"",IF(LEFT(VLOOKUP($A30,Base_Arbres,16,FALSE),1)>=LEFT(Cont_Envergure,1),0,1),0) -> 1 | Q30: =SUM(B30:H30)*I30*J30*K30*L30*M30*N30*O30*P30 -> 162.1516374
A31: =IF(Base_Arbres!A6<>"",Base_Arbres!A6,"") -> Erable de Montpellier | B31: =IF(Base_Arbres!A6<>"",VLOOKUP($A31,Base_Arbres,3,FALSE)*Crit1,"") -> 12.44897959 | C31: =IF(Base_Arbres!A6<>"",VLOOKUP($A31,Base_Arbres,4,FALSE)*Crit2,"") -> 1.744186047 | D31: =IF(Base_Arbres!A6<>"",VLOOKUP($A31,Base_Arbres,5,FALSE)*Crit3,"") -> 4.821428571 | E31: =IF(Base_Arbres!A6<>"",VLOOKUP($A31,Base_Arbres,6,FALSE)*Crit4,"") -> 18 | F31: =IF(Base_Arbres!A6<>"",VLOOKUP($A31,Base_Arbres,7,FALSE)*Crit5,"") -> -10 | G31: =IF(ISNA(VLOOKUP(INDEX(Base_Typologie!$A$6:$R$1005,MATCH(A31,Base_Typologie!$A:$A,0)-5,MATCH(Typologie_Espace_Public,Base_Typologie!$6:$6,0)),TableauScoreTypologie,2,FALSE)*Crit6),0,VLOOKUP(INDEX(Base_Typologie!$A$6:$R$1005,MATCH(A31,Base_Typologie!$A:$A,0)-5,MATCH(Typologie_Espace_Public,Base_Typologie!$6:$6,0)),TableauScoreTypologie,2,FALSE)*Crit6) -> 50 | H31: =IF(Base_Arbres!G6<>"",VLOOKUP($A31,Base_Arbres,8,FALSE)*Crit7,"")*1.5 -> 84 | I31: =IF(A31<>"",IF(LEFT(VLOOKUP($A31,Base_Arbres,9,FALSE),1)>=LEFT(Cont_Racines,1),0,1),0) -> 1 | J31: =IF(A31<>"",IF(LEFT(VLOOKUP($A31,Base_Arbres,10,FALSE),1)>=LEFT(Cont_Branches,1),0,1),0) -> 1 | K31: =IF(A31<>"",IF(LEFT(VLOOKUP($A31,Base_Arbres,11,FALSE),1)>=LEFT(Cont_Chablis,1),0,1),0) -> 1 | L31: =IF(A31<>"",IF(LEFT(VLOOKUP($A31,Base_Arbres,12,FALSE),1)>=LEFT(Cont_Fructifications,1),0,1),0) -> 1 | M31: =IF(A31<>"",IF(LEFT(VLOOKUP($A31,Base_Arbres,13,FALSE),1)>=LEFT(Cont_Miellat,1),0,1),0) -> 1 | N31: =IF(A31<>"",IF(LEFT(VLOOKUP($A31,Base_Arbres,14,FALSE),1)>=LEFT(Cont_Fruits_Toxiques,1),0,1),0) -> 1 | O31: =IF(A31<>"",IF(LEFT(VLOOKUP($A31,Base_Arbres,15,FALSE),1)>=LEFT(Cont_Hauteur,1),0,1),0) -> 1 | P31: =IF(A31<>"",IF(LEFT(VLOOKUP($A31,Base_Arbres,16,FALSE),1)>=LEFT(Cont_Envergure,1),0,1),0) -> 1 | Q31: =SUM(B31:H31)*I31*J31*K31*L31*M31*N31*O31*P31 -> 161.0145942
A32: =IF(Base_Arbres!A40<>"",Base_Arbres!A40,"") -> Savonnier | B32: =IF(Base_Arbres!A40<>"",VLOOKUP($A32,Base_Arbres,3,FALSE)*Crit1,"") -> 17.34693878 | C32: =IF(Base_Arbres!A40<>"",VLOOKUP($A32,Base_Arbres,4,FALSE)*Crit2,"") -> 8.372093023 | D32: =IF(Base_Arbres!A40<>"",VLOOKUP($A32,Base_Arbres,5,FALSE)*Crit3,"") -> 13.03571429 | E32: =IF(Base_Arbres!A40<>"",VLOOKUP($A32,Base_Arbres,6,FALSE)*Crit4,"") -> 9 | F32: =IF(Base_Arbres!A40<>"",VLOOKUP($A32,Base_Arbres,7,FALSE)*Crit5,"") -> 0 | G32: =IF(ISNA(VLOOKUP(INDEX(Base_Typologie!$A$6:$R$1005,MATCH(A32,Base_Typologie!$A:$A,0)-5,MATCH(Typologie_Espace_Public,Base_Typologie!$6:$6,0)),TableauScoreTypologie,2,FALSE)*Crit6),0,VLOOKUP(INDEX(Base_Typologie!$A$6:$R$1005,MATCH(A32,Base_Typologie!$A:$A,0)-5,MATCH(Typologie_Espace_Public,Base_Typologie!$6:$6,0)),TableauScoreTypologie,2,FALSE)*Crit6) -> 50 | H32: =IF(Base_Arbres!G40<>"",VLOOKUP($A32,Base_Arbres,8,FALSE)*Crit7,"")*1.5 -> 63 | I32: =IF(A32<>"",IF(LEFT(VLOOKUP($A32,Base_Arbres,9,FALSE),1)>=LEFT(Cont_Racines,1),0,1),0) -> 1 | J32: =IF(A32<>"",IF(LEFT(VLOOKUP($A32,Base_Arbres,10,FALSE),1)>=LEFT(Cont_Branches,1),0,1),0) -> 1 | K32: =IF(A32<>"",IF(LEFT(VLOOKUP($A32,Base_Arbres,11,FALSE),1)>=LEFT(Cont_Chablis,1),0,1),0) -> 1 | L32: =IF(A32<>"",IF(LEFT(VLOOKUP($A32,Base_Arbres,12,FALSE),1)>=LEFT(Cont_Fructifications,1),0,1),0) -> 1 | M32: =IF(A32<>"",IF(LEFT(VLOOKUP($A32,Base_Arbres,13,FALSE),1)>=LEFT(Cont_Miellat,1),0,1),0) -> 1 | N32: =IF(A32<>"",IF(LEFT(VLOOKUP($A32,Base_Arbres,14,FALSE),1)>=LEFT(Cont_Fruits_Toxiques,1),0,1),0) -> 1 | O32: =IF(A32<>"",IF(LEFT(VLOOKUP($A32,Base_Arbres,15,FALSE),1)>=LEFT(Cont_Hauteur,1),0,1),0) -> 1 | P32: =IF(A32<>"",IF(LEFT(VLOOKUP($A32,Base_Arbres,16,FALSE),1)>=LEFT(Cont_Envergure,1),0,1),0) -> 1 | Q32: =SUM(B32:H32)*I32*J32*K32*L32*M32*N32*O32*P32 -> 160.7547461
A33: =IF(Base_Arbres!A42<>"",Base_Arbres!A42,"") -> Lavande | B33: =IF(Base_Arbres!A42<>"",VLOOKUP($A33,Base_Arbres,3,FALSE)*Crit1,"") -> 5.714285714 | C33: =IF(Base_Arbres!A42<>"",VLOOKUP($A33,Base_Arbres,4,FALSE)*Crit2,"") -> 12.20930233 | D33: =IF(Base_Arbres!A42<>"",VLOOKUP($A33,Base_Arbres,5,FALSE)*Crit3,"") -> 1.071428571 | E33: =IF(Base_Arbres!A42<>"",VLOOKUP($A33,Base_Arbres,6,FALSE)*Crit4,"") -> 36 | F33: =IF(Base_Arbres!A42<>"",VLOOKUP($A33,Base_Arbres,7,FALSE)*Crit5,"") -> 0 | G33: =IF(ISNA(VLOOKUP(INDEX(Base_Typologie!$A$6:$R$1005,MATCH(A33,Base_Typologie!$A:$A,0)-5,MATCH(Typologie_Espace_Public,Base_Typologie!$6:$6,0)),TableauScoreTypologie,2,FALSE)*Crit6),0,VLOOKUP(INDEX(Base_Typologie!$A$6:$R$1005,MATCH(A33,Base_Typologie!$A:$A,0)-5,MATCH(Typologie_Espace_Public,Base_Typologie!$6:$6,0)),TableauScoreTypologie,2,FALSE)*Crit6) -> 30 | H33: =IF(Base_Arbres!G42<>"",VLOOKUP($A33,Base_Arbres,8,FALSE)*Crit7,"")*1.5 -> 73.5 | I33: =IF(A33<>"",IF(LEFT(VLOOKUP($A33,Base_Arbres,9,FALSE),1)>=LEFT(Cont_Racines,1),0,1),0) -> 1 | J33: =IF(A33<>"",IF(LEFT(VLOOKUP($A33,Base_Arbres,10,FALSE),1)>=LEFT(Cont_Branches,1),0,1),0) -> 1 | K33: =IF(A33<>"",IF(LEFT(VLOOKUP($A33,Base_Arbres,11,FALSE),1)>=LEFT(Cont_Chablis,1),0,1),0) -> 1 | L33: =IF(A33<>"",IF(LEFT(VLOOKUP($A33,Base_Arbres,12,FALSE),1)>=LEFT(Cont_Fructifications,1),0,1),0) -> 1 | M33: =IF(A33<>"",IF(LEFT(VLOOKUP($A33,Base_Arbres,13,FALSE),1)>=LEFT(Cont_Miellat,1),0,1),0) -> 1 | N33: =IF(A33<>"",IF(LEFT(VLOOKUP($A33,Base_Arbres,14,FALSE),1)>=LEFT(Cont_Fruits_Toxiques,1),0,1),0) -> 1 | O33: =IF(A33<>"",IF(LEFT(VLOOKUP($A33,Base_Arbres,15,FALSE),1)>=LEFT(Cont_Hauteur,1),0,1),0) -> 1 | P33: =IF(A33<>"",IF(LEFT(VLOOKUP($A33,Base_Arbres,16,FALSE),1)>=LEFT(Cont_Envergure,1),0,1),0) -> 1 | Q33: =SUM(B33:H33)*I33*J33*K33*L33*M33*N33*O33*P33 -> 158.4950166
A34: =IF(Base_Arbres!A80<>"",Base_Arbres!A80,"") -> Sorbier des oiseleurs | B34: =IF(Base_Arbres!A80<>"",VLOOKUP($A34,Base_Arbres,3,FALSE)*Crit1,"") -> 6.734693878 | C34: =IF(Base_Arbres!A80<>"",VLOOKUP($A34,Base_Arbres,4,FALSE)*Crit2,"") -> 25.11627907 | D34: =IF(Base_Arbres!A80<>"",VLOOKUP($A34,Base_Arbres,5,FALSE)*Crit3,"") -> 9.464285714 | E34: =IF(Base_Arbres!A80<>"",VLOOKUP($A34,Base_Arbres,6,FALSE)*Crit4,"") -> 45 | F34: =IF(Base_Arbres!A80<>"",VLOOKUP($A34,Base_Arbres,7,FALSE)*Crit5,"") -> 0 | G34: =IF(ISNA(VLOOKUP(INDEX(Base_Typologie!$A$6:$R$1005,MATCH(A34,Base_Typologie!$A:$A,0)-5,MATCH(Typologie_Espace_Public,Base_Typologie!$6:$6,0)),TableauScoreTypologie,2,FALSE)*Crit6),0,VLOOKUP(INDEX(Base_Typologie!$A$6:$R$1005,MATCH(A34,Base_Typologie!$A:$A,0)-5,MATCH(Typologie_Espace_Public,Base_Typologie!$6:$6,0)),TableauScoreTypologie,2,FALSE)*Crit6) -> 30 | H34: =IF(Base_Arbres!G80<>"",VLOOKUP($A34,Base_Arbres,8,FALSE)*Crit7,"")*1.5 -> 42 | I34: =IF(A34<>"",IF(LEFT(VLOOKUP($A34,Base_Arbres,9,FALSE),1)>=LEFT(Cont_Racines,1),0,1),0) -> 1 | J34: =IF(A34<>"",IF(LEFT(VLOOKUP($A34,Base_Arbres,10,FALSE),1)>=LEFT(Cont_Branches,1),0,1),0) -> 1 | K34: =IF(A34<>"",IF(LEFT(VLOOKUP($A34,Base_Arbres,11,FALSE),1)>=LEFT(Cont_Chablis,1),0,1),0) -> 1 | L34: =IF(A34<>"",IF(LEFT(VLOOKUP($A34,Base_Arbres,12,FALSE),1)>=LEFT(Cont_Fructifications,1),0,1),0) -> 1 | M34: =IF(A34<>"",IF(LEFT(VLOOKUP($A34,Base_Arbres,13,FALSE),1)>=LEFT(Cont_Miellat,1),0,1),0) -> 1 | N34: =IF(A34<>"",IF(LEFT(VLOOKUP($A34,Base_Arbres,14,FALSE),1)>=LEFT(Cont_Fruits_Toxiques,1),0,1),0) -> 1 | O34: =IF(A34<>"",IF(LEFT(VLOOKUP($A34,Base_Arbres,15,FALSE),1)>=LEFT(Cont_Hauteur,1),0,1),0) -> 1 | P34: =IF(A34<>"",IF(LEFT(VLOOKUP($A34,Base_Arbres,16,FALSE),1)>=LEFT(Cont_Envergure,1),0,1),0) -> 1 | Q34: =SUM(B34:H34)*I34*J34*K34*L34*M34*N34*O34*P34 -> 158.3152587
A35: =IF(Base_Arbres!A23<>"",Base_Arbres!A23,"") -> Micocoulier de Provence | B35: =IF(Base_Arbres!A23<>"",VLOOKUP($A35,Base_Arbres,3,FALSE)*Crit1,"") -> 11.42857143 | C35: =IF(Base_Arbres!A23<>"",VLOOKUP($A35,Base_Arbres,4,FALSE)*Crit2,"") -> 26.86046512 | D35: =IF(Base_Arbres!A23<>"",VLOOKUP($A35,Base_Arbres,5,FALSE)*Crit3,"") -> 16.78571429 | E35: =IF(Base_Arbres!A23<>"",VLOOKUP($A35,Base_Arbres,6,FALSE)*Crit4,"") -> 18 | F35: =IF(Base_Arbres!A23<>"",VLOOKUP($A35,Base_Arbres,7,FALSE)*Crit5,"") -> -10 | G35: =IF(ISNA(VLOOKUP(INDEX(Base_Typologie!$A$6:$R$1005,MATCH(A35,Base_Typologie!$A:$A,0)-5,MATCH(Typologie_Espace_Public,Base_Typologie!$6:$6,0)),TableauScoreTypologie,2,FALSE)*Crit6),0,VLOOKUP(INDEX(Base_Typologie!$A$6:$R$1005,MATCH(A35,Base_Typologie!$A:$A,0)-5,MATCH(Typologie_Espace_Public,Base_Typologie!$6:$6,0)),TableauScoreTypologie,2,FALSE)*Crit6) -> 10 | H35: =IF(Base_Arbres!G23<>"",VLOOKUP($A35,Base_Arbres,8,FALSE)*Crit7,"")*1.5 -> 84 | I35: =IF(A35<>"",IF(LEFT(VLOOKUP($A35,Base_Arbres,9,FALSE),1)>=LEFT(Cont_Racines,1),0,1),0) -> 1 | J35: =IF(A35<>"",IF(LEFT(VLOOKUP($A35,Base_Arbres,10,FALSE),1)>=LEFT(Cont_Branches,1),0,1),0) -> 1 | K35: =IF(A35<>"",IF(LEFT(VLOOKUP($A35,Base_Arbres,11,FALSE),1)>=LEFT(Cont_Chablis,1),0,1),0) -> 1 | L35: =IF(A35<>"",IF(LEFT(VLOOKUP($A35,Base_Arbres,12,FALSE),1)>=LEFT(Cont_Fructifications,1),0,1),0) -> 1 | M35: =IF(A35<>"",IF(LEFT(VLOOKUP($A35,Base_Arbres,13,FALSE),1)>=LEFT(Cont_Miellat,1),0,1),0) -> 1 | N35: =IF(A35<>"",IF(LEFT(VLOOKUP($A35,Base_Arbres,14,FALSE),1)>=LEFT(Cont_Fruits_Toxiques,1),0,1),0) -> 1 | O35: =IF(A35<>"",IF(LEFT(VLOOKUP($A35,Base_Arbres,15,FALSE),1)>=LEFT(Cont_Hauteur,1),0,1),0) -> 1 | P35: =IF(A35<>"",IF(LEFT(VLOOKUP($A35,Base_Arbres,16,FALSE),1)>=LEFT(Cont_Envergure,1),0,1),0) -> 1 | Q35: =SUM(B35:H35)*I35*J35*K35*L35*M35*N35*O35*P35 -> 157.0747508
A36: =IF(Base_Arbres!A82<>"",Base_Arbres!A82,"") -> Alisier torminal | B36: =IF(Base_Arbres!A82<>"",VLOOKUP($A36,Base_Arbres,3,FALSE)*Crit1,"") -> 6.93877551 | C36: =IF(Base_Arbres!A82<>"",VLOOKUP($A36,Base_Arbres,4,FALSE)*Crit2,"") -> 22.6744186 | D36: =IF(Base_Arbres!A82<>"",VLOOKUP($A36,Base_Arbres,5,FALSE)*Crit3,"") -> 8.392857143 | E36: =IF(Base_Arbres!A82<>"",VLOOKUP($A36,Base_Arbres,6,FALSE)*Crit4,"") -> 45 | F36: =IF(Base_Arbres!A82<>"",VLOOKUP($A36,Base_Arbres,7,FALSE)*Crit5,"") -> 0 | G36: =IF(ISNA(VLOOKUP(INDEX(Base_Typologie!$A$6:$R$1005,MATCH(A36,Base_Typologie!$A:$A,0)-5,MATCH(Typologie_Espace_Public,Base_Typologie!$6:$6,0)),TableauScoreTypologie,2,FALSE)*Crit6),0,VLOOKUP(INDEX(Base_Typologie!$A$6:$R$1005,MATCH(A36,Base_Typologie!$A:$A,0)-5,MATCH(Typologie_Espace_Public,Base_Typologie!$6:$6,0)),TableauScoreTypologie,2,FALSE)*Crit6) -> 10 | H36: =IF(Base_Arbres!G82<>"",VLOOKUP($A36,Base_Arbres,8,FALSE)*Crit7,"")*1.5 -> 63 | I36: =IF(A36<>"",IF(LEFT(VLOOKUP($A36,Base_Arbres,9,FALSE),1)>=LEFT(Cont_Racines,1),0,1),0) -> 1 | J36: =IF(A36<>"",IF(LEFT(VLOOKUP($A36,Base_Arbres,10,FALSE),1)>=LEFT(Cont_Branches,1),0,1),0) -> 1 | K36: =IF(A36<>"",IF(LEFT(VLOOKUP($A36,Base_Arbres,11,FALSE),1)>=LEFT(Cont_Chablis,1),0,1),0) -> 1 | L36: =IF(A36<>"",IF(LEFT(VLOOKUP($A36,Base_Arbres,12,FALSE),1)>=LEFT(Cont_Fructifications,1),0,1),0) -> 1 | M36: =IF(A36<>"",IF(LEFT(VLOOKUP($A36,Base_Arbres,13,FALSE),1)>=LEFT(Cont_Miellat,1),0,1),0) -> 1 | N36: =IF(A36<>"",IF(LEFT(VLOOKUP($A36,Base_Arbres,14,FALSE),1)>=LEFT(Cont_Fruits_Toxiques,1),0,1),0) -> 1 | O36: =IF(A36<>"",IF(LEFT(VLOOKUP($A36,Base_Arbres,15,FALSE),1)>=LEFT(Cont_Hauteur,1),0,1),0) -> 1 | P36: =IF(A36<>"",IF(LEFT(VLOOKUP($A36,Base_Arbres,16,FALSE),1)>=LEFT(Cont_Envergure,1),0,1),0) -> 1 | Q36: =SUM(B36:H36)*I36*J36*K36*L36*M36*N36*O36*P36 -> 156.0060513
A37: =IF(Base_Arbres!A61<>"",Base_Arbres!A61,"") -> Buisson ardent | B37: =IF(Base_Arbres!A61<>"",VLOOKUP($A37,Base_Arbres,3,FALSE)*Crit1,"") -> 4.897959184 | C37: =IF(Base_Arbres!A61<>"",VLOOKUP($A37,Base_Arbres,4,FALSE)*Crit2,"") -> 11.51162791 | D37: =IF(Base_Arbres!A61<>"",VLOOKUP($A37,Base_Arbres,5,FALSE)*Crit3,"") -> 0.5357142857 | E37: =IF(Base_Arbres!A61<>"",VLOOKUP($A37,Base_Arbres,6,FALSE)*Crit4,"") -> 45 | F37: =IF(Base_Arbres!A61<>"",VLOOKUP($A37,Base_Arbres,7,FALSE)*Crit5,"") -> 0 | G37: =IF(ISNA(VLOOKUP(INDEX(Base_Typologie!$A$6:$R$1005,MATCH(A37,Base_Typologie!$A:$A,0)-5,MATCH(Typologie_Espace_Public,Base_Typologie!$6:$6,0)),TableauScoreTypologie,2,FALSE)*Crit6),0,VLOOKUP(INDEX(Base_Typologie!$A$6:$R$1005,MATCH(A37,Base_Typologie!$A:$A,0)-5,MATCH(Typologie_Espace_Public,Base_Typologie!$6:$6,0)),TableauScoreTypologie,2,FALSE)*Crit6) -> 10 | H37: =IF(Base_Arbres!G61<>"",VLOOKUP($A37,Base_Arbres,8,FALSE)*Crit7,"")*1.5 -> 84 | I37: =IF(A37<>"",IF(LEFT(VLOOKUP($A37,Base_Arbres,9,FALSE),1)>=LEFT(Cont_Racines,1),0,1),0) -> 1 | J37: =IF(A37<>"",IF(LEFT(VLOOKUP($A37,Base_Arbres,10,FALSE),1)>=LEFT(Cont_Branches,1),0,1),0) -> 1 | K37: =IF(A37<>"",IF(LEFT(VLOOKUP($A37,Base_Arbres,11,FALSE),1)>=LEFT(Cont_Chablis,1),0,1),0) -> 1 | L37: =IF(A37<>"",IF(LEFT(VLOOKUP($A37,Base_Arbres,12,FALSE),1)>=LEFT(Cont_Fructifications,1),0,1),0) -> 1 | M37: =IF(A37<>"",IF(LEFT(VLOOKUP($A37,Base_Arbres,13,FALSE),1)>=LEFT(Cont_Miellat,1),0,1),0) -> 1 | N37: =IF(A37<>"",IF(LEFT(VLOOKUP($A37,Base_Arbres,14,FALSE),1)>=LEFT(Cont_Fruits_Toxiques,1),0,1),0) -> 1 | O37: =IF(A37<>"",IF(LEFT(VLOOKUP($A37,Base_Arbres,15,FALSE),1)>=LEFT(Cont_Hauteur,1),0,1),0) -> 1 | P37: =IF(A37<>"",IF(LEFT(VLOOKUP($A37,Base_Arbres,16,FALSE),1)>=LEFT(Cont_Envergure,1),0,1),0) -> 1 | Q37: =SUM(B37:H37)*I37*J37*K37*L37*M37*N37*O37*P37 -> 155.9453014
A38: =IF(Base_Arbres!A58<>"",Base_Arbres!A58,"") -> Cerisier à grappes | B38: =IF(Base_Arbres!A58<>"",VLOOKUP($A38,Base_Arbres,3,FALSE)*Crit1,"") -> 14.28571429 | C38: =IF(Base_Arbres!A58<>"",VLOOKUP($A38,Base_Arbres,4,FALSE)*Crit2,"") -> 5.930232558 | D38: =IF(Base_Arbres!A58<>"",VLOOKUP($A38,Base_Arbres,5,FALSE)*Crit3,"") -> 8.75 | E38: =IF(Base_Arbres!A58<>"",VLOOKUP($A38,Base_Arbres,6,FALSE)*Crit4,"") -> 63 | F38: =IF(Base_Arbres!A58<>"",VLOOKUP($A38,Base_Arbres,7,FALSE)*Crit5,"") -> 0 | G38: =IF(ISNA(VLOOKUP(INDEX(Base_Typologie!$A$6:$R$1005,MATCH(A38,Base_Typologie!$A:$A,0)-5,MATCH(Typologie_Espace_Public,Base_Typologie!$6:$6,0)),TableauScoreTypologie,2,FALSE)*Crit6),0,VLOOKUP(INDEX(Base_Typologie!$A$6:$R$1005,MATCH(A38,Base_Typologie!$A:$A,0)-5,MATCH(Typologie_Espace_Public,Base_Typologie!$6:$6,0)),TableauScoreTypologie,2,FALSE)*Crit6) -> 10 | H38: =IF(Base_Arbres!G58<>"",VLOOKUP($A38,Base_Arbres,8,FALSE)*Crit7,"")*1.5 -> 52.5 | I38: =IF(A38<>"",IF(LEFT(VLOOKUP($A38,Base_Arbres,9,FALSE),1)>=LEFT(Cont_Racines,1),0,1),0) -> 1 | J38: =IF(A38<>"",IF(LEFT(VLOOKUP($A38,Base_Arbres,10,FALSE),1)>=LEFT(Cont_Branches,1),0,1),0) -> 1 | K38: =IF(A38<>"",IF(LEFT(VLOOKUP($A38,Base_Arbres,11,FALSE),1)>=LEFT(Cont_Chablis,1),0,1),0) -> 1 | L38: =IF(A38<>"",IF(LEFT(VLOOKUP($A38,Base_Arbres,12,FALSE),1)>=LEFT(Cont_Fructifications,1),0,1),0) -> 1 | M38: =IF(A38<>"",IF(LEFT(VLOOKUP($A38,Base_Arbres,13,FALSE),1)>=LEFT(Cont_Miellat,1),0,1),0) -> 1 | N38: =IF(A38<>"",IF(LEFT(VLOOKUP($A38,Base_Arbres,14,FALSE),1)>=LEFT(Cont_Fruits_Toxiques,1),0,1),0) -> 1 | O38: =IF(A38<>"",IF(LEFT(VLOOKUP($A38,Base_Arbres,15,FALSE),1)>=LEFT(Cont_Hauteur,1),0,1),0) -> 1 | P38: =IF(A38<>"",IF(LEFT(VLOOKUP($A38,Base_Arbres,16,FALSE),1)>=LEFT(Cont_Envergure,1),0,1),0) -> 1 | Q38: =SUM(B38:H38)*I38*J38*K38*L38*M38*N38*O38*P38 -> 154.4659468
A39: =IF(Base_Arbres!A12<>"",Base_Arbres!A12,"") -> Marronnier rouge | B39: =IF(Base_Arbres!A12<>"",VLOOKUP($A39,Base_Arbres,3,FALSE)*Crit1,"") -> 17.34693878 | C39: =IF(Base_Arbres!A12<>"",VLOOKUP($A39,Base_Arbres,4,FALSE)*Crit2,"") -> 10.11627907 | D39: =IF(Base_Arbres!A12<>"",VLOOKUP($A39,Base_Arbres,5,FALSE)*Crit3,"") -> 14.82142857 | E39: =IF(Base_Arbres!A12<>"",VLOOKUP($A39,Base_Arbres,6,FALSE)*Crit4,"") -> 36 | F39: =IF(Base_Arbres!A12<>"",VLOOKUP($A39,Base_Arbres,7,FALSE)*Crit5,"") -> -10 | G39: =IF(ISNA(VLOOKUP(INDEX(Base_Typologie!$A$6:$R$1005,MATCH(A39,Base_Typologie!$A:$A,0)-5,MATCH(Typologie_Espace_Public,Base_Typologie!$6:$6,0)),TableauScoreTypologie,2,FALSE)*Crit6),0,VLOOKUP(INDEX(Base_Typologie!$A$6:$R$1005,MATCH(A39,Base_Typologie!$A:$A,0)-5,MATCH(Typologie_Espace_Public,Base_Typologie!$6:$6,0)),TableauScoreTypologie,2,FALSE)*Crit6) -> 10 | H39: =IF(Base_Arbres!G12<>"",VLOOKUP($A39,Base_Arbres,8,FALSE)*Crit7,"")*1.5 -> 73.5 | I39: =IF(A39<>"",IF(LEFT(VLOOKUP($A39,Base_Arbres,9,FALSE),1)>=LEFT(Cont_Racines,1),0,1),0) -> 1 | J39: =IF(A39<>"",IF(LEFT(VLOOKUP($A39,Base_Arbres,10,FALSE),1)>=LEFT(Cont_Branches,1),0,1),0) -> 1 | K39: =IF(A39<>"",IF(LEFT(VLOOKUP($A39,Base_Arbres,11,FALSE),1)>=LEFT(Cont_Chablis,1),0,1),0) -> 1 | L39: =IF(A39<>"",IF(LEFT(VLOOKUP($A39,Base_Arbres,12,FALSE),1)>=LEFT(Cont_Fructifications,1),0,1),0) -> 1 | M39: =IF(A39<>"",IF(LEFT(VLOOKUP($A39,Base_Arbres,13,FALSE),1)>=LEFT(Cont_Miellat,1),0,1),0) -> 1 | N39: =IF(A39<>"",IF(LEFT(VLOOKUP($A39,Base_Arbres,14,FALSE),1)>=LEFT(Cont_Fruits_Toxiques,1),0,1),0) -> 1 | O39: =IF(A39<>"",IF(LEFT(VLOOKUP($A39,Base_Arbres,15,FALSE),1)>=LEFT(Cont_Hauteur,1),0,1),0) -> 1 | P39: =IF(A39<>"",IF(LEFT(VLOOKUP($A39,Base_Arbres,16,FALSE),1)>=LEFT(Cont_Envergure,1),0,1),0) -> 1 | Q39: =SUM(B39:H39)*I39*J39*K39*L39*M39*N39*O39*P39 -> 151.7846464
A40: =IF(Base_Arbres!A50<>"",Base_Arbres!A50,"") -> Seringa, Jasmin des poètes | B40: =IF(Base_Arbres!A50<>"",VLOOKUP($A40,Base_Arbres,3,FALSE)*Crit1,"") -> 4.081632653 | C40: =IF(Base_Arbres!A50<>"",VLOOKUP($A40,Base_Arbres,4,FALSE)*Crit2,"") -> 18.13953488 | D40: =IF(Base_Arbres!A50<>"",VLOOKUP($A40,Base_Arbres,5,FALSE)*Crit3,"") -> 6.607142857 | E40: =IF(Base_Arbres!A50<>"",VLOOKUP($A40,Base_Arbres,6,FALSE)*Crit4,"") -> 18 | F40: =IF(Base_Arbres!A50<>"",VLOOKUP($A40,Base_Arbres,7,FALSE)*Crit5,"") -> 0 | G40: =IF(ISNA(VLOOKUP(INDEX(Base_Typologie!$A$6:$R$1005,MATCH(A40,Base_Typologie!$A:$A,0)-5,MATCH(Typologie_Espace_Public,Base_Typologie!$6:$6,0)),TableauScoreTypologie,2,FALSE)*Crit6),0,VLOOKUP(INDEX(Base_Typologie!$A$6:$R$1005,MATCH(A40,Base_Typologie!$A:$A,0)-5,MATCH(Typologie_Espace_Public,Base_Typologie!$6:$6,0)),TableauScoreTypologie,2,FALSE)*Crit6) -> 30 | H40: =IF(Base_Arbres!G50<>"",VLOOKUP($A40,Base_Arbres,8,FALSE)*Crit7,"")*1.5 -> 73.5 | I40: =IF(A40<>"",IF(LEFT(VLOOKUP($A40,Base_Arbres,9,FALSE),1)>=LEFT(Cont_Racines,1),0,1),0) -> 1 | J40: =IF(A40<>"",IF(LEFT(VLOOKUP($A40,Base_Arbres,10,FALSE),1)>=LEFT(Cont_Branches,1),0,1),0) -> 1 | K40: =IF(A40<>"",IF(LEFT(VLOOKUP($A40,Base_Arbres,11,FALSE),1)>=LEFT(Cont_Chablis,1),0,1),0) -> 1 | L40: =IF(A40<>"",IF(LEFT(VLOOKUP($A40,Base_Arbres,12,FALSE),1)>=LEFT(Cont_Fructifications,1),0,1),0) -> 1 | M40: =IF(A40<>"",IF(LEFT(VLOOKUP($A40,Base_Arbres,13,FALSE),1)>=LEFT(Cont_Miellat,1),0,1),0) -> 1 | N40: =IF(A40<>"",IF(LEFT(VLOOKUP($A40,Base_Arbres,14,FALSE),1)>=LEFT(Cont_Fruits_Toxiques,1),0,1),0) -> 1 | O40: =IF(A40<>"",IF(LEFT(VLOOKUP($A40,Base_Arbres,15,FALSE),1)>=LEFT(Cont_Hauteur,1),0,1),0) -> 1 | P40: =IF(A40<>"",IF(LEFT(VLOOKUP($A40,Base_Arbres,16,FALSE),1)>=LEFT(Cont_Envergure,1),0,1),0) -> 1 | Q40: =SUM(B40:H40)*I40*J40*K40*L40*M40*N40*O40*P40 -> 150.3283104
A41: =IF(Base_Arbres!A3<>"",Base_Arbres!A3,"") -> Sapin du colorado | B41: =IF(Base_Arbres!A3<>"",VLOOKUP($A41,Base_Arbres,3,FALSE)*Crit1,"") -> 2.040816327 | C41: =IF(Base_Arbres!A3<>"",VLOOKUP($A41,Base_Arbres,4,FALSE)*Crit2,"") -> 25.81395349 | D41: =IF(Base_Arbres!A3<>"",VLOOKUP($A41,Base_Arbres,5,FALSE)*Crit3,"") -> 18.57142857 | E41: =IF(Base_Arbres!A3<>"",VLOOKUP($A41,Base_Arbres,6,FALSE)*Crit4,"") -> 9 | F41: =IF(Base_Arbres!A3<>"",VLOOKUP($A41,Base_Arbres,7,FALSE)*Crit5,"") -> 0 | G41: =IF(ISNA(VLOOKUP(INDEX(Base_Typologie!$A$6:$R$1005,MATCH(A41,Base_Typologie!$A:$A,0)-5,MATCH(Typologie_Espace_Public,Base_Typologie!$6:$6,0)),TableauScoreTypologie,2,FALSE)*Crit6),0,VLOOKUP(INDEX(Base_Typologie!$A$6:$R$1005,MATCH(A41,Base_Typologie!$A:$A,0)-5,MATCH(Typologie_Espace_Public,Base_Typologie!$6:$6,0)),TableauScoreTypologie,2,FALSE)*Crit6) -> 10 | H41: =IF(Base_Arbres!G3<>"",VLOOKUP($A41,Base_Arbres,8,FALSE)*Crit7,"")*1.5 -> 84 | I41: =IF(A41<>"",IF(LEFT(VLOOKUP($A41,Base_Arbres,9,FALSE),1)>=LEFT(Cont_Racines,1),0,1),0) -> 1 | J41: =IF(A41<>"",IF(LEFT(VLOOKUP($A41,Base_Arbres,10,FALSE),1)>=LEFT(Cont_Branches,1),0,1),0) -> 1 | K41: =IF(A41<>"",IF(LEFT(VLOOKUP($A41,Base_Arbres,11,FALSE),1)>=LEFT(Cont_Chablis,1),0,1),0) -> 1 | L41: =IF(A41<>"",IF(LEFT(VLOOKUP($A41,Base_Arbres,12,FALSE),1)>=LEFT(Cont_Fructifications,1),0,1),0) -> 1 | M41: =IF(A41<>"",IF(LEFT(VLOOKUP($A41,Base_Arbres,13,FALSE),1)>=LEFT(Cont_Miellat,1),0,1),0) -> 1 | N41: =IF(A41<>"",IF(LEFT(VLOOKUP($A41,Base_Arbres,14,FALSE),1)>=LEFT(Cont_Fruits_Toxiques,1),0,1),0) -> 1 | O41: =IF(A41<>"",IF(LEFT(VLOOKUP($A41,Base_Arbres,15,FALSE),1)>=LEFT(Cont_Hauteur,1),0,1),0) -> 1 | P41: =IF(A41<>"",IF(LEFT(VLOOKUP($A41,Base_Arbres,16,FALSE),1)>=LEFT(Cont_Envergure,1),0,1),0) -> 1 | Q41: =SUM(B41:H41)*I41*J41*K41*L41*M41*N41*O41*P41 -> 149.4261984
A42: =IF(Base_Arbres!A51<>"",Base_Arbres!A51,"") -> Photinia | B42: =IF(Base_Arbres!A51<>"",VLOOKUP($A42,Base_Arbres,3,FALSE)*Crit1,"") -> 16.53061224 | C42: =IF(Base_Arbres!A51<>"",VLOOKUP($A42,Base_Arbres,4,FALSE)*Crit2,"") -> 7.674418605 | D42: =IF(Base_Arbres!A51<>"",VLOOKUP($A42,Base_Arbres,5,FALSE)*Crit3,"") -> 14.82142857 | E42: =IF(Base_Arbres!A51<>"",VLOOKUP($A42,Base_Arbres,6,FALSE)*Crit4,"") -> 18 | F42: =IF(Base_Arbres!A51<>"",VLOOKUP($A42,Base_Arbres,7,FALSE)*Crit5,"") -> 0 | G42: =IF(ISNA(VLOOKUP(INDEX(Base_Typologie!$A$6:$R$1005,MATCH(A42,Base_Typologie!$A:$A,0)-5,MATCH(Typologie_Espace_Public,Base_Typologie!$6:$6,0)),TableauScoreTypologie,2,FALSE)*Crit6),0,VLOOKUP(INDEX(Base_Typologie!$A$6:$R$1005,MATCH(A42,Base_Typologie!$A:$A,0)-5,MATCH(Typologie_Espace_Public,Base_Typologie!$6:$6,0)),TableauScoreTypologie,2,FALSE)*Crit6) -> 50 | H42: =IF(Base_Arbres!G51<>"",VLOOKUP($A42,Base_Arbres,8,FALSE)*Crit7,"")*1.5 -> 42 | I42: =IF(A42<>"",IF(LEFT(VLOOKUP($A42,Base_Arbres,9,FALSE),1)>=LEFT(Cont_Racines,1),0,1),0) -> 1 | J42: =IF(A42<>"",IF(LEFT(VLOOKUP($A42,Base_Arbres,10,FALSE),1)>=LEFT(Cont_Branches,1),0,1),0) -> 1 | K42: =IF(A42<>"",IF(LEFT(VLOOKUP($A42,Base_Arbres,11,FALSE),1)>=LEFT(Cont_Chablis,1),0,1),0) -> 1 | L42: =IF(A42<>"",IF(LEFT(VLOOKUP($A42,Base_Arbres,12,FALSE),1)>=LEFT(Cont_Fructifications,1),0,1),0) -> 1 | M42: =IF(A42<>"",IF(LEFT(VLOOKUP($A42,Base_Arbres,13,FALSE),1)>=LEFT(Cont_Miellat,1),0,1),0) -> 1 | N42: =IF(A42<>"",IF(LEFT(VLOOKUP($A42,Base_Arbres,14,FALSE),1)>=LEFT(Cont_Fruits_Toxiques,1),0,1),0) -> 1 | O42: =IF(A42<>"",IF(LEFT(VLOOKUP($A42,Base_Arbres,15,FALSE),1)>=LEFT(Cont_Hauteur,1),0,1),0) -> 1 | P42: =IF(A42<>"",IF(LEFT(VLOOKUP($A42,Base_Arbres,16,FALSE),1)>=LEFT(Cont_Envergure,1),0,1),0) -> 1 | Q42: =SUM(B42:H42)*I42*J42*K42*L42*M42*N42*O42*P42 -> 149.0264594
A43: =IF(Base_Arbres!A18<>"",Base_Arbres!A18,"") -> Callicarpe, arbre aux bonbons | B43: =IF(Base_Arbres!A18<>"",VLOOKUP($A43,Base_Arbres,3,FALSE)*Crit1,"") -> 3.06122449 | C43: =IF(Base_Arbres!A18<>"",VLOOKUP($A43,Base_Arbres,4,FALSE)*Crit2,"") -> 18.13953488 | D43: =IF(Base_Arbres!A18<>"",VLOOKUP($A43,Base_Arbres,5,FALSE)*Crit3,"") -> 5.714285714 | E43: =IF(Base_Arbres!A18<>"",VLOOKUP($A43,Base_Arbres,6,FALSE)*Crit4,"") -> 36 | F43: =IF(Base_Arbres!A18<>"",VLOOKUP($A43,Base_Arbres,7,FALSE)*Crit5,"") -> 0 | G43: =IF(ISNA(VLOOKUP(INDEX(Base_Typologie!$A$6:$R$1005,MATCH(A43,Base_Typologie!$A:$A,0)-5,MATCH(Typologie_Espace_Public,Base_Typologie!$6:$6,0)),TableauScoreTypologie,2,FALSE)*Crit6),0,VLOOKUP(INDEX(Base_Typologie!$A$6:$R$1005,MATCH(A43,Base_Typologie!$A:$A,0)-5,MATCH(Typologie_Espace_Public,Base_Typologie!$6:$6,0)),TableauScoreTypologie,2,FALSE)*Crit6) -> 50 | H43: =IF(Base_Arbres!G18<>"",VLOOKUP($A43,Base_Arbres,8,FALSE)*Crit7,"")*1.5 -> 31.5 | I43: =IF(A43<>"",IF(LEFT(VLOOKUP($A43,Base_Arbres,9,FALSE),1)>=LEFT(Cont_Racines,1),0,1),0) -> 1 | J43: =IF(A43<>"",IF(LEFT(VLOOKUP($A43,Base_Arbres,10,FALSE),1)>=LEFT(Cont_Branches,1),0,1),0) -> 1 | K43: =IF(A43<>"",IF(LEFT(VLOOKUP($A43,Base_Arbres,11,FALSE),1)>=LEFT(Cont_Chablis,1),0,1),0) -> 1 | L43: =IF(A43<>"",IF(LEFT(VLOOKUP($A43,Base_Arbres,12,FALSE),1)>=LEFT(Cont_Fructifications,1),0,1),0) -> 1 | M43: =IF(A43<>"",IF(LEFT(VLOOKUP($A43,Base_Arbres,13,FALSE),1)>=LEFT(Cont_Miellat,1),0,1),0) -> 1 | N43: =IF(A43<>"",IF(LEFT(VLOOKUP($A43,Base_Arbres,14,FALSE),1)>=LEFT(Cont_Fruits_Toxiques,1),0,1),0) -> 1 | O43: =IF(A43<>"",IF(LEFT(VLOOKUP($A43,Base_Arbres,15,FALSE),1)>=LEFT(Cont_Hauteur,1),0,1),0) -> 1 | P43: =IF(A43<>"",IF(LEFT(VLOOKUP($A43,Base_Arbres,16,FALSE),1)>=LEFT(Cont_Envergure,1),0,1),0) -> 1 | Q43: =SUM(B43:H43)*I43*J43*K43*L43*M43*N43*O43*P43 -> 144.4150451
A44: =IF(Base_Arbres!A62<>"",Base_Arbres!A62,"") -> Poirier de Chine | B44: =IF(Base_Arbres!A62<>"",VLOOKUP($A44,Base_Arbres,3,FALSE)*Crit1,"") -> 13.06122449 | C44: =IF(Base_Arbres!A62<>"",VLOOKUP($A44,Base_Arbres,4,FALSE)*Crit2,"") -> 3.139534884 | D44: =IF(Base_Arbres!A62<>"",VLOOKUP($A44,Base_Arbres,5,FALSE)*Crit3,"") -> 6.964285714 | E44: =IF(Base_Arbres!A62<>"",VLOOKUP($A44,Base_Arbres,6,FALSE)*Crit4,"") -> 36 | F44: =IF(Base_Arbres!A62<>"",VLOOKUP($A44,Base_Arbres,7,FALSE)*Crit5,"") -> -20 | G44: =IF(ISNA(VLOOKUP(INDEX(Base_Typologie!$A$6:$R$1005,MATCH(A44,Base_Typologie!$A:$A,0)-5,MATCH(Typologie_Espace_Public,Base_Typologie!$6:$6,0)),TableauScoreTypologie,2,FALSE)*Crit6),0,VLOOKUP(INDEX(Base_Typologie!$A$6:$R$1005,MATCH(A44,Base_Typologie!$A:$A,0)-5,MATCH(Typologie_Espace_Public,Base_Typologie!$6:$6,0)),TableauScoreTypologie,2,FALSE)*Crit6) -> 10 | H44: =IF(Base_Arbres!G62<>"",VLOOKUP($A44,Base_Arbres,8,FALSE)*Crit7,"")*1.5 -> 94.5 | I44: =IF(A44<>"",IF(LEFT(VLOOKUP($A44,Base_Arbres,9,FALSE),1)>=LEFT(Cont_Racines,1),0,1),0) -> 1 | J44: =IF(A44<>"",IF(LEFT(VLOOKUP($A44,Base_Arbres,10,FALSE),1)>=LEFT(Cont_Branches,1),0,1),0) -> 1 | K44: =IF(A44<>"",IF(LEFT(VLOOKUP($A44,Base_Arbres,11,FALSE),1)>=LEFT(Cont_Chablis,1),0,1),0) -> 1 | L44: =IF(A44<>"",IF(LEFT(VLOOKUP($A44,Base_Arbres,12,FALSE),1)>=LEFT(Cont_Fructifications,1),0,1),0) -> 1 | M44: =IF(A44<>"",IF(LEFT(VLOOKUP($A44,Base_Arbres,13,FALSE),1)>=LEFT(Cont_Miellat,1),0,1),0) -> 1 | N44: =IF(A44<>"",IF(LEFT(VLOOKUP($A44,Base_Arbres,14,FALSE),1)>=LEFT(Cont_Fruits_Toxiques,1),0,1),0) -> 1 | O44: =IF(A44<>"",IF(LEFT(VLOOKUP($A44,Base_Arbres,15,FALSE),1)>=LEFT(Cont_Hauteur,1),0,1),0) -> 1 | P44: =IF(A44<>"",IF(LEFT(VLOOKUP($A44,Base_Arbres,16,FALSE),1)>=LEFT(Cont_Envergure,1),0,1),0) -> 1 | Q44: =SUM(B44:H44)*I44*J44*K44*L44*M44*N44*O44*P44 -> 143.6650451
A45: =IF(Base_Arbres!A19<>"",Base_Arbres!A19,"") -> Charme commun | B45: =IF(Base_Arbres!A19<>"",VLOOKUP($A45,Base_Arbres,3,FALSE)*Crit1,"") -> 10.81632653 | C45: =IF(Base_Arbres!A19<>"",VLOOKUP($A45,Base_Arbres,4,FALSE)*Crit2,"") -> 26.1627907 | D45: =IF(Base_Arbres!A19<>"",VLOOKUP($A45,Base_Arbres,5,FALSE)*Crit3,"") -> 16.07142857 | E45: =IF(Base_Arbres!A19<>"",VLOOKUP($A45,Base_Arbres,6,FALSE)*Crit4,"") -> 36 | F45: =IF(Base_Arbres!A19<>"",VLOOKUP($A45,Base_Arbres,7,FALSE)*Crit5,"") -> -30 | G45: =IF(ISNA(VLOOKUP(INDEX(Base_Typologie!$A$6:$R$1005,MATCH(A45,Base_Typologie!$A:$A,0)-5,MATCH(Typologie_Espace_Public,Base_Typologie!$6:$6,0)),TableauScoreTypologie,2,FALSE)*Crit6),0,VLOOKUP(INDEX(Base_Typologie!$A$6:$R$1005,MATCH(A45,Base_Typologie!$A:$A,0)-5,MATCH(Typologie_Espace_Public,Base_Typologie!$6:$6,0)),TableauScoreTypologie,2,FALSE)*Crit6) -> 10 | H45: =IF(Base_Arbres!G19<>"",VLOOKUP($A45,Base_Arbres,8,FALSE)*Crit7,"")*1.5 -> 73.5 | I45: =IF(A45<>"",IF(LEFT(VLOOKUP($A45,Base_Arbres,9,FALSE),1)>=LEFT(Cont_Racines,1),0,1),0) -> 1 | J45: =IF(A45<>"",IF(LEFT(VLOOKUP($A45,Base_Arbres,10,FALSE),1)>=LEFT(Cont_Branches,1),0,1),0) -> 1 | K45: =IF(A45<>"",IF(LEFT(VLOOKUP($A45,Base_Arbres,11,FALSE),1)>=LEFT(Cont_Chablis,1),0,1),0) -> 1 | L45: =IF(A45<>"",IF(LEFT(VLOOKUP($A45,Base_Arbres,12,FALSE),1)>=LEFT(Cont_Fructifications,1),0,1),0) -> 1 | M45: =IF(A45<>"",IF(LEFT(VLOOKUP($A45,Base_Arbres,13,FALSE),1)>=LEFT(Cont_Miellat,1),0,1),0) -> 1 | N45: =IF(A45<>"",IF(LEFT(VLOOKUP($A45,Base_Arbres,14,FALSE),1)>=LEFT(Cont_Fruits_Toxiques,1),0,1),0) -> 1 | O45: =IF(A45<>"",IF(LEFT(VLOOKUP($A45,Base_Arbres,15,FALSE),1)>=LEFT(Cont_Hauteur,1),0,1),0) -> 1 | P45: =IF(A45<>"",IF(LEFT(VLOOKUP($A45,Base_Arbres,16,FALSE),1)>=LEFT(Cont_Envergure,1),0,1),0) -> 1 | Q45: =SUM(B45:H45)*I45*J45*K45*L45*M45*N45*O45*P45 -> 142.5505458
A46: =IF(Base_Arbres!A24<>"",Base_Arbres!A24,"") -> Micocoulier occidental | B46: =IF(Base_Arbres!A24<>"",VLOOKUP($A46,Base_Arbres,3,FALSE)*Crit1,"") -> 14.89795918 | C46: =IF(Base_Arbres!A24<>"",VLOOKUP($A46,Base_Arbres,4,FALSE)*Crit2,"") -> 5.581395349 | D46: =IF(Base_Arbres!A24<>"",VLOOKUP($A46,Base_Arbres,5,FALSE)*Crit3,"") -> 9.285714286 | E46: =IF(Base_Arbres!A24<>"",VLOOKUP($A46,Base_Arbres,6,FALSE)*Crit4,"") -> 18 | F46: =IF(Base_Arbres!A24<>"",VLOOKUP($A46,Base_Arbres,7,FALSE)*Crit5,"") -> 0 | G46: =IF(ISNA(VLOOKUP(INDEX(Base_Typologie!$A$6:$R$1005,MATCH(A46,Base_Typologie!$A:$A,0)-5,MATCH(Typologie_Espace_Public,Base_Typologie!$6:$6,0)),TableauScoreTypologie,2,FALSE)*Crit6),0,VLOOKUP(INDEX(Base_Typologie!$A$6:$R$1005,MATCH(A46,Base_Typologie!$A:$A,0)-5,MATCH(Typologie_Espace_Public,Base_Typologie!$6:$6,0)),TableauScoreTypologie,2,FALSE)*Crit6) -> 10 | H46: =IF(Base_Arbres!G24<>"",VLOOKUP($A46,Base_Arbres,8,FALSE)*Crit7,"")*1.5 -> 84 | I46: =IF(A46<>"",IF(LEFT(VLOOKUP($A46,Base_Arbres,9,FALSE),1)>=LEFT(Cont_Racines,1),0,1),0) -> 1 | J46: =IF(A46<>"",IF(LEFT(VLOOKUP($A46,Base_Arbres,10,FALSE),1)>=LEFT(Cont_Branches,1),0,1),0) -> 1 | K46: =IF(A46<>"",IF(LEFT(VLOOKUP($A46,Base_Arbres,11,FALSE),1)>=LEFT(Cont_Chablis,1),0,1),0) -> 1 | L46: =IF(A46<>"",IF(LEFT(VLOOKUP($A46,Base_Arbres,12,FALSE),1)>=LEFT(Cont_Fructifications,1),0,1),0) -> 1 | M46: =IF(A46<>"",IF(LEFT(VLOOKUP($A46,Base_Arbres,13,FALSE),1)>=LEFT(Cont_Miellat,1),0,1),0) -> 1 | N46: =IF(A46<>"",IF(LEFT(VLOOKUP($A46,Base_Arbres,14,FALSE),1)>=LEFT(Cont_Fruits_Toxiques,1),0,1),0) -> 1 | O46: =IF(A46<>"",IF(LEFT(VLOOKUP($A46,Base_Arbres,15,FALSE),1)>=LEFT(Cont_Hauteur,1),0,1),0) -> 1 | P46: =IF(A46<>"",IF(LEFT(VLOOKUP($A46,Base_Arbres,16,FALSE),1)>=LEFT(Cont_Envergure,1),0,1),0) -> 1 | Q46: =SUM(B46:H46)*I46*J46*K46*L46*M46*N46*O46*P46 -> 141.7650688
A47: =IF(Base_Arbres!A16<>"",Base_Arbres!A16,"") -> Épine vinette | B47: =IF(Base_Arbres!A16<>"",VLOOKUP($A47,Base_Arbres,3,FALSE)*Crit1,"") -> 9.795918367 | C47: =IF(Base_Arbres!A16<>"",VLOOKUP($A47,Base_Arbres,4,FALSE)*Crit2,"") -> 0 | D47: =IF(Base_Arbres!A16<>"",VLOOKUP($A47,Base_Arbres,5,FALSE)*Crit3,"") -> 1.964285714 | E47: =IF(Base_Arbres!A16<>"",VLOOKUP($A47,Base_Arbres,6,FALSE)*Crit4,"") -> 36 | F47: =IF(Base_Arbres!A16<>"",VLOOKUP($A47,Base_Arbres,7,FALSE)*Crit5,"") -> 0 | G47: =IF(ISNA(VLOOKUP(INDEX(Base_Typologie!$A$6:$R$1005,MATCH(A47,Base_Typologie!$A:$A,0)-5,MATCH(Typologie_Espace_Public,Base_Typologie!$6:$6,0)),TableauScoreTypologie,2,FALSE)*Crit6),0,VLOOKUP(INDEX(Base_Typologie!$A$6:$R$1005,MATCH(A47,Base_Typologie!$A:$A,0)-5,MATCH(Typologie_Espace_Public,Base_Typologie!$6:$6,0)),TableauScoreTypologie,2,FALSE)*Crit6) -> 10 | H47: =IF(Base_Arbres!G16<>"",VLOOKUP($A47,Base_Arbres,8,FALSE)*Crit7,"")*1.5 -> 84 | I47: =IF(A47<>"",IF(LEFT(VLOOKUP($A47,Base_Arbres,9,FALSE),1)>=LEFT(Cont_Racines,1),0,1),0) -> 1 | J47: =IF(A47<>"",IF(LEFT(VLOOKUP($A47,Base_Arbres,10,FALSE),1)>=LEFT(Cont_Branches,1),0,1),0) -> 1 | K47: =IF(A47<>"",IF(LEFT(VLOOKUP($A47,Base_Arbres,11,FALSE),1)>=LEFT(Cont_Chablis,1),0,1),0) -> 1 | L47: =IF(A47<>"",IF(LEFT(VLOOKUP($A47,Base_Arbres,12,FALSE),1)>=LEFT(Cont_Fructifications,1),0,1),0) -> 1 | M47: =IF(A47<>"",IF(LEFT(VLOOKUP($A47,Base_Arbres,13,FALSE),1)>=LEFT(Cont_Miellat,1),0,1),0) -> 1 | N47: =IF(A47<>"",IF(LEFT(VLOOKUP($A47,Base_Arbres,14,FALSE),1)>=LEFT(Cont_Fruits_Toxiques,1),0,1),0) -> 1 | O47: =IF(A47<>"",IF(LEFT(VLOOKUP($A47,Base_Arbres,15,FALSE),1)>=LEFT(Cont_Hauteur,1),0,1),0) -> 1 | P47: =IF(A47<>"",IF(LEFT(VLOOKUP($A47,Base_Arbres,16,FALSE),1)>=LEFT(Cont_Envergure,1),0,1),0) -> 1 | Q47: =SUM(B47:H47)*I47*J47*K47*L47*M47*N47*O47*P47 -> 141.7602041
A48: =IF(Base_Arbres!A81<>"",Base_Arbres!A81,"") -> autres sorbiers ( Alisier de Suède : sorbus intermédia, yc cultivar Brouwers , Sorbus x thuringiaca) | B48: =IF(Base_Arbres!A81<>"",VLOOKUP($A48,Base_Arbres,3,FALSE)*Crit1,"") -> 14.69387755 | C48: =IF(Base_Arbres!A81<>"",VLOOKUP($A48,Base_Arbres,4,FALSE)*Crit2,"") -> 6.627906977 | D48: =IF(Base_Arbres!A81<>"",VLOOKUP($A48,Base_Arbres,5,FALSE)*Crit3,"") -> 9.642857143 | E48: =IF(Base_Arbres!A81<>"",VLOOKUP($A48,Base_Arbres,6,FALSE)*Crit4,"") -> 27 | F48: =IF(Base_Arbres!A81<>"",VLOOKUP($A48,Base_Arbres,7,FALSE)*Crit5,"") -> 0 | G48: =IF(ISNA(VLOOKUP(INDEX(Base_Typologie!$A$6:$R$1005,MATCH(A48,Base_Typologie!$A:$A,0)-5,MATCH(Typologie_Espace_Public,Base_Typologie!$6:$6,0)),TableauScoreTypologie,2,FALSE)*Crit6),0,VLOOKUP(INDEX(Base_Typologie!$A$6:$R$1005,MATCH(A48,Base_Typologie!$A:$A,0)-5,MATCH(Typologie_Espace_Public,Base_Typologie!$6:$6,0)),TableauScoreTypologie,2,FALSE)*Crit6) -> 10 | H48: =IF(Base_Arbres!G81<>"",VLOOKUP($A48,Base_Arbres,8,FALSE)*Crit7,"")*1.5 -> 73.5 | I48: =IF(A48<>"",IF(LEFT(VLOOKUP($A48,Base_Arbres,9,FALSE),1)>=LEFT(Cont_Racines,1),0,1),0) -> 1 | J48: =IF(A48<>"",IF(LEFT(VLOOKUP($A48,Base_Arbres,10,FALSE),1)>=LEFT(Cont_Branches,1),0,1),0) -> 1 | K48: =IF(A48<>"",IF(LEFT(VLOOKUP($A48,Base_Arbres,11,FALSE),1)>=LEFT(Cont_Chablis,1),0,1),0) -> 1 | L48: =IF(A48<>"",IF(LEFT(VLOOKUP($A48,Base_Arbres,12,FALSE),1)>=LEFT(Cont_Fructifications,1),0,1),0) -> 1 | M48: =IF(A48<>"",IF(LEFT(VLOOKUP($A48,Base_Arbres,13,FALSE),1)>=LEFT(Cont_Miellat,1),0,1),0) -> 1 | N48: =IF(A48<>"",IF(LEFT(VLOOKUP($A48,Base_Arbres,14,FALSE),1)>=LEFT(Cont_Fruits_Toxiques,1),0,1),0) -> 1 | O48: =IF(A48<>"",IF(LEFT(VLOOKUP($A48,Base_Arbres,15,FALSE),1)>=LEFT(Cont_Hauteur,1),0,1),0) -> 1 | P48: =IF(A48<>"",IF(LEFT(VLOOKUP($A48,Base_Arbres,16,FALSE),1)>=LEFT(Cont_Envergure,1),0,1),0) -> 1 | Q48: =SUM(B48:H48)*I48*J48*K48*L48*M48*N48*O48*P48 -> 141.4646417
A49: =IF(Base_Arbres!A30<>"",Base_Arbres!A30,"") -> Noisetier de Byzance | B49: =IF(Base_Arbres!A30<>"",VLOOKUP($A49,Base_Arbres,3,FALSE)*Crit1,"") -> 14.89795918 | C49: =IF(Base_Arbres!A30<>"",VLOOKUP($A49,Base_Arbres,4,FALSE)*Crit2,"") -> 5.23255814 | D49: =IF(Base_Arbres!A30<>"",VLOOKUP($A49,Base_Arbres,5,FALSE)*Crit3,"") -> 9.821428571 | E49: =IF(Base_Arbres!A30<>"",VLOOKUP($A49,Base_Arbres,6,FALSE)*Crit4,"") -> 27 | F49: =IF(Base_Arbres!A30<>"",VLOOKUP($A49,Base_Arbres,7,FALSE)*Crit5,"") -> -20 | G49: =IF(ISNA(VLOOKUP(INDEX(Base_Typologie!$A$6:$R$1005,MATCH(A49,Base_Typologie!$A:$A,0)-5,MATCH(Typologie_Espace_Public,Base_Typologie!$6:$6,0)),TableauScoreTypologie,2,FALSE)*Crit6),0,VLOOKUP(INDEX(Base_Typologie!$A$6:$R$1005,MATCH(A49,Base_Typologie!$A:$A,0)-5,MATCH(Typologie_Espace_Public,Base_Typologie!$6:$6,0)),TableauScoreTypologie,2,FALSE)*Crit6) -> 10 | H49: =IF(Base_Arbres!G30<>"",VLOOKUP($A49,Base_Arbres,8,FALSE)*Crit7,"")*1.5 -> 94.5 | I49: =IF(A49<>"",IF(LEFT(VLOOKUP($A49,Base_Arbres,9,FALSE),1)>=LEFT(Cont_Racines,1),0,1),0) -> 1 | J49: =IF(A49<>"",IF(LEFT(VLOOKUP($A49,Base_Arbres,10,FALSE),1)>=LEFT(Cont_Branches,1),0,1),0) -> 1 | K49: =IF(A49<>"",IF(LEFT(VLOOKUP($A49,Base_Arbres,11,FALSE),1)>=LEFT(Cont_Chablis,1),0,1),0) -> 1 | L49: =IF(A49<>"",IF(LEFT(VLOOKUP($A49,Base_Arbres,12,FALSE),1)>=LEFT(Cont_Fructifications,1),0,1),0) -> 1 | M49: =IF(A49<>"",IF(LEFT(VLOOKUP($A49,Base_Arbres,13,FALSE),1)>=LEFT(Cont_Miellat,1),0,1),0) -> 1 | N49: =IF(A49<>"",IF(LEFT(VLOOKUP($A49,Base_Arbres,14,FALSE),1)>=LEFT(Cont_Fruits_Toxiques,1),0,1),0) -> 1 | O49: =IF(A49<>"",IF(LEFT(VLOOKUP($A49,Base_Arbres,15,FALSE),1)>=LEFT(Cont_Hauteur,1),0,1),0) -> 1 | P49: =IF(A49<>"",IF(LEFT(VLOOKUP($A49,Base_Arbres,16,FALSE),1)>=LEFT(Cont_Envergure,1),0,1),0) -> 1 | Q49: =SUM(B49:H49)*I49*J49*K49*L49*M49*N49*O49*P49 -> 141.4519459
A50: =IF(Base_Arbres!A39<>"",Base_Arbres!A39,"") -> Genévrier commun | B50: =IF(Base_Arbres!A39<>"",VLOOKUP($A50,Base_Arbres,3,FALSE)*Crit1,"") -> 0 | C50: =IF(Base_Arbres!A39<>"",VLOOKUP($A50,Base_Arbres,4,FALSE)*Crit2,"") -> 17.79069767 | D50: =IF(Base_Arbres!A39<>"",VLOOKUP($A50,Base_Arbres,5,FALSE)*Crit3,"") -> 5 | E50: =IF(Base_Arbres!A39<>"",VLOOKUP($A50,Base_Arbres,6,FALSE)*Crit4,"") -> 36 | F50: =IF(Base_Arbres!A39<>"",VLOOKUP($A50,Base_Arbres,7,FALSE)*Crit5,"") -> -20 | G50: =IF(ISNA(VLOOKUP(INDEX(Base_Typologie!$A$6:$R$1005,MATCH(A50,Base_Typologie!$A:$A,0)-5,MATCH(Typologie_Espace_Public,Base_Typologie!$6:$6,0)),TableauScoreTypologie,2,FALSE)*Crit6),0,VLOOKUP(INDEX(Base_Typologie!$A$6:$R$1005,MATCH(A50,Base_Typologie!$A:$A,0)-5,MATCH(Typologie_Espace_Public,Base_Typologie!$6:$6,0)),TableauScoreTypologie,2,FALSE)*Crit6) -> 50 | H50: =IF(Base_Arbres!G39<>"",VLOOKUP($A50,Base_Arbres,8,FALSE)*Crit7,"")*1.5 -> 52.5 | I50: =IF(A50<>"",IF(LEFT(VLOOKUP($A50,Base_Arbres,9,FALSE),1)>=LEFT(Cont_Racines,1),0,1),0) -> 1 | J50: =IF(A50<>"",IF(LEFT(VLOOKUP($A50,Base_Arbres,10,FALSE),1)>=LEFT(Cont_Branches,1),0,1),0) -> 1 | K50: =IF(A50<>"",IF(LEFT(VLOOKUP($A50,Base_Arbres,11,FALSE),1)>=LEFT(Cont_Chablis,1),0,1),0) -> 1 | L50: =IF(A50<>"",IF(LEFT(VLOOKUP($A50,Base_Arbres,12,FALSE),1)>=LEFT(Cont_Fructifications,1),0,1),0) -> 1 | M50: =IF(A50<>"",IF(LEFT(VLOOKUP($A50,Base_Arbres,13,FALSE),1)>=LEFT(Cont_Miellat,1),0,1),0) -> 1 | N50: =IF(A50<>"",IF(LEFT(VLOOKUP($A50,Base_Arbres,14,FALSE),1)>=LEFT(Cont_Fruits_Toxiques,1),0,1),0) -> 1 | O50: =IF(A50<>"",IF(LEFT(VLOOKUP($A50,Base_Arbres,15,FALSE),1)>=LEFT(Cont_Hauteur,1),0,1),0) -> 1 | P50: =IF(A50<>"",IF(LEFT(VLOOKUP($A50,Base_Arbres,16,FALSE),1)>=LEFT(Cont_Envergure,1),0,1),0) -> 1 | Q50: =SUM(B50:H50)*I50*J50*K50*L50*M50*N50*O50*P50 -> 141.2906977
A51: =IF(Base_Arbres!A59<>"",Base_Arbres!A59,"") -> Cerisier de Sargent et à fleurs | B51: =IF(Base_Arbres!A59<>"",VLOOKUP($A51,Base_Arbres,3,FALSE)*Crit1,"") -> 16.93877551 | C51: =IF(Base_Arbres!A59<>"",VLOOKUP($A51,Base_Arbres,4,FALSE)*Crit2,"") -> 9.76744186 | D51: =IF(Base_Arbres!A59<>"",VLOOKUP($A51,Base_Arbres,5,FALSE)*Crit3,"") -> 12.32142857 | E51: =IF(Base_Arbres!A59<>"",VLOOKUP($A51,Base_Arbres,6,FALSE)*Crit4,"") -> 18 | F51: =IF(Base_Arbres!A59<>"",VLOOKUP($A51,Base_Arbres,7,FALSE)*Crit5,"") -> 0 | G51: =IF(ISNA(VLOOKUP(INDEX(Base_Typologie!$A$6:$R$1005,MATCH(A51,Base_Typologie!$A:$A,0)-5,MATCH(Typologie_Espace_Public,Base_Typologie!$6:$6,0)),TableauScoreTypologie,2,FALSE)*Crit6),0,VLOOKUP(INDEX(Base_Typologie!$A$6:$R$1005,MATCH(A51,Base_Typologie!$A:$A,0)-5,MATCH(Typologie_Espace_Public,Base_Typologie!$6:$6,0)),TableauScoreTypologie,2,FALSE)*Crit6) -> 10 | H51: =IF(Base_Arbres!G59<>"",VLOOKUP($A51,Base_Arbres,8,FALSE)*Crit7,"")*1.5 -> 73.5 | I51: =IF(A51<>"",IF(LEFT(VLOOKUP($A51,Base_Arbres,9,FALSE),1)>=LEFT(Cont_Racines,1),0,1),0) -> 1 | J51: =IF(A51<>"",IF(LEFT(VLOOKUP($A51,Base_Arbres,10,FALSE),1)>=LEFT(Cont_Branches,1),0,1),0) -> 1 | K51: =IF(A51<>"",IF(LEFT(VLOOKUP($A51,Base_Arbres,11,FALSE),1)>=LEFT(Cont_Chablis,1),0,1),0) -> 1 | L51: =IF(A51<>"",IF(LEFT(VLOOKUP($A51,Base_Arbres,12,FALSE),1)>=LEFT(Cont_Fructifications,1),0,1),0) -> 1 | M51: =IF(A51<>"",IF(LEFT(VLOOKUP($A51,Base_Arbres,13,FALSE),1)>=LEFT(Cont_Miellat,1),0,1),0) -> 1 | N51: =IF(A51<>"",IF(LEFT(VLOOKUP($A51,Base_Arbres,14,FALSE),1)>=LEFT(Cont_Fruits_Toxiques,1),0,1),0) -> 1 | O51: =IF(A51<>"",IF(LEFT(VLOOKUP($A51,Base_Arbres,15,FALSE),1)>=LEFT(Cont_Hauteur,1),0,1),0) -> 1 | P51: =IF(A51<>"",IF(LEFT(VLOOKUP($A51,Base_Arbres,16,FALSE),1)>=LEFT(Cont_Envergure,1),0,1),0) -> 1 | Q51: =SUM(B51:H51)*I51*J51*K51*L51*M51*N51*O51*P51 -> 140.5276459
A52: =IF(Base_Arbres!A29<>"",Base_Arbres!A29,"") -> Noisetier | B52: =IF(Base_Arbres!A29<>"",VLOOKUP($A52,Base_Arbres,3,FALSE)*Crit1,"") -> 3.265306122 | C52: =IF(Base_Arbres!A29<>"",VLOOKUP($A52,Base_Arbres,4,FALSE)*Crit2,"") -> 15.69767442 | D52: =IF(Base_Arbres!A29<>"",VLOOKUP($A52,Base_Arbres,5,FALSE)*Crit3,"") -> 5 | E52: =IF(Base_Arbres!A29<>"",VLOOKUP($A52,Base_Arbres,6,FALSE)*Crit4,"") -> 72 | F52: =IF(Base_Arbres!A29<>"",VLOOKUP($A52,Base_Arbres,7,FALSE)*Crit5,"") -> -20 | G52: =IF(ISNA(VLOOKUP(INDEX(Base_Typologie!$A$6:$R$1005,MATCH(A52,Base_Typologie!$A:$A,0)-5,MATCH(Typologie_Espace_Public,Base_Typologie!$6:$6,0)),TableauScoreTypologie,2,FALSE)*Crit6),0,VLOOKUP(INDEX(Base_Typologie!$A$6:$R$1005,MATCH(A52,Base_Typologie!$A:$A,0)-5,MATCH(Typologie_Espace_Public,Base_Typologie!$6:$6,0)),TableauScoreTypologie,2,FALSE)*Crit6) -> 10 | H52: =IF(Base_Arbres!G29<>"",VLOOKUP($A52,Base_Arbres,8,FALSE)*Crit7,"")*1.5 -> 52.5 | I52: =IF(A52<>"",IF(LEFT(VLOOKUP($A52,Base_Arbres,9,FALSE),1)>=LEFT(Cont_Racines,1),0,1),0) -> 1 | J52: =IF(A52<>"",IF(LEFT(VLOOKUP($A52,Base_Arbres,10,FALSE),1)>=LEFT(Cont_Branches,1),0,1),0) -> 1 | K52: =IF(A52<>"",IF(LEFT(VLOOKUP($A52,Base_Arbres,11,FALSE),1)>=LEFT(Cont_Chablis,1),0,1),0) -> 1 | L52: =IF(A52<>"",IF(LEFT(VLOOKUP($A52,Base_Arbres,12,FALSE),1)>=LEFT(Cont_Fructifications,1),0,1),0) -> 1 | M52: =IF(A52<>"",IF(LEFT(VLOOKUP($A52,Base_Arbres,13,FALSE),1)>=LEFT(Cont_Miellat,1),0,1),0) -> 1 | N52: =IF(A52<>"",IF(LEFT(VLOOKUP($A52,Base_Arbres,14,FALSE),1)>=LEFT(Cont_Fruits_Toxiques,1),0,1),0) -> 1 | O52: =IF(A52<>"",IF(LEFT(VLOOKUP($A52,Base_Arbres,15,FALSE),1)>=LEFT(Cont_Hauteur,1),0,1),0) -> 1 | P52: =IF(A52<>"",IF(LEFT(VLOOKUP($A52,Base_Arbres,16,FALSE),1)>=LEFT(Cont_Envergure,1),0,1),0) -> 1 | Q52: =SUM(B52:H52)*I52*J52*K52*L52*M52*N52*O52*P52 -> 138.4629805
A53: =IF(Base_Arbres!A25<>"",Base_Arbres!A25,"") -> Arbre de Judée | B53: =IF(Base_Arbres!A25<>"",VLOOKUP($A53,Base_Arbres,3,FALSE)*Crit1,"") -> 13.67346939 | C53: =IF(Base_Arbres!A25<>"",VLOOKUP($A53,Base_Arbres,4,FALSE)*Crit2,"") -> 4.186046512 | D53: =IF(Base_Arbres!A25<>"",VLOOKUP($A53,Base_Arbres,5,FALSE)*Crit3,"") -> 8.392857143 | E53: =IF(Base_Arbres!A25<>"",VLOOKUP($A53,Base_Arbres,6,FALSE)*Crit4,"") -> 27 | F53: =IF(Base_Arbres!A25<>"",VLOOKUP($A53,Base_Arbres,7,FALSE)*Crit5,"") -> 0 | G53: =IF(ISNA(VLOOKUP(INDEX(Base_Typologie!$A$6:$R$1005,MATCH(A53,Base_Typologie!$A:$A,0)-5,MATCH(Typologie_Espace_Public,Base_Typologie!$6:$6,0)),TableauScoreTypologie,2,FALSE)*Crit6),0,VLOOKUP(INDEX(Base_Typologie!$A$6:$R$1005,MATCH(A53,Base_Typologie!$A:$A,0)-5,MATCH(Typologie_Espace_Public,Base_Typologie!$6:$6,0)),TableauScoreTypologie,2,FALSE)*Crit6) -> 10 | H53: =IF(Base_Arbres!G25<>"",VLOOKUP($A53,Base_Arbres,8,FALSE)*Crit7,"")*1.5 -> 73.5 | I53: =IF(A53<>"",IF(LEFT(VLOOKUP($A53,Base_Arbres,9,FALSE),1)>=LEFT(Cont_Racines,1),0,1),0) -> 1 | J53: =IF(A53<>"",IF(LEFT(VLOOKUP($A53,Base_Arbres,10,FALSE),1)>=LEFT(Cont_Branches,1),0,1),0) -> 1 | K53: =IF(A53<>"",IF(LEFT(VLOOKUP($A53,Base_Arbres,11,FALSE),1)>=LEFT(Cont_Chablis,1),0,1),0) -> 1 | L53: =IF(A53<>"",IF(LEFT(VLOOKUP($A53,Base_Arbres,12,FALSE),1)>=LEFT(Cont_Fructifications,1),0,1),0) -> 1 | M53: =IF(A53<>"",IF(LEFT(VLOOKUP($A53,Base_Arbres,13,FALSE),1)>=LEFT(Cont_Miellat,1),0,1),0) -> 1 | N53: =IF(A53<>"",IF(LEFT(VLOOKUP($A53,Base_Arbres,14,FALSE),1)>=LEFT(Cont_Fruits_Toxiques,1),0,1),0) -> 1 | O53: =IF(A53<>"",IF(LEFT(VLOOKUP($A53,Base_Arbres,15,FALSE),1)>=LEFT(Cont_Hauteur,1),0,1),0) -> 1 | P53: =IF(A53<>"",IF(LEFT(VLOOKUP($A53,Base_Arbres,16,FALSE),1)>=LEFT(Cont_Envergure,1),0,1),0) -> 1 | Q53: =SUM(B53:H53)*I53*J53*K53*L53*M53*N53*O53*P53 -> 136.752373
A54: =IF(Base_Arbres!A13<>"",Base_Arbres!A13,"") -> Aulne glutineux | B54: =IF(Base_Arbres!A13<>"",VLOOKUP($A54,Base_Arbres,3,FALSE)*Crit1,"") -> 12.44897959 | C54: =IF(Base_Arbres!A13<>"",VLOOKUP($A54,Base_Arbres,4,FALSE)*Crit2,"") -> 3.837209302 | D54: =IF(Base_Arbres!A13<>"",VLOOKUP($A54,Base_Arbres,5,FALSE)*Crit3,"") -> 5.178571429 | E54: =IF(Base_Arbres!A13<>"",VLOOKUP($A54,Base_Arbres,6,FALSE)*Crit4,"") -> 72 | F54: =IF(Base_Arbres!A13<>"",VLOOKUP($A54,Base_Arbres,7,FALSE)*Crit5,"") -> -30 | G54: =IF(ISNA(VLOOKUP(INDEX(Base_Typologie!$A$6:$R$1005,MATCH(A54,Base_Typologie!$A:$A,0)-5,MATCH(Typologie_Espace_Public,Base_Typologie!$6:$6,0)),TableauScoreTypologie,2,FALSE)*Crit6),0,VLOOKUP(INDEX(Base_Typologie!$A$6:$R$1005,MATCH(A54,Base_Typologie!$A:$A,0)-5,MATCH(Typologie_Espace_Public,Base_Typologie!$6:$6,0)),TableauScoreTypologie,2,FALSE)*Crit6) -> 10 | H54: =IF(Base_Arbres!G13<>"",VLOOKUP($A54,Base_Arbres,8,FALSE)*Crit7,"")*1.5 -> 63 | I54: =IF(A54<>"",IF(LEFT(VLOOKUP($A54,Base_Arbres,9,FALSE),1)>=LEFT(Cont_Racines,1),0,1),0) -> 1 | J54: =IF(A54<>"",IF(LEFT(VLOOKUP($A54,Base_Arbres,10,FALSE),1)>=LEFT(Cont_Branches,1),0,1),0) -> 1 | K54: =IF(A54<>"",IF(LEFT(VLOOKUP($A54,Base_Arbres,11,FALSE),1)>=LEFT(Cont_Chablis,1),0,1),0) -> 1 | L54: =IF(A54<>"",IF(LEFT(VLOOKUP($A54,Base_Arbres,12,FALSE),1)>=LEFT(Cont_Fructifications,1),0,1),0) -> 1 | M54: =IF(A54<>"",IF(LEFT(VLOOKUP($A54,Base_Arbres,13,FALSE),1)>=LEFT(Cont_Miellat,1),0,1),0) -> 1 | N54: =IF(A54<>"",IF(LEFT(VLOOKUP($A54,Base_Arbres,14,FALSE),1)>=LEFT(Cont_Fruits_Toxiques,1),0,1),0) -> 1 | O54: =IF(A54<>"",IF(LEFT(VLOOKUP($A54,Base_Arbres,15,FALSE),1)>=LEFT(Cont_Hauteur,1),0,1),0) -> 1 | P54: =IF(A54<>"",IF(LEFT(VLOOKUP($A54,Base_Arbres,16,FALSE),1)>=LEFT(Cont_Envergure,1),0,1),0) -> 1 | Q54: =SUM(B54:H54)*I54*J54*K54*L54*M54*N54*O54*P54 -> 136.4647603
A55: =IF(Base_Arbres!A47<>"",Base_Arbres!A47,"") -> Charme houblon | B55: =IF(Base_Arbres!A47<>"",VLOOKUP($A55,Base_Arbres,3,FALSE)*Crit1,"") -> 5.102040816 | C55: =IF(Base_Arbres!A47<>"",VLOOKUP($A55,Base_Arbres,4,FALSE)*Crit2,"") -> 19.18604651 | D55: =IF(Base_Arbres!A47<>"",VLOOKUP($A55,Base_Arbres,5,FALSE)*Crit3,"") -> 7.142857143 | E55: =IF(Base_Arbres!A47<>"",VLOOKUP($A55,Base_Arbres,6,FALSE)*Crit4,"") -> 9 | F55: =IF(Base_Arbres!A47<>"",VLOOKUP($A55,Base_Arbres,7,FALSE)*Crit5,"") -> -20 | G55: =IF(ISNA(VLOOKUP(INDEX(Base_Typologie!$A$6:$R$1005,MATCH(A55,Base_Typologie!$A:$A,0)-5,MATCH(Typologie_Espace_Public,Base_Typologie!$6:$6,0)),TableauScoreTypologie,2,FALSE)*Crit6),0,VLOOKUP(INDEX(Base_Typologie!$A$6:$R$1005,MATCH(A55,Base_Typologie!$A:$A,0)-5,MATCH(Typologie_Espace_Public,Base_Typologie!$6:$6,0)),TableauScoreTypologie,2,FALSE)*Crit6) -> 30 | H55: =IF(Base_Arbres!G47<>"",VLOOKUP($A55,Base_Arbres,8,FALSE)*Crit7,"")*1.5 -> 84 | I55: =IF(A55<>"",IF(LEFT(VLOOKUP($A55,Base_Arbres,9,FALSE),1)>=LEFT(Cont_Racines,1),0,1),0) -> 1 | J55: =IF(A55<>"",IF(LEFT(VLOOKUP($A55,Base_Arbres,10,FALSE),1)>=LEFT(Cont_Branches,1),0,1),0) -> 1 | K55: =IF(A55<>"",IF(LEFT(VLOOKUP($A55,Base_Arbres,11,FALSE),1)>=LEFT(Cont_Chablis,1),0,1),0) -> 1 | L55: =IF(A55<>"",IF(LEFT(VLOOKUP($A55,Base_Arbres,12,FALSE),1)>=LEFT(Cont_Fructifications,1),0,1),0) -> 1 | M55: =IF(A55<>"",IF(LEFT(VLOOKUP($A55,Base_Arbres,13,FALSE),1)>=LEFT(Cont_Miellat,1),0,1),0) -> 1 | N55: =IF(A55<>"",IF(LEFT(VLOOKUP($A55,Base_Arbres,14,FALSE),1)>=LEFT(Cont_Fruits_Toxiques,1),0,1),0) -> 1 | O55: =IF(A55<>"",IF(LEFT(VLOOKUP($A55,Base_Arbres,15,FALSE),1)>=LEFT(Cont_Hauteur,1),0,1),0) -> 1 | P55: =IF(A55<>"",IF(LEFT(VLOOKUP($A55,Base_Arbres,16,FALSE),1)>=LEFT(Cont_Envergure,1),0,1),0) -> 1 | Q55: =SUM(B55:H55)*I55*J55*K55*L55*M55*N55*O55*P55 -> 134.4309445
A56: =IF(Base_Arbres!A4<>"",Base_Arbres!A4,"") -> Sapin d'Espagne | B56: =IF(Base_Arbres!A4<>"",VLOOKUP($A56,Base_Arbres,3,FALSE)*Crit1,"") -> 3.265306122 | C56: =IF(Base_Arbres!A4<>"",VLOOKUP($A56,Base_Arbres,4,FALSE)*Crit2,"") -> 26.1627907 | D56: =IF(Base_Arbres!A4<>"",VLOOKUP($A56,Base_Arbres,5,FALSE)*Crit3,"") -> 11.96428571 | E56: =IF(Base_Arbres!A4<>"",VLOOKUP($A56,Base_Arbres,6,FALSE)*Crit4,"") -> 9 | F56: =IF(Base_Arbres!A4<>"",VLOOKUP($A56,Base_Arbres,7,FALSE)*Crit5,"") -> 0 | G56: =IF(ISNA(VLOOKUP(INDEX(Base_Typologie!$A$6:$R$1005,MATCH(A56,Base_Typologie!$A:$A,0)-5,MATCH(Typologie_Espace_Public,Base_Typologie!$6:$6,0)),TableauScoreTypologie,2,FALSE)*Crit6),0,VLOOKUP(INDEX(Base_Typologie!$A$6:$R$1005,MATCH(A56,Base_Typologie!$A:$A,0)-5,MATCH(Typologie_Espace_Public,Base_Typologie!$6:$6,0)),TableauScoreTypologie,2,FALSE)*Crit6) -> 10 | H56: =IF(Base_Arbres!G4<>"",VLOOKUP($A56,Base_Arbres,8,FALSE)*Crit7,"")*1.5 -> 73.5 | I56: =IF(A56<>"",IF(LEFT(VLOOKUP($A56,Base_Arbres,9,FALSE),1)>=LEFT(Cont_Racines,1),0,1),0) -> 1 | J56: =IF(A56<>"",IF(LEFT(VLOOKUP($A56,Base_Arbres,10,FALSE),1)>=LEFT(Cont_Branches,1),0,1),0) -> 1 | K56: =IF(A56<>"",IF(LEFT(VLOOKUP($A56,Base_Arbres,11,FALSE),1)>=LEFT(Cont_Chablis,1),0,1),0) -> 1 | L56: =IF(A56<>"",IF(LEFT(VLOOKUP($A56,Base_Arbres,12,FALSE),1)>=LEFT(Cont_Fructifications,1),0,1),0) -> 1 | M56: =IF(A56<>"",IF(LEFT(VLOOKUP($A56,Base_Arbres,13,FALSE),1)>=LEFT(Cont_Miellat,1),0,1),0) -> 1 | N56: =IF(A56<>"",IF(LEFT(VLOOKUP($A56,Base_Arbres,14,FALSE),1)>=LEFT(Cont_Fruits_Toxiques,1),0,1),0) -> 1 | O56: =IF(A56<>"",IF(LEFT(VLOOKUP($A56,Base_Arbres,15,FALSE),1)>=LEFT(Cont_Hauteur,1),0,1),0) -> 1 | P56: =IF(A56<>"",IF(LEFT(VLOOKUP($A56,Base_Arbres,16,FALSE),1)>=LEFT(Cont_Envergure,1),0,1),0) -> 1 | Q56: =SUM(B56:H56)*I56*J56*K56*L56*M56*N56*O56*P56 -> 133.8923825
A57: =IF(Base_Arbres!A26<>"",Base_Arbres!A26,"") -> Cornouiller des pagodes | B57: =IF(Base_Arbres!A26<>"",VLOOKUP($A57,Base_Arbres,3,FALSE)*Crit1,"") -> 8.571428571 | C57: =IF(Base_Arbres!A26<>"",VLOOKUP($A57,Base_Arbres,4,FALSE)*Crit2,"") -> 23.02325581 | D57: =IF(Base_Arbres!A26<>"",VLOOKUP($A57,Base_Arbres,5,FALSE)*Crit3,"") -> 12.67857143 | E57: =IF(Base_Arbres!A26<>"",VLOOKUP($A57,Base_Arbres,6,FALSE)*Crit4,"") -> 27 | F57: =IF(Base_Arbres!A26<>"",VLOOKUP($A57,Base_Arbres,7,FALSE)*Crit5,"") -> 0 | G57: =IF(ISNA(VLOOKUP(INDEX(Base_Typologie!$A$6:$R$1005,MATCH(A57,Base_Typologie!$A:$A,0)-5,MATCH(Typologie_Espace_Public,Base_Typologie!$6:$6,0)),TableauScoreTypologie,2,FALSE)*Crit6),0,VLOOKUP(INDEX(Base_Typologie!$A$6:$R$1005,MATCH(A57,Base_Typologie!$A:$A,0)-5,MATCH(Typologie_Espace_Public,Base_Typologie!$6:$6,0)),TableauScoreTypologie,2,FALSE)*Crit6) -> 30 | H57: =IF(Base_Arbres!G26<>"",VLOOKUP($A57,Base_Arbres,8,FALSE)*Crit7,"")*1.5 -> 31.5 | I57: =IF(A57<>"",IF(LEFT(VLOOKUP($A57,Base_Arbres,9,FALSE),1)>=LEFT(Cont_Racines,1),0,1),0) -> 1 | J57: =IF(A57<>"",IF(LEFT(VLOOKUP($A57,Base_Arbres,10,FALSE),1)>=LEFT(Cont_Branches,1),0,1),0) -> 1 | K57: =IF(A57<>"",IF(LEFT(VLOOKUP($A57,Base_Arbres,11,FALSE),1)>=LEFT(Cont_Chablis,1),0,1),0) -> 1 | L57: =IF(A57<>"",IF(LEFT(VLOOKUP($A57,Base_Arbres,12,FALSE),1)>=LEFT(Cont_Fructifications,1),0,1),0) -> 1 | M57: =IF(A57<>"",IF(LEFT(VLOOKUP($A57,Base_Arbres,13,FALSE),1)>=LEFT(Cont_Miellat,1),0,1),0) -> 1 | N57: =IF(A57<>"",IF(LEFT(VLOOKUP($A57,Base_Arbres,14,FALSE),1)>=LEFT(Cont_Fruits_Toxiques,1),0,1),0) -> 1 | O57: =IF(A57<>"",IF(LEFT(VLOOKUP($A57,Base_Arbres,15,FALSE),1)>=LEFT(Cont_Hauteur,1),0,1),0) -> 1 | P57: =IF(A57<>"",IF(LEFT(VLOOKUP($A57,Base_Arbres,16,FALSE),1)>=LEFT(Cont_Envergure,1),0,1),0) -> 1 | Q57: =SUM(B57:H57)*I57*J57*K57*L57*M57*N57*O57*P57 -> 132.7732558
A58: =IF(Base_Arbres!A22<>"",Base_Arbres!A22,"") -> Cèdre du Liban | B58: =IF(Base_Arbres!A22<>"",VLOOKUP($A58,Base_Arbres,3,FALSE)*Crit1,"") -> 0.4081632653 | C58: =IF(Base_Arbres!A22<>"",VLOOKUP($A58,Base_Arbres,4,FALSE)*Crit2,"") -> 27.90697674 | D58: =IF(Base_Arbres!A22<>"",VLOOKUP($A58,Base_Arbres,5,FALSE)*Crit3,"") -> 11.42857143 | E58: =IF(Base_Arbres!A22<>"",VLOOKUP($A58,Base_Arbres,6,FALSE)*Crit4,"") -> 9 | F58: =IF(Base_Arbres!A22<>"",VLOOKUP($A58,Base_Arbres,7,FALSE)*Crit5,"") -> -10 | G58: =IF(ISNA(VLOOKUP(INDEX(Base_Typologie!$A$6:$R$1005,MATCH(A58,Base_Typologie!$A:$A,0)-5,MATCH(Typologie_Espace_Public,Base_Typologie!$6:$6,0)),TableauScoreTypologie,2,FALSE)*Crit6),0,VLOOKUP(INDEX(Base_Typologie!$A$6:$R$1005,MATCH(A58,Base_Typologie!$A:$A,0)-5,MATCH(Typologie_Espace_Public,Base_Typologie!$6:$6,0)),TableauScoreTypologie,2,FALSE)*Crit6) -> 10 | H58: =IF(Base_Arbres!G22<>"",VLOOKUP($A58,Base_Arbres,8,FALSE)*Crit7,"")*1.5 -> 84 | I58: =IF(A58<>"",IF(LEFT(VLOOKUP($A58,Base_Arbres,9,FALSE),1)>=LEFT(Cont_Racines,1),0,1),0) -> 1 | J58: =IF(A58<>"",IF(LEFT(VLOOKUP($A58,Base_Arbres,10,FALSE),1)>=LEFT(Cont_Branches,1),0,1),0) -> 1 | K58: =IF(A58<>"",IF(LEFT(VLOOKUP($A58,Base_Arbres,11,FALSE),1)>=LEFT(Cont_Chablis,1),0,1),0) -> 1 | L58: =IF(A58<>"",IF(LEFT(VLOOKUP($A58,Base_Arbres,12,FALSE),1)>=LEFT(Cont_Fructifications,1),0,1),0) -> 1 | M58: =IF(A58<>"",IF(LEFT(VLOOKUP($A58,Base_Arbres,13,FALSE),1)>=LEFT(Cont_Miellat,1),0,1),0) -> 1 | N58: =IF(A58<>"",IF(LEFT(VLOOKUP($A58,Base_Arbres,14,FALSE),1)>=LEFT(Cont_Fruits_Toxiques,1),0,1),0) -> 1 | O58: =IF(A58<>"",IF(LEFT(VLOOKUP($A58,Base_Arbres,15,FALSE),1)>=LEFT(Cont_Hauteur,1),0,1),0) -> 1 | P58: =IF(A58<>"",IF(LEFT(VLOOKUP($A58,Base_Arbres,16,FALSE),1)>=LEFT(Cont_Envergure,1),0,1),0) -> 1 | Q58: =SUM(B58:H58)*I58*J58*K58*L58*M58*N58*O58*P58 -> 132.7437114
A59: =IF(Base_Arbres!A89<>"",Base_Arbres!A89,"") -> Viorne obier | B59: =IF(Base_Arbres!A89<>"",VLOOKUP($A59,Base_Arbres,3,FALSE)*Crit1,"") -> 3.06122449 | C59: =IF(Base_Arbres!A89<>"",VLOOKUP($A59,Base_Arbres,4,FALSE)*Crit2,"") -> 17.44186047 | D59: =IF(Base_Arbres!A89<>"",VLOOKUP($A59,Base_Arbres,5,FALSE)*Crit3,"") -> 3.928571429 | E59: =IF(Base_Arbres!A89<>"",VLOOKUP($A59,Base_Arbres,6,FALSE)*Crit4,"") -> 36 | F59: =IF(Base_Arbres!A89<>"",VLOOKUP($A59,Base_Arbres,7,FALSE)*Crit5,"") -> 0 | G59: =IF(ISNA(VLOOKUP(INDEX(Base_Typologie!$A$6:$R$1005,MATCH(A59,Base_Typologie!$A:$A,0)-5,MATCH(Typologie_Espace_Public,Base_Typologie!$6:$6,0)),TableauScoreTypologie,2,FALSE)*Crit6),0,VLOOKUP(INDEX(Base_Typologie!$A$6:$R$1005,MATCH(A59,Base_Typologie!$A:$A,0)-5,MATCH(Typologie_Espace_Public,Base_Typologie!$6:$6,0)),TableauScoreTypologie,2,FALSE)*Crit6) -> 30 | H59: =IF(Base_Arbres!G89<>"",VLOOKUP($A59,Base_Arbres,8,FALSE)*Crit7,"")*1.5 -> 42 | I59: =IF(A59<>"",IF(LEFT(VLOOKUP($A59,Base_Arbres,9,FALSE),1)>=LEFT(Cont_Racines,1),0,1),0) -> 1 | J59: =IF(A59<>"",IF(LEFT(VLOOKUP($A59,Base_Arbres,10,FALSE),1)>=LEFT(Cont_Branches,1),0,1),0) -> 1 | K59: =IF(A59<>"",IF(LEFT(VLOOKUP($A59,Base_Arbres,11,FALSE),1)>=LEFT(Cont_Chablis,1),0,1),0) -> 1 | L59: =IF(A59<>"",IF(LEFT(VLOOKUP($A59,Base_Arbres,12,FALSE),1)>=LEFT(Cont_Fructifications,1),0,1),0) -> 1 | M59: =IF(A59<>"",IF(LEFT(VLOOKUP($A59,Base_Arbres,13,FALSE),1)>=LEFT(Cont_Miellat,1),0,1),0) -> 1 | N59: =IF(A59<>"",IF(LEFT(VLOOKUP($A59,Base_Arbres,14,FALSE),1)>=LEFT(Cont_Fruits_Toxiques,1),0,1),0) -> 1 | O59: =IF(A59<>"",IF(LEFT(VLOOKUP($A59,Base_Arbres,15,FALSE),1)>=LEFT(Cont_Hauteur,1),0,1),0) -> 1 | P59: =IF(A59<>"",IF(LEFT(VLOOKUP($A59,Base_Arbres,16,FALSE),1)>=LEFT(Cont_Envergure,1),0,1),0) -> 1 | Q59: =SUM(B59:H59)*I59*J59*K59*L59*M59*N59*O59*P59 -> 132.4316564
A60: =IF(Base_Arbres!A64<>"",Base_Arbres!A64,"") -> Chêne chevelu de bourgogne | B60: =IF(Base_Arbres!A64<>"",VLOOKUP($A60,Base_Arbres,3,FALSE)*Crit1,"") -> 8.775510204 | C60: =IF(Base_Arbres!A64<>"",VLOOKUP($A60,Base_Arbres,4,FALSE)*Crit2,"") -> 27.20930233 | D60: =IF(Base_Arbres!A64<>"",VLOOKUP($A60,Base_Arbres,5,FALSE)*Crit3,"") -> 13.75 | E60: =IF(Base_Arbres!A64<>"",VLOOKUP($A60,Base_Arbres,6,FALSE)*Crit4,"") -> 18 | F60: =IF(Base_Arbres!A64<>"",VLOOKUP($A60,Base_Arbres,7,FALSE)*Crit5,"") -> -40 | G60: =IF(ISNA(VLOOKUP(INDEX(Base_Typologie!$A$6:$R$1005,MATCH(A60,Base_Typologie!$A:$A,0)-5,MATCH(Typologie_Espace_Public,Base_Typologie!$6:$6,0)),TableauScoreTypologie,2,FALSE)*Crit6),0,VLOOKUP(INDEX(Base_Typologie!$A$6:$R$1005,MATCH(A60,Base_Typologie!$A:$A,0)-5,MATCH(Typologie_Espace_Public,Base_Typologie!$6:$6,0)),TableauScoreTypologie,2,FALSE)*Crit6) -> 10 | H60: =IF(Base_Arbres!G64<>"",VLOOKUP($A60,Base_Arbres,8,FALSE)*Crit7,"")*1.5 -> 94.5 | I60: =IF(A60<>"",IF(LEFT(VLOOKUP($A60,Base_Arbres,9,FALSE),1)>=LEFT(Cont_Racines,1),0,1),0) -> 1 | J60: =IF(A60<>"",IF(LEFT(VLOOKUP($A60,Base_Arbres,10,FALSE),1)>=LEFT(Cont_Branches,1),0,1),0) -> 1 | K60: =IF(A60<>"",IF(LEFT(VLOOKUP($A60,Base_Arbres,11,FALSE),1)>=LEFT(Cont_Chablis,1),0,1),0) -> 1 | L60: =IF(A60<>"",IF(LEFT(VLOOKUP($A60,Base_Arbres,12,FALSE),1)>=LEFT(Cont_Fructifications,1),0,1),0) -> 1 | M60: =IF(A60<>"",IF(LEFT(VLOOKUP($A60,Base_Arbres,13,FALSE),1)>=LEFT(Cont_Miellat,1),0,1),0) -> 1 | N60: =IF(A60<>"",IF(LEFT(VLOOKUP($A60,Base_Arbres,14,FALSE),1)>=LEFT(Cont_Fruits_Toxiques,1),0,1),0) -> 1 | O60: =IF(A60<>"",IF(LEFT(VLOOKUP($A60,Base_Arbres,15,FALSE),1)>=LEFT(Cont_Hauteur,1),0,1),0) -> 1 | P60: =IF(A60<>"",IF(LEFT(VLOOKUP($A60,Base_Arbres,16,FALSE),1)>=LEFT(Cont_Envergure,1),0,1),0) -> 1 | Q60: =SUM(B60:H60)*I60*J60*K60*L60*M60*N60*O60*P60 -> 132.2348125
A61: =IF(Base_Arbres!A21<>"",Base_Arbres!A21,"") -> Cèdre de l’Atlas | B61: =IF(Base_Arbres!A21<>"",VLOOKUP($A61,Base_Arbres,3,FALSE)*Crit1,"") -> 1.428571429 | C61: =IF(Base_Arbres!A21<>"",VLOOKUP($A61,Base_Arbres,4,FALSE)*Crit2,"") -> 26.86046512 | D61: =IF(Base_Arbres!A21<>"",VLOOKUP($A61,Base_Arbres,5,FALSE)*Crit3,"") -> 9.642857143 | E61: =IF(Base_Arbres!A21<>"",VLOOKUP($A61,Base_Arbres,6,FALSE)*Crit4,"") -> 9 | F61: =IF(Base_Arbres!A21<>"",VLOOKUP($A61,Base_Arbres,7,FALSE)*Crit5,"") -> -10 | G61: =IF(ISNA(VLOOKUP(INDEX(Base_Typologie!$A$6:$R$1005,MATCH(A61,Base_Typologie!$A:$A,0)-5,MATCH(Typologie_Espace_Public,Base_Typologie!$6:$6,0)),TableauScoreTypologie,2,FALSE)*Crit6),0,VLOOKUP(INDEX(Base_Typologie!$A$6:$R$1005,MATCH(A61,Base_Typologie!$A:$A,0)-5,MATCH(Typologie_Espace_Public,Base_Typologie!$6:$6,0)),TableauScoreTypologie,2,FALSE)*Crit6) -> 10 | H61: =IF(Base_Arbres!G21<>"",VLOOKUP($A61,Base_Arbres,8,FALSE)*Crit7,"")*1.5 -> 84 | I61: =IF(A61<>"",IF(LEFT(VLOOKUP($A61,Base_Arbres,9,FALSE),1)>=LEFT(Cont_Racines,1),0,1),0) -> 1 | J61: =IF(A61<>"",IF(LEFT(VLOOKUP($A61,Base_Arbres,10,FALSE),1)>=LEFT(Cont_Branches,1),0,1),0) -> 1 | K61: =IF(A61<>"",IF(LEFT(VLOOKUP($A61,Base_Arbres,11,FALSE),1)>=LEFT(Cont_Chablis,1),0,1),0) -> 1 | L61: =IF(A61<>"",IF(LEFT(VLOOKUP($A61,Base_Arbres,12,FALSE),1)>=LEFT(Cont_Fructifications,1),0,1),0) -> 1 | M61: =IF(A61<>"",IF(LEFT(VLOOKUP($A61,Base_Arbres,13,FALSE),1)>=LEFT(Cont_Miellat,1),0,1),0) -> 1 | N61: =IF(A61<>"",IF(LEFT(VLOOKUP($A61,Base_Arbres,14,FALSE),1)>=LEFT(Cont_Fruits_Toxiques,1),0,1),0) -> 1 | O61: =IF(A61<>"",IF(LEFT(VLOOKUP($A61,Base_Arbres,15,FALSE),1)>=LEFT(Cont_Hauteur,1),0,1),0) -> 1 | P61: =IF(A61<>"",IF(LEFT(VLOOKUP($A61,Base_Arbres,16,FALSE),1)>=LEFT(Cont_Envergure,1),0,1),0) -> 1 | Q61: =SUM(B61:H61)*I61*J61*K61*L61*M61*N61*O61*P61 -> 130.9318937
A62: =IF(Base_Arbres!A70<>"",Base_Arbres!A70,"") -> Chêne rouge d’Amérique | B62: =IF(Base_Arbres!A70<>"",VLOOKUP($A62,Base_Arbres,3,FALSE)*Crit1,"") -> 19.3877551 | C62: =IF(Base_Arbres!A70<>"",VLOOKUP($A62,Base_Arbres,4,FALSE)*Crit2,"") -> 19.53488372 | D62: =IF(Base_Arbres!A70<>"",VLOOKUP($A62,Base_Arbres,5,FALSE)*Crit3,"") -> 18.39285714 | E62: =IF(Base_Arbres!A70<>"",VLOOKUP($A62,Base_Arbres,6,FALSE)*Crit4,"") -> 18 | F62: =IF(Base_Arbres!A70<>"",VLOOKUP($A62,Base_Arbres,7,FALSE)*Crit5,"") -> -40 | G62: =IF(ISNA(VLOOKUP(INDEX(Base_Typologie!$A$6:$R$1005,MATCH(A62,Base_Typologie!$A:$A,0)-5,MATCH(Typologie_Espace_Public,Base_Typologie!$6:$6,0)),TableauScoreTypologie,2,FALSE)*Crit6),0,VLOOKUP(INDEX(Base_Typologie!$A$6:$R$1005,MATCH(A62,Base_Typologie!$A:$A,0)-5,MATCH(Typologie_Espace_Public,Base_Typologie!$6:$6,0)),TableauScoreTypologie,2,FALSE)*Crit6) -> 10 | H62: =IF(Base_Arbres!G70<>"",VLOOKUP($A62,Base_Arbres,8,FALSE)*Crit7,"")*1.5 -> 84 | I62: =IF(A62<>"",IF(LEFT(VLOOKUP($A62,Base_Arbres,9,FALSE),1)>=LEFT(Cont_Racines,1),0,1),0) -> 1 | J62: =IF(A62<>"",IF(LEFT(VLOOKUP($A62,Base_Arbres,10,FALSE),1)>=LEFT(Cont_Branches,1),0,1),0) -> 1 | K62: =IF(A62<>"",IF(LEFT(VLOOKUP($A62,Base_Arbres,11,FALSE),1)>=LEFT(Cont_Chablis,1),0,1),0) -> 1 | L62: =IF(A62<>"",IF(LEFT(VLOOKUP($A62,Base_Arbres,12,FALSE),1)>=LEFT(Cont_Fructifications,1),0,1),0) -> 1 | M62: =IF(A62<>"",IF(LEFT(VLOOKUP($A62,Base_Arbres,13,FALSE),1)>=LEFT(Cont_Miellat,1),0,1),0) -> 1 | N62: =IF(A62<>"",IF(LEFT(VLOOKUP($A62,Base_Arbres,14,FALSE),1)>=LEFT(Cont_Fruits_Toxiques,1),0,1),0) -> 1 | O62: =IF(A62<>"",IF(LEFT(VLOOKUP($A62,Base_Arbres,15,FALSE),1)>=LEFT(Cont_Hauteur,1),0,1),0) -> 1 | P62: =IF(A62<>"",IF(LEFT(VLOOKUP($A62,Base_Arbres,16,FALSE),1)>=LEFT(Cont_Envergure,1),0,1),0) -> 1 | Q62: =SUM(B62:H62)*I62*J62*K62*L62*M62*N62*O62*P62 -> 129.315496
A63: =IF(Base_Arbres!A71<>"",Base_Arbres!A71,"") -> Chêne de Turner | B63: =IF(Base_Arbres!A71<>"",VLOOKUP($A63,Base_Arbres,3,FALSE)*Crit1,"") -> 1.428571429 | C63: =IF(Base_Arbres!A71<>"",VLOOKUP($A63,Base_Arbres,4,FALSE)*Crit2,"") -> 27.90697674 | D63: =IF(Base_Arbres!A71<>"",VLOOKUP($A63,Base_Arbres,5,FALSE)*Crit3,"") -> 8.571428571 | E63: =IF(Base_Arbres!A71<>"",VLOOKUP($A63,Base_Arbres,6,FALSE)*Crit4,"") -> 36 | F63: =IF(Base_Arbres!A71<>"",VLOOKUP($A63,Base_Arbres,7,FALSE)*Crit5,"") -> -40 | G63: =IF(ISNA(VLOOKUP(INDEX(Base_Typologie!$A$6:$R$1005,MATCH(A63,Base_Typologie!$A:$A,0)-5,MATCH(Typologie_Espace_Public,Base_Typologie!$6:$6,0)),TableauScoreTypologie,2,FALSE)*Crit6),0,VLOOKUP(INDEX(Base_Typologie!$A$6:$R$1005,MATCH(A63,Base_Typologie!$A:$A,0)-5,MATCH(Typologie_Espace_Public,Base_Typologie!$6:$6,0)),TableauScoreTypologie,2,FALSE)*Crit6) -> 10 | H63: =IF(Base_Arbres!G71<>"",VLOOKUP($A63,Base_Arbres,8,FALSE)*Crit7,"")*1.5 -> 84 | I63: =IF(A63<>"",IF(LEFT(VLOOKUP($A63,Base_Arbres,9,FALSE),1)>=LEFT(Cont_Racines,1),0,1),0) -> 1 | J63: =IF(A63<>"",IF(LEFT(VLOOKUP($A63,Base_Arbres,10,FALSE),1)>=LEFT(Cont_Branches,1),0,1),0) -> 1 | K63: =IF(A63<>"",IF(LEFT(VLOOKUP($A63,Base_Arbres,11,FALSE),1)>=LEFT(Cont_Chablis,1),0,1),0) -> 1 | L63: =IF(A63<>"",IF(LEFT(VLOOKUP($A63,Base_Arbres,12,FALSE),1)>=LEFT(Cont_Fructifications,1),0,1),0) -> 1 | M63: =IF(A63<>"",IF(LEFT(VLOOKUP($A63,Base_Arbres,13,FALSE),1)>=LEFT(Cont_Miellat,1),0,1),0) -> 1 | N63: =IF(A63<>"",IF(LEFT(VLOOKUP($A63,Base_Arbres,14,FALSE),1)>=LEFT(Cont_Fruits_Toxiques,1),0,1),0) -> 1 | O63: =IF(A63<>"",IF(LEFT(VLOOKUP($A63,Base_Arbres,15,FALSE),1)>=LEFT(Cont_Hauteur,1),0,1),0) -> 1 | P63: =IF(A63<>"",IF(LEFT(VLOOKUP($A63,Base_Arbres,16,FALSE),1)>=LEFT(Cont_Envergure,1),0,1),0) -> 1 | Q63: =SUM(B63:H63)*I63*J63*K63*L63*M63*N63*O63*P63 -> 127.9069767
A64: =IF(Base_Arbres!A45<>"",Base_Arbres!A45,"") -> Tulipier de Virginie | B64: =IF(Base_Arbres!A45<>"",VLOOKUP($A64,Base_Arbres,3,FALSE)*Crit1,"") -> 18.57142857 | C64: =IF(Base_Arbres!A45<>"",VLOOKUP($A64,Base_Arbres,4,FALSE)*Crit2,"") -> 12.90697674 | D64: =IF(Base_Arbres!A45<>"",VLOOKUP($A64,Base_Arbres,5,FALSE)*Crit3,"") -> 15.89285714 | E64: =IF(Base_Arbres!A45<>"",VLOOKUP($A64,Base_Arbres,6,FALSE)*Crit4,"") -> 18 | F64: =IF(Base_Arbres!A45<>"",VLOOKUP($A64,Base_Arbres,7,FALSE)*Crit5,"") -> 0 | G64: =IF(ISNA(VLOOKUP(INDEX(Base_Typologie!$A$6:$R$1005,MATCH(A64,Base_Typologie!$A:$A,0)-5,MATCH(Typologie_Espace_Public,Base_Typologie!$6:$6,0)),TableauScoreTypologie,2,FALSE)*Crit6),0,VLOOKUP(INDEX(Base_Typologie!$A$6:$R$1005,MATCH(A64,Base_Typologie!$A:$A,0)-5,MATCH(Typologie_Espace_Public,Base_Typologie!$6:$6,0)),TableauScoreTypologie,2,FALSE)*Crit6) -> 10 | H64: =IF(Base_Arbres!G45<>"",VLOOKUP($A64,Base_Arbres,8,FALSE)*Crit7,"")*1.5 -> 52.5 | I64: =IF(A64<>"",IF(LEFT(VLOOKUP($A64,Base_Arbres,9,FALSE),1)>=LEFT(Cont_Racines,1),0,1),0) -> 1 | J64: =IF(A64<>"",IF(LEFT(VLOOKUP($A64,Base_Arbres,10,FALSE),1)>=LEFT(Cont_Branches,1),0,1),0) -> 1 | K64: =IF(A64<>"",IF(LEFT(VLOOKUP($A64,Base_Arbres,11,FALSE),1)>=LEFT(Cont_Chablis,1),0,1),0) -> 1 | L64: =IF(A64<>"",IF(LEFT(VLOOKUP($A64,Base_Arbres,12,FALSE),1)>=LEFT(Cont_Fructifications,1),0,1),0) -> 1 | M64: =IF(A64<>"",IF(LEFT(VLOOKUP($A64,Base_Arbres,13,FALSE),1)>=LEFT(Cont_Miellat,1),0,1),0) -> 1 | N64: =IF(A64<>"",IF(LEFT(VLOOKUP($A64,Base_Arbres,14,FALSE),1)>=LEFT(Cont_Fruits_Toxiques,1),0,1),0) -> 1 | O64: =IF(A64<>"",IF(LEFT(VLOOKUP($A64,Base_Arbres,15,FALSE),1)>=LEFT(Cont_Hauteur,1),0,1),0) -> 1 | P64: =IF(A64<>"",IF(LEFT(VLOOKUP($A64,Base_Arbres,16,FALSE),1)>=LEFT(Cont_Envergure,1),0,1),0) -> 1 | Q64: =SUM(B64:H64)*I64*J64*K64*L64*M64*N64*O64*P64 -> 127.8712625
A65: =IF(Base_Arbres!A44<>"",Base_Arbres!A44,"") -> Copalme d’Amérique | B65: =IF(Base_Arbres!A44<>"",VLOOKUP($A65,Base_Arbres,3,FALSE)*Crit1,"") -> 16.53061224 | C65: =IF(Base_Arbres!A44<>"",VLOOKUP($A65,Base_Arbres,4,FALSE)*Crit2,"") -> 6.627906977 | D65: =IF(Base_Arbres!A44<>"",VLOOKUP($A65,Base_Arbres,5,FALSE)*Crit3,"") -> 12.32142857 | E65: =IF(Base_Arbres!A44<>"",VLOOKUP($A65,Base_Arbres,6,FALSE)*Crit4,"") -> 18 | F65: =IF(Base_Arbres!A44<>"",VLOOKUP($A65,Base_Arbres,7,FALSE)*Crit5,"") -> 0 | G65: =IF(ISNA(VLOOKUP(INDEX(Base_Typologie!$A$6:$R$1005,MATCH(A65,Base_Typologie!$A:$A,0)-5,MATCH(Typologie_Espace_Public,Base_Typologie!$6:$6,0)),TableauScoreTypologie,2,FALSE)*Crit6),0,VLOOKUP(INDEX(Base_Typologie!$A$6:$R$1005,MATCH(A65,Base_Typologie!$A:$A,0)-5,MATCH(Typologie_Espace_Public,Base_Typologie!$6:$6,0)),TableauScoreTypologie,2,FALSE)*Crit6) -> 30 | H65: =IF(Base_Arbres!G44<>"",VLOOKUP($A65,Base_Arbres,8,FALSE)*Crit7,"")*1.5 -> 42 | I65: =IF(A65<>"",IF(LEFT(VLOOKUP($A65,Base_Arbres,9,FALSE),1)>=LEFT(Cont_Racines,1),0,1),0) -> 1 | J65: =IF(A65<>"",IF(LEFT(VLOOKUP($A65,Base_Arbres,10,FALSE),1)>=LEFT(Cont_Branches,1),0,1),0) -> 1 | K65: =IF(A65<>"",IF(LEFT(VLOOKUP($A65,Base_Arbres,11,FALSE),1)>=LEFT(Cont_Chablis,1),0,1),0) -> 1 | L65: =IF(A65<>"",IF(LEFT(VLOOKUP($A65,Base_Arbres,12,FALSE),1)>=LEFT(Cont_Fructifications,1),0,1),0) -> 1 | M65: =IF(A65<>"",IF(LEFT(VLOOKUP($A65,Base_Arbres,13,FALSE),1)>=LEFT(Cont_Miellat,1),0,1),0) -> 1 | N65: =IF(A65<>"",IF(LEFT(VLOOKUP($A65,Base_Arbres,14,FALSE),1)>=LEFT(Cont_Fruits_Toxiques,1),0,1),0) -> 1 | O65: =IF(A65<>"",IF(LEFT(VLOOKUP($A65,Base_Arbres,15,FALSE),1)>=LEFT(Cont_Hauteur,1),0,1),0) -> 1 | P65: =IF(A65<>"",IF(LEFT(VLOOKUP($A65,Base_Arbres,16,FALSE),1)>=LEFT(Cont_Envergure,1),0,1),0) -> 1 | Q65: =SUM(B65:H65)*I65*J65*K65*L65*M65*N65*O65*P65 -> 125.4799478
A66: =IF(Base_Arbres!A65<>"",Base_Arbres!A65,"") -> Chêne de Hongrie | B66: =IF(Base_Arbres!A65<>"",VLOOKUP($A66,Base_Arbres,3,FALSE)*Crit1,"") -> 18.36734694 | C66: =IF(Base_Arbres!A65<>"",VLOOKUP($A66,Base_Arbres,4,FALSE)*Crit2,"") -> 16.04651163 | D66: =IF(Base_Arbres!A65<>"",VLOOKUP($A66,Base_Arbres,5,FALSE)*Crit3,"") -> 16.60714286 | E66: =IF(Base_Arbres!A65<>"",VLOOKUP($A66,Base_Arbres,6,FALSE)*Crit4,"") -> 18 | F66: =IF(Base_Arbres!A65<>"",VLOOKUP($A66,Base_Arbres,7,FALSE)*Crit5,"") -> -40 | G66: =IF(ISNA(VLOOKUP(INDEX(Base_Typologie!$A$6:$R$1005,MATCH(A66,Base_Typologie!$A:$A,0)-5,MATCH(Typologie_Espace_Public,Base_Typologie!$6:$6,0)),TableauScoreTypologie,2,FALSE)*Crit6),0,VLOOKUP(INDEX(Base_Typologie!$A$6:$R$1005,MATCH(A66,Base_Typologie!$A:$A,0)-5,MATCH(Typologie_Espace_Public,Base_Typologie!$6:$6,0)),TableauScoreTypologie,2,FALSE)*Crit6) -> 10 | H66: =IF(Base_Arbres!G65<>"",VLOOKUP($A66,Base_Arbres,8,FALSE)*Crit7,"")*1.5 -> 84 | I66: =IF(A66<>"",IF(LEFT(VLOOKUP($A66,Base_Arbres,9,FALSE),1)>=LEFT(Cont_Racines,1),0,1),0) -> 1 | J66: =IF(A66<>"",IF(LEFT(VLOOKUP($A66,Base_Arbres,10,FALSE),1)>=LEFT(Cont_Branches,1),0,1),0) -> 1 | K66: =IF(A66<>"",IF(LEFT(VLOOKUP($A66,Base_Arbres,11,FALSE),1)>=LEFT(Cont_Chablis,1),0,1),0) -> 1 | L66: =IF(A66<>"",IF(LEFT(VLOOKUP($A66,Base_Arbres,12,FALSE),1)>=LEFT(Cont_Fructifications,1),0,1),0) -> 1 | M66: =IF(A66<>"",IF(LEFT(VLOOKUP($A66,Base_Arbres,13,FALSE),1)>=LEFT(Cont_Miellat,1),0,1),0) -> 1 | N66: =IF(A66<>"",IF(LEFT(VLOOKUP($A66,Base_Arbres,14,FALSE),1)>=LEFT(Cont_Fruits_Toxiques,1),0,1),0) -> 1 | O66: =IF(A66<>"",IF(LEFT(VLOOKUP($A66,Base_Arbres,15,FALSE),1)>=LEFT(Cont_Hauteur,1),0,1),0) -> 1 | P66: =IF(A66<>"",IF(LEFT(VLOOKUP($A66,Base_Arbres,16,FALSE),1)>=LEFT(Cont_Envergure,1),0,1),0) -> 1 | Q66: =SUM(B66:H66)*I66*J66*K66*L66*M66*N66*O66*P66 -> 123.0210014
A67: =IF(Base_Arbres!A87<>"",Base_Arbres!A87,"") -> orme résistant à la graphiose | B67: =IF(Base_Arbres!A87<>"",VLOOKUP($A67,Base_Arbres,3,FALSE)*Crit1,"") -> 16.12244898 | C67: =IF(Base_Arbres!A87<>"",VLOOKUP($A67,Base_Arbres,4,FALSE)*Crit2,"") -> 10.11627907 | D67: =IF(Base_Arbres!A87<>"",VLOOKUP($A67,Base_Arbres,5,FALSE)*Crit3,"") -> 11.96428571 | E67: =IF(Base_Arbres!A87<>"",VLOOKUP($A67,Base_Arbres,6,FALSE)*Crit4,"") -> 27 | F67: =IF(Base_Arbres!A87<>"",VLOOKUP($A67,Base_Arbres,7,FALSE)*Crit5,"") -> -20 | G67: =IF(ISNA(VLOOKUP(INDEX(Base_Typologie!$A$6:$R$1005,MATCH(A67,Base_Typologie!$A:$A,0)-5,MATCH(Typologie_Espace_Public,Base_Typologie!$6:$6,0)),TableauScoreTypologie,2,FALSE)*Crit6),0,VLOOKUP(INDEX(Base_Typologie!$A$6:$R$1005,MATCH(A67,Base_Typologie!$A:$A,0)-5,MATCH(Typologie_Espace_Public,Base_Typologie!$6:$6,0)),TableauScoreTypologie,2,FALSE)*Crit6) -> 10 | H67: =IF(Base_Arbres!G87<>"",VLOOKUP($A67,Base_Arbres,8,FALSE)*Crit7,"")*1.5 -> 63 | I67: =IF(A67<>"",IF(LEFT(VLOOKUP($A67,Base_Arbres,9,FALSE),1)>=LEFT(Cont_Racines,1),0,1),0) -> 1 | J67: =IF(A67<>"",IF(LEFT(VLOOKUP($A67,Base_Arbres,10,FALSE),1)>=LEFT(Cont_Branches,1),0,1),0) -> 1 | K67: =IF(A67<>"",IF(LEFT(VLOOKUP($A67,Base_Arbres,11,FALSE),1)>=LEFT(Cont_Chablis,1),0,1),0) -> 1 | L67: =IF(A67<>"",IF(LEFT(VLOOKUP($A67,Base_Arbres,12,FALSE),1)>=LEFT(Cont_Fructifications,1),0,1),0) -> 1 | M67: =IF(A67<>"",IF(LEFT(VLOOKUP($A67,Base_Arbres,13,FALSE),1)>=LEFT(Cont_Miellat,1),0,1),0) -> 1 | N67: =IF(A67<>"",IF(LEFT(VLOOKUP($A67,Base_Arbres,14,FALSE),1)>=LEFT(Cont_Fruits_Toxiques,1),0,1),0) -> 1 | O67: =IF(A67<>"",IF(LEFT(VLOOKUP($A67,Base_Arbres,15,FALSE),1)>=LEFT(Cont_Hauteur,1),0,1),0) -> 1 | P67: =IF(A67<>"",IF(LEFT(VLOOKUP($A67,Base_Arbres,16,FALSE),1)>=LEFT(Cont_Envergure,1),0,1),0) -> 1 | Q67: =SUM(B67:H67)*I67*J67*K67*L67*M67*N67*O67*P67 -> 118.2030138
A68: =IF(Base_Arbres!A9<>"",Base_Arbres!A9,"") -> Érable hybride | B68: =IF(Base_Arbres!A9<>"",VLOOKUP($A68,Base_Arbres,3,FALSE)*Crit1,"") -> 6.326530612 | C68: =IF(Base_Arbres!A9<>"",VLOOKUP($A68,Base_Arbres,4,FALSE)*Crit2,"") -> 21.27906977 | D68: =IF(Base_Arbres!A9<>"",VLOOKUP($A68,Base_Arbres,5,FALSE)*Crit3,"") -> 9.107142857 | E68: =IF(Base_Arbres!A9<>"",VLOOKUP($A68,Base_Arbres,6,FALSE)*Crit4,"") -> 18 | F68: =IF(Base_Arbres!A9<>"",VLOOKUP($A68,Base_Arbres,7,FALSE)*Crit5,"") -> -10 | G68: =IF(ISNA(VLOOKUP(INDEX(Base_Typologie!$A$6:$R$1005,MATCH(A68,Base_Typologie!$A:$A,0)-5,MATCH(Typologie_Espace_Public,Base_Typologie!$6:$6,0)),TableauScoreTypologie,2,FALSE)*Crit6),0,VLOOKUP(INDEX(Base_Typologie!$A$6:$R$1005,MATCH(A68,Base_Typologie!$A:$A,0)-5,MATCH(Typologie_Espace_Public,Base_Typologie!$6:$6,0)),TableauScoreTypologie,2,FALSE)*Crit6) -> 10 | H68: =IF(Base_Arbres!G9<>"",VLOOKUP($A68,Base_Arbres,8,FALSE)*Crit7,"")*1.5 -> 63 | I68: =IF(A68<>"",IF(LEFT(VLOOKUP($A68,Base_Arbres,9,FALSE),1)>=LEFT(Cont_Racines,1),0,1),0) -> 1 | J68: =IF(A68<>"",IF(LEFT(VLOOKUP($A68,Base_Arbres,10,FALSE),1)>=LEFT(Cont_Branches,1),0,1),0) -> 1 | K68: =IF(A68<>"",IF(LEFT(VLOOKUP($A68,Base_Arbres,11,FALSE),1)>=LEFT(Cont_Chablis,1),0,1),0) -> 1 | L68: =IF(A68<>"",IF(LEFT(VLOOKUP($A68,Base_Arbres,12,FALSE),1)>=LEFT(Cont_Fructifications,1),0,1),0) -> 1 | M68: =IF(A68<>"",IF(LEFT(VLOOKUP($A68,Base_Arbres,13,FALSE),1)>=LEFT(Cont_Miellat,1),0,1),0) -> 1 | N68: =IF(A68<>"",IF(LEFT(VLOOKUP($A68,Base_Arbres,14,FALSE),1)>=LEFT(Cont_Fruits_Toxiques,1),0,1),0) -> 1 | O68: =IF(A68<>"",IF(LEFT(VLOOKUP($A68,Base_Arbres,15,FALSE),1)>=LEFT(Cont_Hauteur,1),0,1),0) -> 1 | P68: =IF(A68<>"",IF(LEFT(VLOOKUP($A68,Base_Arbres,16,FALSE),1)>=LEFT(Cont_Envergure,1),0,1),0) -> 1 | Q68: =SUM(B68:H68)*I68*J68*K68*L68*M68*N68*O68*P68 -> 117.7127432
A69: =IF(Base_Arbres!A46<>"",Base_Arbres!A46,"") -> Magnolia à grandes fleurs | B69: =IF(Base_Arbres!A46<>"",VLOOKUP($A69,Base_Arbres,3,FALSE)*Crit1,"") -> 12.65306122 | C69: =IF(Base_Arbres!A46<>"",VLOOKUP($A69,Base_Arbres,4,FALSE)*Crit2,"") -> 24.76744186 | D69: =IF(Base_Arbres!A46<>"",VLOOKUP($A69,Base_Arbres,5,FALSE)*Crit3,"") -> 17.67857143 | E69: =IF(Base_Arbres!A46<>"",VLOOKUP($A69,Base_Arbres,6,FALSE)*Crit4,"") -> 9 | F69: =IF(Base_Arbres!A46<>"",VLOOKUP($A69,Base_Arbres,7,FALSE)*Crit5,"") -> -10 | G69: =IF(ISNA(VLOOKUP(INDEX(Base_Typologie!$A$6:$R$1005,MATCH(A69,Base_Typologie!$A:$A,0)-5,MATCH(Typologie_Espace_Public,Base_Typologie!$6:$6,0)),TableauScoreTypologie,2,FALSE)*Crit6),0,VLOOKUP(INDEX(Base_Typologie!$A$6:$R$1005,MATCH(A69,Base_Typologie!$A:$A,0)-5,MATCH(Typologie_Espace_Public,Base_Typologie!$6:$6,0)),TableauScoreTypologie,2,FALSE)*Crit6) -> 30 | H69: =IF(Base_Arbres!G46<>"",VLOOKUP($A69,Base_Arbres,8,FALSE)*Crit7,"")*1.5 -> 31.5 | I69: =IF(A69<>"",IF(LEFT(VLOOKUP($A69,Base_Arbres,9,FALSE),1)>=LEFT(Cont_Racines,1),0,1),0) -> 1 | J69: =IF(A69<>"",IF(LEFT(VLOOKUP($A69,Base_Arbres,10,FALSE),1)>=LEFT(Cont_Branches,1),0,1),0) -> 1 | K69: =IF(A69<>"",IF(LEFT(VLOOKUP($A69,Base_Arbres,11,FALSE),1)>=LEFT(Cont_Chablis,1),0,1),0) -> 1 | L69: =IF(A69<>"",IF(LEFT(VLOOKUP($A69,Base_Arbres,12,FALSE),1)>=LEFT(Cont_Fructifications,1),0,1),0) -> 1 | M69: =IF(A69<>"",IF(LEFT(VLOOKUP($A69,Base_Arbres,13,FALSE),1)>=LEFT(Cont_Miellat,1),0,1),0) -> 1 | N69: =IF(A69<>"",IF(LEFT(VLOOKUP($A69,Base_Arbres,14,FALSE),1)>=LEFT(Cont_Fruits_Toxiques,1),0,1),0) -> 1 | O69: =IF(A69<>"",IF(LEFT(VLOOKUP($A69,Base_Arbres,15,FALSE),1)>=LEFT(Cont_Hauteur,1),0,1),0) -> 1 | P69: =IF(A69<>"",IF(LEFT(VLOOKUP($A69,Base_Arbres,16,FALSE),1)>=LEFT(Cont_Envergure,1),0,1),0) -> 1 | Q69: =SUM(B69:H69)*I69*J69*K69*L69*M69*N69*O69*P69 -> 115.5990745
A70: =IF(Base_Arbres!A83<>"",Base_Arbres!A83,"") -> Lilas commun | B70: =IF(Base_Arbres!A83<>"",VLOOKUP($A70,Base_Arbres,3,FALSE)*Crit1,"") -> 10.40816327 | C70: =IF(Base_Arbres!A83<>"",VLOOKUP($A70,Base_Arbres,4,FALSE)*Crit2,"") -> 0.6976744186 | D70: =IF(Base_Arbres!A83<>"",VLOOKUP($A70,Base_Arbres,5,FALSE)*Crit3,"") -> 1.25 | E70: =IF(Base_Arbres!A83<>"",VLOOKUP($A70,Base_Arbres,6,FALSE)*Crit4,"") -> 18 | F70: =IF(Base_Arbres!A83<>"",VLOOKUP($A70,Base_Arbres,7,FALSE)*Crit5,"") -> -10 | G70: =IF(ISNA(VLOOKUP(INDEX(Base_Typologie!$A$6:$R$1005,MATCH(A70,Base_Typologie!$A:$A,0)-5,MATCH(Typologie_Espace_Public,Base_Typologie!$6:$6,0)),TableauScoreTypologie,2,FALSE)*Crit6),0,VLOOKUP(INDEX(Base_Typologie!$A$6:$R$1005,MATCH(A70,Base_Typologie!$A:$A,0)-5,MATCH(Typologie_Espace_Public,Base_Typologie!$6:$6,0)),TableauScoreTypologie,2,FALSE)*Crit6) -> 30 | H70: =IF(Base_Arbres!G83<>"",VLOOKUP($A70,Base_Arbres,8,FALSE)*Crit7,"")*1.5 -> 63 | I70: =IF(A70<>"",IF(LEFT(VLOOKUP($A70,Base_Arbres,9,FALSE),1)>=LEFT(Cont_Racines,1),0,1),0) -> 1 | J70: =IF(A70<>"",IF(LEFT(VLOOKUP($A70,Base_Arbres,10,FALSE),1)>=LEFT(Cont_Branches,1),0,1),0) -> 1 | K70: =IF(A70<>"",IF(LEFT(VLOOKUP($A70,Base_Arbres,11,FALSE),1)>=LEFT(Cont_Chablis,1),0,1),0) -> 1 | L70: =IF(A70<>"",IF(LEFT(VLOOKUP($A70,Base_Arbres,12,FALSE),1)>=LEFT(Cont_Fructifications,1),0,1),0) -> 1 | M70: =IF(A70<>"",IF(LEFT(VLOOKUP($A70,Base_Arbres,13,FALSE),1)>=LEFT(Cont_Miellat,1),0,1),0) -> 1 | N70: =IF(A70<>"",IF(LEFT(VLOOKUP($A70,Base_Arbres,14,FALSE),1)>=LEFT(Cont_Fruits_Toxiques,1),0,1),0) -> 1 | O70: =IF(A70<>"",IF(LEFT(VLOOKUP($A70,Base_Arbres,15,FALSE),1)>=LEFT(Cont_Hauteur,1),0,1),0) -> 1 | P70: =IF(A70<>"",IF(LEFT(VLOOKUP($A70,Base_Arbres,16,FALSE),1)>=LEFT(Cont_Envergure,1),0,1),0) -> 1 | Q70: =SUM(B70:H70)*I70*J70*K70*L70*M70*N70*O70*P70 -> 113.3558377
A71: =IF(Base_Arbres!A66<>"",Base_Arbres!A66,"") -> Chêne vert | B71: =IF(Base_Arbres!A66<>"",VLOOKUP($A71,Base_Arbres,3,FALSE)*Crit1,"") -> 0.4081632653 | C71: =IF(Base_Arbres!A66<>"",VLOOKUP($A71,Base_Arbres,4,FALSE)*Crit2,"") -> 28.60465116 | D71: =IF(Base_Arbres!A66<>"",VLOOKUP($A71,Base_Arbres,5,FALSE)*Crit3,"") -> 12.14285714 | E71: =IF(Base_Arbres!A66<>"",VLOOKUP($A71,Base_Arbres,6,FALSE)*Crit4,"") -> 18 | F71: =IF(Base_Arbres!A66<>"",VLOOKUP($A71,Base_Arbres,7,FALSE)*Crit5,"") -> -40 | G71: =IF(ISNA(VLOOKUP(INDEX(Base_Typologie!$A$6:$R$1005,MATCH(A71,Base_Typologie!$A:$A,0)-5,MATCH(Typologie_Espace_Public,Base_Typologie!$6:$6,0)),TableauScoreTypologie,2,FALSE)*Crit6),0,VLOOKUP(INDEX(Base_Typologie!$A$6:$R$1005,MATCH(A71,Base_Typologie!$A:$A,0)-5,MATCH(Typologie_Espace_Public,Base_Typologie!$6:$6,0)),TableauScoreTypologie,2,FALSE)*Crit6) -> 10 | H71: =IF(Base_Arbres!G66<>"",VLOOKUP($A71,Base_Arbres,8,FALSE)*Crit7,"")*1.5 -> 84 | I71: =IF(A71<>"",IF(LEFT(VLOOKUP($A71,Base_Arbres,9,FALSE),1)>=LEFT(Cont_Racines,1),0,1),0) -> 1 | J71: =IF(A71<>"",IF(LEFT(VLOOKUP($A71,Base_Arbres,10,FALSE),1)>=LEFT(Cont_Branches,1),0,1),0) -> 1 | K71: =IF(A71<>"",IF(LEFT(VLOOKUP($A71,Base_Arbres,11,FALSE),1)>=LEFT(Cont_Chablis,1),0,1),0) -> 1 | L71: =IF(A71<>"",IF(LEFT(VLOOKUP($A71,Base_Arbres,12,FALSE),1)>=LEFT(Cont_Fructifications,1),0,1),0) -> 1 | M71: =IF(A71<>"",IF(LEFT(VLOOKUP($A71,Base_Arbres,13,FALSE),1)>=LEFT(Cont_Miellat,1),0,1),0) -> 1 | N71: =IF(A71<>"",IF(LEFT(VLOOKUP($A71,Base_Arbres,14,FALSE),1)>=LEFT(Cont_Fruits_Toxiques,1),0,1),0) -> 1 | O71: =IF(A71<>"",IF(LEFT(VLOOKUP($A71,Base_Arbres,15,FALSE),1)>=LEFT(Cont_Hauteur,1),0,1),0) -> 1 | P71: =IF(A71<>"",IF(LEFT(VLOOKUP($A71,Base_Arbres,16,FALSE),1)>=LEFT(Cont_Envergure,1),0,1),0) -> 1 | Q71: =SUM(B71:H71)*I71*J71*K71*L71*M71*N71*O71*P71 -> 113.1556716
A72: =IF(Base_Arbres!A2<>"",Base_Arbres!A2,"") -> Abelia | B72: =IF(Base_Arbres!A2<>"",VLOOKUP($A72,Base_Arbres,3,FALSE)*Crit1,"") -> 5.510204082 | C72: =IF(Base_Arbres!A2<>"",VLOOKUP($A72,Base_Arbres,4,FALSE)*Crit2,"") -> 12.90697674 | D72: =IF(Base_Arbres!A2<>"",VLOOKUP($A72,Base_Arbres,5,FALSE)*Crit3,"") -> 2.678571429 | E72: =IF(Base_Arbres!A2<>"",VLOOKUP($A72,Base_Arbres,6,FALSE)*Crit4,"") -> 18 | F72: =IF(Base_Arbres!A2<>"",VLOOKUP($A72,Base_Arbres,7,FALSE)*Crit5,"") -> 0 | G72: =IF(ISNA(VLOOKUP(INDEX(Base_Typologie!$A$6:$R$1005,MATCH(A72,Base_Typologie!$A:$A,0)-5,MATCH(Typologie_Espace_Public,Base_Typologie!$6:$6,0)),TableauScoreTypologie,2,FALSE)*Crit6),0,VLOOKUP(INDEX(Base_Typologie!$A$6:$R$1005,MATCH(A72,Base_Typologie!$A:$A,0)-5,MATCH(Typologie_Espace_Public,Base_Typologie!$6:$6,0)),TableauScoreTypologie,2,FALSE)*Crit6) -> 50 | H72: =IF(Base_Arbres!G2<>"",VLOOKUP($A72,Base_Arbres,8,FALSE)*Crit7,"")*1.5 -> 21 | I72: =IF(A72<>"",IF(LEFT(VLOOKUP($A72,Base_Arbres,9,FALSE),1)>=LEFT(Cont_Racines,1),0,1),0) -> 1 | J72: =IF(A72<>"",IF(LEFT(VLOOKUP($A72,Base_Arbres,10,FALSE),1)>=LEFT(Cont_Branches,1),0,1),0) -> 1 | K72: =IF(A72<>"",IF(LEFT(VLOOKUP($A72,Base_Arbres,11,FALSE),1)>=LEFT(Cont_Chablis,1),0,1),0) -> 1 | L72: =IF(A72<>"",IF(LEFT(VLOOKUP($A72,Base_Arbres,12,FALSE),1)>=LEFT(Cont_Fructifications,1),0,1),0) -> 1 | M72: =IF(A72<>"",IF(LEFT(VLOOKUP($A72,Base_Arbres,13,FALSE),1)>=LEFT(Cont_Miellat,1),0,1),0) -> 1 | N72: =IF(A72<>"",IF(LEFT(VLOOKUP($A72,Base_Arbres,14,FALSE),1)>=LEFT(Cont_Fruits_Toxiques,1),0,1),0) -> 1 | O72: =IF(A72<>"",IF(LEFT(VLOOKUP($A72,Base_Arbres,15,FALSE),1)>=LEFT(Cont_Hauteur,1),0,1),0) -> 1 | P72: =IF(A72<>"",IF(LEFT(VLOOKUP($A72,Base_Arbres,16,FALSE),1)>=LEFT(Cont_Envergure,1),0,1),0) -> 1 | Q72: =SUM(B72:H72)*I72*J72*K72*L72*M72*N72*O72*P72 -> 110.0957523
A73: =IF(Base_Arbres!A63<>"",Base_Arbres!A63,"") -> Chêne blanc | B73: =IF(Base_Arbres!A63<>"",VLOOKUP($A73,Base_Arbres,3,FALSE)*Crit1,"") -> 6.530612245 | C73: =IF(Base_Arbres!A63<>"",VLOOKUP($A73,Base_Arbres,4,FALSE)*Crit2,"") -> 21.97674419 | D73: =IF(Base_Arbres!A63<>"",VLOOKUP($A73,Base_Arbres,5,FALSE)*Crit3,"") -> 9.285714286 | E73: =IF(Base_Arbres!A63<>"",VLOOKUP($A73,Base_Arbres,6,FALSE)*Crit4,"") -> 27 | F73: =IF(Base_Arbres!A63<>"",VLOOKUP($A73,Base_Arbres,7,FALSE)*Crit5,"") -> -40 | G73: =IF(ISNA(VLOOKUP(INDEX(Base_Typologie!$A$6:$R$1005,MATCH(A73,Base_Typologie!$A:$A,0)-5,MATCH(Typologie_Espace_Public,Base_Typologie!$6:$6,0)),TableauScoreTypologie,2,FALSE)*Crit6),0,VLOOKUP(INDEX(Base_Typologie!$A$6:$R$1005,MATCH(A73,Base_Typologie!$A:$A,0)-5,MATCH(Typologie_Espace_Public,Base_Typologie!$6:$6,0)),TableauScoreTypologie,2,FALSE)*Crit6) -> 10 | H73: =IF(Base_Arbres!G63<>"",VLOOKUP($A73,Base_Arbres,8,FALSE)*Crit7,"")*1.5 -> 73.5 | I73: =IF(A73<>"",IF(LEFT(VLOOKUP($A73,Base_Arbres,9,FALSE),1)>=LEFT(Cont_Racines,1),0,1),0) -> 1 | J73: =IF(A73<>"",IF(LEFT(VLOOKUP($A73,Base_Arbres,10,FALSE),1)>=LEFT(Cont_Branches,1),0,1),0) -> 1 | K73: =IF(A73<>"",IF(LEFT(VLOOKUP($A73,Base_Arbres,11,FALSE),1)>=LEFT(Cont_Chablis,1),0,1),0) -> 1 | L73: =IF(A73<>"",IF(LEFT(VLOOKUP($A73,Base_Arbres,12,FALSE),1)>=LEFT(Cont_Fructifications,1),0,1),0) -> 1 | M73: =IF(A73<>"",IF(LEFT(VLOOKUP($A73,Base_Arbres,13,FALSE),1)>=LEFT(Cont_Miellat,1),0,1),0) -> 1 | N73: =IF(A73<>"",IF(LEFT(VLOOKUP($A73,Base_Arbres,14,FALSE),1)>=LEFT(Cont_Fruits_Toxiques,1),0,1),0) -> 1 | O73: =IF(A73<>"",IF(LEFT(VLOOKUP($A73,Base_Arbres,15,FALSE),1)>=LEFT(Cont_Hauteur,1),0,1),0) -> 1 | P73: =IF(A73<>"",IF(LEFT(VLOOKUP($A73,Base_Arbres,16,FALSE),1)>=LEFT(Cont_Envergure,1),0,1),0) -> 1 | Q73: =SUM(B73:H73)*I73*J73*K73*L73*M73*N73*O73*P73 -> 108.2930707
A74: =IF(Base_Arbres!A17<>"",Base_Arbres!A17,"") -> Bouleau verruqueux | B74: =IF(Base_Arbres!A17<>"",VLOOKUP($A74,Base_Arbres,3,FALSE)*Crit1,"") -> 12.65306122 | C74: =IF(Base_Arbres!A17<>"",VLOOKUP($A74,Base_Arbres,4,FALSE)*Crit2,"") -> 2.441860465 | D74: =IF(Base_Arbres!A17<>"",VLOOKUP($A74,Base_Arbres,5,FALSE)*Crit3,"") -> 2.678571429 | E74: =IF(Base_Arbres!A17<>"",VLOOKUP($A74,Base_Arbres,6,FALSE)*Crit4,"") -> 45 | F74: =IF(Base_Arbres!A17<>"",VLOOKUP($A74,Base_Arbres,7,FALSE)*Crit5,"") -> -50 | G74: =IF(ISNA(VLOOKUP(INDEX(Base_Typologie!$A$6:$R$1005,MATCH(A74,Base_Typologie!$A:$A,0)-5,MATCH(Typologie_Espace_Public,Base_Typologie!$6:$6,0)),TableauScoreTypologie,2,FALSE)*Crit6),0,VLOOKUP(INDEX(Base_Typologie!$A$6:$R$1005,MATCH(A74,Base_Typologie!$A:$A,0)-5,MATCH(Typologie_Espace_Public,Base_Typologie!$6:$6,0)),TableauScoreTypologie,2,FALSE)*Crit6) -> 10 | H74: =IF(Base_Arbres!G17<>"",VLOOKUP($A74,Base_Arbres,8,FALSE)*Crit7,"")*1.5 -> 84 | I74: =IF(A74<>"",IF(LEFT(VLOOKUP($A74,Base_Arbres,9,FALSE),1)>=LEFT(Cont_Racines,1),0,1),0) -> 1 | J74: =IF(A74<>"",IF(LEFT(VLOOKUP($A74,Base_Arbres,10,FALSE),1)>=LEFT(Cont_Branches,1),0,1),0) -> 1 | K74: =IF(A74<>"",IF(LEFT(VLOOKUP($A74,Base_Arbres,11,FALSE),1)>=LEFT(Cont_Chablis,1),0,1),0) -> 1 | L74: =IF(A74<>"",IF(LEFT(VLOOKUP($A74,Base_Arbres,12,FALSE),1)>=LEFT(Cont_Fructifications,1),0,1),0) -> 1 | M74: =IF(A74<>"",IF(LEFT(VLOOKUP($A74,Base_Arbres,13,FALSE),1)>=LEFT(Cont_Miellat,1),0,1),0) -> 1 | N74: =IF(A74<>"",IF(LEFT(VLOOKUP($A74,Base_Arbres,14,FALSE),1)>=LEFT(Cont_Fruits_Toxiques,1),0,1),0) -> 1 | O74: =IF(A74<>"",IF(LEFT(VLOOKUP($A74,Base_Arbres,15,FALSE),1)>=LEFT(Cont_Hauteur,1),0,1),0) -> 1 | P74: =IF(A74<>"",IF(LEFT(VLOOKUP($A74,Base_Arbres,16,FALSE),1)>=LEFT(Cont_Envergure,1),0,1),0) -> 1 | Q74: =SUM(B74:H74)*I74*J74*K74*L74*M74*N74*O74*P74 -> 106.7734931
A75: =IF(Base_Arbres!A67<>"",Base_Arbres!A67,"") -> Chêne du Caucase | B75: =IF(Base_Arbres!A67<>"",VLOOKUP($A75,Base_Arbres,3,FALSE)*Crit1,"") -> 10.40816327 | C75: =IF(Base_Arbres!A67<>"",VLOOKUP($A75,Base_Arbres,4,FALSE)*Crit2,"") -> 26.51162791 | D75: =IF(Base_Arbres!A67<>"",VLOOKUP($A75,Base_Arbres,5,FALSE)*Crit3,"") -> 14.46428571 | E75: =IF(Base_Arbres!A67<>"",VLOOKUP($A75,Base_Arbres,6,FALSE)*Crit4,"") -> 18 | F75: =IF(Base_Arbres!A67<>"",VLOOKUP($A75,Base_Arbres,7,FALSE)*Crit5,"") -> -40 | G75: =IF(ISNA(VLOOKUP(INDEX(Base_Typologie!$A$6:$R$1005,MATCH(A75,Base_Typologie!$A:$A,0)-5,MATCH(Typologie_Espace_Public,Base_Typologie!$6:$6,0)),TableauScoreTypologie,2,FALSE)*Crit6),0,VLOOKUP(INDEX(Base_Typologie!$A$6:$R$1005,MATCH(A75,Base_Typologie!$A:$A,0)-5,MATCH(Typologie_Espace_Public,Base_Typologie!$6:$6,0)),TableauScoreTypologie,2,FALSE)*Crit6) -> 10 | H75: =IF(Base_Arbres!G67<>"",VLOOKUP($A75,Base_Arbres,8,FALSE)*Crit7,"")*1.5 -> 63 | I75: =IF(A75<>"",IF(LEFT(VLOOKUP($A75,Base_Arbres,9,FALSE),1)>=LEFT(Cont_Racines,1),0,1),0) -> 1 | J75: =IF(A75<>"",IF(LEFT(VLOOKUP($A75,Base_Arbres,10,FALSE),1)>=LEFT(Cont_Branches,1),0,1),0) -> 1 | K75: =IF(A75<>"",IF(LEFT(VLOOKUP($A75,Base_Arbres,11,FALSE),1)>=LEFT(Cont_Chablis,1),0,1),0) -> 1 | L75: =IF(A75<>"",IF(LEFT(VLOOKUP($A75,Base_Arbres,12,FALSE),1)>=LEFT(Cont_Fructifications,1),0,1),0) -> 1 | M75: =IF(A75<>"",IF(LEFT(VLOOKUP($A75,Base_Arbres,13,FALSE),1)>=LEFT(Cont_Miellat,1),0,1),0) -> 1 | N75: =IF(A75<>"",IF(LEFT(VLOOKUP($A75,Base_Arbres,14,FALSE),1)>=LEFT(Cont_Fruits_Toxiques,1),0,1),0) -> 1 | O75: =IF(A75<>"",IF(LEFT(VLOOKUP($A75,Base_Arbres,15,FALSE),1)>=LEFT(Cont_Hauteur,1),0,1),0) -> 1 | P75: =IF(A75<>"",IF(LEFT(VLOOKUP($A75,Base_Arbres,16,FALSE),1)>=LEFT(Cont_Envergure,1),0,1),0) -> 1 | Q75: =SUM(B75:H75)*I75*J75*K75*L75*M75*N75*O75*P75 -> 102.3840769
A76: =IF(Base_Arbres!A14<>"",Base_Arbres!A14,"") -> Aulne blanc | B76: =IF(Base_Arbres!A14<>"",VLOOKUP($A76,Base_Arbres,3,FALSE)*Crit1,"") -> 4.489795918 | C76: =IF(Base_Arbres!A14<>"",VLOOKUP($A76,Base_Arbres,4,FALSE)*Crit2,"") -> 18.13953488 | D76: =IF(Base_Arbres!A14<>"",VLOOKUP($A76,Base_Arbres,5,FALSE)*Crit3,"") -> 5.357142857 | E76: =IF(Base_Arbres!A14<>"",VLOOKUP($A76,Base_Arbres,6,FALSE)*Crit4,"") -> 18 | F76: =IF(Base_Arbres!A14<>"",VLOOKUP($A76,Base_Arbres,7,FALSE)*Crit5,"") -> -30 | G76: =IF(ISNA(VLOOKUP(INDEX(Base_Typologie!$A$6:$R$1005,MATCH(A76,Base_Typologie!$A:$A,0)-5,MATCH(Typologie_Espace_Public,Base_Typologie!$6:$6,0)),TableauScoreTypologie,2,FALSE)*Crit6),0,VLOOKUP(INDEX(Base_Typologie!$A$6:$R$1005,MATCH(A76,Base_Typologie!$A:$A,0)-5,MATCH(Typologie_Espace_Public,Base_Typologie!$6:$6,0)),TableauScoreTypologie,2,FALSE)*Crit6) -> 10 | H76: =IF(Base_Arbres!G14<>"",VLOOKUP($A76,Base_Arbres,8,FALSE)*Crit7,"")*1.5 -> 73.5 | I76: =IF(A76<>"",IF(LEFT(VLOOKUP($A76,Base_Arbres,9,FALSE),1)>=LEFT(Cont_Racines,1),0,1),0) -> 1 | J76: =IF(A76<>"",IF(LEFT(VLOOKUP($A76,Base_Arbres,10,FALSE),1)>=LEFT(Cont_Branches,1),0,1),0) -> 1 | K76: =IF(A76<>"",IF(LEFT(VLOOKUP($A76,Base_Arbres,11,FALSE),1)>=LEFT(Cont_Chablis,1),0,1),0) -> 1 | L76: =IF(A76<>"",IF(LEFT(VLOOKUP($A76,Base_Arbres,12,FALSE),1)>=LEFT(Cont_Fructifications,1),0,1),0) -> 1 | M76: =IF(A76<>"",IF(LEFT(VLOOKUP($A76,Base_Arbres,13,FALSE),1)>=LEFT(Cont_Miellat,1),0,1),0) -> 1 | N76: =IF(A76<>"",IF(LEFT(VLOOKUP($A76,Base_Arbres,14,FALSE),1)>=LEFT(Cont_Fruits_Toxiques,1),0,1),0) -> 1 | O76: =IF(A76<>"",IF(LEFT(VLOOKUP($A76,Base_Arbres,15,FALSE),1)>=LEFT(Cont_Hauteur,1),0,1),0) -> 1 | P76: =IF(A76<>"",IF(LEFT(VLOOKUP($A76,Base_Arbres,16,FALSE),1)>=LEFT(Cont_Envergure,1),0,1),0) -> 1 | Q76: =SUM(B76:H76)*I76*J76*K76*L76*M76*N76*O76*P76 -> 99.48647366
A77: =IF(Base_Arbres!A41<>"",Base_Arbres!A41,"") -> Mélèze d’Europe | B77: =IF(Base_Arbres!A41<>"",VLOOKUP($A77,Base_Arbres,3,FALSE)*Crit1,"") -> 12.85714286 | C77: =IF(Base_Arbres!A41<>"",VLOOKUP($A77,Base_Arbres,4,FALSE)*Crit2,"") -> 1.395348837 | D77: =IF(Base_Arbres!A41<>"",VLOOKUP($A77,Base_Arbres,5,FALSE)*Crit3,"") -> 0.5357142857 | E77: =IF(Base_Arbres!A41<>"",VLOOKUP($A77,Base_Arbres,6,FALSE)*Crit4,"") -> 9 | F77: =IF(Base_Arbres!A41<>"",VLOOKUP($A77,Base_Arbres,7,FALSE)*Crit5,"") -> 0 | G77: =IF(ISNA(VLOOKUP(INDEX(Base_Typologie!$A$6:$R$1005,MATCH(A77,Base_Typologie!$A:$A,0)-5,MATCH(Typologie_Espace_Public,Base_Typologie!$6:$6,0)),TableauScoreTypologie,2,FALSE)*Crit6),0,VLOOKUP(INDEX(Base_Typologie!$A$6:$R$1005,MATCH(A77,Base_Typologie!$A:$A,0)-5,MATCH(Typologie_Espace_Public,Base_Typologie!$6:$6,0)),TableauScoreTypologie,2,FALSE)*Crit6) -> 10 | H77: =IF(Base_Arbres!G41<>"",VLOOKUP($A77,Base_Arbres,8,FALSE)*Crit7,"")*1.5 -> 63 | I77: =IF(A77<>"",IF(LEFT(VLOOKUP($A77,Base_Arbres,9,FALSE),1)>=LEFT(Cont_Racines,1),0,1),0) -> 1 | J77: =IF(A77<>"",IF(LEFT(VLOOKUP($A77,Base_Arbres,10,FALSE),1)>=LEFT(Cont_Branches,1),0,1),0) -> 1 | K77: =IF(A77<>"",IF(LEFT(VLOOKUP($A77,Base_Arbres,11,FALSE),1)>=LEFT(Cont_Chablis,1),0,1),0) -> 1 | L77: =IF(A77<>"",IF(LEFT(VLOOKUP($A77,Base_Arbres,12,FALSE),1)>=LEFT(Cont_Fructifications,1),0,1),0) -> 1 | M77: =IF(A77<>"",IF(LEFT(VLOOKUP($A77,Base_Arbres,13,FALSE),1)>=LEFT(Cont_Miellat,1),0,1),0) -> 1 | N77: =IF(A77<>"",IF(LEFT(VLOOKUP($A77,Base_Arbres,14,FALSE),1)>=LEFT(Cont_Fruits_Toxiques,1),0,1),0) -> 1 | O77: =IF(A77<>"",IF(LEFT(VLOOKUP($A77,Base_Arbres,15,FALSE),1)>=LEFT(Cont_Hauteur,1),0,1),0) -> 1 | P77: =IF(A77<>"",IF(LEFT(VLOOKUP($A77,Base_Arbres,16,FALSE),1)>=LEFT(Cont_Envergure,1),0,1),0) -> 1 | Q77: =SUM(B77:H77)*I77*J77*K77*L77*M77*N77*O77*P77 -> 96.78820598
A78: =IF(Base_Arbres!A48<>"",Base_Arbres!A48,"") -> Vigne vierge | B78: =IF(Base_Arbres!A48<>"",VLOOKUP($A78,Base_Arbres,3,FALSE)*Crit1,"") -> 0 | C78: =IF(Base_Arbres!A48<>"",VLOOKUP($A78,Base_Arbres,4,FALSE)*Crit2,"") -> 0 | D78: =IF(Base_Arbres!A48<>"",VLOOKUP($A78,Base_Arbres,5,FALSE)*Crit3,"") -> 0 | E78: =IF(Base_Arbres!A48<>"",VLOOKUP($A78,Base_Arbres,6,FALSE)*Crit4,"") -> 18 | F78: =IF(Base_Arbres!A48<>"",VLOOKUP($A78,Base_Arbres,7,FALSE)*Crit5,"") -> 0 | G78: =IF(ISNA(VLOOKUP(INDEX(Base_Typologie!$A$6:$R$1005,MATCH(A78,Base_Typologie!$A:$A,0)-5,MATCH(Typologie_Espace_Public,Base_Typologie!$6:$6,0)),TableauScoreTypologie,2,FALSE)*Crit6),0,VLOOKUP(INDEX(Base_Typologie!$A$6:$R$1005,MATCH(A78,Base_Typologie!$A:$A,0)-5,MATCH(Typologie_Espace_Public,Base_Typologie!$6:$6,0)),TableauScoreTypologie,2,FALSE)*Crit6) -> 10 | H78: =IF(Base_Arbres!G48<>"",VLOOKUP($A78,Base_Arbres,8,FALSE)*Crit7,"")*1.5 -> 63 | I78: =IF(A78<>"",IF(LEFT(VLOOKUP($A78,Base_Arbres,9,FALSE),1)>=LEFT(Cont_Racines,1),0,1),0) -> 1 | J78: =IF(A78<>"",IF(LEFT(VLOOKUP($A78,Base_Arbres,10,FALSE),1)>=LEFT(Cont_Branches,1),0,1),0) -> 1 | K78: =IF(A78<>"",IF(LEFT(VLOOKUP($A78,Base_Arbres,11,FALSE),1)>=LEFT(Cont_Chablis,1),0,1),0) -> 1 | L78: =IF(A78<>"",IF(LEFT(VLOOKUP($A78,Base_Arbres,12,FALSE),1)>=LEFT(Cont_Fructifications,1),0,1),0) -> 1 | M78: =IF(A78<>"",IF(LEFT(VLOOKUP($A78,Base_Arbres,13,FALSE),1)>=LEFT(Cont_Miellat,1),0,1),0) -> 1 | N78: =IF(A78<>"",IF(LEFT(VLOOKUP($A78,Base_Arbres,14,FALSE),1)>=LEFT(Cont_Fruits_Toxiques,1),0,1),0) -> 1 | O78: =IF(A78<>"",IF(LEFT(VLOOKUP($A78,Base_Arbres,15,FALSE),1)>=LEFT(Cont_Hauteur,1),0,1),0) -> 1 | P78: =IF(A78<>"",IF(LEFT(VLOOKUP($A78,Base_Arbres,16,FALSE),1)>=LEFT(Cont_Envergure,1),0,1),0) -> 1 | Q78: =SUM(B78:H78)*I78*J78*K78*L78*M78*N78*O78*P78 -> 91
A79: =IF(Base_Arbres!A37<>"",Base_Arbres!A37,"") -> Lierre grimpant | B79: =IF(Base_Arbres!A37<>"",VLOOKUP($A79,Base_Arbres,3,FALSE)*Crit1,"") -> 0 | C79: =IF(Base_Arbres!A37<>"",VLOOKUP($A79,Base_Arbres,4,FALSE)*Crit2,"") -> 0 | D79: =IF(Base_Arbres!A37<>"",VLOOKUP($A79,Base_Arbres,5,FALSE)*Crit3,"") -> 0 | E79: =IF(Base_Arbres!A37<>"",VLOOKUP($A79,Base_Arbres,6,FALSE)*Crit4,"") -> 90 | F79: =IF(Base_Arbres!A37<>"",VLOOKUP($A79,Base_Arbres,7,FALSE)*Crit5,"") -> 0 | G79: =IF(ISNA(VLOOKUP(INDEX(Base_Typologie!$A$6:$R$1005,MATCH(A79,Base_Typologie!$A:$A,0)-5,MATCH(Typologie_Espace_Public,Base_Typologie!$6:$6,0)),TableauScoreTypologie,2,FALSE)*Crit6),0,VLOOKUP(INDEX(Base_Typologie!$A$6:$R$1005,MATCH(A79,Base_Typologie!$A:$A,0)-5,MATCH(Typologie_Espace_Public,Base_Typologie!$6:$6,0)),TableauScoreTypologie,2,FALSE)*Crit6) -> 50 | H79: =IF(Base_Arbres!G37<>"",VLOOKUP($A79,Base_Arbres,8,FALSE)*Crit7,"")*1.5 -> 84 | I79: =IF(A79<>"",IF(LEFT(VLOOKUP($A79,Base_Arbres,9,FALSE),1)>=LEFT(Cont_Racines,1),0,1),0) -> 0 | J79: =IF(A79<>"",IF(LEFT(VLOOKUP($A79,Base_Arbres,10,FALSE),1)>=LEFT(Cont_Branches,1),0,1),0) -> 1 | K79: =IF(A79<>"",IF(LEFT(VLOOKUP($A79,Base_Arbres,11,FALSE),1)>=LEFT(Cont_Chablis,1),0,1),0) -> 1 | L79: =IF(A79<>"",IF(LEFT(VLOOKUP($A79,Base_Arbres,12,FALSE),1)>=LEFT(Cont_Fructifications,1),0,1),0) -> 1 | M79: =IF(A79<>"",IF(LEFT(VLOOKUP($A79,Base_Arbres,13,FALSE),1)>=LEFT(Cont_Miellat,1),0,1),0) -> 1 | N79: =IF(A79<>"",IF(LEFT(VLOOKUP($A79,Base_Arbres,14,FALSE),1)>=LEFT(Cont_Fruits_Toxiques,1),0,1),0) -> 1 | O79: =IF(A79<>"",IF(LEFT(VLOOKUP($A79,Base_Arbres,15,FALSE),1)>=LEFT(Cont_Hauteur,1),0,1),0) -> 1 | P79: =IF(A79<>"",IF(LEFT(VLOOKUP($A79,Base_Arbres,16,FALSE),1)>=LEFT(Cont_Envergure,1),0,1),0) -> 1 | Q79: =SUM(B79:H79)*I79*J79*K79*L79*M79*N79*O79*P79 -> 0
A80: =IF(Base_Arbres!A78<>"",Base_Arbres!A78,"") -> Sophora du Japon | B80: =IF(Base_Arbres!A78<>"",VLOOKUP($A80,Base_Arbres,3,FALSE)*Crit1,"") -> 14.08163265 | C80: =IF(Base_Arbres!A78<>"",VLOOKUP($A80,Base_Arbres,4,FALSE)*Crit2,"") -> 28.60465116 | D80: =IF(Base_Arbres!A78<>"",VLOOKUP($A80,Base_Arbres,5,FALSE)*Crit3,"") -> 18.92857143 | E80: =IF(Base_Arbres!A78<>"",VLOOKUP($A80,Base_Arbres,6,FALSE)*Crit4,"") -> 18 | F80: =IF(Base_Arbres!A78<>"",VLOOKUP($A80,Base_Arbres,7,FALSE)*Crit5,"") -> 0 | G80: =IF(ISNA(VLOOKUP(INDEX(Base_Typologie!$A$6:$R$1005,MATCH(A80,Base_Typologie!$A:$A,0)-5,MATCH(Typologie_Espace_Public,Base_Typologie!$6:$6,0)),TableauScoreTypologie,2,FALSE)*Crit6),0,VLOOKUP(INDEX(Base_Typologie!$A$6:$R$1005,MATCH(A80,Base_Typologie!$A:$A,0)-5,MATCH(Typologie_Espace_Public,Base_Typologie!$6:$6,0)),TableauScoreTypologie,2,FALSE)*Crit6) -> 10 | H80: =IF(Base_Arbres!G78<>"",VLOOKUP($A80,Base_Arbres,8,FALSE)*Crit7,"")*1.5 -> 94.5 | I80: =IF(A80<>"",IF(LEFT(VLOOKUP($A80,Base_Arbres,9,FALSE),1)>=LEFT(Cont_Racines,1),0,1),0) -> 0 | J80: =IF(A80<>"",IF(LEFT(VLOOKUP($A80,Base_Arbres,10,FALSE),1)>=LEFT(Cont_Branches,1),0,1),0) -> 1 | K80: =IF(A80<>"",IF(LEFT(VLOOKUP($A80,Base_Arbres,11,FALSE),1)>=LEFT(Cont_Chablis,1),0,1),0) -> 1 | L80: =IF(A80<>"",IF(LEFT(VLOOKUP($A80,Base_Arbres,12,FALSE),1)>=LEFT(Cont_Fructifications,1),0,1),0) -> 1 | M80: =IF(A80<>"",IF(LEFT(VLOOKUP($A80,Base_Arbres,13,FALSE),1)>=LEFT(Cont_Miellat,1),0,1),0) -> 1 | N80: =IF(A80<>"",IF(LEFT(VLOOKUP($A80,Base_Arbres,14,FALSE),1)>=LEFT(Cont_Fruits_Toxiques,1),0,1),0) -> 1 | O80: =IF(A80<>"",IF(LEFT(VLOOKUP($A80,Base_Arbres,15,FALSE),1)>=LEFT(Cont_Hauteur,1),0,1),0) -> 1 | P80: =IF(A80<>"",IF(LEFT(VLOOKUP($A80,Base_Arbres,16,FALSE),1)>=LEFT(Cont_Envergure,1),0,1),0) -> 1 | Q80: =SUM(B80:H80)*I80*J80*K80*L80*M80*N80*O80*P80 -> 0
A81: =IF(Base_Arbres!A86<>"",Base_Arbres!A86,"") -> Tilleul à grandes feuilles | B81: =IF(Base_Arbres!A86<>"",VLOOKUP($A81,Base_Arbres,3,FALSE)*Crit1,"") -> 11.42857143 | C81: =IF(Base_Arbres!A86<>"",VLOOKUP($A81,Base_Arbres,4,FALSE)*Crit2,"") -> 27.55813953 | D81: =IF(Base_Arbres!A86<>"",VLOOKUP($A81,Base_Arbres,5,FALSE)*Crit3,"") -> 16.96428571 | E81: =IF(Base_Arbres!A86<>"",VLOOKUP($A81,Base_Arbres,6,FALSE)*Crit4,"") -> 63 | F81: =IF(Base_Arbres!A86<>"",VLOOKUP($A81,Base_Arbres,7,FALSE)*Crit5,"") -> -10 | G81: =IF(ISNA(VLOOKUP(INDEX(Base_Typologie!$A$6:$R$1005,MATCH(A81,Base_Typologie!$A:$A,0)-5,MATCH(Typologie_Espace_Public,Base_Typologie!$6:$6,0)),TableauScoreTypologie,2,FALSE)*Crit6),0,VLOOKUP(INDEX(Base_Typologie!$A$6:$R$1005,MATCH(A81,Base_Typologie!$A:$A,0)-5,MATCH(Typologie_Espace_Public,Base_Typologie!$6:$6,0)),TableauScoreTypologie,2,FALSE)*Crit6) -> 10 | H81: =IF(Base_Arbres!G86<>"",VLOOKUP($A81,Base_Arbres,8,FALSE)*Crit7,"")*1.5 -> 73.5 | I81: =IF(A81<>"",IF(LEFT(VLOOKUP($A81,Base_Arbres,9,FALSE),1)>=LEFT(Cont_Racines,1),0,1),0) -> 1 | J81: =IF(A81<>"",IF(LEFT(VLOOKUP($A81,Base_Arbres,10,FALSE),1)>=LEFT(Cont_Branches,1),0,1),0) -> 1 | K81: =IF(A81<>"",IF(LEFT(VLOOKUP($A81,Base_Arbres,11,FALSE),1)>=LEFT(Cont_Chablis,1),0,1),0) -> 1 | L81: =IF(A81<>"",IF(LEFT(VLOOKUP($A81,Base_Arbres,12,FALSE),1)>=LEFT(Cont_Fructifications,1),0,1),0) -> 1 | M81: =IF(A81<>"",IF(LEFT(VLOOKUP($A81,Base_Arbres,13,FALSE),1)>=LEFT(Cont_Miellat,1),0,1),0) -> 1 | N81: =IF(A81<>"",IF(LEFT(VLOOKUP($A81,Base_Arbres,14,FALSE),1)>=LEFT(Cont_Fruits_Toxiques,1),0,1),0) -> 1 | O81: =IF(A81<>"",IF(LEFT(VLOOKUP($A81,Base_Arbres,15,FALSE),1)>=LEFT(Cont_Hauteur,1),0,1),0) -> 0 | P81: =IF(A81<>"",IF(LEFT(VLOOKUP($A81,Base_Arbres,16,FALSE),1)>=LEFT(Cont_Envergure,1),0,1),0) -> 1 | Q81: =SUM(B81:H81)*I81*J81*K81*L81*M81*N81*O81*P81 -> 0
A82: =IF(Base_Arbres!A54<>"",Base_Arbres!A54,"") -> Platane | B82: =IF(Base_Arbres!A54<>"",VLOOKUP($A82,Base_Arbres,3,FALSE)*Crit1,"") -> 19.59183673 | C82: =IF(Base_Arbres!A54<>"",VLOOKUP($A82,Base_Arbres,4,FALSE)*Crit2,"") -> 23.72093023 | D82: =IF(Base_Arbres!A54<>"",VLOOKUP($A82,Base_Arbres,5,FALSE)*Crit3,"") -> 19.28571429 | E82: =IF(Base_Arbres!A54<>"",VLOOKUP($A82,Base_Arbres,6,FALSE)*Crit4,"") -> 36 | F82: =IF(Base_Arbres!A54<>"",VLOOKUP($A82,Base_Arbres,7,FALSE)*Crit5,"") -> -30 | G82: =IF(ISNA(VLOOKUP(INDEX(Base_Typologie!$A$6:$R$1005,MATCH(A82,Base_Typologie!$A:$A,0)-5,MATCH(Typologie_Espace_Public,Base_Typologie!$6:$6,0)),TableauScoreTypologie,2,FALSE)*Crit6),0,VLOOKUP(INDEX(Base_Typologie!$A$6:$R$1005,MATCH(A82,Base_Typologie!$A:$A,0)-5,MATCH(Typologie_Espace_Public,Base_Typologie!$6:$6,0)),TableauScoreTypologie,2,FALSE)*Crit6) -> 50 | H82: =IF(Base_Arbres!G54<>"",VLOOKUP($A82,Base_Arbres,8,FALSE)*Crit7,"")*1.5 -> 73.5 | I82: =IF(A82<>"",IF(LEFT(VLOOKUP($A82,Base_Arbres,9,FALSE),1)>=LEFT(Cont_Racines,1),0,1),0) -> 1 | J82: =IF(A82<>"",IF(LEFT(VLOOKUP($A82,Base_Arbres,10,FALSE),1)>=LEFT(Cont_Branches,1),0,1),0) -> 1 | K82: =IF(A82<>"",IF(LEFT(VLOOKUP($A82,Base_Arbres,11,FALSE),1)>=LEFT(Cont_Chablis,1),0,1),0) -> 1 | L82: =IF(A82<>"",IF(LEFT(VLOOKUP($A82,Base_Arbres,12,FALSE),1)>=LEFT(Cont_Fructifications,1),0,1),0) -> 1 | M82: =IF(A82<>"",IF(LEFT(VLOOKUP($A82,Base_Arbres,13,FALSE),1)>=LEFT(Cont_Miellat,1),0,1),0) -> 1 | N82: =IF(A82<>"",IF(LEFT(VLOOKUP($A82,Base_Arbres,14,FALSE),1)>=LEFT(Cont_Fruits_Toxiques,1),0,1),0) -> 1 | O82: =IF(A82<>"",IF(LEFT(VLOOKUP($A82,Base_Arbres,15,FALSE),1)>=LEFT(Cont_Hauteur,1),0,1),0) -> 0 | P82: =IF(A82<>"",IF(LEFT(VLOOKUP($A82,Base_Arbres,16,FALSE),1)>=LEFT(Cont_Envergure,1),0,1),0) -> 1 | Q82: =SUM(B82:H82)*I82*J82*K82*L82*M82*N82*O82*P82 -> 0
A83: =IF(Base_Arbres!A35<>"",Base_Arbres!A35,"") -> Ginkgo | B83: =IF(Base_Arbres!A35<>"",VLOOKUP($A83,Base_Arbres,3,FALSE)*Crit1,"") -> 16.53061224 | C83: =IF(Base_Arbres!A35<>"",VLOOKUP($A83,Base_Arbres,4,FALSE)*Crit2,"") -> 10.81395349 | D83: =IF(Base_Arbres!A35<>"",VLOOKUP($A83,Base_Arbres,5,FALSE)*Crit3,"") -> 13.03571429 | E83: =IF(Base_Arbres!A35<>"",VLOOKUP($A83,Base_Arbres,6,FALSE)*Crit4,"") -> 9 | F83: =IF(Base_Arbres!A35<>"",VLOOKUP($A83,Base_Arbres,7,FALSE)*Crit5,"") -> 0 | G83: =IF(ISNA(VLOOKUP(INDEX(Base_Typologie!$A$6:$R$1005,MATCH(A83,Base_Typologie!$A:$A,0)-5,MATCH(Typologie_Espace_Public,Base_Typologie!$6:$6,0)),TableauScoreTypologie,2,FALSE)*Crit6),0,VLOOKUP(INDEX(Base_Typologie!$A$6:$R$1005,MATCH(A83,Base_Typologie!$A:$A,0)-5,MATCH(Typologie_Espace_Public,Base_Typologie!$6:$6,0)),TableauScoreTypologie,2,FALSE)*Crit6) -> 10 | H83: =IF(Base_Arbres!G35<>"",VLOOKUP($A83,Base_Arbres,8,FALSE)*Crit7,"")*1.5 -> 94.5 | I83: =IF(A83<>"",IF(LEFT(VLOOKUP($A83,Base_Arbres,9,FALSE),1)>=LEFT(Cont_Racines,1),0,1),0) -> 1 | J83: =IF(A83<>"",IF(LEFT(VLOOKUP($A83,Base_Arbres,10,FALSE),1)>=LEFT(Cont_Branches,1),0,1),0) -> 1 | K83: =IF(A83<>"",IF(LEFT(VLOOKUP($A83,Base_Arbres,11,FALSE),1)>=LEFT(Cont_Chablis,1),0,1),0) -> 1 | L83: =IF(A83<>"",IF(LEFT(VLOOKUP($A83,Base_Arbres,12,FALSE),1)>=LEFT(Cont_Fructifications,1),0,1),0) -> 1 | M83: =IF(A83<>"",IF(LEFT(VLOOKUP($A83,Base_Arbres,13,FALSE),1)>=LEFT(Cont_Miellat,1),0,1),0) -> 1 | N83: =IF(A83<>"",IF(LEFT(VLOOKUP($A83,Base_Arbres,14,FALSE),1)>=LEFT(Cont_Fruits_Toxiques,1),0,1),0) -> 1 | O83: =IF(A83<>"",IF(LEFT(VLOOKUP($A83,Base_Arbres,15,FALSE),1)>=LEFT(Cont_Hauteur,1),0,1),0) -> 0 | P83: =IF(A83<>"",IF(LEFT(VLOOKUP($A83,Base_Arbres,16,FALSE),1)>=LEFT(Cont_Envergure,1),0,1),0) -> 1 | Q83: =SUM(B83:H83)*I83*J83*K83*L83*M83*N83*O83*P83 -> 0
A84: =IF(Base_Arbres!A11<>"",Base_Arbres!A11,"") -> Marronnier d’Inde | B84: =IF(Base_Arbres!A11<>"",VLOOKUP($A84,Base_Arbres,3,FALSE)*Crit1,"") -> 19.18367347 | C84: =IF(Base_Arbres!A11<>"",VLOOKUP($A84,Base_Arbres,4,FALSE)*Crit2,"") -> 18.13953488 | D84: =IF(Base_Arbres!A11<>"",VLOOKUP($A84,Base_Arbres,5,FALSE)*Crit3,"") -> 18.03571429 | E84: =IF(Base_Arbres!A11<>"",VLOOKUP($A84,Base_Arbres,6,FALSE)*Crit4,"") -> 45 | F84: =IF(Base_Arbres!A11<>"",VLOOKUP($A84,Base_Arbres,7,FALSE)*Crit5,"") -> -10 | G84: =IF(ISNA(VLOOKUP(INDEX(Base_Typologie!$A$6:$R$1005,MATCH(A84,Base_Typologie!$A:$A,0)-5,MATCH(Typologie_Espace_Public,Base_Typologie!$6:$6,0)),TableauScoreTypologie,2,FALSE)*Crit6),0,VLOOKUP(INDEX(Base_Typologie!$A$6:$R$1005,MATCH(A84,Base_Typologie!$A:$A,0)-5,MATCH(Typologie_Espace_Public,Base_Typologie!$6:$6,0)),TableauScoreTypologie,2,FALSE)*Crit6) -> 10 | H84: =IF(Base_Arbres!G11<>"",VLOOKUP($A84,Base_Arbres,8,FALSE)*Crit7,"")*1.5 -> 63 | I84: =IF(A84<>"",IF(LEFT(VLOOKUP($A84,Base_Arbres,9,FALSE),1)>=LEFT(Cont_Racines,1),0,1),0) -> 0 | J84: =IF(A84<>"",IF(LEFT(VLOOKUP($A84,Base_Arbres,10,FALSE),1)>=LEFT(Cont_Branches,1),0,1),0) -> 1 | K84: =IF(A84<>"",IF(LEFT(VLOOKUP($A84,Base_Arbres,11,FALSE),1)>=LEFT(Cont_Chablis,1),0,1),0) -> 1 | L84: =IF(A84<>"",IF(LEFT(VLOOKUP($A84,Base_Arbres,12,FALSE),1)>=LEFT(Cont_Fructifications,1),0,1),0) -> 1 | M84: =IF(A84<>"",IF(LEFT(VLOOKUP($A84,Base_Arbres,13,FALSE),1)>=LEFT(Cont_Miellat,1),0,1),0) -> 1 | N84: =IF(A84<>"",IF(LEFT(VLOOKUP($A84,Base_Arbres,14,FALSE),1)>=LEFT(Cont_Fruits_Toxiques,1),0,1),0) -> 1 | O84: =IF(A84<>"",IF(LEFT(VLOOKUP($A84,Base_Arbres,15,FALSE),1)>=LEFT(Cont_Hauteur,1),0,1),0) -> 1 | P84: =IF(A84<>"",IF(LEFT(VLOOKUP($A84,Base_Arbres,16,FALSE),1)>=LEFT(Cont_Envergure,1),0,1),0) -> 1 | Q84: =SUM(B84:H84)*I84*J84*K84*L84*M84*N84*O84*P84 -> 0
A85: =IF(Base_Arbres!A53<>"",Base_Arbres!A53,"") -> Pin sylvestre | B85: =IF(Base_Arbres!A53<>"",VLOOKUP($A85,Base_Arbres,3,FALSE)*Crit1,"") -> 2.448979592 | C85: =IF(Base_Arbres!A53<>"",VLOOKUP($A85,Base_Arbres,4,FALSE)*Crit2,"") -> 25.11627907 | D85: =IF(Base_Arbres!A53<>"",VLOOKUP($A85,Base_Arbres,5,FALSE)*Crit3,"") -> 8.75 | E85: =IF(Base_Arbres!A53<>"",VLOOKUP($A85,Base_Arbres,6,FALSE)*Crit4,"") -> 45 | F85: =IF(Base_Arbres!A53<>"",VLOOKUP($A85,Base_Arbres,7,FALSE)*Crit5,"") -> 0 | G85: =IF(ISNA(VLOOKUP(INDEX(Base_Typologie!$A$6:$R$1005,MATCH(A85,Base_Typologie!$A:$A,0)-5,MATCH(Typologie_Espace_Public,Base_Typologie!$6:$6,0)),TableauScoreTypologie,2,FALSE)*Crit6),0,VLOOKUP(INDEX(Base_Typologie!$A$6:$R$1005,MATCH(A85,Base_Typologie!$A:$A,0)-5,MATCH(Typologie_Espace_Public,Base_Typologie!$6:$6,0)),TableauScoreTypologie,2,FALSE)*Crit6) -> 10 | H85: =IF(Base_Arbres!G53<>"",VLOOKUP($A85,Base_Arbres,8,FALSE)*Crit7,"")*1.5 -> 84 | I85: =IF(A85<>"",IF(LEFT(VLOOKUP($A85,Base_Arbres,9,FALSE),1)>=LEFT(Cont_Racines,1),0,1),0) -> 1 | J85: =IF(A85<>"",IF(LEFT(VLOOKUP($A85,Base_Arbres,10,FALSE),1)>=LEFT(Cont_Branches,1),0,1),0) -> 1 | K85: =IF(A85<>"",IF(LEFT(VLOOKUP($A85,Base_Arbres,11,FALSE),1)>=LEFT(Cont_Chablis,1),0,1),0) -> 1 | L85: =IF(A85<>"",IF(LEFT(VLOOKUP($A85,Base_Arbres,12,FALSE),1)>=LEFT(Cont_Fructifications,1),0,1),0) -> 1 | M85: =IF(A85<>"",IF(LEFT(VLOOKUP($A85,Base_Arbres,13,FALSE),1)>=LEFT(Cont_Miellat,1),0,1),0) -> 1 | N85: =IF(A85<>"",IF(LEFT(VLOOKUP($A85,Base_Arbres,14,FALSE),1)>=LEFT(Cont_Fruits_Toxiques,1),0,1),0) -> 1 | O85: =IF(A85<>"",IF(LEFT(VLOOKUP($A85,Base_Arbres,15,FALSE),1)>=LEFT(Cont_Hauteur,1),0,1),0) -> 0 | P85: =IF(A85<>"",IF(LEFT(VLOOKUP($A85,Base_Arbres,16,FALSE),1)>=LEFT(Cont_Envergure,1),0,1),0) -> 1 | Q85: =SUM(B85:H85)*I85*J85*K85*L85*M85*N85*O85*P85 -> 0
A86: =IF(Base_Arbres!A10<>"",Base_Arbres!A10,"") -> Érable à sucre | B86: =IF(Base_Arbres!A10<>"",VLOOKUP($A86,Base_Arbres,3,FALSE)*Crit1,"") -> 15.71428571 | C86: =IF(Base_Arbres!A10<>"",VLOOKUP($A86,Base_Arbres,4,FALSE)*Crit2,"") -> 7.325581395 | D86: =IF(Base_Arbres!A10<>"",VLOOKUP($A86,Base_Arbres,5,FALSE)*Crit3,"") -> 8.035714286 | E86: =IF(Base_Arbres!A10<>"",VLOOKUP($A86,Base_Arbres,6,FALSE)*Crit4,"") -> 18 | F86: =IF(Base_Arbres!A10<>"",VLOOKUP($A86,Base_Arbres,7,FALSE)*Crit5,"") -> -20 | G86: =IF(ISNA(VLOOKUP(INDEX(Base_Typologie!$A$6:$R$1005,MATCH(A86,Base_Typologie!$A:$A,0)-5,MATCH(Typologie_Espace_Public,Base_Typologie!$6:$6,0)),TableauScoreTypologie,2,FALSE)*Crit6),0,VLOOKUP(INDEX(Base_Typologie!$A$6:$R$1005,MATCH(A86,Base_Typologie!$A:$A,0)-5,MATCH(Typologie_Espace_Public,Base_Typologie!$6:$6,0)),TableauScoreTypologie,2,FALSE)*Crit6) -> 10 | H86: =IF(Base_Arbres!G10<>"",VLOOKUP($A86,Base_Arbres,8,FALSE)*Crit7,"")*1.5 -> 42 | I86: =IF(A86<>"",IF(LEFT(VLOOKUP($A86,Base_Arbres,9,FALSE),1)>=LEFT(Cont_Racines,1),0,1),0) -> 1 | J86: =IF(A86<>"",IF(LEFT(VLOOKUP($A86,Base_Arbres,10,FALSE),1)>=LEFT(Cont_Branches,1),0,1),0) -> 1 | K86: =IF(A86<>"",IF(LEFT(VLOOKUP($A86,Base_Arbres,11,FALSE),1)>=LEFT(Cont_Chablis,1),0,1),0) -> 1 | L86: =IF(A86<>"",IF(LEFT(VLOOKUP($A86,Base_Arbres,12,FALSE),1)>=LEFT(Cont_Fructifications,1),0,1),0) -> 1 | M86: =IF(A86<>"",IF(LEFT(VLOOKUP($A86,Base_Arbres,13,FALSE),1)>=LEFT(Cont_Miellat,1),0,1),0) -> 1 | N86: =IF(A86<>"",IF(LEFT(VLOOKUP($A86,Base_Arbres,14,FALSE),1)>=LEFT(Cont_Fruits_Toxiques,1),0,1),0) -> 1 | O86: =IF(A86<>"",IF(LEFT(VLOOKUP($A86,Base_Arbres,15,FALSE),1)>=LEFT(Cont_Hauteur,1),0,1),0) -> 0 | P86: =IF(A86<>"",IF(LEFT(VLOOKUP($A86,Base_Arbres,16,FALSE),1)>=LEFT(Cont_Envergure,1),0,1),0) -> 1 | Q86: =SUM(B86:H86)*I86*J86*K86*L86*M86*N86*O86*P86 -> 0
A87: =IF(Base_Arbres!A76<>"",Base_Arbres!A76,"") -> Séquoia géant | B87: =IF(Base_Arbres!A76<>"",VLOOKUP($A87,Base_Arbres,3,FALSE)*Crit1,"") -> 8.571428571 | C87: =IF(Base_Arbres!A76<>"",VLOOKUP($A87,Base_Arbres,4,FALSE)*Crit2,"") -> 28.60465116 | D87: =IF(Base_Arbres!A76<>"",VLOOKUP($A87,Base_Arbres,5,FALSE)*Crit3,"") -> 16.42857143 | E87: =IF(Base_Arbres!A76<>"",VLOOKUP($A87,Base_Arbres,6,FALSE)*Crit4,"") -> 18 | F87: =IF(Base_Arbres!A76<>"",VLOOKUP($A87,Base_Arbres,7,FALSE)*Crit5,"") -> 0 | G87: =IF(ISNA(VLOOKUP(INDEX(Base_Typologie!$A$6:$R$1005,MATCH(A87,Base_Typologie!$A:$A,0)-5,MATCH(Typologie_Espace_Public,Base_Typologie!$6:$6,0)),TableauScoreTypologie,2,FALSE)*Crit6),0,VLOOKUP(INDEX(Base_Typologie!$A$6:$R$1005,MATCH(A87,Base_Typologie!$A:$A,0)-5,MATCH(Typologie_Espace_Public,Base_Typologie!$6:$6,0)),TableauScoreTypologie,2,FALSE)*Crit6) -> 10 | H87: =IF(Base_Arbres!G76<>"",VLOOKUP($A87,Base_Arbres,8,FALSE)*Crit7,"")*1.5 -> 21 | I87: =IF(A87<>"",IF(LEFT(VLOOKUP($A87,Base_Arbres,9,FALSE),1)>=LEFT(Cont_Racines,1),0,1),0) -> 1 | J87: =IF(A87<>"",IF(LEFT(VLOOKUP($A87,Base_Arbres,10,FALSE),1)>=LEFT(Cont_Branches,1),0,1),0) -> 1 | K87: =IF(A87<>"",IF(LEFT(VLOOKUP($A87,Base_Arbres,11,FALSE),1)>=LEFT(Cont_Chablis,1),0,1),0) -> 1 | L87: =IF(A87<>"",IF(LEFT(VLOOKUP($A87,Base_Arbres,12,FALSE),1)>=LEFT(Cont_Fructifications,1),0,1),0) -> 1 | M87: =IF(A87<>"",IF(LEFT(VLOOKUP($A87,Base_Arbres,13,FALSE),1)>=LEFT(Cont_Miellat,1),0,1),0) -> 1 | N87: =IF(A87<>"",IF(LEFT(VLOOKUP($A87,Base_Arbres,14,FALSE),1)>=LEFT(Cont_Fruits_Toxiques,1),0,1),0) -> 1 | O87: =IF(A87<>"",IF(LEFT(VLOOKUP($A87,Base_Arbres,15,FALSE),1)>=LEFT(Cont_Hauteur,1),0,1),0) -> 0 | P87: =IF(A87<>"",IF(LEFT(VLOOKUP($A87,Base_Arbres,16,FALSE),1)>=LEFT(Cont_Envergure,1),0,1),0) -> 1 | Q87: =SUM(B87:H87)*I87*J87*K87*L87*M87*N87*O87*P87 -> 0
A88: =IF(Base_Arbres!A52<>"",Base_Arbres!A52,"") -> Epicéa commun | B88: =IF(Base_Arbres!A52<>"",VLOOKUP($A88,Base_Arbres,3,FALSE)*Crit1,"") -> 0.4081632653 | C88: =IF(Base_Arbres!A52<>"",VLOOKUP($A88,Base_Arbres,4,FALSE)*Crit2,"") -> 25.46511628 | D88: =IF(Base_Arbres!A52<>"",VLOOKUP($A88,Base_Arbres,5,FALSE)*Crit3,"") -> 9.107142857 | E88: =IF(Base_Arbres!A52<>"",VLOOKUP($A88,Base_Arbres,6,FALSE)*Crit4,"") -> 36 | F88: =IF(Base_Arbres!A52<>"",VLOOKUP($A88,Base_Arbres,7,FALSE)*Crit5,"") -> 0 | G88: =IF(ISNA(VLOOKUP(INDEX(Base_Typologie!$A$6:$R$1005,MATCH(A88,Base_Typologie!$A:$A,0)-5,MATCH(Typologie_Espace_Public,Base_Typologie!$6:$6,0)),TableauScoreTypologie,2,FALSE)*Crit6),0,VLOOKUP(INDEX(Base_Typologie!$A$6:$R$1005,MATCH(A88,Base_Typologie!$A:$A,0)-5,MATCH(Typologie_Espace_Public,Base_Typologie!$6:$6,0)),TableauScoreTypologie,2,FALSE)*Crit6) -> 10 | H88: =IF(Base_Arbres!G52<>"",VLOOKUP($A88,Base_Arbres,8,FALSE)*Crit7,"")*1.5 -> 21 | I88: =IF(A88<>"",IF(LEFT(VLOOKUP($A88,Base_Arbres,9,FALSE),1)>=LEFT(Cont_Racines,1),0,1),0) -> 0 | J88: =IF(A88<>"",IF(LEFT(VLOOKUP($A88,Base_Arbres,10,FALSE),1)>=LEFT(Cont_Branches,1),0,1),0) -> 1 | K88: =IF(A88<>"",IF(LEFT(VLOOKUP($A88,Base_Arbres,11,FALSE),1)>=LEFT(Cont_Chablis,1),0,1),0) -> 1 | L88: =IF(A88<>"",IF(LEFT(VLOOKUP($A88,Base_Arbres,12,FALSE),1)>=LEFT(Cont_Fructifications,1),0,1),0) -> 1 | M88: =IF(A88<>"",IF(LEFT(VLOOKUP($A88,Base_Arbres,13,FALSE),1)>=LEFT(Cont_Miellat,1),0,1),0) -> 1 | N88: =IF(A88<>"",IF(LEFT(VLOOKUP($A88,Base_Arbres,14,FALSE),1)>=LEFT(Cont_Fruits_Toxiques,1),0,1),0) -> 1 | O88: =IF(A88<>"",IF(LEFT(VLOOKUP($A88,Base_Arbres,15,FALSE),1)>=LEFT(Cont_Hauteur,1),0,1),0) -> 0 | P88: =IF(A88<>"",IF(LEFT(VLOOKUP($A88,Base_Arbres,16,FALSE),1)>=LEFT(Cont_Envergure,1),0,1),0) -> 1 | Q88: =SUM(B88:H88)*I88*J88*K88*L88*M88*N88*O88*P88 -> 0
A89: =IF(Base_Arbres!A77<>"",Base_Arbres!A77,"") -> Séquoia toujours vert | B89: =IF(Base_Arbres!A77<>"",VLOOKUP($A89,Base_Arbres,3,FALSE)*Crit1,"") -> 0.4081632653 | C89: =IF(Base_Arbres!A77<>"",VLOOKUP($A89,Base_Arbres,4,FALSE)*Crit2,"") -> 25.81395349 | D89: =IF(Base_Arbres!A77<>"",VLOOKUP($A89,Base_Arbres,5,FALSE)*Crit3,"") -> 10.71428571 | E89: =IF(Base_Arbres!A77<>"",VLOOKUP($A89,Base_Arbres,6,FALSE)*Crit4,"") -> 18 | F89: =IF(Base_Arbres!A77<>"",VLOOKUP($A89,Base_Arbres,7,FALSE)*Crit5,"") -> 0 | G89: =IF(ISNA(VLOOKUP(INDEX(Base_Typologie!$A$6:$R$1005,MATCH(A89,Base_Typologie!$A:$A,0)-5,MATCH(Typologie_Espace_Public,Base_Typologie!$6:$6,0)),TableauScoreTypologie,2,FALSE)*Crit6),0,VLOOKUP(INDEX(Base_Typologie!$A$6:$R$1005,MATCH(A89,Base_Typologie!$A:$A,0)-5,MATCH(Typologie_Espace_Public,Base_Typologie!$6:$6,0)),TableauScoreTypologie,2,FALSE)*Crit6) -> 10 | H89: =IF(Base_Arbres!G77<>"",VLOOKUP($A89,Base_Arbres,8,FALSE)*Crit7,"")*1.5 -> 10.5 | I89: =IF(A89<>"",IF(LEFT(VLOOKUP($A89,Base_Arbres,9,FALSE),1)>=LEFT(Cont_Racines,1),0,1),0) -> 1 | J89: =IF(A89<>"",IF(LEFT(VLOOKUP($A89,Base_Arbres,10,FALSE),1)>=LEFT(Cont_Branches,1),0,1),0) -> 1 | K89: =IF(A89<>"",IF(LEFT(VLOOKUP($A89,Base_Arbres,11,FALSE),1)>=LEFT(Cont_Chablis,1),0,1),0) -> 1 | L89: =IF(A89<>"",IF(LEFT(VLOOKUP($A89,Base_Arbres,12,FALSE),1)>=LEFT(Cont_Fructifications,1),0,1),0) -> 1 | M89: =IF(A89<>"",IF(LEFT(VLOOKUP($A89,Base_Arbres,13,FALSE),1)>=LEFT(Cont_Miellat,1),0,1),0) -> 1 | N89: =IF(A89<>"",IF(LEFT(VLOOKUP($A89,Base_Arbres,14,FALSE),1)>=LEFT(Cont_Fruits_Toxiques,1),0,1),0) -> 1 | O89: =IF(A89<>"",IF(LEFT(VLOOKUP($A89,Base_Arbres,15,FALSE),1)>=LEFT(Cont_Hauteur,1),0,1),0) -> 0 | P89: =IF(A89<>"",IF(LEFT(VLOOKUP($A89,Base_Arbres,16,FALSE),1)>=LEFT(Cont_Envergure,1),0,1),0) -> 1 | Q89: =SUM(B89:H89)*I89*J89*K89*L89*M89*N89*O89*P89 -> 0
A90: =IF(Base_Arbres!A90<>"",Base_Arbres!A90,"") ->  | B90: =IF(Base_Arbres!A90<>"",VLOOKUP($A90,Base_Arbres,3,FALSE)*Crit1,"") ->  | C90: =IF(Base_Arbres!A90<>"",VLOOKUP($A90,Base_Arbres,4,FALSE)*Crit2,"") ->  | D90: =IF(Base_Arbres!A90<>"",VLOOKUP($A90,Base_Arbres,5,FALSE)*Crit3,"") ->  | E90: =IF(Base_Arbres!A90<>"",VLOOKUP($A90,Base_Arbres,6,FALSE)*Crit4,"") ->  | F90: =IF(Base_Arbres!A90<>"",VLOOKUP($A90,Base_Arbres,7,FALSE)*Crit5,"") ->  | G90: =IF(ISNA(VLOOKUP(INDEX(Base_Typologie!$A$6:$R$1005,MATCH(A90,Base_Typologie!$A:$A,0)-5,MATCH(Typologie_Espace_Public,Base_Typologie!$6:$6,0)),TableauScoreTypologie,2,FALSE)*Crit6),0,VLOOKUP(INDEX(Base_Typologie!$A$6:$R$1005,MATCH(A90,Base_Typologie!$A:$A,0)-5,MATCH(Typologie_Espace_Public,Base_Typologie!$6:$6,0)),TableauScoreTypologie,2,FALSE)*Crit6) -> 0 | H90: =IF(Base_Arbres!G90<>"",VLOOKUP($A90,Base_Arbres,8,FALSE)*Crit7,"") ->  | I90: =IF(A90<>"",IF(LEFT(VLOOKUP($A90,Base_Arbres,9,FALSE),1)>=LEFT(Cont_Racines,1),0,1),0) -> 0 | J90: =IF(A90<>"",IF(LEFT(VLOOKUP($A90,Base_Arbres,10,FALSE),1)>=LEFT(Cont_Branches,1),0,1),0) -> 0 | K90: =IF(A90<>"",IF(LEFT(VLOOKUP($A90,Base_Arbres,11,FALSE),1)>=LEFT(Cont_Chablis,1),0,1),0) -> 0 | L90: =IF(A90<>"",IF(LEFT(VLOOKUP($A90,Base_Arbres,12,FALSE),1)>=LEFT(Cont_Fructifications,1),0,1),0) -> 0 | M90: =IF(A90<>"",IF(LEFT(VLOOKUP($A90,Base_Arbres,13,FALSE),1)>=LEFT(Cont_Miellat,1),0,1),0) -> 0 | N90: =IF(A90<>"",IF(LEFT(VLOOKUP($A90,Base_Arbres,14,FALSE),1)>=LEFT(Cont_Fruits_Toxiques,1),0,1),0) -> 0 | O90: =IF(A90<>"",IF(LEFT(VLOOKUP($A90,Base_Arbres,15,FALSE),1)>=LEFT(Cont_Hauteur,1),0,1),0) -> 0 | P90: =IF(A90<>"",IF(LEFT(VLOOKUP($A90,Base_Arbres,16,FALSE),1)>=LEFT(Cont_Envergure,1),0,1),0) -> 0 | Q90: =SUM(B90:H90)*I90*J90*K90*L90*M90*N90*O90*P90 -> 0
A91: =IF(Base_Arbres!A91<>"",Base_Arbres!A91,"") ->  | B91: =IF(Base_Arbres!A91<>"",VLOOKUP($A91,Base_Arbres,3,FALSE)*Crit1,"") ->  | C91: =IF(Base_Arbres!A91<>"",VLOOKUP($A91,Base_Arbres,4,FALSE)*Crit2,"") ->  | D91: =IF(Base_Arbres!A91<>"",VLOOKUP($A91,Base_Arbres,5,FALSE)*Crit3,"") ->  | E91: =IF(Base_Arbres!A91<>"",VLOOKUP($A91,Base_Arbres,6,FALSE)*Crit4,"") ->  | F91: =IF(Base_Arbres!A91<>"",VLOOKUP($A91,Base_Arbres,7,FALSE)*Crit5,"") ->  | G91: =IF(ISNA(VLOOKUP(INDEX(Base_Typologie!$A$6:$R$1005,MATCH(A91,Base_Typologie!$A:$A,0)-5,MATCH(Typologie_Espace_Public,Base_Typologie!$6:$6,0)),TableauScoreTypologie,2,FALSE)*Crit6),0,VLOOKUP(INDEX(Base_Typologie!$A$6:$R$1005,MATCH(A91,Base_Typologie!$A:$A,0)-5,MATCH(Typologie_Espace_Public,Base_Typologie!$6:$6,0)),TableauScoreTypologie,2,FALSE)*Crit6) -> 0 | H91: =IF(Base_Arbres!G91<>"",VLOOKUP($A91,Base_Arbres,8,FALSE)*Crit7,"") ->  | I91: =IF(A91<>"",IF(LEFT(VLOOKUP($A91,Base_Arbres,9,FALSE),1)>=LEFT(Cont_Racines,1),0,1),0) -> 0 | J91: =IF(A91<>"",IF(LEFT(VLOOKUP($A91,Base_Arbres,10,FALSE),1)>=LEFT(Cont_Branches,1),0,1),0) -> 0 | K91: =IF(A91<>"",IF(LEFT(VLOOKUP($A91,Base_Arbres,11,FALSE),1)>=LEFT(Cont_Chablis,1),0,1),0) -> 0 | L91: =IF(A91<>"",IF(LEFT(VLOOKUP($A91,Base_Arbres,12,FALSE),1)>=LEFT(Cont_Fructifications,1),0,1),0) -> 0 | M91: =IF(A91<>"",IF(LEFT(VLOOKUP($A91,Base_Arbres,13,FALSE),1)>=LEFT(Cont_Miellat,1),0,1),0) -> 0 | N91: =IF(A91<>"",IF(LEFT(VLOOKUP($A91,Base_Arbres,14,FALSE),1)>=LEFT(Cont_Fruits_Toxiques,1),0,1),0) -> 0 | O91: =IF(A91<>"",IF(LEFT(VLOOKUP($A91,Base_Arbres,15,FALSE),1)>=LEFT(Cont_Hauteur,1),0,1),0) -> 0 | P91: =IF(A91<>"",IF(LEFT(VLOOKUP($A91,Base_Arbres,16,FALSE),1)>=LEFT(Cont_Envergure,1),0,1),0) -> 0 | Q91: =SUM(B91:H91)*I91*J91*K91*L91*M91*N91*O91*P91 -> 0
A92: =IF(Base_Arbres!A92<>"",Base_Arbres!A92,"") ->  | B92: =IF(Base_Arbres!A92<>"",VLOOKUP($A92,Base_Arbres,3,FALSE)*Crit1,"") ->  | C92: =IF(Base_Arbres!A92<>"",VLOOKUP($A92,Base_Arbres,4,FALSE)*Crit2,"") ->  | D92: =IF(Base_Arbres!A92<>"",VLOOKUP($A92,Base_Arbres,5,FALSE)*Crit3,"") ->  | E92: =IF(Base_Arbres!A92<>"",VLOOKUP($A92,Base_Arbres,6,FALSE)*Crit4,"") ->  | F92: =IF(Base_Arbres!A92<>"",VLOOKUP($A92,Base_Arbres,7,FALSE)*Crit5,"") ->  | G92: =IF(ISNA(VLOOKUP(INDEX(Base_Typologie!$A$6:$R$1005,MATCH(A92,Base_Typologie!$A:$A,0)-5,MATCH(Typologie_Espace_Public,Base_Typologie!$6:$6,0)),TableauScoreTypologie,2,FALSE)*Crit6),0,VLOOKUP(INDEX(Base_Typologie!$A$6:$R$1005,MATCH(A92,Base_Typologie!$A:$A,0)-5,MATCH(Typologie_Espace_Public,Base_Typologie!$6:$6,0)),TableauScoreTypologie,2,FALSE)*Crit6) -> 0 | H92: =IF(Base_Arbres!G92<>"",VLOOKUP($A92,Base_Arbres,8,FALSE)*Crit7,"") ->  | I92: =IF(A92<>"",IF(LEFT(VLOOKUP($A92,Base_Arbres,9,FALSE),1)>=LEFT(Cont_Racines,1),0,1),0) -> 0 | J92: =IF(A92<>"",IF(LEFT(VLOOKUP($A92,Base_Arbres,10,FALSE),1)>=LEFT(Cont_Branches,1),0,1),0) -> 0 | K92: =IF(A92<>"",IF(LEFT(VLOOKUP($A92,Base_Arbres,11,FALSE),1)>=LEFT(Cont_Chablis,1),0,1),0) -> 0 | L92: =IF(A92<>"",IF(LEFT(VLOOKUP($A92,Base_Arbres,12,FALSE),1)>=LEFT(Cont_Fructifications,1),0,1),0) -> 0 | M92: =IF(A92<>"",IF(LEFT(VLOOKUP($A92,Base_Arbres,13,FALSE),1)>=LEFT(Cont_Miellat,1),0,1),0) -> 0 | N92: =IF(A92<>"",IF(LEFT(VLOOKUP($A92,Base_Arbres,14,FALSE),1)>=LEFT(Cont_Fruits_Toxiques,1),0,1),0) -> 0 | O92: =IF(A92<>"",IF(LEFT(VLOOKUP($A92,Base_Arbres,15,FALSE),1)>=LEFT(Cont_Hauteur,1),0,1),0) -> 0 | P92: =IF(A92<>"",IF(LEFT(VLOOKUP($A92,Base_Arbres,16,FALSE),1)>=LEFT(Cont_Envergure,1),0,1),0) -> 0 | Q92: =SUM(B92:H92)*I92*J92*K92*L92*M92*N92*O92*P92 -> 0
A93: =IF(Base_Arbres!A93<>"",Base_Arbres!A93,"") ->  | B93: =IF(Base_Arbres!A93<>"",VLOOKUP($A93,Base_Arbres,3,FALSE)*Crit1,"") ->  | C93: =IF(Base_Arbres!A93<>"",VLOOKUP($A93,Base_Arbres,4,FALSE)*Crit2,"") ->  | D93: =IF(Base_Arbres!A93<>"",VLOOKUP($A93,Base_Arbres,5,FALSE)*Crit3,"") ->  | E93: =IF(Base_Arbres!A93<>"",VLOOKUP($A93,Base_Arbres,6,FALSE)*Crit4,"") ->  | F93: =IF(Base_Arbres!A93<>"",VLOOKUP($A93,Base_Arbres,7,FALSE)*Crit5,"") ->  | G93: =IF(ISNA(VLOOKUP(INDEX(Base_Typologie!$A$6:$R$1005,MATCH(A93,Base_Typologie!$A:$A,0)-5,MATCH(Typologie_Espace_Public,Base_Typologie!$6:$6,0)),TableauScoreTypologie,2,FALSE)*Crit6),0,VLOOKUP(INDEX(Base_Typologie!$A$6:$R$1005,MATCH(A93,Base_Typologie!$A:$A,0)-5,MATCH(Typologie_Espace_Public,Base_Typologie!$6:$6,0)),TableauScoreTypologie,2,FALSE)*Crit6) -> 0 | H93: =IF(Base_Arbres!G93<>"",VLOOKUP($A93,Base_Arbres,8,FALSE)*Crit7,"") ->  | I93: =IF(A93<>"",IF(LEFT(VLOOKUP($A93,Base_Arbres,9,FALSE),1)>=LEFT(Cont_Racines,1),0,1),0) -> 0 | J93: =IF(A93<>"",IF(LEFT(VLOOKUP($A93,Base_Arbres,10,FALSE),1)>=LEFT(Cont_Branches,1),0,1),0) -> 0 | K93: =IF(A93<>"",IF(LEFT(VLOOKUP($A93,Base_Arbres,11,FALSE),1)>=LEFT(Cont_Chablis,1),0,1),0) -> 0 | L93: =IF(A93<>"",IF(LEFT(VLOOKUP($A93,Base_Arbres,12,FALSE),1)>=LEFT(Cont_Fructifications,1),0,1),0) -> 0 | M93: =IF(A93<>"",IF(LEFT(VLOOKUP($A93,Base_Arbres,13,FALSE),1)>=LEFT(Cont_Miellat,1),0,1),0) -> 0 | N93: =IF(A93<>"",IF(LEFT(VLOOKUP($A93,Base_Arbres,14,FALSE),1)>=LEFT(Cont_Fruits_Toxiques,1),0,1),0) -> 0 | O93: =IF(A93<>"",IF(LEFT(VLOOKUP($A93,Base_Arbres,15,FALSE),1)>=LEFT(Cont_Hauteur,1),0,1),0) -> 0 | P93: =IF(A93<>"",IF(LEFT(VLOOKUP($A93,Base_Arbres,16,FALSE),1)>=LEFT(Cont_Envergure,1),0,1),0) -> 0 | Q93: =SUM(B93:H93)*I93*J93*K93*L93*M93*N93*O93*P93 -> 0
A94: =IF(Base_Arbres!A94<>"",Base_Arbres!A94,"") ->  | B94: =IF(Base_Arbres!A94<>"",VLOOKUP($A94,Base_Arbres,3,FALSE)*Crit1,"") ->  | C94: =IF(Base_Arbres!A94<>"",VLOOKUP($A94,Base_Arbres,4,FALSE)*Crit2,"") ->  | D94: =IF(Base_Arbres!A94<>"",VLOOKUP($A94,Base_Arbres,5,FALSE)*Crit3,"") ->  | E94: =IF(Base_Arbres!A94<>"",VLOOKUP($A94,Base_Arbres,6,FALSE)*Crit4,"") ->  | F94: =IF(Base_Arbres!A94<>"",VLOOKUP($A94,Base_Arbres,7,FALSE)*Crit5,"") ->  | G94: =IF(ISNA(VLOOKUP(INDEX(Base_Typologie!$A$6:$R$1005,MATCH(A94,Base_Typologie!$A:$A,0)-5,MATCH(Typologie_Espace_Public,Base_Typologie!$6:$6,0)),TableauScoreTypologie,2,FALSE)*Crit6),0,VLOOKUP(INDEX(Base_Typologie!$A$6:$R$1005,MATCH(A94,Base_Typologie!$A:$A,0)-5,MATCH(Typologie_Espace_Public,Base_Typologie!$6:$6,0)),TableauScoreTypologie,2,FALSE)*Crit6) -> 0 | H94: =IF(Base_Arbres!G94<>"",VLOOKUP($A94,Base_Arbres,8,FALSE)*Crit7,"") ->  | I94: =IF(A94<>"",IF(LEFT(VLOOKUP($A94,Base_Arbres,9,FALSE),1)>=LEFT(Cont_Racines,1),0,1),0) -> 0 | J94: =IF(A94<>"",IF(LEFT(VLOOKUP($A94,Base_Arbres,10,FALSE),1)>=LEFT(Cont_Branches,1),0,1),0) -> 0 | K94: =IF(A94<>"",IF(LEFT(VLOOKUP($A94,Base_Arbres,11,FALSE),1)>=LEFT(Cont_Chablis,1),0,1),0) -> 0 | L94: =IF(A94<>"",IF(LEFT(VLOOKUP($A94,Base_Arbres,12,FALSE),1)>=LEFT(Cont_Fructifications,1),0,1),0) -> 0 | M94: =IF(A94<>"",IF(LEFT(VLOOKUP($A94,Base_Arbres,13,FALSE),1)>=LEFT(Cont_Miellat,1),0,1),0) -> 0 | N94: =IF(A94<>"",IF(LEFT(VLOOKUP($A94,Base_Arbres,14,FALSE),1)>=LEFT(Cont_Fruits_Toxiques,1),0,1),0) -> 0 | O94: =IF(A94<>"",IF(LEFT(VLOOKUP($A94,Base_Arbres,15,FALSE),1)>=LEFT(Cont_Hauteur,1),0,1),0) -> 0 | P94: =IF(A94<>"",IF(LEFT(VLOOKUP($A94,Base_Arbres,16,FALSE),1)>=LEFT(Cont_Envergure,1),0,1),0) -> 0 | Q94: =SUM(B94:H94)*I94*J94*K94*L94*M94*N94*O94*P94 -> 0
A95: =IF(Base_Arbres!A95<>"",Base_Arbres!A95,"") ->  | B95: =IF(Base_Arbres!A95<>"",VLOOKUP($A95,Base_Arbres,3,FALSE)*Crit1,"") ->  | C95: =IF(Base_Arbres!A95<>"",VLOOKUP($A95,Base_Arbres,4,FALSE)*Crit2,"") ->  | D95: =IF(Base_Arbres!A95<>"",VLOOKUP($A95,Base_Arbres,5,FALSE)*Crit3,"") ->  | E95: =IF(Base_Arbres!A95<>"",VLOOKUP($A95,Base_Arbres,6,FALSE)*Crit4,"") ->  | F95: =IF(Base_Arbres!A95<>"",VLOOKUP($A95,Base_Arbres,7,FALSE)*Crit5,"") ->  | G95: =IF(ISNA(VLOOKUP(INDEX(Base_Typologie!$A$6:$R$1005,MATCH(A95,Base_Typologie!$A:$A,0)-5,MATCH(Typologie_Espace_Public,Base_Typologie!$6:$6,0)),TableauScoreTypologie,2,FALSE)*Crit6),0,VLOOKUP(INDEX(Base_Typologie!$A$6:$R$1005,MATCH(A95,Base_Typologie!$A:$A,0)-5,MATCH(Typologie_Espace_Public,Base_Typologie!$6:$6,0)),TableauScoreTypologie,2,FALSE)*Crit6) -> 0 | H95: =IF(Base_Arbres!G95<>"",VLOOKUP($A95,Base_Arbres,8,FALSE)*Crit7,"") ->  | I95: =IF(A95<>"",IF(LEFT(VLOOKUP($A95,Base_Arbres,9,FALSE),1)>=LEFT(Cont_Racines,1),0,1),0) -> 0 | J95: =IF(A95<>"",IF(LEFT(VLOOKUP($A95,Base_Arbres,10,FALSE),1)>=LEFT(Cont_Branches,1),0,1),0) -> 0 | K95: =IF(A95<>"",IF(LEFT(VLOOKUP($A95,Base_Arbres,11,FALSE),1)>=LEFT(Cont_Chablis,1),0,1),0) -> 0 | L95: =IF(A95<>"",IF(LEFT(VLOOKUP($A95,Base_Arbres,12,FALSE),1)>=LEFT(Cont_Fructifications,1),0,1),0) -> 0 | M95: =IF(A95<>"",IF(LEFT(VLOOKUP($A95,Base_Arbres,13,FALSE),1)>=LEFT(Cont_Miellat,1),0,1),0) -> 0 | N95: =IF(A95<>"",IF(LEFT(VLOOKUP($A95,Base_Arbres,14,FALSE),1)>=LEFT(Cont_Fruits_Toxiques,1),0,1),0) -> 0 | O95: =IF(A95<>"",IF(LEFT(VLOOKUP($A95,Base_Arbres,15,FALSE),1)>=LEFT(Cont_Hauteur,1),0,1),0) -> 0 | P95: =IF(A95<>"",IF(LEFT(VLOOKUP($A95,Base_Arbres,16,FALSE),1)>=LEFT(Cont_Envergure,1),0,1),0) -> 0 | Q95: =SUM(B95:H95)*I95*J95*K95*L95*M95*N95*O95*P95 -> 0
A96: =IF(Base_Arbres!A96<>"",Base_Arbres!A96,"") ->  | B96: =IF(Base_Arbres!A96<>"",VLOOKUP($A96,Base_Arbres,3,FALSE)*Crit1,"") ->  | C96: =IF(Base_Arbres!A96<>"",VLOOKUP($A96,Base_Arbres,4,FALSE)*Crit2,"") ->  | D96: =IF(Base_Arbres!A96<>"",VLOOKUP($A96,Base_Arbres,5,FALSE)*Crit3,"") ->  | E96: =IF(Base_Arbres!A96<>"",VLOOKUP($A96,Base_Arbres,6,FALSE)*Crit4,"") ->  | F96: =IF(Base_Arbres!A96<>"",VLOOKUP($A96,Base_Arbres,7,FALSE)*Crit5,"") ->  | G96: =IF(ISNA(VLOOKUP(INDEX(Base_Typologie!$A$6:$R$1005,MATCH(A96,Base_Typologie!$A:$A,0)-5,MATCH(Typologie_Espace_Public,Base_Typologie!$6:$6,0)),TableauScoreTypologie,2,FALSE)*Crit6),0,VLOOKUP(INDEX(Base_Typologie!$A$6:$R$1005,MATCH(A96,Base_Typologie!$A:$A,0)-5,MATCH(Typologie_Espace_Public,Base_Typologie!$6:$6,0)),TableauScoreTypologie,2,FALSE)*Crit6) -> 0 | H96: =IF(Base_Arbres!G96<>"",VLOOKUP($A96,Base_Arbres,8,FALSE)*Crit7,"") ->  | I96: =IF(A96<>"",IF(LEFT(VLOOKUP($A96,Base_Arbres,9,FALSE),1)>=LEFT(Cont_Racines,1),0,1),0) -> 0 | J96: =IF(A96<>"",IF(LEFT(VLOOKUP($A96,Base_Arbres,10,FALSE),1)>=LEFT(Cont_Branches,1),0,1),0) -> 0 | K96: =IF(A96<>"",IF(LEFT(VLOOKUP($A96,Base_Arbres,11,FALSE),1)>=LEFT(Cont_Chablis,1),0,1),0) -> 0 | L96: =IF(A96<>"",IF(LEFT(VLOOKUP($A96,Base_Arbres,12,FALSE),1)>=LEFT(Cont_Fructifications,1),0,1),0) -> 0 | M96: =IF(A96<>"",IF(LEFT(VLOOKUP($A96,Base_Arbres,13,FALSE),1)>=LEFT(Cont_Miellat,1),0,1),0) -> 0 | N96: =IF(A96<>"",IF(LEFT(VLOOKUP($A96,Base_Arbres,14,FALSE),1)>=LEFT(Cont_Fruits_Toxiques,1),0,1),0) -> 0 | O96: =IF(A96<>"",IF(LEFT(VLOOKUP($A96,Base_Arbres,15,FALSE),1)>=LEFT(Cont_Hauteur,1),0,1),0) -> 0 | P96: =IF(A96<>"",IF(LEFT(VLOOKUP($A96,Base_Arbres,16,FALSE),1)>=LEFT(Cont_Envergure,1),0,1),0) -> 0 | Q96: =SUM(B96:H96)*I96*J96*K96*L96*M96*N96*O96*P96 -> 0
A97: =IF(Base_Arbres!A97<>"",Base_Arbres!A97,"") ->  | B97: =IF(Base_Arbres!A97<>"",VLOOKUP($A97,Base_Arbres,3,FALSE)*Crit1,"") ->  | C97: =IF(Base_Arbres!A97<>"",VLOOKUP($A97,Base_Arbres,4,FALSE)*Crit2,"") ->  | D97: =IF(Base_Arbres!A97<>"",VLOOKUP($A97,Base_Arbres,5,FALSE)*Crit3,"") ->  | E97: =IF(Base_Arbres!A97<>"",VLOOKUP($A97,Base_Arbres,6,FALSE)*Crit4,"") ->  | F97: =IF(Base_Arbres!A97<>"",VLOOKUP($A97,Base_Arbres,7,FALSE)*Crit5,"") ->  | G97: =IF(ISNA(VLOOKUP(INDEX(Base_Typologie!$A$6:$R$1005,MATCH(A97,Base_Typologie!$A:$A,0)-5,MATCH(Typologie_Espace_Public,Base_Typologie!$6:$6,0)),TableauScoreTypologie,2,FALSE)*Crit6),0,VLOOKUP(INDEX(Base_Typologie!$A$6:$R$1005,MATCH(A97,Base_Typologie!$A:$A,0)-5,MATCH(Typologie_Espace_Public,Base_Typologie!$6:$6,0)),TableauScoreTypologie,2,FALSE)*Crit6) -> 0 | H97: =IF(Base_Arbres!G97<>"",VLOOKUP($A97,Base_Arbres,8,FALSE)*Crit7,"") ->  | I97: =IF(A97<>"",IF(LEFT(VLOOKUP($A97,Base_Arbres,9,FALSE),1)>=LEFT(Cont_Racines,1),0,1),0) -> 0 | J97: =IF(A97<>"",IF(LEFT(VLOOKUP($A97,Base_Arbres,10,FALSE),1)>=LEFT(Cont_Branches,1),0,1),0) -> 0 | K97: =IF(A97<>"",IF(LEFT(VLOOKUP($A97,Base_Arbres,11,FALSE),1)>=LEFT(Cont_Chablis,1),0,1),0) -> 0 | L97: =IF(A97<>"",IF(LEFT(VLOOKUP($A97,Base_Arbres,12,FALSE),1)>=LEFT(Cont_Fructifications,1),0,1),0) -> 0 | M97: =IF(A97<>"",IF(LEFT(VLOOKUP($A97,Base_Arbres,13,FALSE),1)>=LEFT(Cont_Miellat,1),0,1),0) -> 0 | N97: =IF(A97<>"",IF(LEFT(VLOOKUP($A97,Base_Arbres,14,FALSE),1)>=LEFT(Cont_Fruits_Toxiques,1),0,1),0) -> 0 | O97: =IF(A97<>"",IF(LEFT(VLOOKUP($A97,Base_Arbres,15,FALSE),1)>=LEFT(Cont_Hauteur,1),0,1),0) -> 0 | P97: =IF(A97<>"",IF(LEFT(VLOOKUP($A97,Base_Arbres,16,FALSE),1)>=LEFT(Cont_Envergure,1),0,1),0) -> 0 | Q97: =SUM(B97:H97)*I97*J97*K97*L97*M97*N97*O97*P97 -> 0
A98: =IF(Base_Arbres!A98<>"",Base_Arbres!A98,"") ->  | B98: =IF(Base_Arbres!A98<>"",VLOOKUP($A98,Base_Arbres,3,FALSE)*Crit1,"") ->  | C98: =IF(Base_Arbres!A98<>"",VLOOKUP($A98,Base_Arbres,4,FALSE)*Crit2,"") ->  | D98: =IF(Base_Arbres!A98<>"",VLOOKUP($A98,Base_Arbres,5,FALSE)*Crit3,"") ->  | E98: =IF(Base_Arbres!A98<>"",VLOOKUP($A98,Base_Arbres,6,FALSE)*Crit4,"") ->  | F98: =IF(Base_Arbres!A98<>"",VLOOKUP($A98,Base_Arbres,7,FALSE)*Crit5,"") ->  | G98: =IF(ISNA(VLOOKUP(INDEX(Base_Typologie!$A$6:$R$1005,MATCH(A98,Base_Typologie!$A:$A,0)-5,MATCH(Typologie_Espace_Public,Base_Typologie!$6:$6,0)),TableauScoreTypologie,2,FALSE)*Crit6),0,VLOOKUP(INDEX(Base_Typologie!$A$6:$R$1005,MATCH(A98,Base_Typologie!$A:$A,0)-5,MATCH(Typologie_Espace_Public,Base_Typologie!$6:$6,0)),TableauScoreTypologie,2,FALSE)*Crit6) -> 0 | H98: =IF(Base_Arbres!G98<>"",VLOOKUP($A98,Base_Arbres,8,FALSE)*Crit7,"") ->  | I98: =IF(A98<>"",IF(LEFT(VLOOKUP($A98,Base_Arbres,9,FALSE),1)>=LEFT(Cont_Racines,1),0,1),0) -> 0 | J98: =IF(A98<>"",IF(LEFT(VLOOKUP($A98,Base_Arbres,10,FALSE),1)>=LEFT(Cont_Branches,1),0,1),0) -> 0 | K98: =IF(A98<>"",IF(LEFT(VLOOKUP($A98,Base_Arbres,11,FALSE),1)>=LEFT(Cont_Chablis,1),0,1),0) -> 0 | L98: =IF(A98<>"",IF(LEFT(VLOOKUP($A98,Base_Arbres,12,FALSE),1)>=LEFT(Cont_Fructifications,1),0,1),0) -> 0 | M98: =IF(A98<>"",IF(LEFT(VLOOKUP($A98,Base_Arbres,13,FALSE),1)>=LEFT(Cont_Miellat,1),0,1),0) -> 0 | N98: =IF(A98<>"",IF(LEFT(VLOOKUP($A98,Base_Arbres,14,FALSE),1)>=LEFT(Cont_Fruits_Toxiques,1),0,1),0) -> 0 | O98: =IF(A98<>"",IF(LEFT(VLOOKUP($A98,Base_Arbres,15,FALSE),1)>=LEFT(Cont_Hauteur,1),0,1),0) -> 0 | P98: =IF(A98<>"",IF(LEFT(VLOOKUP($A98,Base_Arbres,16,FALSE),1)>=LEFT(Cont_Envergure,1),0,1),0) -> 0 | Q98: =SUM(B98:H98)*I98*J98*K98*L98*M98*N98*O98*P98 -> 0
A99: =IF(Base_Arbres!A99<>"",Base_Arbres!A99,"") ->  | B99: =IF(Base_Arbres!A99<>"",VLOOKUP($A99,Base_Arbres,3,FALSE)*Crit1,"") ->  | C99: =IF(Base_Arbres!A99<>"",VLOOKUP($A99,Base_Arbres,4,FALSE)*Crit2,"") ->  | D99: =IF(Base_Arbres!A99<>"",VLOOKUP($A99,Base_Arbres,5,FALSE)*Crit3,"") ->  | E99: =IF(Base_Arbres!A99<>"",VLOOKUP($A99,Base_Arbres,6,FALSE)*Crit4,"") ->  | F99: =IF(Base_Arbres!A99<>"",VLOOKUP($A99,Base_Arbres,7,FALSE)*Crit5,"") ->  | G99: =IF(ISNA(VLOOKUP(INDEX(Base_Typologie!$A$6:$R$1005,MATCH(A99,Base_Typologie!$A:$A,0)-5,MATCH(Typologie_Espace_Public,Base_Typologie!$6:$6,0)),TableauScoreTypologie,2,FALSE)*Crit6),0,VLOOKUP(INDEX(Base_Typologie!$A$6:$R$1005,MATCH(A99,Base_Typologie!$A:$A,0)-5,MATCH(Typologie_Espace_Public,Base_Typologie!$6:$6,0)),TableauScoreTypologie,2,FALSE)*Crit6) -> 0 | H99: =IF(Base_Arbres!G99<>"",VLOOKUP($A99,Base_Arbres,8,FALSE)*Crit7,"") ->  | I99: =IF(A99<>"",IF(LEFT(VLOOKUP($A99,Base_Arbres,9,FALSE),1)>=LEFT(Cont_Racines,1),0,1),0) -> 0 | J99: =IF(A99<>"",IF(LEFT(VLOOKUP($A99,Base_Arbres,10,FALSE),1)>=LEFT(Cont_Branches,1),0,1),0) -> 0 | K99: =IF(A99<>"",IF(LEFT(VLOOKUP($A99,Base_Arbres,11,FALSE),1)>=LEFT(Cont_Chablis,1),0,1),0) -> 0 | L99: =IF(A99<>"",IF(LEFT(VLOOKUP($A99,Base_Arbres,12,FALSE),1)>=LEFT(Cont_Fructifications,1),0,1),0) -> 0 | M99: =IF(A99<>"",IF(LEFT(VLOOKUP($A99,Base_Arbres,13,FALSE),1)>=LEFT(Cont_Miellat,1),0,1),0) -> 0 | N99: =IF(A99<>"",IF(LEFT(VLOOKUP($A99,Base_Arbres,14,FALSE),1)>=LEFT(Cont_Fruits_Toxiques,1),0,1),0) -> 0 | O99: =IF(A99<>"",IF(LEFT(VLOOKUP($A99,Base_Arbres,15,FALSE),1)>=LEFT(Cont_Hauteur,1),0,1),0) -> 0 | P99: =IF(A99<>"",IF(LEFT(VLOOKUP($A99,Base_Arbres,16,FALSE),1)>=LEFT(Cont_Envergure,1),0,1),0) -> 0 | Q99: =SUM(B99:H99)*I99*J99*K99*L99*M99*N99*O99*P99 -> 0
A100: =IF(Base_Arbres!A100<>"",Base_Arbres!A100,"") ->  | B100: =IF(Base_Arbres!A100<>"",VLOOKUP($A100,Base_Arbres,3,FALSE)*Crit1,"") ->  | C100: =IF(Base_Arbres!A100<>"",VLOOKUP($A100,Base_Arbres,4,FALSE)*Crit2,"") ->  | D100: =IF(Base_Arbres!A100<>"",VLOOKUP($A100,Base_Arbres,5,FALSE)*Crit3,"") ->  | E100: =IF(Base_Arbres!A100<>"",VLOOKUP($A100,Base_Arbres,6,FALSE)*Crit4,"") ->  | F100: =IF(Base_Arbres!A100<>"",VLOOKUP($A100,Base_Arbres,7,FALSE)*Crit5,"") ->  | G100: =IF(ISNA(VLOOKUP(INDEX(Base_Typologie!$A$6:$R$1005,MATCH(A100,Base_Typologie!$A:$A,0)-5,MATCH(Typologie_Espace_Public,Base_Typologie!$6:$6,0)),TableauScoreTypologie,2,FALSE)*Crit6),0,VLOOKUP(INDEX(Base_Typologie!$A$6:$R$1005,MATCH(A100,Base_Typologie!$A:$A,0)-5,MATCH(Typologie_Espace_Public,Base_Typologie!$6:$6,0)),TableauScoreTypologie,2,FALSE)*Crit6) -> 0 | H100: =IF(Base_Arbres!G100<>"",VLOOKUP($A100,Base_Arbres,8,FALSE)*Crit7,"") ->  | I100: =IF(A100<>"",IF(LEFT(VLOOKUP($A100,Base_Arbres,9,FALSE),1)>=LEFT(Cont_Racines,1),0,1),0) -> 0 | J100: =IF(A100<>"",IF(LEFT(VLOOKUP($A100,Base_Arbres,10,FALSE),1)>=LEFT(Cont_Branches,1),0,1),0) -> 0 | K100: =IF(A100<>"",IF(LEFT(VLOOKUP($A100,Base_Arbres,11,FALSE),1)>=LEFT(Cont_Chablis,1),0,1),0) -> 0 | L100: =IF(A100<>"",IF(LEFT(VLOOKUP($A100,Base_Arbres,12,FALSE),1)>=LEFT(Cont_Fructifications,1),0,1),0) -> 0 | M100: =IF(A100<>"",IF(LEFT(VLOOKUP($A100,Base_Arbres,13,FALSE),1)>=LEFT(Cont_Miellat,1),0,1),0) -> 0 | N100: =IF(A100<>"",IF(LEFT(VLOOKUP($A100,Base_Arbres,14,FALSE),1)>=LEFT(Cont_Fruits_Toxiques,1),0,1),0) -> 0 | O100: =IF(A100<>"",IF(LEFT(VLOOKUP($A100,Base_Arbres,15,FALSE),1)>=LEFT(Cont_Hauteur,1),0,1),0) -> 0 | P100: =IF(A100<>"",IF(LEFT(VLOOKUP($A100,Base_Arbres,16,FALSE),1)>=LEFT(Cont_Envergure,1),0,1),0) -> 0 | Q100: =SUM(B100:H100)*I100*J100*K100*L100*M100*N100*O100*P100 -> 0
A101: =IF(Base_Arbres!A101<>"",Base_Arbres!A101,"") ->  | B101: =IF(Base_Arbres!A101<>"",VLOOKUP($A101,Base_Arbres,3,FALSE)*Crit1,"") ->  | C101: =IF(Base_Arbres!A101<>"",VLOOKUP($A101,Base_Arbres,4,FALSE)*Crit2,"") ->  | D101: =IF(Base_Arbres!A101<>"",VLOOKUP($A101,Base_Arbres,5,FALSE)*Crit3,"") ->  | E101: =IF(Base_Arbres!A101<>"",VLOOKUP($A101,Base_Arbres,6,FALSE)*Crit4,"") ->  | F101: =IF(Base_Arbres!A101<>"",VLOOKUP($A101,Base_Arbres,7,FALSE)*Crit5,"") ->  | G101: =IF(ISNA(VLOOKUP(INDEX(Base_Typologie!$A$6:$R$1005,MATCH(A101,Base_Typologie!$A:$A,0)-5,MATCH(Typologie_Espace_Public,Base_Typologie!$6:$6,0)),TableauScoreTypologie,2,FALSE)*Crit6),0,VLOOKUP(INDEX(Base_Typologie!$A$6:$R$1005,MATCH(A101,Base_Typologie!$A:$A,0)-5,MATCH(Typologie_Espace_Public,Base_Typologie!$6:$6,0)),TableauScoreTypologie,2,FALSE)*Crit6) -> 0 | H101: =IF(Base_Arbres!G101<>"",VLOOKUP($A101,Base_Arbres,8,FALSE)*Crit7,"") ->  | I101: =IF(A101<>"",IF(LEFT(VLOOKUP($A101,Base_Arbres,9,FALSE),1)>=LEFT(Cont_Racines,1),0,1),0) -> 0 | J101: =IF(A101<>"",IF(LEFT(VLOOKUP($A101,Base_Arbres,10,FALSE),1)>=LEFT(Cont_Branches,1),0,1),0) -> 0 | K101: =IF(A101<>"",IF(LEFT(VLOOKUP($A101,Base_Arbres,11,FALSE),1)>=LEFT(Cont_Chablis,1),0,1),0) -> 0 | L101: =IF(A101<>"",IF(LEFT(VLOOKUP($A101,Base_Arbres,12,FALSE),1)>=LEFT(Cont_Fructifications,1),0,1),0) -> 0 | M101: =IF(A101<>"",IF(LEFT(VLOOKUP($A101,Base_Arbres,13,FALSE),1)>=LEFT(Cont_Miellat,1),0,1),0) -> 0 | N101: =IF(A101<>"",IF(LEFT(VLOOKUP($A101,Base_Arbres,14,FALSE),1)>=LEFT(Cont_Fruits_Toxiques,1),0,1),0) -> 0 | O101: =IF(A101<>"",IF(LEFT(VLOOKUP($A101,Base_Arbres,15,FALSE),1)>=LEFT(Cont_Hauteur,1),0,1),0) -> 0 | P101: =IF(A101<>"",IF(LEFT(VLOOKUP($A101,Base_Arbres,16,FALSE),1)>=LEFT(Cont_Envergure,1),0,1),0) -> 0 | Q101: =SUM(B101:H101)*I101*J101*K101*L101*M101*N101*O101*P101 -> 0
A102: =IF(Base_Arbres!A102<>"",Base_Arbres!A102,"") ->  | B102: =IF(Base_Arbres!A102<>"",VLOOKUP($A102,Base_Arbres,3,FALSE)*Crit1,"") ->  | C102: =IF(Base_Arbres!A102<>"",VLOOKUP($A102,Base_Arbres,4,FALSE)*Crit2,"") ->  | D102: =IF(Base_Arbres!A102<>"",VLOOKUP($A102,Base_Arbres,5,FALSE)*Crit3,"") ->  | E102: =IF(Base_Arbres!A102<>"",VLOOKUP($A102,Base_Arbres,6,FALSE)*Crit4,"") ->  | F102: =IF(Base_Arbres!A102<>"",VLOOKUP($A102,Base_Arbres,7,FALSE)*Crit5,"") ->  | G102: =IF(ISNA(VLOOKUP(INDEX(Base_Typologie!$A$6:$R$1005,MATCH(A102,Base_Typologie!$A:$A,0)-5,MATCH(Typologie_Espace_Public,Base_Typologie!$6:$6,0)),TableauScoreTypologie,2,FALSE)*Crit6),0,VLOOKUP(INDEX(Base_Typologie!$A$6:$R$1005,MATCH(A102,Base_Typologie!$A:$A,0)-5,MATCH(Typologie_Espace_Public,Base_Typologie!$6:$6,0)),TableauScoreTypologie,2,FALSE)*Crit6) -> 0 | H102: =IF(Base_Arbres!G102<>"",VLOOKUP($A102,Base_Arbres,8,FALSE)*Crit7,"") ->  | I102: =IF(A102<>"",IF(LEFT(VLOOKUP($A102,Base_Arbres,9,FALSE),1)>=LEFT(Cont_Racines,1),0,1),0) -> 0 | J102: =IF(A102<>"",IF(LEFT(VLOOKUP($A102,Base_Arbres,10,FALSE),1)>=LEFT(Cont_Branches,1),0,1),0) -> 0 | K102: =IF(A102<>"",IF(LEFT(VLOOKUP($A102,Base_Arbres,11,FALSE),1)>=LEFT(Cont_Chablis,1),0,1),0) -> 0 | L102: =IF(A102<>"",IF(LEFT(VLOOKUP($A102,Base_Arbres,12,FALSE),1)>=LEFT(Cont_Fructifications,1),0,1),0) -> 0 | M102: =IF(A102<>"",IF(LEFT(VLOOKUP($A102,Base_Arbres,13,FALSE),1)>=LEFT(Cont_Miellat,1),0,1),0) -> 0 | N102: =IF(A102<>"",IF(LEFT(VLOOKUP($A102,Base_Arbres,14,FALSE),1)>=LEFT(Cont_Fruits_Toxiques,1),0,1),0) -> 0 | O102: =IF(A102<>"",IF(LEFT(VLOOKUP($A102,Base_Arbres,15,FALSE),1)>=LEFT(Cont_Hauteur,1),0,1),0) -> 0 | P102: =IF(A102<>"",IF(LEFT(VLOOKUP($A102,Base_Arbres,16,FALSE),1)>=LEFT(Cont_Envergure,1),0,1),0) -> 0 | Q102: =SUM(B102:H102)*I102*J102*K102*L102*M102*N102*O102*P102 -> 0
A103: =IF(Base_Arbres!A103<>"",Base_Arbres!A103,"") ->  | B103: =IF(Base_Arbres!A103<>"",VLOOKUP($A103,Base_Arbres,3,FALSE)*Crit1,"") ->  | C103: =IF(Base_Arbres!A103<>"",VLOOKUP($A103,Base_Arbres,4,FALSE)*Crit2,"") ->  | D103: =IF(Base_Arbres!A103<>"",VLOOKUP($A103,Base_Arbres,5,FALSE)*Crit3,"") ->  | E103: =IF(Base_Arbres!A103<>"",VLOOKUP($A103,Base_Arbres,6,FALSE)*Crit4,"") ->  | F103: =IF(Base_Arbres!A103<>"",VLOOKUP($A103,Base_Arbres,7,FALSE)*Crit5,"") ->  | G103: =IF(ISNA(VLOOKUP(INDEX(Base_Typologie!$A$6:$R$1005,MATCH(A103,Base_Typologie!$A:$A,0)-5,MATCH(Typologie_Espace_Public,Base_Typologie!$6:$6,0)),TableauScoreTypologie,2,FALSE)*Crit6),0,VLOOKUP(INDEX(Base_Typologie!$A$6:$R$1005,MATCH(A103,Base_Typologie!$A:$A,0)-5,MATCH(Typologie_Espace_Public,Base_Typologie!$6:$6,0)),TableauScoreTypologie,2,FALSE)*Crit6) -> 0 | H103: =IF(Base_Arbres!G103<>"",VLOOKUP($A103,Base_Arbres,8,FALSE)*Crit7,"") ->  | I103: =IF(A103<>"",IF(LEFT(VLOOKUP($A103,Base_Arbres,9,FALSE),1)>=LEFT(Cont_Racines,1),0,1),0) -> 0 | J103: =IF(A103<>"",IF(LEFT(VLOOKUP($A103,Base_Arbres,10,FALSE),1)>=LEFT(Cont_Branches,1),0,1),0) -> 0 | K103: =IF(A103<>"",IF(LEFT(VLOOKUP($A103,Base_Arbres,11,FALSE),1)>=LEFT(Cont_Chablis,1),0,1),0) -> 0 | L103: =IF(A103<>"",IF(LEFT(VLOOKUP($A103,Base_Arbres,12,FALSE),1)>=LEFT(Cont_Fructifications,1),0,1),0) -> 0 | M103: =IF(A103<>"",IF(LEFT(VLOOKUP($A103,Base_Arbres,13,FALSE),1)>=LEFT(Cont_Miellat,1),0,1),0) -> 0 | N103: =IF(A103<>"",IF(LEFT(VLOOKUP($A103,Base_Arbres,14,FALSE),1)>=LEFT(Cont_Fruits_Toxiques,1),0,1),0) -> 0 | O103: =IF(A103<>"",IF(LEFT(VLOOKUP($A103,Base_Arbres,15,FALSE),1)>=LEFT(Cont_Hauteur,1),0,1),0) -> 0 | P103: =IF(A103<>"",IF(LEFT(VLOOKUP($A103,Base_Arbres,16,FALSE),1)>=LEFT(Cont_Envergure,1),0,1),0) -> 0 | Q103: =SUM(B103:H103)*I103*J103*K103*L103*M103*N103*O103*P103 -> 0
A104: =IF(Base_Arbres!A104<>"",Base_Arbres!A104,"") ->  | B104: =IF(Base_Arbres!A104<>"",VLOOKUP($A104,Base_Arbres,3,FALSE)*Crit1,"") ->  | C104: =IF(Base_Arbres!A104<>"",VLOOKUP($A104,Base_Arbres,4,FALSE)*Crit2,"") ->  | D104: =IF(Base_Arbres!A104<>"",VLOOKUP($A104,Base_Arbres,5,FALSE)*Crit3,"") ->  | E104: =IF(Base_Arbres!A104<>"",VLOOKUP($A104,Base_Arbres,6,FALSE)*Crit4,"") ->  | F104: =IF(Base_Arbres!A104<>"",VLOOKUP($A104,Base_Arbres,7,FALSE)*Crit5,"") ->  | G104: =IF(ISNA(VLOOKUP(INDEX(Base_Typologie!$A$6:$R$1005,MATCH(A104,Base_Typologie!$A:$A,0)-5,MATCH(Typologie_Espace_Public,Base_Typologie!$6:$6,0)),TableauScoreTypologie,2,FALSE)*Crit6),0,VLOOKUP(INDEX(Base_Typologie!$A$6:$R$1005,MATCH(A104,Base_Typologie!$A:$A,0)-5,MATCH(Typologie_Espace_Public,Base_Typologie!$6:$6,0)),TableauScoreTypologie,2,FALSE)*Crit6) -> 0 | H104: =IF(Base_Arbres!G104<>"",VLOOKUP($A104,Base_Arbres,8,FALSE)*Crit7,"") ->  | I104: =IF(A104<>"",IF(LEFT(VLOOKUP($A104,Base_Arbres,9,FALSE),1)>=LEFT(Cont_Racines,1),0,1),0) -> 0 | J104: =IF(A104<>"",IF(LEFT(VLOOKUP($A104,Base_Arbres,10,FALSE),1)>=LEFT(Cont_Branches,1),0,1),0) -> 0 | K104: =IF(A104<>"",IF(LEFT(VLOOKUP($A104,Base_Arbres,11,FALSE),1)>=LEFT(Cont_Chablis,1),0,1),0) -> 0 | L104: =IF(A104<>"",IF(LEFT(VLOOKUP($A104,Base_Arbres,12,FALSE),1)>=LEFT(Cont_Fructifications,1),0,1),0) -> 0 | M104: =IF(A104<>"",IF(LEFT(VLOOKUP($A104,Base_Arbres,13,FALSE),1)>=LEFT(Cont_Miellat,1),0,1),0) -> 0 | N104: =IF(A104<>"",IF(LEFT(VLOOKUP($A104,Base_Arbres,14,FALSE),1)>=LEFT(Cont_Fruits_Toxiques,1),0,1),0) -> 0 | O104: =IF(A104<>"",IF(LEFT(VLOOKUP($A104,Base_Arbres,15,FALSE),1)>=LEFT(Cont_Hauteur,1),0,1),0) -> 0 | P104: =IF(A104<>"",IF(LEFT(VLOOKUP($A104,Base_Arbres,16,FALSE),1)>=LEFT(Cont_Envergure,1),0,1),0) -> 0 | Q104: =SUM(B104:H104)*I104*J104*K104*L104*M104*N104*O104*P104 -> 0
A105: =IF(Base_Arbres!A105<>"",Base_Arbres!A105,"") ->  | B105: =IF(Base_Arbres!A105<>"",VLOOKUP($A105,Base_Arbres,3,FALSE)*Crit1,"") ->  | C105: =IF(Base_Arbres!A105<>"",VLOOKUP($A105,Base_Arbres,4,FALSE)*Crit2,"") ->  | D105: =IF(Base_Arbres!A105<>"",VLOOKUP($A105,Base_Arbres,5,FALSE)*Crit3,"") ->  | E105: =IF(Base_Arbres!A105<>"",VLOOKUP($A105,Base_Arbres,6,FALSE)*Crit4,"") ->  | F105: =IF(Base_Arbres!A105<>"",VLOOKUP($A105,Base_Arbres,7,FALSE)*Crit5,"") ->  | G105: =IF(ISNA(VLOOKUP(INDEX(Base_Typologie!$A$6:$R$1005,MATCH(A105,Base_Typologie!$A:$A,0)-5,MATCH(Typologie_Espace_Public,Base_Typologie!$6:$6,0)),TableauScoreTypologie,2,FALSE)*Crit6),0,VLOOKUP(INDEX(Base_Typologie!$A$6:$R$1005,MATCH(A105,Base_Typologie!$A:$A,0)-5,MATCH(Typologie_Espace_Public,Base_Typologie!$6:$6,0)),TableauScoreTypologie,2,FALSE)*Crit6) -> 0 | H105: =IF(Base_Arbres!G105<>"",VLOOKUP($A105,Base_Arbres,8,FALSE)*Crit7,"") ->  | I105: =IF(A105<>"",IF(LEFT(VLOOKUP($A105,Base_Arbres,9,FALSE),1)>=LEFT(Cont_Racines,1),0,1),0) -> 0 | J105: =IF(A105<>"",IF(LEFT(VLOOKUP($A105,Base_Arbres,10,FALSE),1)>=LEFT(Cont_Branches,1),0,1),0) -> 0 | K105: =IF(A105<>"",IF(LEFT(VLOOKUP($A105,Base_Arbres,11,FALSE),1)>=LEFT(Cont_Chablis,1),0,1),0) -> 0 | L105: =IF(A105<>"",IF(LEFT(VLOOKUP($A105,Base_Arbres,12,FALSE),1)>=LEFT(Cont_Fructifications,1),0,1),0) -> 0 | M105: =IF(A105<>"",IF(LEFT(VLOOKUP($A105,Base_Arbres,13,FALSE),1)>=LEFT(Cont_Miellat,1),0,1),0) -> 0 | N105: =IF(A105<>"",IF(LEFT(VLOOKUP($A105,Base_Arbres,14,FALSE),1)>=LEFT(Cont_Fruits_Toxiques,1),0,1),0) -> 0 | O105: =IF(A105<>"",IF(LEFT(VLOOKUP($A105,Base_Arbres,15,FALSE),1)>=LEFT(Cont_Hauteur,1),0,1),0) -> 0 | P105: =IF(A105<>"",IF(LEFT(VLOOKUP($A105,Base_Arbres,16,FALSE),1)>=LEFT(Cont_Envergure,1),0,1),0) -> 0 | Q105: =SUM(B105:H105)*I105*J105*K105*L105*M105*N105*O105*P105 -> 0
A106: =IF(Base_Arbres!A106<>"",Base_Arbres!A106,"") ->  | B106: =IF(Base_Arbres!A106<>"",VLOOKUP($A106,Base_Arbres,3,FALSE)*Crit1,"") ->  | C106: =IF(Base_Arbres!A106<>"",VLOOKUP($A106,Base_Arbres,4,FALSE)*Crit2,"") ->  | D106: =IF(Base_Arbres!A106<>"",VLOOKUP($A106,Base_Arbres,5,FALSE)*Crit3,"") ->  | E106: =IF(Base_Arbres!A106<>"",VLOOKUP($A106,Base_Arbres,6,FALSE)*Crit4,"") ->  | F106: =IF(Base_Arbres!A106<>"",VLOOKUP($A106,Base_Arbres,7,FALSE)*Crit5,"") ->  | G106: =IF(ISNA(VLOOKUP(INDEX(Base_Typologie!$A$6:$R$1005,MATCH(A106,Base_Typologie!$A:$A,0)-5,MATCH(Typologie_Espace_Public,Base_Typologie!$6:$6,0)),TableauScoreTypologie,2,FALSE)*Crit6),0,VLOOKUP(INDEX(Base_Typologie!$A$6:$R$1005,MATCH(A106,Base_Typologie!$A:$A,0)-5,MATCH(Typologie_Espace_Public,Base_Typologie!$6:$6,0)),TableauScoreTypologie,2,FALSE)*Crit6) -> 0 | H106: =IF(Base_Arbres!G106<>"",VLOOKUP($A106,Base_Arbres,8,FALSE)*Crit7,"") ->  | I106: =IF(A106<>"",IF(LEFT(VLOOKUP($A106,Base_Arbres,9,FALSE),1)>=LEFT(Cont_Racines,1),0,1),0) -> 0 | J106: =IF(A106<>"",IF(LEFT(VLOOKUP($A106,Base_Arbres,10,FALSE),1)>=LEFT(Cont_Branches,1),0,1),0) -> 0 | K106: =IF(A106<>"",IF(LEFT(VLOOKUP($A106,Base_Arbres,11,FALSE),1)>=LEFT(Cont_Chablis,1),0,1),0) -> 0 | L106: =IF(A106<>"",IF(LEFT(VLOOKUP($A106,Base_Arbres,12,FALSE),1)>=LEFT(Cont_Fructifications,1),0,1),0) -> 0 | M106: =IF(A106<>"",IF(LEFT(VLOOKUP($A106,Base_Arbres,13,FALSE),1)>=LEFT(Cont_Miellat,1),0,1),0) -> 0 | N106: =IF(A106<>"",IF(LEFT(VLOOKUP($A106,Base_Arbres,14,FALSE),1)>=LEFT(Cont_Fruits_Toxiques,1),0,1),0) -> 0 | O106: =IF(A106<>"",IF(LEFT(VLOOKUP($A106,Base_Arbres,15,FALSE),1)>=LEFT(Cont_Hauteur,1),0,1),0) -> 0 | P106: =IF(A106<>"",IF(LEFT(VLOOKUP($A106,Base_Arbres,16,FALSE),1)>=LEFT(Cont_Envergure,1),0,1),0) -> 0 | Q106: =SUM(B106:H106)*I106*J106*K106*L106*M106*N106*O106*P106 -> 0
A107: =IF(Base_Arbres!A107<>"",Base_Arbres!A107,"") ->  | B107: =IF(Base_Arbres!A107<>"",VLOOKUP($A107,Base_Arbres,3,FALSE)*Crit1,"") ->  | C107: =IF(Base_Arbres!A107<>"",VLOOKUP($A107,Base_Arbres,4,FALSE)*Crit2,"") ->  | D107: =IF(Base_Arbres!A107<>"",VLOOKUP($A107,Base_Arbres,5,FALSE)*Crit3,"") ->  | E107: =IF(Base_Arbres!A107<>"",VLOOKUP($A107,Base_Arbres,6,FALSE)*Crit4,"") ->  | F107: =IF(Base_Arbres!A107<>"",VLOOKUP($A107,Base_Arbres,7,FALSE)*Crit5,"") ->  | G107: =IF(ISNA(VLOOKUP(INDEX(Base_Typologie!$A$6:$R$1005,MATCH(A107,Base_Typologie!$A:$A,0)-5,MATCH(Typologie_Espace_Public,Base_Typologie!$6:$6,0)),TableauScoreTypologie,2,FALSE)*Crit6),0,VLOOKUP(INDEX(Base_Typologie!$A$6:$R$1005,MATCH(A107,Base_Typologie!$A:$A,0)-5,MATCH(Typologie_Espace_Public,Base_Typologie!$6:$6,0)),TableauScoreTypologie,2,FALSE)*Crit6) -> 0 | H107: =IF(Base_Arbres!G107<>"",VLOOKUP($A107,Base_Arbres,8,FALSE)*Crit7,"") ->  | I107: =IF(A107<>"",IF(LEFT(VLOOKUP($A107,Base_Arbres,9,FALSE),1)>=LEFT(Cont_Racines,1),0,1),0) -> 0 | J107: =IF(A107<>"",IF(LEFT(VLOOKUP($A107,Base_Arbres,10,FALSE),1)>=LEFT(Cont_Branches,1),0,1),0) -> 0 | K107: =IF(A107<>"",IF(LEFT(VLOOKUP($A107,Base_Arbres,11,FALSE),1)>=LEFT(Cont_Chablis,1),0,1),0) -> 0 | L107: =IF(A107<>"",IF(LEFT(VLOOKUP($A107,Base_Arbres,12,FALSE),1)>=LEFT(Cont_Fructifications,1),0,1),0) -> 0 | M107: =IF(A107<>"",IF(LEFT(VLOOKUP($A107,Base_Arbres,13,FALSE),1)>=LEFT(Cont_Miellat,1),0,1),0) -> 0 | N107: =IF(A107<>"",IF(LEFT(VLOOKUP($A107,Base_Arbres,14,FALSE),1)>=LEFT(Cont_Fruits_Toxiques,1),0,1),0) -> 0 | O107: =IF(A107<>"",IF(LEFT(VLOOKUP($A107,Base_Arbres,15,FALSE),1)>=LEFT(Cont_Hauteur,1),0,1),0) -> 0 | P107: =IF(A107<>"",IF(LEFT(VLOOKUP($A107,Base_Arbres,16,FALSE),1)>=LEFT(Cont_Envergure,1),0,1),0) -> 0 | Q107: =SUM(B107:H107)*I107*J107*K107*L107*M107*N107*O107*P107 -> 0
A108: =IF(Base_Arbres!A108<>"",Base_Arbres!A108,"") ->  | B108: =IF(Base_Arbres!A108<>"",VLOOKUP($A108,Base_Arbres,3,FALSE)*Crit1,"") ->  | C108: =IF(Base_Arbres!A108<>"",VLOOKUP($A108,Base_Arbres,4,FALSE)*Crit2,"") ->  | D108: =IF(Base_Arbres!A108<>"",VLOOKUP($A108,Base_Arbres,5,FALSE)*Crit3,"") ->  | E108: =IF(Base_Arbres!A108<>"",VLOOKUP($A108,Base_Arbres,6,FALSE)*Crit4,"") ->  | F108: =IF(Base_Arbres!A108<>"",VLOOKUP($A108,Base_Arbres,7,FALSE)*Crit5,"") ->  | G108: =IF(ISNA(VLOOKUP(INDEX(Base_Typologie!$A$6:$R$1005,MATCH(A108,Base_Typologie!$A:$A,0)-5,MATCH(Typologie_Espace_Public,Base_Typologie!$6:$6,0)),TableauScoreTypologie,2,FALSE)*Crit6),0,VLOOKUP(INDEX(Base_Typologie!$A$6:$R$1005,MATCH(A108,Base_Typologie!$A:$A,0)-5,MATCH(Typologie_Espace_Public,Base_Typologie!$6:$6,0)),TableauScoreTypologie,2,FALSE)*Crit6) -> 0 | H108: =IF(Base_Arbres!G108<>"",VLOOKUP($A108,Base_Arbres,8,FALSE)*Crit7,"") ->  | I108: =IF(A108<>"",IF(LEFT(VLOOKUP($A108,Base_Arbres,9,FALSE),1)>=LEFT(Cont_Racines,1),0,1),0) -> 0 | J108: =IF(A108<>"",IF(LEFT(VLOOKUP($A108,Base_Arbres,10,FALSE),1)>=LEFT(Cont_Branches,1),0,1),0) -> 0 | K108: =IF(A108<>"",IF(LEFT(VLOOKUP($A108,Base_Arbres,11,FALSE),1)>=LEFT(Cont_Chablis,1),0,1),0) -> 0 | L108: =IF(A108<>"",IF(LEFT(VLOOKUP($A108,Base_Arbres,12,FALSE),1)>=LEFT(Cont_Fructifications,1),0,1),0) -> 0 | M108: =IF(A108<>"",IF(LEFT(VLOOKUP($A108,Base_Arbres,13,FALSE),1)>=LEFT(Cont_Miellat,1),0,1),0) -> 0 | N108: =IF(A108<>"",IF(LEFT(VLOOKUP($A108,Base_Arbres,14,FALSE),1)>=LEFT(Cont_Fruits_Toxiques,1),0,1),0) -> 0 | O108: =IF(A108<>"",IF(LEFT(VLOOKUP($A108,Base_Arbres,15,FALSE),1)>=LEFT(Cont_Hauteur,1),0,1),0) -> 0 | P108: =IF(A108<>"",IF(LEFT(VLOOKUP($A108,Base_Arbres,16,FALSE),1)>=LEFT(Cont_Envergure,1),0,1),0) -> 0 | Q108: =SUM(B108:H108)*I108*J108*K108*L108*M108*N108*O108*P108 -> 0
A109: =IF(Base_Arbres!A109<>"",Base_Arbres!A109,"") ->  | B109: =IF(Base_Arbres!A109<>"",VLOOKUP($A109,Base_Arbres,3,FALSE)*Crit1,"") ->  | C109: =IF(Base_Arbres!A109<>"",VLOOKUP($A109,Base_Arbres,4,FALSE)*Crit2,"") ->  | D109: =IF(Base_Arbres!A109<>"",VLOOKUP($A109,Base_Arbres,5,FALSE)*Crit3,"") ->  | E109: =IF(Base_Arbres!A109<>"",VLOOKUP($A109,Base_Arbres,6,FALSE)*Crit4,"") ->  | F109: =IF(Base_Arbres!A109<>"",VLOOKUP($A109,Base_Arbres,7,FALSE)*Crit5,"") ->  | G109: =IF(ISNA(VLOOKUP(INDEX(Base_Typologie!$A$6:$R$1005,MATCH(A109,Base_Typologie!$A:$A,0)-5,MATCH(Typologie_Espace_Public,Base_Typologie!$6:$6,0)),TableauScoreTypologie,2,FALSE)*Crit6),0,VLOOKUP(INDEX(Base_Typologie!$A$6:$R$1005,MATCH(A109,Base_Typologie!$A:$A,0)-5,MATCH(Typologie_Espace_Public,Base_Typologie!$6:$6,0)),TableauScoreTypologie,2,FALSE)*Crit6) -> 0 | H109: =IF(Base_Arbres!G109<>"",VLOOKUP($A109,Base_Arbres,8,FALSE)*Crit7,"") ->  | I109: =IF(A109<>"",IF(LEFT(VLOOKUP($A109,Base_Arbres,9,FALSE),1)>=LEFT(Cont_Racines,1),0,1),0) -> 0 | J109: =IF(A109<>"",IF(LEFT(VLOOKUP($A109,Base_Arbres,10,FALSE),1)>=LEFT(Cont_Branches,1),0,1),0) -> 0 | K109: =IF(A109<>"",IF(LEFT(VLOOKUP($A109,Base_Arbres,11,FALSE),1)>=LEFT(Cont_Chablis,1),0,1),0) -> 0 | L109: =IF(A109<>"",IF(LEFT(VLOOKUP($A109,Base_Arbres,12,FALSE),1)>=LEFT(Cont_Fructifications,1),0,1),0) -> 0 | M109: =IF(A109<>"",IF(LEFT(VLOOKUP($A109,Base_Arbres,13,FALSE),1)>=LEFT(Cont_Miellat,1),0,1),0) -> 0 | N109: =IF(A109<>"",IF(LEFT(VLOOKUP($A109,Base_Arbres,14,FALSE),1)>=LEFT(Cont_Fruits_Toxiques,1),0,1),0) -> 0 | O109: =IF(A109<>"",IF(LEFT(VLOOKUP($A109,Base_Arbres,15,FALSE),1)>=LEFT(Cont_Hauteur,1),0,1),0) -> 0 | P109: =IF(A109<>"",IF(LEFT(VLOOKUP($A109,Base_Arbres,16,FALSE),1)>=LEFT(Cont_Envergure,1),0,1),0) -> 0 | Q109: =SUM(B109:H109)*I109*J109*K109*L109*M109*N109*O109*P109 -> 0
A110: =IF(Base_Arbres!A110<>"",Base_Arbres!A110,"") ->  | B110: =IF(Base_Arbres!A110<>"",VLOOKUP($A110,Base_Arbres,3,FALSE)*Crit1,"") ->  | C110: =IF(Base_Arbres!A110<>"",VLOOKUP($A110,Base_Arbres,4,FALSE)*Crit2,"") ->  | D110: =IF(Base_Arbres!A110<>"",VLOOKUP($A110,Base_Arbres,5,FALSE)*Crit3,"") ->  | E110: =IF(Base_Arbres!A110<>"",VLOOKUP($A110,Base_Arbres,6,FALSE)*Crit4,"") ->  | F110: =IF(Base_Arbres!A110<>"",VLOOKUP($A110,Base_Arbres,7,FALSE)*Crit5,"") ->  | G110: =IF(ISNA(VLOOKUP(INDEX(Base_Typologie!$A$6:$R$1005,MATCH(A110,Base_Typologie!$A:$A,0)-5,MATCH(Typologie_Espace_Public,Base_Typologie!$6:$6,0)),TableauScoreTypologie,2,FALSE)*Crit6),0,VLOOKUP(INDEX(Base_Typologie!$A$6:$R$1005,MATCH(A110,Base_Typologie!$A:$A,0)-5,MATCH(Typologie_Espace_Public,Base_Typologie!$6:$6,0)),TableauScoreTypologie,2,FALSE)*Crit6) -> 0 | H110: =IF(Base_Arbres!G110<>"",VLOOKUP($A110,Base_Arbres,8,FALSE)*Crit7,"") ->  | I110: =IF(A110<>"",IF(LEFT(VLOOKUP($A110,Base_Arbres,9,FALSE),1)>=LEFT(Cont_Racines,1),0,1),0) -> 0 | J110: =IF(A110<>"",IF(LEFT(VLOOKUP($A110,Base_Arbres,10,FALSE),1)>=LEFT(Cont_Branches,1),0,1),0) -> 0 | K110: =IF(A110<>"",IF(LEFT(VLOOKUP($A110,Base_Arbres,11,FALSE),1)>=LEFT(Cont_Chablis,1),0,1),0) -> 0 | L110: =IF(A110<>"",IF(LEFT(VLOOKUP($A110,Base_Arbres,12,FALSE),1)>=LEFT(Cont_Fructifications,1),0,1),0) -> 0 | M110: =IF(A110<>"",IF(LEFT(VLOOKUP($A110,Base_Arbres,13,FALSE),1)>=LEFT(Cont_Miellat,1),0,1),0) -> 0 | N110: =IF(A110<>"",IF(LEFT(VLOOKUP($A110,Base_Arbres,14,FALSE),1)>=LEFT(Cont_Fruits_Toxiques,1),0,1),0) -> 0 | O110: =IF(A110<>"",IF(LEFT(VLOOKUP($A110,Base_Arbres,15,FALSE),1)>=LEFT(Cont_Hauteur,1),0,1),0) -> 0 | P110: =IF(A110<>"",IF(LEFT(VLOOKUP($A110,Base_Arbres,16,FALSE),1)>=LEFT(Cont_Envergure,1),0,1),0) -> 0 | Q110: =SUM(B110:H110)*I110*J110*K110*L110*M110*N110*O110*P110 -> 0
A111: =IF(Base_Arbres!A111<>"",Base_Arbres!A111,"") ->  | B111: =IF(Base_Arbres!A111<>"",VLOOKUP($A111,Base_Arbres,3,FALSE)*Crit1,"") ->  | C111: =IF(Base_Arbres!A111<>"",VLOOKUP($A111,Base_Arbres,4,FALSE)*Crit2,"") ->  | D111: =IF(Base_Arbres!A111<>"",VLOOKUP($A111,Base_Arbres,5,FALSE)*Crit3,"") ->  | E111: =IF(Base_Arbres!A111<>"",VLOOKUP($A111,Base_Arbres,6,FALSE)*Crit4,"") ->  | F111: =IF(Base_Arbres!A111<>"",VLOOKUP($A111,Base_Arbres,7,FALSE)*Crit5,"") ->  | G111: =IF(ISNA(VLOOKUP(INDEX(Base_Typologie!$A$6:$R$1005,MATCH(A111,Base_Typologie!$A:$A,0)-5,MATCH(Typologie_Espace_Public,Base_Typologie!$6:$6,0)),TableauScoreTypologie,2,FALSE)*Crit6),0,VLOOKUP(INDEX(Base_Typologie!$A$6:$R$1005,MATCH(A111,Base_Typologie!$A:$A,0)-5,MATCH(Typologie_Espace_Public,Base_Typologie!$6:$6,0)),TableauScoreTypologie,2,FALSE)*Crit6) -> 0 | H111: =IF(Base_Arbres!G111<>"",VLOOKUP($A111,Base_Arbres,8,FALSE)*Crit7,"") ->  | I111: =IF(A111<>"",IF(LEFT(VLOOKUP($A111,Base_Arbres,9,FALSE),1)>=LEFT(Cont_Racines,1),0,1),0) -> 0 | J111: =IF(A111<>"",IF(LEFT(VLOOKUP($A111,Base_Arbres,10,FALSE),1)>=LEFT(Cont_Branches,1),0,1),0) -> 0 | K111: =IF(A111<>"",IF(LEFT(VLOOKUP($A111,Base_Arbres,11,FALSE),1)>=LEFT(Cont_Chablis,1),0,1),0) -> 0 | L111: =IF(A111<>"",IF(LEFT(VLOOKUP($A111,Base_Arbres,12,FALSE),1)>=LEFT(Cont_Fructifications,1),0,1),0) -> 0 | M111: =IF(A111<>"",IF(LEFT(VLOOKUP($A111,Base_Arbres,13,FALSE),1)>=LEFT(Cont_Miellat,1),0,1),0) -> 0 | N111: =IF(A111<>"",IF(LEFT(VLOOKUP($A111,Base_Arbres,14,FALSE),1)>=LEFT(Cont_Fruits_Toxiques,1),0,1),0) -> 0 | O111: =IF(A111<>"",IF(LEFT(VLOOKUP($A111,Base_Arbres,15,FALSE),1)>=LEFT(Cont_Hauteur,1),0,1),0) -> 0 | P111: =IF(A111<>"",IF(LEFT(VLOOKUP($A111,Base_Arbres,16,FALSE),1)>=LEFT(Cont_Envergure,1),0,1),0) -> 0 | Q111: =SUM(B111:H111)*I111*J111*K111*L111*M111*N111*O111*P111 -> 0
A112: =IF(Base_Arbres!A112<>"",Base_Arbres!A112,"") ->  | B112: =IF(Base_Arbres!A112<>"",VLOOKUP($A112,Base_Arbres,3,FALSE)*Crit1,"") ->  | C112: =IF(Base_Arbres!A112<>"",VLOOKUP($A112,Base_Arbres,4,FALSE)*Crit2,"") ->  | D112: =IF(Base_Arbres!A112<>"",VLOOKUP($A112,Base_Arbres,5,FALSE)*Crit3,"") ->  | E112: =IF(Base_Arbres!A112<>"",VLOOKUP($A112,Base_Arbres,6,FALSE)*Crit4,"") ->  | F112: =IF(Base_Arbres!A112<>"",VLOOKUP($A112,Base_Arbres,7,FALSE)*Crit5,"") ->  | G112: =IF(ISNA(VLOOKUP(INDEX(Base_Typologie!$A$6:$R$1005,MATCH(A112,Base_Typologie!$A:$A,0)-5,MATCH(Typologie_Espace_Public,Base_Typologie!$6:$6,0)),TableauScoreTypologie,2,FALSE)*Crit6),0,VLOOKUP(INDEX(Base_Typologie!$A$6:$R$1005,MATCH(A112,Base_Typologie!$A:$A,0)-5,MATCH(Typologie_Espace_Public,Base_Typologie!$6:$6,0)),TableauScoreTypologie,2,FALSE)*Crit6) -> 0 | H112: =IF(Base_Arbres!G112<>"",VLOOKUP($A112,Base_Arbres,8,FALSE)*Crit7,"") ->  | I112: =IF(A112<>"",IF(LEFT(VLOOKUP($A112,Base_Arbres,9,FALSE),1)>=LEFT(Cont_Racines,1),0,1),0) -> 0 | J112: =IF(A112<>"",IF(LEFT(VLOOKUP($A112,Base_Arbres,10,FALSE),1)>=LEFT(Cont_Branches,1),0,1),0) -> 0 | K112: =IF(A112<>"",IF(LEFT(VLOOKUP($A112,Base_Arbres,11,FALSE),1)>=LEFT(Cont_Chablis,1),0,1),0) -> 0 | L112: =IF(A112<>"",IF(LEFT(VLOOKUP($A112,Base_Arbres,12,FALSE),1)>=LEFT(Cont_Fructifications,1),0,1),0) -> 0 | M112: =IF(A112<>"",IF(LEFT(VLOOKUP($A112,Base_Arbres,13,FALSE),1)>=LEFT(Cont_Miellat,1),0,1),0) -> 0 | N112: =IF(A112<>"",IF(LEFT(VLOOKUP($A112,Base_Arbres,14,FALSE),1)>=LEFT(Cont_Fruits_Toxiques,1),0,1),0) -> 0 | O112: =IF(A112<>"",IF(LEFT(VLOOKUP($A112,Base_Arbres,15,FALSE),1)>=LEFT(Cont_Hauteur,1),0,1),0) -> 0 | P112: =IF(A112<>"",IF(LEFT(VLOOKUP($A112,Base_Arbres,16,FALSE),1)>=LEFT(Cont_Envergure,1),0,1),0) -> 0 | Q112: =SUM(B112:H112)*I112*J112*K112*L112*M112*N112*O112*P112 -> 0
A113: =IF(Base_Arbres!A113<>"",Base_Arbres!A113,"") ->  | B113: =IF(Base_Arbres!A113<>"",VLOOKUP($A113,Base_Arbres,3,FALSE)*Crit1,"") ->  | C113: =IF(Base_Arbres!A113<>"",VLOOKUP($A113,Base_Arbres,4,FALSE)*Crit2,"") ->  | D113: =IF(Base_Arbres!A113<>"",VLOOKUP($A113,Base_Arbres,5,FALSE)*Crit3,"") ->  | E113: =IF(Base_Arbres!A113<>"",VLOOKUP($A113,Base_Arbres,6,FALSE)*Crit4,"") ->  | F113: =IF(Base_Arbres!A113<>"",VLOOKUP($A113,Base_Arbres,7,FALSE)*Crit5,"") ->  | G113: =IF(ISNA(VLOOKUP(INDEX(Base_Typologie!$A$6:$R$1005,MATCH(A113,Base_Typologie!$A:$A,0)-5,MATCH(Typologie_Espace_Public,Base_Typologie!$6:$6,0)),TableauScoreTypologie,2,FALSE)*Crit6),0,VLOOKUP(INDEX(Base_Typologie!$A$6:$R$1005,MATCH(A113,Base_Typologie!$A:$A,0)-5,MATCH(Typologie_Espace_Public,Base_Typologie!$6:$6,0)),TableauScoreTypologie,2,FALSE)*Crit6) -> 0 | H113: =IF(Base_Arbres!G113<>"",VLOOKUP($A113,Base_Arbres,8,FALSE)*Crit7,"") ->  | I113: =IF(A113<>"",IF(LEFT(VLOOKUP($A113,Base_Arbres,9,FALSE),1)>=LEFT(Cont_Racines,1),0,1),0) -> 0 | J113: =IF(A113<>"",IF(LEFT(VLOOKUP($A113,Base_Arbres,10,FALSE),1)>=LEFT(Cont_Branches,1),0,1),0) -> 0 | K113: =IF(A113<>"",IF(LEFT(VLOOKUP($A113,Base_Arbres,11,FALSE),1)>=LEFT(Cont_Chablis,1),0,1),0) -> 0 | L113: =IF(A113<>"",IF(LEFT(VLOOKUP($A113,Base_Arbres,12,FALSE),1)>=LEFT(Cont_Fructifications,1),0,1),0) -> 0 | M113: =IF(A113<>"",IF(LEFT(VLOOKUP($A113,Base_Arbres,13,FALSE),1)>=LEFT(Cont_Miellat,1),0,1),0) -> 0 | N113: =IF(A113<>"",IF(LEFT(VLOOKUP($A113,Base_Arbres,14,FALSE),1)>=LEFT(Cont_Fruits_Toxiques,1),0,1),0) -> 0 | O113: =IF(A113<>"",IF(LEFT(VLOOKUP($A113,Base_Arbres,15,FALSE),1)>=LEFT(Cont_Hauteur,1),0,1),0) -> 0 | P113: =IF(A113<>"",IF(LEFT(VLOOKUP($A113,Base_Arbres,16,FALSE),1)>=LEFT(Cont_Envergure,1),0,1),0) -> 0 | Q113: =SUM(B113:H113)*I113*J113*K113*L113*M113*N113*O113*P113 -> 0
A114: =IF(Base_Arbres!A114<>"",Base_Arbres!A114,"") ->  | B114: =IF(Base_Arbres!A114<>"",VLOOKUP($A114,Base_Arbres,3,FALSE)*Crit1,"") ->  | C114: =IF(Base_Arbres!A114<>"",VLOOKUP($A114,Base_Arbres,4,FALSE)*Crit2,"") ->  | D114: =IF(Base_Arbres!A114<>"",VLOOKUP($A114,Base_Arbres,5,FALSE)*Crit3,"") ->  | E114: =IF(Base_Arbres!A114<>"",VLOOKUP($A114,Base_Arbres,6,FALSE)*Crit4,"") ->  | F114: =IF(Base_Arbres!A114<>"",VLOOKUP($A114,Base_Arbres,7,FALSE)*Crit5,"") ->  | G114: =IF(ISNA(VLOOKUP(INDEX(Base_Typologie!$A$6:$R$1005,MATCH(A114,Base_Typologie!$A:$A,0)-5,MATCH(Typologie_Espace_Public,Base_Typologie!$6:$6,0)),TableauScoreTypologie,2,FALSE)*Crit6),0,VLOOKUP(INDEX(Base_Typologie!$A$6:$R$1005,MATCH(A114,Base_Typologie!$A:$A,0)-5,MATCH(Typologie_Espace_Public,Base_Typologie!$6:$6,0)),TableauScoreTypologie,2,FALSE)*Crit6) -> 0 | H114: =IF(Base_Arbres!G114<>"",VLOOKUP($A114,Base_Arbres,8,FALSE)*Crit7,"") ->  | I114: =IF(A114<>"",IF(LEFT(VLOOKUP($A114,Base_Arbres,9,FALSE),1)>=LEFT(Cont_Racines,1),0,1),0) -> 0 | J114: =IF(A114<>"",IF(LEFT(VLOOKUP($A114,Base_Arbres,10,FALSE),1)>=LEFT(Cont_Branches,1),0,1),0) -> 0 | K114: =IF(A114<>"",IF(LEFT(VLOOKUP($A114,Base_Arbres,11,FALSE),1)>=LEFT(Cont_Chablis,1),0,1),0) -> 0 | L114: =IF(A114<>"",IF(LEFT(VLOOKUP($A114,Base_Arbres,12,FALSE),1)>=LEFT(Cont_Fructifications,1),0,1),0) -> 0 | M114: =IF(A114<>"",IF(LEFT(VLOOKUP($A114,Base_Arbres,13,FALSE),1)>=LEFT(Cont_Miellat,1),0,1),0) -> 0 | N114: =IF(A114<>"",IF(LEFT(VLOOKUP($A114,Base_Arbres,14,FALSE),1)>=LEFT(Cont_Fruits_Toxiques,1),0,1),0) -> 0 | O114: =IF(A114<>"",IF(LEFT(VLOOKUP($A114,Base_Arbres,15,FALSE),1)>=LEFT(Cont_Hauteur,1),0,1),0) -> 0 | P114: =IF(A114<>"",IF(LEFT(VLOOKUP($A114,Base_Arbres,16,FALSE),1)>=LEFT(Cont_Envergure,1),0,1),0) -> 0 | Q114: =SUM(B114:H114)*I114*J114*K114*L114*M114*N114*O114*P114 -> 0
A115: =IF(Base_Arbres!A115<>"",Base_Arbres!A115,"") ->  | B115: =IF(Base_Arbres!A115<>"",VLOOKUP($A115,Base_Arbres,3,FALSE)*Crit1,"") ->  | C115: =IF(Base_Arbres!A115<>"",VLOOKUP($A115,Base_Arbres,4,FALSE)*Crit2,"") ->  | D115: =IF(Base_Arbres!A115<>"",VLOOKUP($A115,Base_Arbres,5,FALSE)*Crit3,"") ->  | E115: =IF(Base_Arbres!A115<>"",VLOOKUP($A115,Base_Arbres,6,FALSE)*Crit4,"") ->  | F115: =IF(Base_Arbres!A115<>"",VLOOKUP($A115,Base_Arbres,7,FALSE)*Crit5,"") ->  | G115: =IF(ISNA(VLOOKUP(INDEX(Base_Typologie!$A$6:$R$1005,MATCH(A115,Base_Typologie!$A:$A,0)-5,MATCH(Typologie_Espace_Public,Base_Typologie!$6:$6,0)),TableauScoreTypologie,2,FALSE)*Crit6),0,VLOOKUP(INDEX(Base_Typologie!$A$6:$R$1005,MATCH(A115,Base_Typologie!$A:$A,0)-5,MATCH(Typologie_Espace_Public,Base_Typologie!$6:$6,0)),TableauScoreTypologie,2,FALSE)*Crit6) -> 0 | H115: =IF(Base_Arbres!G115<>"",VLOOKUP($A115,Base_Arbres,8,FALSE)*Crit7,"") ->  | I115: =IF(A115<>"",IF(LEFT(VLOOKUP($A115,Base_Arbres,9,FALSE),1)>=LEFT(Cont_Racines,1),0,1),0) -> 0 | J115: =IF(A115<>"",IF(LEFT(VLOOKUP($A115,Base_Arbres,10,FALSE),1)>=LEFT(Cont_Branches,1),0,1),0) -> 0 | K115: =IF(A115<>"",IF(LEFT(VLOOKUP($A115,Base_Arbres,11,FALSE),1)>=LEFT(Cont_Chablis,1),0,1),0) -> 0 | L115: =IF(A115<>"",IF(LEFT(VLOOKUP($A115,Base_Arbres,12,FALSE),1)>=LEFT(Cont_Fructifications,1),0,1),0) -> 0 | M115: =IF(A115<>"",IF(LEFT(VLOOKUP($A115,Base_Arbres,13,FALSE),1)>=LEFT(Cont_Miellat,1),0,1),0) -> 0 | N115: =IF(A115<>"",IF(LEFT(VLOOKUP($A115,Base_Arbres,14,FALSE),1)>=LEFT(Cont_Fruits_Toxiques,1),0,1),0) -> 0 | O115: =IF(A115<>"",IF(LEFT(VLOOKUP($A115,Base_Arbres,15,FALSE),1)>=LEFT(Cont_Hauteur,1),0,1),0) -> 0 | P115: =IF(A115<>"",IF(LEFT(VLOOKUP($A115,Base_Arbres,16,FALSE),1)>=LEFT(Cont_Envergure,1),0,1),0) -> 0 | Q115: =SUM(B115:H115)*I115*J115*K115*L115*M115*N115*O115*P115 -> 0
A116: =IF(Base_Arbres!A116<>"",Base_Arbres!A116,"") ->  | B116: =IF(Base_Arbres!A116<>"",VLOOKUP($A116,Base_Arbres,3,FALSE)*Crit1,"") ->  | C116: =IF(Base_Arbres!A116<>"",VLOOKUP($A116,Base_Arbres,4,FALSE)*Crit2,"") ->  | D116: =IF(Base_Arbres!A116<>"",VLOOKUP($A116,Base_Arbres,5,FALSE)*Crit3,"") ->  | E116: =IF(Base_Arbres!A116<>"",VLOOKUP($A116,Base_Arbres,6,FALSE)*Crit4,"") ->  | F116: =IF(Base_Arbres!A116<>"",VLOOKUP($A116,Base_Arbres,7,FALSE)*Crit5,"") ->  | G116: =IF(ISNA(VLOOKUP(INDEX(Base_Typologie!$A$6:$R$1005,MATCH(A116,Base_Typologie!$A:$A,0)-5,MATCH(Typologie_Espace_Public,Base_Typologie!$6:$6,0)),TableauScoreTypologie,2,FALSE)*Crit6),0,VLOOKUP(INDEX(Base_Typologie!$A$6:$R$1005,MATCH(A116,Base_Typologie!$A:$A,0)-5,MATCH(Typologie_Espace_Public,Base_Typologie!$6:$6,0)),TableauScoreTypologie,2,FALSE)*Crit6) -> 0 | H116: =IF(Base_Arbres!G116<>"",VLOOKUP($A116,Base_Arbres,8,FALSE)*Crit7,"") ->  | I116: =IF(A116<>"",IF(LEFT(VLOOKUP($A116,Base_Arbres,9,FALSE),1)>=LEFT(Cont_Racines,1),0,1),0) -> 0 | J116: =IF(A116<>"",IF(LEFT(VLOOKUP($A116,Base_Arbres,10,FALSE),1)>=LEFT(Cont_Branches,1),0,1),0) -> 0 | K116: =IF(A116<>"",IF(LEFT(VLOOKUP($A116,Base_Arbres,11,FALSE),1)>=LEFT(Cont_Chablis,1),0,1),0) -> 0 | L116: =IF(A116<>"",IF(LEFT(VLOOKUP($A116,Base_Arbres,12,FALSE),1)>=LEFT(Cont_Fructifications,1),0,1),0) -> 0 | M116: =IF(A116<>"",IF(LEFT(VLOOKUP($A116,Base_Arbres,13,FALSE),1)>=LEFT(Cont_Miellat,1),0,1),0) -> 0 | N116: =IF(A116<>"",IF(LEFT(VLOOKUP($A116,Base_Arbres,14,FALSE),1)>=LEFT(Cont_Fruits_Toxiques,1),0,1),0) -> 0 | O116: =IF(A116<>"",IF(LEFT(VLOOKUP($A116,Base_Arbres,15,FALSE),1)>=LEFT(Cont_Hauteur,1),0,1),0) -> 0 | P116: =IF(A116<>"",IF(LEFT(VLOOKUP($A116,Base_Arbres,16,FALSE),1)>=LEFT(Cont_Envergure,1),0,1),0) -> 0 | Q116: =SUM(B116:H116)*I116*J116*K116*L116*M116*N116*O116*P116 -> 0
A117: =IF(Base_Arbres!A117<>"",Base_Arbres!A117,"") ->  | B117: =IF(Base_Arbres!A117<>"",VLOOKUP($A117,Base_Arbres,3,FALSE)*Crit1,"") ->  | C117: =IF(Base_Arbres!A117<>"",VLOOKUP($A117,Base_Arbres,4,FALSE)*Crit2,"") ->  | D117: =IF(Base_Arbres!A117<>"",VLOOKUP($A117,Base_Arbres,5,FALSE)*Crit3,"") ->  | E117: =IF(Base_Arbres!A117<>"",VLOOKUP($A117,Base_Arbres,6,FALSE)*Crit4,"") ->  | F117: =IF(Base_Arbres!A117<>"",VLOOKUP($A117,Base_Arbres,7,FALSE)*Crit5,"") ->  | G117: =IF(ISNA(VLOOKUP(INDEX(Base_Typologie!$A$6:$R$1005,MATCH(A117,Base_Typologie!$A:$A,0)-5,MATCH(Typologie_Espace_Public,Base_Typologie!$6:$6,0)),TableauScoreTypologie,2,FALSE)*Crit6),0,VLOOKUP(INDEX(Base_Typologie!$A$6:$R$1005,MATCH(A117,Base_Typologie!$A:$A,0)-5,MATCH(Typologie_Espace_Public,Base_Typologie!$6:$6,0)),TableauScoreTypologie,2,FALSE)*Crit6) -> 0 | H117: =IF(Base_Arbres!G117<>"",VLOOKUP($A117,Base_Arbres,8,FALSE)*Crit7,"") ->  | I117: =IF(A117<>"",IF(LEFT(VLOOKUP($A117,Base_Arbres,9,FALSE),1)>=LEFT(Cont_Racines,1),0,1),0) -> 0 | J117: =IF(A117<>"",IF(LEFT(VLOOKUP($A117,Base_Arbres,10,FALSE),1)>=LEFT(Cont_Branches,1),0,1),0) -> 0 | K117: =IF(A117<>"",IF(LEFT(VLOOKUP($A117,Base_Arbres,11,FALSE),1)>=LEFT(Cont_Chablis,1),0,1),0) -> 0 | L117: =IF(A117<>"",IF(LEFT(VLOOKUP($A117,Base_Arbres,12,FALSE),1)>=LEFT(Cont_Fructifications,1),0,1),0) -> 0 | M117: =IF(A117<>"",IF(LEFT(VLOOKUP($A117,Base_Arbres,13,FALSE),1)>=LEFT(Cont_Miellat,1),0,1),0) -> 0 | N117: =IF(A117<>"",IF(LEFT(VLOOKUP($A117,Base_Arbres,14,FALSE),1)>=LEFT(Cont_Fruits_Toxiques,1),0,1),0) -> 0 | O117: =IF(A117<>"",IF(LEFT(VLOOKUP($A117,Base_Arbres,15,FALSE),1)>=LEFT(Cont_Hauteur,1),0,1),0) -> 0 | P117: =IF(A117<>"",IF(LEFT(VLOOKUP($A117,Base_Arbres,16,FALSE),1)>=LEFT(Cont_Envergure,1),0,1),0) -> 0 | Q117: =SUM(B117:H117)*I117*J117*K117*L117*M117*N117*O117*P117 -> 0
A118: =IF(Base_Arbres!A118<>"",Base_Arbres!A118,"") ->  | B118: =IF(Base_Arbres!A118<>"",VLOOKUP($A118,Base_Arbres,3,FALSE)*Crit1,"") ->  | C118: =IF(Base_Arbres!A118<>"",VLOOKUP($A118,Base_Arbres,4,FALSE)*Crit2,"") ->  | D118: =IF(Base_Arbres!A118<>"",VLOOKUP($A118,Base_Arbres,5,FALSE)*Crit3,"") ->  | E118: =IF(Base_Arbres!A118<>"",VLOOKUP($A118,Base_Arbres,6,FALSE)*Crit4,"") ->  | F118: =IF(Base_Arbres!A118<>"",VLOOKUP($A118,Base_Arbres,7,FALSE)*Crit5,"") ->  | G118: =IF(ISNA(VLOOKUP(INDEX(Base_Typologie!$A$6:$R$1005,MATCH(A118,Base_Typologie!$A:$A,0)-5,MATCH(Typologie_Espace_Public,Base_Typologie!$6:$6,0)),TableauScoreTypologie,2,FALSE)*Crit6),0,VLOOKUP(INDEX(Base_Typologie!$A$6:$R$1005,MATCH(A118,Base_Typologie!$A:$A,0)-5,MATCH(Typologie_Espace_Public,Base_Typologie!$6:$6,0)),TableauScoreTypologie,2,FALSE)*Crit6) -> 0 | H118: =IF(Base_Arbres!G118<>"",VLOOKUP($A118,Base_Arbres,8,FALSE)*Crit7,"") ->  | I118: =IF(A118<>"",IF(LEFT(VLOOKUP($A118,Base_Arbres,9,FALSE),1)>=LEFT(Cont_Racines,1),0,1),0) -> 0 | J118: =IF(A118<>"",IF(LEFT(VLOOKUP($A118,Base_Arbres,10,FALSE),1)>=LEFT(Cont_Branches,1),0,1),0) -> 0 | K118: =IF(A118<>"",IF(LEFT(VLOOKUP($A118,Base_Arbres,11,FALSE),1)>=LEFT(Cont_Chablis,1),0,1),0) -> 0 | L118: =IF(A118<>"",IF(LEFT(VLOOKUP($A118,Base_Arbres,12,FALSE),1)>=LEFT(Cont_Fructifications,1),0,1),0) -> 0 | M118: =IF(A118<>"",IF(LEFT(VLOOKUP($A118,Base_Arbres,13,FALSE),1)>=LEFT(Cont_Miellat,1),0,1),0) -> 0 | N118: =IF(A118<>"",IF(LEFT(VLOOKUP($A118,Base_Arbres,14,FALSE),1)>=LEFT(Cont_Fruits_Toxiques,1),0,1),0) -> 0 | O118: =IF(A118<>"",IF(LEFT(VLOOKUP($A118,Base_Arbres,15,FALSE),1)>=LEFT(Cont_Hauteur,1),0,1),0) -> 0 | P118: =IF(A118<>"",IF(LEFT(VLOOKUP($A118,Base_Arbres,16,FALSE),1)>=LEFT(Cont_Envergure,1),0,1),0) -> 0 | Q118: =SUM(B118:H118)*I118*J118*K118*L118*M118*N118*O118*P118 -> 0
A119: =IF(Base_Arbres!A119<>"",Base_Arbres!A119,"") ->  | B119: =IF(Base_Arbres!A119<>"",VLOOKUP($A119,Base_Arbres,3,FALSE)*Crit1,"") ->  | C119: =IF(Base_Arbres!A119<>"",VLOOKUP($A119,Base_Arbres,4,FALSE)*Crit2,"") ->  | D119: =IF(Base_Arbres!A119<>"",VLOOKUP($A119,Base_Arbres,5,FALSE)*Crit3,"") ->  | E119: =IF(Base_Arbres!A119<>"",VLOOKUP($A119,Base_Arbres,6,FALSE)*Crit4,"") ->  | F119: =IF(Base_Arbres!A119<>"",VLOOKUP($A119,Base_Arbres,7,FALSE)*Crit5,"") ->  | G119: =IF(ISNA(VLOOKUP(INDEX(Base_Typologie!$A$6:$R$1005,MATCH(A119,Base_Typologie!$A:$A,0)-5,MATCH(Typologie_Espace_Public,Base_Typologie!$6:$6,0)),TableauScoreTypologie,2,FALSE)*Crit6),0,VLOOKUP(INDEX(Base_Typologie!$A$6:$R$1005,MATCH(A119,Base_Typologie!$A:$A,0)-5,MATCH(Typologie_Espace_Public,Base_Typologie!$6:$6,0)),TableauScoreTypologie,2,FALSE)*Crit6) -> 0 | H119: =IF(Base_Arbres!G119<>"",VLOOKUP($A119,Base_Arbres,8,FALSE)*Crit7,"") ->  | I119: =IF(A119<>"",IF(LEFT(VLOOKUP($A119,Base_Arbres,9,FALSE),1)>=LEFT(Cont_Racines,1),0,1),0) -> 0 | J119: =IF(A119<>"",IF(LEFT(VLOOKUP($A119,Base_Arbres,10,FALSE),1)>=LEFT(Cont_Branches,1),0,1),0) -> 0 | K119: =IF(A119<>"",IF(LEFT(VLOOKUP($A119,Base_Arbres,11,FALSE),1)>=LEFT(Cont_Chablis,1),0,1),0) -> 0 | L119: =IF(A119<>"",IF(LEFT(VLOOKUP($A119,Base_Arbres,12,FALSE),1)>=LEFT(Cont_Fructifications,1),0,1),0) -> 0 | M119: =IF(A119<>"",IF(LEFT(VLOOKUP($A119,Base_Arbres,13,FALSE),1)>=LEFT(Cont_Miellat,1),0,1),0) -> 0 | N119: =IF(A119<>"",IF(LEFT(VLOOKUP($A119,Base_Arbres,14,FALSE),1)>=LEFT(Cont_Fruits_Toxiques,1),0,1),0) -> 0 | O119: =IF(A119<>"",IF(LEFT(VLOOKUP($A119,Base_Arbres,15,FALSE),1)>=LEFT(Cont_Hauteur,1),0,1),0) -> 0 | P119: =IF(A119<>"",IF(LEFT(VLOOKUP($A119,Base_Arbres,16,FALSE),1)>=LEFT(Cont_Envergure,1),0,1),0) -> 0 | Q119: =SUM(B119:H119)*I119*J119*K119*L119*M119*N119*O119*P119 -> 0
A120: =IF(Base_Arbres!A120<>"",Base_Arbres!A120,"") ->  | B120: =IF(Base_Arbres!A120<>"",VLOOKUP($A120,Base_Arbres,3,FALSE)*Crit1,"") ->  | C120: =IF(Base_Arbres!A120<>"",VLOOKUP($A120,Base_Arbres,4,FALSE)*Crit2,"") ->  | D120: =IF(Base_Arbres!A120<>"",VLOOKUP($A120,Base_Arbres,5,FALSE)*Crit3,"") ->  | E120: =IF(Base_Arbres!A120<>"",VLOOKUP($A120,Base_Arbres,6,FALSE)*Crit4,"") ->  | F120: =IF(Base_Arbres!A120<>"",VLOOKUP($A120,Base_Arbres,7,FALSE)*Crit5,"") ->  | G120: =IF(ISNA(VLOOKUP(INDEX(Base_Typologie!$A$6:$R$1005,MATCH(A120,Base_Typologie!$A:$A,0)-5,MATCH(Typologie_Espace_Public,Base_Typologie!$6:$6,0)),TableauScoreTypologie,2,FALSE)*Crit6),0,VLOOKUP(INDEX(Base_Typologie!$A$6:$R$1005,MATCH(A120,Base_Typologie!$A:$A,0)-5,MATCH(Typologie_Espace_Public,Base_Typologie!$6:$6,0)),TableauScoreTypologie,2,FALSE)*Crit6) -> 0 | H120: =IF(Base_Arbres!G120<>"",VLOOKUP($A120,Base_Arbres,8,FALSE)*Crit7,"") ->  | I120: =IF(A120<>"",IF(LEFT(VLOOKUP($A120,Base_Arbres,9,FALSE),1)>=LEFT(Cont_Racines,1),0,1),0) -> 0 | J120: =IF(A120<>"",IF(LEFT(VLOOKUP($A120,Base_Arbres,10,FALSE),1)>=LEFT(Cont_Branches,1),0,1),0) -> 0 | K120: =IF(A120<>"",IF(LEFT(VLOOKUP($A120,Base_Arbres,11,FALSE),1)>=LEFT(Cont_Chablis,1),0,1),0) -> 0 | L120: =IF(A120<>"",IF(LEFT(VLOOKUP($A120,Base_Arbres,12,FALSE),1)>=LEFT(Cont_Fructifications,1),0,1),0) -> 0 | M120: =IF(A120<>"",IF(LEFT(VLOOKUP($A120,Base_Arbres,13,FALSE),1)>=LEFT(Cont_Miellat,1),0,1),0) -> 0 | N120: =IF(A120<>"",IF(LEFT(VLOOKUP($A120,Base_Arbres,14,FALSE),1)>=LEFT(Cont_Fruits_Toxiques,1),0,1),0) -> 0 | O120: =IF(A120<>"",IF(LEFT(VLOOKUP($A120,Base_Arbres,15,FALSE),1)>=LEFT(Cont_Hauteur,1),0,1),0) -> 0 | P120: =IF(A120<>"",IF(LEFT(VLOOKUP($A120,Base_Arbres,16,FALSE),1)>=LEFT(Cont_Envergure,1),0,1),0) -> 0 | Q120: =SUM(B120:H120)*I120*J120*K120*L120*M120*N120*O120*P120 -> 0
A121: =IF(Base_Arbres!A121<>"",Base_Arbres!A121,"") ->  | B121: =IF(Base_Arbres!A121<>"",VLOOKUP($A121,Base_Arbres,3,FALSE)*Crit1,"") ->  | C121: =IF(Base_Arbres!A121<>"",VLOOKUP($A121,Base_Arbres,4,FALSE)*Crit2,"") ->  | D121: =IF(Base_Arbres!A121<>"",VLOOKUP($A121,Base_Arbres,5,FALSE)*Crit3,"") ->  | E121: =IF(Base_Arbres!A121<>"",VLOOKUP($A121,Base_Arbres,6,FALSE)*Crit4,"") ->  | F121: =IF(Base_Arbres!A121<>"",VLOOKUP($A121,Base_Arbres,7,FALSE)*Crit5,"") ->  | G121: =IF(ISNA(VLOOKUP(INDEX(Base_Typologie!$A$6:$R$1005,MATCH(A121,Base_Typologie!$A:$A,0)-5,MATCH(Typologie_Espace_Public,Base_Typologie!$6:$6,0)),TableauScoreTypologie,2,FALSE)*Crit6),0,VLOOKUP(INDEX(Base_Typologie!$A$6:$R$1005,MATCH(A121,Base_Typologie!$A:$A,0)-5,MATCH(Typologie_Espace_Public,Base_Typologie!$6:$6,0)),TableauScoreTypologie,2,FALSE)*Crit6) -> 0 | H121: =IF(Base_Arbres!G121<>"",VLOOKUP($A121,Base_Arbres,8,FALSE)*Crit7,"") ->  | I121: =IF(A121<>"",IF(LEFT(VLOOKUP($A121,Base_Arbres,9,FALSE),1)>=LEFT(Cont_Racines,1),0,1),0) -> 0 | J121: =IF(A121<>"",IF(LEFT(VLOOKUP($A121,Base_Arbres,10,FALSE),1)>=LEFT(Cont_Branches,1),0,1),0) -> 0 | K121: =IF(A121<>"",IF(LEFT(VLOOKUP($A121,Base_Arbres,11,FALSE),1)>=LEFT(Cont_Chablis,1),0,1),0) -> 0 | L121: =IF(A121<>"",IF(LEFT(VLOOKUP($A121,Base_Arbres,12,FALSE),1)>=LEFT(Cont_Fructifications,1),0,1),0) -> 0 | M121: =IF(A121<>"",IF(LEFT(VLOOKUP($A121,Base_Arbres,13,FALSE),1)>=LEFT(Cont_Miellat,1),0,1),0) -> 0 | N121: =IF(A121<>"",IF(LEFT(VLOOKUP($A121,Base_Arbres,14,FALSE),1)>=LEFT(Cont_Fruits_Toxiques,1),0,1),0) -> 0 | O121: =IF(A121<>"",IF(LEFT(VLOOKUP($A121,Base_Arbres,15,FALSE),1)>=LEFT(Cont_Hauteur,1),0,1),0) -> 0 | P121: =IF(A121<>"",IF(LEFT(VLOOKUP($A121,Base_Arbres,16,FALSE),1)>=LEFT(Cont_Envergure,1),0,1),0) -> 0 | Q121: =SUM(B121:H121)*I121*J121*K121*L121*M121*N121*O121*P121 -> 0
A122: =IF(Base_Arbres!A122<>"",Base_Arbres!A122,"") ->  | B122: =IF(Base_Arbres!A122<>"",VLOOKUP($A122,Base_Arbres,3,FALSE)*Crit1,"") ->  | C122: =IF(Base_Arbres!A122<>"",VLOOKUP($A122,Base_Arbres,4,FALSE)*Crit2,"") ->  | D122: =IF(Base_Arbres!A122<>"",VLOOKUP($A122,Base_Arbres,5,FALSE)*Crit3,"") ->  | E122: =IF(Base_Arbres!A122<>"",VLOOKUP($A122,Base_Arbres,6,FALSE)*Crit4,"") ->  | F122: =IF(Base_Arbres!A122<>"",VLOOKUP($A122,Base_Arbres,7,FALSE)*Crit5,"") ->  | G122: =IF(ISNA(VLOOKUP(INDEX(Base_Typologie!$A$6:$R$1005,MATCH(A122,Base_Typologie!$A:$A,0)-5,MATCH(Typologie_Espace_Public,Base_Typologie!$6:$6,0)),TableauScoreTypologie,2,FALSE)*Crit6),0,VLOOKUP(INDEX(Base_Typologie!$A$6:$R$1005,MATCH(A122,Base_Typologie!$A:$A,0)-5,MATCH(Typologie_Espace_Public,Base_Typologie!$6:$6,0)),TableauScoreTypologie,2,FALSE)*Crit6) -> 0 | H122: =IF(Base_Arbres!G122<>"",VLOOKUP($A122,Base_Arbres,8,FALSE)*Crit7,"") ->  | I122: =IF(A122<>"",IF(LEFT(VLOOKUP($A122,Base_Arbres,9,FALSE),1)>=LEFT(Cont_Racines,1),0,1),0) -> 0 | J122: =IF(A122<>"",IF(LEFT(VLOOKUP($A122,Base_Arbres,10,FALSE),1)>=LEFT(Cont_Branches,1),0,1),0) -> 0 | K122: =IF(A122<>"",IF(LEFT(VLOOKUP($A122,Base_Arbres,11,FALSE),1)>=LEFT(Cont_Chablis,1),0,1),0) -> 0 | L122: =IF(A122<>"",IF(LEFT(VLOOKUP($A122,Base_Arbres,12,FALSE),1)>=LEFT(Cont_Fructifications,1),0,1),0) -> 0 | M122: =IF(A122<>"",IF(LEFT(VLOOKUP($A122,Base_Arbres,13,FALSE),1)>=LEFT(Cont_Miellat,1),0,1),0) -> 0 | N122: =IF(A122<>"",IF(LEFT(VLOOKUP($A122,Base_Arbres,14,FALSE),1)>=LEFT(Cont_Fruits_Toxiques,1),0,1),0) -> 0 | O122: =IF(A122<>"",IF(LEFT(VLOOKUP($A122,Base_Arbres,15,FALSE),1)>=LEFT(Cont_Hauteur,1),0,1),0) -> 0 | P122: =IF(A122<>"",IF(LEFT(VLOOKUP($A122,Base_Arbres,16,FALSE),1)>=LEFT(Cont_Envergure,1),0,1),0) -> 0 | Q122: =SUM(B122:H122)*I122*J122*K122*L122*M122*N122*O122*P122 -> 0
A123: =IF(Base_Arbres!A123<>"",Base_Arbres!A123,"") ->  | B123: =IF(Base_Arbres!A123<>"",VLOOKUP($A123,Base_Arbres,3,FALSE)*Crit1,"") ->  | C123: =IF(Base_Arbres!A123<>"",VLOOKUP($A123,Base_Arbres,4,FALSE)*Crit2,"") ->  | D123: =IF(Base_Arbres!A123<>"",VLOOKUP($A123,Base_Arbres,5,FALSE)*Crit3,"") ->  | E123: =IF(Base_Arbres!A123<>"",VLOOKUP($A123,Base_Arbres,6,FALSE)*Crit4,"") ->  | F123: =IF(Base_Arbres!A123<>"",VLOOKUP($A123,Base_Arbres,7,FALSE)*Crit5,"") ->  | G123: =IF(ISNA(VLOOKUP(INDEX(Base_Typologie!$A$6:$R$1005,MATCH(A123,Base_Typologie!$A:$A,0)-5,MATCH(Typologie_Espace_Public,Base_Typologie!$6:$6,0)),TableauScoreTypologie,2,FALSE)*Crit6),0,VLOOKUP(INDEX(Base_Typologie!$A$6:$R$1005,MATCH(A123,Base_Typologie!$A:$A,0)-5,MATCH(Typologie_Espace_Public,Base_Typologie!$6:$6,0)),TableauScoreTypologie,2,FALSE)*Crit6) -> 0 | H123: =IF(Base_Arbres!G123<>"",VLOOKUP($A123,Base_Arbres,8,FALSE)*Crit7,"") ->  | I123: =IF(A123<>"",IF(LEFT(VLOOKUP($A123,Base_Arbres,9,FALSE),1)>=LEFT(Cont_Racines,1),0,1),0) -> 0 | J123: =IF(A123<>"",IF(LEFT(VLOOKUP($A123,Base_Arbres,10,FALSE),1)>=LEFT(Cont_Branches,1),0,1),0) -> 0 | K123: =IF(A123<>"",IF(LEFT(VLOOKUP($A123,Base_Arbres,11,FALSE),1)>=LEFT(Cont_Chablis,1),0,1),0) -> 0 | L123: =IF(A123<>"",IF(LEFT(VLOOKUP($A123,Base_Arbres,12,FALSE),1)>=LEFT(Cont_Fructifications,1),0,1),0) -> 0 | M123: =IF(A123<>"",IF(LEFT(VLOOKUP($A123,Base_Arbres,13,FALSE),1)>=LEFT(Cont_Miellat,1),0,1),0) -> 0 | N123: =IF(A123<>"",IF(LEFT(VLOOKUP($A123,Base_Arbres,14,FALSE),1)>=LEFT(Cont_Fruits_Toxiques,1),0,1),0) -> 0 | O123: =IF(A123<>"",IF(LEFT(VLOOKUP($A123,Base_Arbres,15,FALSE),1)>=LEFT(Cont_Hauteur,1),0,1),0) -> 0 | P123: =IF(A123<>"",IF(LEFT(VLOOKUP($A123,Base_Arbres,16,FALSE),1)>=LEFT(Cont_Envergure,1),0,1),0) -> 0 | Q123: =SUM(B123:H123)*I123*J123*K123*L123*M123*N123*O123*P123 -> 0
A124: =IF(Base_Arbres!A124<>"",Base_Arbres!A124,"") ->  | B124: =IF(Base_Arbres!A124<>"",VLOOKUP($A124,Base_Arbres,3,FALSE)*Crit1,"") ->  | C124: =IF(Base_Arbres!A124<>"",VLOOKUP($A124,Base_Arbres,4,FALSE)*Crit2,"") ->  | D124: =IF(Base_Arbres!A124<>"",VLOOKUP($A124,Base_Arbres,5,FALSE)*Crit3,"") ->  | E124: =IF(Base_Arbres!A124<>"",VLOOKUP($A124,Base_Arbres,6,FALSE)*Crit4,"") ->  | F124: =IF(Base_Arbres!A124<>"",VLOOKUP($A124,Base_Arbres,7,FALSE)*Crit5,"") ->  | G124: =IF(ISNA(VLOOKUP(INDEX(Base_Typologie!$A$6:$R$1005,MATCH(A124,Base_Typologie!$A:$A,0)-5,MATCH(Typologie_Espace_Public,Base_Typologie!$6:$6,0)),TableauScoreTypologie,2,FALSE)*Crit6),0,VLOOKUP(INDEX(Base_Typologie!$A$6:$R$1005,MATCH(A124,Base_Typologie!$A:$A,0)-5,MATCH(Typologie_Espace_Public,Base_Typologie!$6:$6,0)),TableauScoreTypologie,2,FALSE)*Crit6) -> 0 | H124: =IF(Base_Arbres!G124<>"",VLOOKUP($A124,Base_Arbres,8,FALSE)*Crit7,"") ->  | I124: =IF(A124<>"",IF(LEFT(VLOOKUP($A124,Base_Arbres,9,FALSE),1)>=LEFT(Cont_Racines,1),0,1),0) -> 0 | J124: =IF(A124<>"",IF(LEFT(VLOOKUP($A124,Base_Arbres,10,FALSE),1)>=LEFT(Cont_Branches,1),0,1),0) -> 0 | K124: =IF(A124<>"",IF(LEFT(VLOOKUP($A124,Base_Arbres,11,FALSE),1)>=LEFT(Cont_Chablis,1),0,1),0) -> 0 | L124: =IF(A124<>"",IF(LEFT(VLOOKUP($A124,Base_Arbres,12,FALSE),1)>=LEFT(Cont_Fructifications,1),0,1),0) -> 0 | M124: =IF(A124<>"",IF(LEFT(VLOOKUP($A124,Base_Arbres,13,FALSE),1)>=LEFT(Cont_Miellat,1),0,1),0) -> 0 | N124: =IF(A124<>"",IF(LEFT(VLOOKUP($A124,Base_Arbres,14,FALSE),1)>=LEFT(Cont_Fruits_Toxiques,1),0,1),0) -> 0 | O124: =IF(A124<>"",IF(LEFT(VLOOKUP($A124,Base_Arbres,15,FALSE),1)>=LEFT(Cont_Hauteur,1),0,1),0) -> 0 | P124: =IF(A124<>"",IF(LEFT(VLOOKUP($A124,Base_Arbres,16,FALSE),1)>=LEFT(Cont_Envergure,1),0,1),0) -> 0 | Q124: =SUM(B124:H124)*I124*J124*K124*L124*M124*N124*O124*P124 -> 0
A125: =IF(Base_Arbres!A125<>"",Base_Arbres!A125,"") ->  | B125: =IF(Base_Arbres!A125<>"",VLOOKUP($A125,Base_Arbres,3,FALSE)*Crit1,"") ->  | C125: =IF(Base_Arbres!A125<>"",VLOOKUP($A125,Base_Arbres,4,FALSE)*Crit2,"") ->  | D125: =IF(Base_Arbres!A125<>"",VLOOKUP($A125,Base_Arbres,5,FALSE)*Crit3,"") ->  | E125: =IF(Base_Arbres!A125<>"",VLOOKUP($A125,Base_Arbres,6,FALSE)*Crit4,"") ->  | F125: =IF(Base_Arbres!A125<>"",VLOOKUP($A125,Base_Arbres,7,FALSE)*Crit5,"") ->  | G125: =IF(ISNA(VLOOKUP(INDEX(Base_Typologie!$A$6:$R$1005,MATCH(A125,Base_Typologie!$A:$A,0)-5,MATCH(Typologie_Espace_Public,Base_Typologie!$6:$6,0)),TableauScoreTypologie,2,FALSE)*Crit6),0,VLOOKUP(INDEX(Base_Typologie!$A$6:$R$1005,MATCH(A125,Base_Typologie!$A:$A,0)-5,MATCH(Typologie_Espace_Public,Base_Typologie!$6:$6,0)),TableauScoreTypologie,2,FALSE)*Crit6) -> 0 | H125: =IF(Base_Arbres!G125<>"",VLOOKUP($A125,Base_Arbres,8,FALSE)*Crit7,"") ->  | I125: =IF(A125<>"",IF(LEFT(VLOOKUP($A125,Base_Arbres,9,FALSE),1)>=LEFT(Cont_Racines,1),0,1),0) -> 0 | J125: =IF(A125<>"",IF(LEFT(VLOOKUP($A125,Base_Arbres,10,FALSE),1)>=LEFT(Cont_Branches,1),0,1),0) -> 0 | K125: =IF(A125<>"",IF(LEFT(VLOOKUP($A125,Base_Arbres,11,FALSE),1)>=LEFT(Cont_Chablis,1),0,1),0) -> 0 | L125: =IF(A125<>"",IF(LEFT(VLOOKUP($A125,Base_Arbres,12,FALSE),1)>=LEFT(Cont_Fructifications,1),0,1),0) -> 0 | M125: =IF(A125<>"",IF(LEFT(VLOOKUP($A125,Base_Arbres,13,FALSE),1)>=LEFT(Cont_Miellat,1),0,1),0) -> 0 | N125: =IF(A125<>"",IF(LEFT(VLOOKUP($A125,Base_Arbres,14,FALSE),1)>=LEFT(Cont_Fruits_Toxiques,1),0,1),0) -> 0 | O125: =IF(A125<>"",IF(LEFT(VLOOKUP($A125,Base_Arbres,15,FALSE),1)>=LEFT(Cont_Hauteur,1),0,1),0) -> 0 | P125: =IF(A125<>"",IF(LEFT(VLOOKUP($A125,Base_Arbres,16,FALSE),1)>=LEFT(Cont_Envergure,1),0,1),0) -> 0 | Q125: =SUM(B125:H125)*I125*J125*K125*L125*M125*N125*O125*P125 -> 0
A126: =IF(Base_Arbres!A126<>"",Base_Arbres!A126,"") ->  | B126: =IF(Base_Arbres!A126<>"",VLOOKUP($A126,Base_Arbres,3,FALSE)*Crit1,"") ->  | C126: =IF(Base_Arbres!A126<>"",VLOOKUP($A126,Base_Arbres,4,FALSE)*Crit2,"") ->  | D126: =IF(Base_Arbres!A126<>"",VLOOKUP($A126,Base_Arbres,5,FALSE)*Crit3,"") ->  | E126: =IF(Base_Arbres!A126<>"",VLOOKUP($A126,Base_Arbres,6,FALSE)*Crit4,"") ->  | F126: =IF(Base_Arbres!A126<>"",VLOOKUP($A126,Base_Arbres,7,FALSE)*Crit5,"") ->  | G126: =IF(ISNA(VLOOKUP(INDEX(Base_Typologie!$A$6:$R$1005,MATCH(A126,Base_Typologie!$A:$A,0)-5,MATCH(Typologie_Espace_Public,Base_Typologie!$6:$6,0)),TableauScoreTypologie,2,FALSE)*Crit6),0,VLOOKUP(INDEX(Base_Typologie!$A$6:$R$1005,MATCH(A126,Base_Typologie!$A:$A,0)-5,MATCH(Typologie_Espace_Public,Base_Typologie!$6:$6,0)),TableauScoreTypologie,2,FALSE)*Crit6) -> 0 | H126: =IF(Base_Arbres!G126<>"",VLOOKUP($A126,Base_Arbres,8,FALSE)*Crit7,"") ->  | I126: =IF(A126<>"",IF(LEFT(VLOOKUP($A126,Base_Arbres,9,FALSE),1)>=LEFT(Cont_Racines,1),0,1),0) -> 0 | J126: =IF(A126<>"",IF(LEFT(VLOOKUP($A126,Base_Arbres,10,FALSE),1)>=LEFT(Cont_Branches,1),0,1),0) -> 0 | K126: =IF(A126<>"",IF(LEFT(VLOOKUP($A126,Base_Arbres,11,FALSE),1)>=LEFT(Cont_Chablis,1),0,1),0) -> 0 | L126: =IF(A126<>"",IF(LEFT(VLOOKUP($A126,Base_Arbres,12,FALSE),1)>=LEFT(Cont_Fructifications,1),0,1),0) -> 0 | M126: =IF(A126<>"",IF(LEFT(VLOOKUP($A126,Base_Arbres,13,FALSE),1)>=LEFT(Cont_Miellat,1),0,1),0) -> 0 | N126: =IF(A126<>"",IF(LEFT(VLOOKUP($A126,Base_Arbres,14,FALSE),1)>=LEFT(Cont_Fruits_Toxiques,1),0,1),0) -> 0 | O126: =IF(A126<>"",IF(LEFT(VLOOKUP($A126,Base_Arbres,15,FALSE),1)>=LEFT(Cont_Hauteur,1),0,1),0) -> 0 | P126: =IF(A126<>"",IF(LEFT(VLOOKUP($A126,Base_Arbres,16,FALSE),1)>=LEFT(Cont_Envergure,1),0,1),0) -> 0 | Q126: =SUM(B126:H126)*I126*J126*K126*L126*M126*N126*O126*P126 -> 0
A127: =IF(Base_Arbres!A127<>"",Base_Arbres!A127,"") ->  | B127: =IF(Base_Arbres!A127<>"",VLOOKUP($A127,Base_Arbres,3,FALSE)*Crit1,"") ->  | C127: =IF(Base_Arbres!A127<>"",VLOOKUP($A127,Base_Arbres,4,FALSE)*Crit2,"") ->  | D127: =IF(Base_Arbres!A127<>"",VLOOKUP($A127,Base_Arbres,5,FALSE)*Crit3,"") ->  | E127: =IF(Base_Arbres!A127<>"",VLOOKUP($A127,Base_Arbres,6,FALSE)*Crit4,"") ->  | F127: =IF(Base_Arbres!A127<>"",VLOOKUP($A127,Base_Arbres,7,FALSE)*Crit5,"") ->  | G127: =IF(ISNA(VLOOKUP(INDEX(Base_Typologie!$A$6:$R$1005,MATCH(A127,Base_Typologie!$A:$A,0)-5,MATCH(Typologie_Espace_Public,Base_Typologie!$6:$6,0)),TableauScoreTypologie,2,FALSE)*Crit6),0,VLOOKUP(INDEX(Base_Typologie!$A$6:$R$1005,MATCH(A127,Base_Typologie!$A:$A,0)-5,MATCH(Typologie_Espace_Public,Base_Typologie!$6:$6,0)),TableauScoreTypologie,2,FALSE)*Crit6) -> 0 | H127: =IF(Base_Arbres!G127<>"",VLOOKUP($A127,Base_Arbres,8,FALSE)*Crit7,"") ->  | I127: =IF(A127<>"",IF(LEFT(VLOOKUP($A127,Base_Arbres,9,FALSE),1)>=LEFT(Cont_Racines,1),0,1),0) -> 0 | J127: =IF(A127<>"",IF(LEFT(VLOOKUP($A127,Base_Arbres,10,FALSE),1)>=LEFT(Cont_Branches,1),0,1),0) -> 0 | K127: =IF(A127<>"",IF(LEFT(VLOOKUP($A127,Base_Arbres,11,FALSE),1)>=LEFT(Cont_Chablis,1),0,1),0) -> 0 | L127: =IF(A127<>"",IF(LEFT(VLOOKUP($A127,Base_Arbres,12,FALSE),1)>=LEFT(Cont_Fructifications,1),0,1),0) -> 0 | M127: =IF(A127<>"",IF(LEFT(VLOOKUP($A127,Base_Arbres,13,FALSE),1)>=LEFT(Cont_Miellat,1),0,1),0) -> 0 | N127: =IF(A127<>"",IF(LEFT(VLOOKUP($A127,Base_Arbres,14,FALSE),1)>=LEFT(Cont_Fruits_Toxiques,1),0,1),0) -> 0 | O127: =IF(A127<>"",IF(LEFT(VLOOKUP($A127,Base_Arbres,15,FALSE),1)>=LEFT(Cont_Hauteur,1),0,1),0) -> 0 | P127: =IF(A127<>"",IF(LEFT(VLOOKUP($A127,Base_Arbres,16,FALSE),1)>=LEFT(Cont_Envergure,1),0,1),0) -> 0 | Q127: =SUM(B127:H127)*I127*J127*K127*L127*M127*N127*O127*P127 -> 0
A128: =IF(Base_Arbres!A128<>"",Base_Arbres!A128,"") ->  | B128: =IF(Base_Arbres!A128<>"",VLOOKUP($A128,Base_Arbres,3,FALSE)*Crit1,"") ->  | C128: =IF(Base_Arbres!A128<>"",VLOOKUP($A128,Base_Arbres,4,FALSE)*Crit2,"") ->  | D128: =IF(Base_Arbres!A128<>"",VLOOKUP($A128,Base_Arbres,5,FALSE)*Crit3,"") ->  | E128: =IF(Base_Arbres!A128<>"",VLOOKUP($A128,Base_Arbres,6,FALSE)*Crit4,"") ->  | F128: =IF(Base_Arbres!A128<>"",VLOOKUP($A128,Base_Arbres,7,FALSE)*Crit5,"") ->  | G128: =IF(ISNA(VLOOKUP(INDEX(Base_Typologie!$A$6:$R$1005,MATCH(A128,Base_Typologie!$A:$A,0)-5,MATCH(Typologie_Espace_Public,Base_Typologie!$6:$6,0)),TableauScoreTypologie,2,FALSE)*Crit6),0,VLOOKUP(INDEX(Base_Typologie!$A$6:$R$1005,MATCH(A128,Base_Typologie!$A:$A,0)-5,MATCH(Typologie_Espace_Public,Base_Typologie!$6:$6,0)),TableauScoreTypologie,2,FALSE)*Crit6) -> 0 | H128: =IF(Base_Arbres!G128<>"",VLOOKUP($A128,Base_Arbres,8,FALSE)*Crit7,"") ->  | I128: =IF(A128<>"",IF(LEFT(VLOOKUP($A128,Base_Arbres,9,FALSE),1)>=LEFT(Cont_Racines,1),0,1),0) -> 0 | J128: =IF(A128<>"",IF(LEFT(VLOOKUP($A128,Base_Arbres,10,FALSE),1)>=LEFT(Cont_Branches,1),0,1),0) -> 0 | K128: =IF(A128<>"",IF(LEFT(VLOOKUP($A128,Base_Arbres,11,FALSE),1)>=LEFT(Cont_Chablis,1),0,1),0) -> 0 | L128: =IF(A128<>"",IF(LEFT(VLOOKUP($A128,Base_Arbres,12,FALSE),1)>=LEFT(Cont_Fructifications,1),0,1),0) -> 0 | M128: =IF(A128<>"",IF(LEFT(VLOOKUP($A128,Base_Arbres,13,FALSE),1)>=LEFT(Cont_Miellat,1),0,1),0) -> 0 | N128: =IF(A128<>"",IF(LEFT(VLOOKUP($A128,Base_Arbres,14,FALSE),1)>=LEFT(Cont_Fruits_Toxiques,1),0,1),0) -> 0 | O128: =IF(A128<>"",IF(LEFT(VLOOKUP($A128,Base_Arbres,15,FALSE),1)>=LEFT(Cont_Hauteur,1),0,1),0) -> 0 | P128: =IF(A128<>"",IF(LEFT(VLOOKUP($A128,Base_Arbres,16,FALSE),1)>=LEFT(Cont_Envergure,1),0,1),0) -> 0 | Q128: =SUM(B128:H128)*I128*J128*K128*L128*M128*N128*O128*P128 -> 0
A129: =IF(Base_Arbres!A129<>"",Base_Arbres!A129,"") ->  | B129: =IF(Base_Arbres!A129<>"",VLOOKUP($A129,Base_Arbres,3,FALSE)*Crit1,"") ->  | C129: =IF(Base_Arbres!A129<>"",VLOOKUP($A129,Base_Arbres,4,FALSE)*Crit2,"") ->  | D129: =IF(Base_Arbres!A129<>"",VLOOKUP($A129,Base_Arbres,5,FALSE)*Crit3,"") ->  | E129: =IF(Base_Arbres!A129<>"",VLOOKUP($A129,Base_Arbres,6,FALSE)*Crit4,"") ->  | F129: =IF(Base_Arbres!A129<>"",VLOOKUP($A129,Base_Arbres,7,FALSE)*Crit5,"") ->  | G129: =IF(ISNA(VLOOKUP(INDEX(Base_Typologie!$A$6:$R$1005,MATCH(A129,Base_Typologie!$A:$A,0)-5,MATCH(Typologie_Espace_Public,Base_Typologie!$6:$6,0)),TableauScoreTypologie,2,FALSE)*Crit6),0,VLOOKUP(INDEX(Base_Typologie!$A$6:$R$1005,MATCH(A129,Base_Typologie!$A:$A,0)-5,MATCH(Typologie_Espace_Public,Base_Typologie!$6:$6,0)),TableauScoreTypologie,2,FALSE)*Crit6) -> 0 | H129: =IF(Base_Arbres!G129<>"",VLOOKUP($A129,Base_Arbres,8,FALSE)*Crit7,"") ->  | I129: =IF(A129<>"",IF(LEFT(VLOOKUP($A129,Base_Arbres,9,FALSE),1)>=LEFT(Cont_Racines,1),0,1),0) -> 0 | J129: =IF(A129<>"",IF(LEFT(VLOOKUP($A129,Base_Arbres,10,FALSE),1)>=LEFT(Cont_Branches,1),0,1),0) -> 0 | K129: =IF(A129<>"",IF(LEFT(VLOOKUP($A129,Base_Arbres,11,FALSE),1)>=LEFT(Cont_Chablis,1),0,1),0) -> 0 | L129: =IF(A129<>"",IF(LEFT(VLOOKUP($A129,Base_Arbres,12,FALSE),1)>=LEFT(Cont_Fructifications,1),0,1),0) -> 0 | M129: =IF(A129<>"",IF(LEFT(VLOOKUP($A129,Base_Arbres,13,FALSE),1)>=LEFT(Cont_Miellat,1),0,1),0) -> 0 | N129: =IF(A129<>"",IF(LEFT(VLOOKUP($A129,Base_Arbres,14,FALSE),1)>=LEFT(Cont_Fruits_Toxiques,1),0,1),0) -> 0 | O129: =IF(A129<>"",IF(LEFT(VLOOKUP($A129,Base_Arbres,15,FALSE),1)>=LEFT(Cont_Hauteur,1),0,1),0) -> 0 | P129: =IF(A129<>"",IF(LEFT(VLOOKUP($A129,Base_Arbres,16,FALSE),1)>=LEFT(Cont_Envergure,1),0,1),0) -> 0 | Q129: =SUM(B129:H129)*I129*J129*K129*L129*M129*N129*O129*P129 -> 0
A130: =IF(Base_Arbres!A130<>"",Base_Arbres!A130,"") ->  | B130: =IF(Base_Arbres!A130<>"",VLOOKUP($A130,Base_Arbres,3,FALSE)*Crit1,"") ->  | C130: =IF(Base_Arbres!A130<>"",VLOOKUP($A130,Base_Arbres,4,FALSE)*Crit2,"") ->  | D130: =IF(Base_Arbres!A130<>"",VLOOKUP($A130,Base_Arbres,5,FALSE)*Crit3,"") ->  | E130: =IF(Base_Arbres!A130<>"",VLOOKUP($A130,Base_Arbres,6,FALSE)*Crit4,"") ->  | F130: =IF(Base_Arbres!A130<>"",VLOOKUP($A130,Base_Arbres,7,FALSE)*Crit5,"") ->  | G130: =IF(ISNA(VLOOKUP(INDEX(Base_Typologie!$A$6:$R$1005,MATCH(A130,Base_Typologie!$A:$A,0)-5,MATCH(Typologie_Espace_Public,Base_Typologie!$6:$6,0)),TableauScoreTypologie,2,FALSE)*Crit6),0,VLOOKUP(INDEX(Base_Typologie!$A$6:$R$1005,MATCH(A130,Base_Typologie!$A:$A,0)-5,MATCH(Typologie_Espace_Public,Base_Typologie!$6:$6,0)),TableauScoreTypologie,2,FALSE)*Crit6) -> 0 | H130: =IF(Base_Arbres!G130<>"",VLOOKUP($A130,Base_Arbres,8,FALSE)*Crit7,"") ->  | I130: =IF(A130<>"",IF(LEFT(VLOOKUP($A130,Base_Arbres,9,FALSE),1)>=LEFT(Cont_Racines,1),0,1),0) -> 0 | J130: =IF(A130<>"",IF(LEFT(VLOOKUP($A130,Base_Arbres,10,FALSE),1)>=LEFT(Cont_Branches,1),0,1),0) -> 0 | K130: =IF(A130<>"",IF(LEFT(VLOOKUP($A130,Base_Arbres,11,FALSE),1)>=LEFT(Cont_Chablis,1),0,1),0) -> 0 | L130: =IF(A130<>"",IF(LEFT(VLOOKUP($A130,Base_Arbres,12,FALSE),1)>=LEFT(Cont_Fructifications,1),0,1),0) -> 0 | M130: =IF(A130<>"",IF(LEFT(VLOOKUP($A130,Base_Arbres,13,FALSE),1)>=LEFT(Cont_Miellat,1),0,1),0) -> 0 | N130: =IF(A130<>"",IF(LEFT(VLOOKUP($A130,Base_Arbres,14,FALSE),1)>=LEFT(Cont_Fruits_Toxiques,1),0,1),0) -> 0 | O130: =IF(A130<>"",IF(LEFT(VLOOKUP($A130,Base_Arbres,15,FALSE),1)>=LEFT(Cont_Hauteur,1),0,1),0) -> 0 | P130: =IF(A130<>"",IF(LEFT(VLOOKUP($A130,Base_Arbres,16,FALSE),1)>=LEFT(Cont_Envergure,1),0,1),0) -> 0 | Q130: =SUM(B130:H130)*I130*J130*K130*L130*M130*N130*O130*P130 -> 0
A131: =IF(Base_Arbres!A131<>"",Base_Arbres!A131,"") ->  | B131: =IF(Base_Arbres!A131<>"",VLOOKUP($A131,Base_Arbres,3,FALSE)*Crit1,"") ->  | C131: =IF(Base_Arbres!A131<>"",VLOOKUP($A131,Base_Arbres,4,FALSE)*Crit2,"") ->  | D131: =IF(Base_Arbres!A131<>"",VLOOKUP($A131,Base_Arbres,5,FALSE)*Crit3,"") ->  | E131: =IF(Base_Arbres!A131<>"",VLOOKUP($A131,Base_Arbres,6,FALSE)*Crit4,"") ->  | F131: =IF(Base_Arbres!A131<>"",VLOOKUP($A131,Base_Arbres,7,FALSE)*Crit5,"") ->  | G131: =IF(ISNA(VLOOKUP(INDEX(Base_Typologie!$A$6:$R$1005,MATCH(A131,Base_Typologie!$A:$A,0)-5,MATCH(Typologie_Espace_Public,Base_Typologie!$6:$6,0)),TableauScoreTypologie,2,FALSE)*Crit6),0,VLOOKUP(INDEX(Base_Typologie!$A$6:$R$1005,MATCH(A131,Base_Typologie!$A:$A,0)-5,MATCH(Typologie_Espace_Public,Base_Typologie!$6:$6,0)),TableauScoreTypologie,2,FALSE)*Crit6) -> 0 | H131: =IF(Base_Arbres!G131<>"",VLOOKUP($A131,Base_Arbres,8,FALSE)*Crit7,"") ->  | I131: =IF(A131<>"",IF(LEFT(VLOOKUP($A131,Base_Arbres,9,FALSE),1)>=LEFT(Cont_Racines,1),0,1),0) -> 0 | J131: =IF(A131<>"",IF(LEFT(VLOOKUP($A131,Base_Arbres,10,FALSE),1)>=LEFT(Cont_Branches,1),0,1),0) -> 0 | K131: =IF(A131<>"",IF(LEFT(VLOOKUP($A131,Base_Arbres,11,FALSE),1)>=LEFT(Cont_Chablis,1),0,1),0) -> 0 | L131: =IF(A131<>"",IF(LEFT(VLOOKUP($A131,Base_Arbres,12,FALSE),1)>=LEFT(Cont_Fructifications,1),0,1),0) -> 0 | M131: =IF(A131<>"",IF(LEFT(VLOOKUP($A131,Base_Arbres,13,FALSE),1)>=LEFT(Cont_Miellat,1),0,1),0) -> 0 | N131: =IF(A131<>"",IF(LEFT(VLOOKUP($A131,Base_Arbres,14,FALSE),1)>=LEFT(Cont_Fruits_Toxiques,1),0,1),0) -> 0 | O131: =IF(A131<>"",IF(LEFT(VLOOKUP($A131,Base_Arbres,15,FALSE),1)>=LEFT(Cont_Hauteur,1),0,1),0) -> 0 | P131: =IF(A131<>"",IF(LEFT(VLOOKUP($A131,Base_Arbres,16,FALSE),1)>=LEFT(Cont_Envergure,1),0,1),0) -> 0 | Q131: =SUM(B131:H131)*I131*J131*K131*L131*M131*N131*O131*P131 -> 0
A132: =IF(Base_Arbres!A132<>"",Base_Arbres!A132,"") ->  | B132: =IF(Base_Arbres!A132<>"",VLOOKUP($A132,Base_Arbres,3,FALSE)*Crit1,"") ->  | C132: =IF(Base_Arbres!A132<>"",VLOOKUP($A132,Base_Arbres,4,FALSE)*Crit2,"") ->  | D132: =IF(Base_Arbres!A132<>"",VLOOKUP($A132,Base_Arbres,5,FALSE)*Crit3,"") ->  | E132: =IF(Base_Arbres!A132<>"",VLOOKUP($A132,Base_Arbres,6,FALSE)*Crit4,"") ->  | F132: =IF(Base_Arbres!A132<>"",VLOOKUP($A132,Base_Arbres,7,FALSE)*Crit5,"") ->  | G132: =IF(ISNA(VLOOKUP(INDEX(Base_Typologie!$A$6:$R$1005,MATCH(A132,Base_Typologie!$A:$A,0)-5,MATCH(Typologie_Espace_Public,Base_Typologie!$6:$6,0)),TableauScoreTypologie,2,FALSE)*Crit6),0,VLOOKUP(INDEX(Base_Typologie!$A$6:$R$1005,MATCH(A132,Base_Typologie!$A:$A,0)-5,MATCH(Typologie_Espace_Public,Base_Typologie!$6:$6,0)),TableauScoreTypologie,2,FALSE)*Crit6) -> 0 | H132: =IF(Base_Arbres!G132<>"",VLOOKUP($A132,Base_Arbres,8,FALSE)*Crit7,"") ->  | I132: =IF(A132<>"",IF(LEFT(VLOOKUP($A132,Base_Arbres,9,FALSE),1)>=LEFT(Cont_Racines,1),0,1),0) -> 0 | J132: =IF(A132<>"",IF(LEFT(VLOOKUP($A132,Base_Arbres,10,FALSE),1)>=LEFT(Cont_Branches,1),0,1),0) -> 0 | K132: =IF(A132<>"",IF(LEFT(VLOOKUP($A132,Base_Arbres,11,FALSE),1)>=LEFT(Cont_Chablis,1),0,1),0) -> 0 | L132: =IF(A132<>"",IF(LEFT(VLOOKUP($A132,Base_Arbres,12,FALSE),1)>=LEFT(Cont_Fructifications,1),0,1),0) -> 0 | M132: =IF(A132<>"",IF(LEFT(VLOOKUP($A132,Base_Arbres,13,FALSE),1)>=LEFT(Cont_Miellat,1),0,1),0) -> 0 | N132: =IF(A132<>"",IF(LEFT(VLOOKUP($A132,Base_Arbres,14,FALSE),1)>=LEFT(Cont_Fruits_Toxiques,1),0,1),0) -> 0 | O132: =IF(A132<>"",IF(LEFT(VLOOKUP($A132,Base_Arbres,15,FALSE),1)>=LEFT(Cont_Hauteur,1),0,1),0) -> 0 | P132: =IF(A132<>"",IF(LEFT(VLOOKUP($A132,Base_Arbres,16,FALSE),1)>=LEFT(Cont_Envergure,1),0,1),0) -> 0 | Q132: =SUM(B132:H132)*I132*J132*K132*L132*M132*N132*O132*P132 -> 0
A133: =IF(Base_Arbres!A133<>"",Base_Arbres!A133,"") ->  | B133: =IF(Base_Arbres!A133<>"",VLOOKUP($A133,Base_Arbres,3,FALSE)*Crit1,"") ->  | C133: =IF(Base_Arbres!A133<>"",VLOOKUP($A133,Base_Arbres,4,FALSE)*Crit2,"") ->  | D133: =IF(Base_Arbres!A133<>"",VLOOKUP($A133,Base_Arbres,5,FALSE)*Crit3,"") ->  | E133: =IF(Base_Arbres!A133<>"",VLOOKUP($A133,Base_Arbres,6,FALSE)*Crit4,"") ->  | F133: =IF(Base_Arbres!A133<>"",VLOOKUP($A133,Base_Arbres,7,FALSE)*Crit5,"") ->  | G133: =IF(ISNA(VLOOKUP(INDEX(Base_Typologie!$A$6:$R$1005,MATCH(A133,Base_Typologie!$A:$A,0)-5,MATCH(Typologie_Espace_Public,Base_Typologie!$6:$6,0)),TableauScoreTypologie,2,FALSE)*Crit6),0,VLOOKUP(INDEX(Base_Typologie!$A$6:$R$1005,MATCH(A133,Base_Typologie!$A:$A,0)-5,MATCH(Typologie_Espace_Public,Base_Typologie!$6:$6,0)),TableauScoreTypologie,2,FALSE)*Crit6) -> 0 | H133: =IF(Base_Arbres!G133<>"",VLOOKUP($A133,Base_Arbres,8,FALSE)*Crit7,"") ->  | I133: =IF(A133<>"",IF(LEFT(VLOOKUP($A133,Base_Arbres,9,FALSE),1)>=LEFT(Cont_Racines,1),0,1),0) -> 0 | J133: =IF(A133<>"",IF(LEFT(VLOOKUP($A133,Base_Arbres,10,FALSE),1)>=LEFT(Cont_Branches,1),0,1),0) -> 0 | K133: =IF(A133<>"",IF(LEFT(VLOOKUP($A133,Base_Arbres,11,FALSE),1)>=LEFT(Cont_Chablis,1),0,1),0) -> 0 | L133: =IF(A133<>"",IF(LEFT(VLOOKUP($A133,Base_Arbres,12,FALSE),1)>=LEFT(Cont_Fructifications,1),0,1),0) -> 0 | M133: =IF(A133<>"",IF(LEFT(VLOOKUP($A133,Base_Arbres,13,FALSE),1)>=LEFT(Cont_Miellat,1),0,1),0) -> 0 | N133: =IF(A133<>"",IF(LEFT(VLOOKUP($A133,Base_Arbres,14,FALSE),1)>=LEFT(Cont_Fruits_Toxiques,1),0,1),0) -> 0 | O133: =IF(A133<>"",IF(LEFT(VLOOKUP($A133,Base_Arbres,15,FALSE),1)>=LEFT(Cont_Hauteur,1),0,1),0) -> 0 | P133: =IF(A133<>"",IF(LEFT(VLOOKUP($A133,Base_Arbres,16,FALSE),1)>=LEFT(Cont_Envergure,1),0,1),0) -> 0 | Q133: =SUM(B133:H133)*I133*J133*K133*L133*M133*N133*O133*P133 -> 0
A134: =IF(Base_Arbres!A134<>"",Base_Arbres!A134,"") ->  | B134: =IF(Base_Arbres!A134<>"",VLOOKUP($A134,Base_Arbres,3,FALSE)*Crit1,"") ->  | C134: =IF(Base_Arbres!A134<>"",VLOOKUP($A134,Base_Arbres,4,FALSE)*Crit2,"") ->  | D134: =IF(Base_Arbres!A134<>"",VLOOKUP($A134,Base_Arbres,5,FALSE)*Crit3,"") ->  | E134: =IF(Base_Arbres!A134<>"",VLOOKUP($A134,Base_Arbres,6,FALSE)*Crit4,"") ->  | F134: =IF(Base_Arbres!A134<>"",VLOOKUP($A134,Base_Arbres,7,FALSE)*Crit5,"") ->  | G134: =IF(ISNA(VLOOKUP(INDEX(Base_Typologie!$A$6:$R$1005,MATCH(A134,Base_Typologie!$A:$A,0)-5,MATCH(Typologie_Espace_Public,Base_Typologie!$6:$6,0)),TableauScoreTypologie,2,FALSE)*Crit6),0,VLOOKUP(INDEX(Base_Typologie!$A$6:$R$1005,MATCH(A134,Base_Typologie!$A:$A,0)-5,MATCH(Typologie_Espace_Public,Base_Typologie!$6:$6,0)),TableauScoreTypologie,2,FALSE)*Crit6) -> 0 | H134: =IF(Base_Arbres!G134<>"",VLOOKUP($A134,Base_Arbres,8,FALSE)*Crit7,"") ->  | I134: =IF(A134<>"",IF(LEFT(VLOOKUP($A134,Base_Arbres,9,FALSE),1)>=LEFT(Cont_Racines,1),0,1),0) -> 0 | J134: =IF(A134<>"",IF(LEFT(VLOOKUP($A134,Base_Arbres,10,FALSE),1)>=LEFT(Cont_Branches,1),0,1),0) -> 0 | K134: =IF(A134<>"",IF(LEFT(VLOOKUP($A134,Base_Arbres,11,FALSE),1)>=LEFT(Cont_Chablis,1),0,1),0) -> 0 | L134: =IF(A134<>"",IF(LEFT(VLOOKUP($A134,Base_Arbres,12,FALSE),1)>=LEFT(Cont_Fructifications,1),0,1),0) -> 0 | M134: =IF(A134<>"",IF(LEFT(VLOOKUP($A134,Base_Arbres,13,FALSE),1)>=LEFT(Cont_Miellat,1),0,1),0) -> 0 | N134: =IF(A134<>"",IF(LEFT(VLOOKUP($A134,Base_Arbres,14,FALSE),1)>=LEFT(Cont_Fruits_Toxiques,1),0,1),0) -> 0 | O134: =IF(A134<>"",IF(LEFT(VLOOKUP($A134,Base_Arbres,15,FALSE),1)>=LEFT(Cont_Hauteur,1),0,1),0) -> 0 | P134: =IF(A134<>"",IF(LEFT(VLOOKUP($A134,Base_Arbres,16,FALSE),1)>=LEFT(Cont_Envergure,1),0,1),0) -> 0 | Q134: =SUM(B134:H134)*I134*J134*K134*L134*M134*N134*O134*P134 -> 0
A135: =IF(Base_Arbres!A135<>"",Base_Arbres!A135,"") ->  | B135: =IF(Base_Arbres!A135<>"",VLOOKUP($A135,Base_Arbres,3,FALSE)*Crit1,"") ->  | C135: =IF(Base_Arbres!A135<>"",VLOOKUP($A135,Base_Arbres,4,FALSE)*Crit2,"") ->  | D135: =IF(Base_Arbres!A135<>"",VLOOKUP($A135,Base_Arbres,5,FALSE)*Crit3,"") ->  | E135: =IF(Base_Arbres!A135<>"",VLOOKUP($A135,Base_Arbres,6,FALSE)*Crit4,"") ->  | F135: =IF(Base_Arbres!A135<>"",VLOOKUP($A135,Base_Arbres,7,FALSE)*Crit5,"") ->  | G135: =IF(ISNA(VLOOKUP(INDEX(Base_Typologie!$A$6:$R$1005,MATCH(A135,Base_Typologie!$A:$A,0)-5,MATCH(Typologie_Espace_Public,Base_Typologie!$6:$6,0)),TableauScoreTypologie,2,FALSE)*Crit6),0,VLOOKUP(INDEX(Base_Typologie!$A$6:$R$1005,MATCH(A135,Base_Typologie!$A:$A,0)-5,MATCH(Typologie_Espace_Public,Base_Typologie!$6:$6,0)),TableauScoreTypologie,2,FALSE)*Crit6) -> 0 | H135: =IF(Base_Arbres!G135<>"",VLOOKUP($A135,Base_Arbres,8,FALSE)*Crit7,"") ->  | I135: =IF(A135<>"",IF(LEFT(VLOOKUP($A135,Base_Arbres,9,FALSE),1)>=LEFT(Cont_Racines,1),0,1),0) -> 0 | J135: =IF(A135<>"",IF(LEFT(VLOOKUP($A135,Base_Arbres,10,FALSE),1)>=LEFT(Cont_Branches,1),0,1),0) -> 0 | K135: =IF(A135<>"",IF(LEFT(VLOOKUP($A135,Base_Arbres,11,FALSE),1)>=LEFT(Cont_Chablis,1),0,1),0) -> 0 | L135: =IF(A135<>"",IF(LEFT(VLOOKUP($A135,Base_Arbres,12,FALSE),1)>=LEFT(Cont_Fructifications,1),0,1),0) -> 0 | M135: =IF(A135<>"",IF(LEFT(VLOOKUP($A135,Base_Arbres,13,FALSE),1)>=LEFT(Cont_Miellat,1),0,1),0) -> 0 | N135: =IF(A135<>"",IF(LEFT(VLOOKUP($A135,Base_Arbres,14,FALSE),1)>=LEFT(Cont_Fruits_Toxiques,1),0,1),0) -> 0 | O135: =IF(A135<>"",IF(LEFT(VLOOKUP($A135,Base_Arbres,15,FALSE),1)>=LEFT(Cont_Hauteur,1),0,1),0) -> 0 | P135: =IF(A135<>"",IF(LEFT(VLOOKUP($A135,Base_Arbres,16,FALSE),1)>=LEFT(Cont_Envergure,1),0,1),0) -> 0 | Q135: =SUM(B135:H135)*I135*J135*K135*L135*M135*N135*O135*P135 -> 0
A136: =IF(Base_Arbres!A136<>"",Base_Arbres!A136,"") ->  | B136: =IF(Base_Arbres!A136<>"",VLOOKUP($A136,Base_Arbres,3,FALSE)*Crit1,"") ->  | C136: =IF(Base_Arbres!A136<>"",VLOOKUP($A136,Base_Arbres,4,FALSE)*Crit2,"") ->  | D136: =IF(Base_Arbres!A136<>"",VLOOKUP($A136,Base_Arbres,5,FALSE)*Crit3,"") ->  | E136: =IF(Base_Arbres!A136<>"",VLOOKUP($A136,Base_Arbres,6,FALSE)*Crit4,"") ->  | F136: =IF(Base_Arbres!A136<>"",VLOOKUP($A136,Base_Arbres,7,FALSE)*Crit5,"") ->  | G136: =IF(ISNA(VLOOKUP(INDEX(Base_Typologie!$A$6:$R$1005,MATCH(A136,Base_Typologie!$A:$A,0)-5,MATCH(Typologie_Espace_Public,Base_Typologie!$6:$6,0)),TableauScoreTypologie,2,FALSE)*Crit6),0,VLOOKUP(INDEX(Base_Typologie!$A$6:$R$1005,MATCH(A136,Base_Typologie!$A:$A,0)-5,MATCH(Typologie_Espace_Public,Base_Typologie!$6:$6,0)),TableauScoreTypologie,2,FALSE)*Crit6) -> 0 | H136: =IF(Base_Arbres!G136<>"",VLOOKUP($A136,Base_Arbres,8,FALSE)*Crit7,"") ->  | I136: =IF(A136<>"",IF(LEFT(VLOOKUP($A136,Base_Arbres,9,FALSE),1)>=LEFT(Cont_Racines,1),0,1),0) -> 0 | J136: =IF(A136<>"",IF(LEFT(VLOOKUP($A136,Base_Arbres,10,FALSE),1)>=LEFT(Cont_Branches,1),0,1),0) -> 0 | K136: =IF(A136<>"",IF(LEFT(VLOOKUP($A136,Base_Arbres,11,FALSE),1)>=LEFT(Cont_Chablis,1),0,1),0) -> 0 | L136: =IF(A136<>"",IF(LEFT(VLOOKUP($A136,Base_Arbres,12,FALSE),1)>=LEFT(Cont_Fructifications,1),0,1),0) -> 0 | M136: =IF(A136<>"",IF(LEFT(VLOOKUP($A136,Base_Arbres,13,FALSE),1)>=LEFT(Cont_Miellat,1),0,1),0) -> 0 | N136: =IF(A136<>"",IF(LEFT(VLOOKUP($A136,Base_Arbres,14,FALSE),1)>=LEFT(Cont_Fruits_Toxiques,1),0,1),0) -> 0 | O136: =IF(A136<>"",IF(LEFT(VLOOKUP($A136,Base_Arbres,15,FALSE),1)>=LEFT(Cont_Hauteur,1),0,1),0) -> 0 | P136: =IF(A136<>"",IF(LEFT(VLOOKUP($A136,Base_Arbres,16,FALSE),1)>=LEFT(Cont_Envergure,1),0,1),0) -> 0 | Q136: =SUM(B136:H136)*I136*J136*K136*L136*M136*N136*O136*P136 -> 0
A137: =IF(Base_Arbres!A137<>"",Base_Arbres!A137,"") ->  | B137: =IF(Base_Arbres!A137<>"",VLOOKUP($A137,Base_Arbres,3,FALSE)*Crit1,"") ->  | C137: =IF(Base_Arbres!A137<>"",VLOOKUP($A137,Base_Arbres,4,FALSE)*Crit2,"") ->  | D137: =IF(Base_Arbres!A137<>"",VLOOKUP($A137,Base_Arbres,5,FALSE)*Crit3,"") ->  | E137: =IF(Base_Arbres!A137<>"",VLOOKUP($A137,Base_Arbres,6,FALSE)*Crit4,"") ->  | F137: =IF(Base_Arbres!A137<>"",VLOOKUP($A137,Base_Arbres,7,FALSE)*Crit5,"") ->  | G137: =IF(ISNA(VLOOKUP(INDEX(Base_Typologie!$A$6:$R$1005,MATCH(A137,Base_Typologie!$A:$A,0)-5,MATCH(Typologie_Espace_Public,Base_Typologie!$6:$6,0)),TableauScoreTypologie,2,FALSE)*Crit6),0,VLOOKUP(INDEX(Base_Typologie!$A$6:$R$1005,MATCH(A137,Base_Typologie!$A:$A,0)-5,MATCH(Typologie_Espace_Public,Base_Typologie!$6:$6,0)),TableauScoreTypologie,2,FALSE)*Crit6) -> 0 | H137: =IF(Base_Arbres!G137<>"",VLOOKUP($A137,Base_Arbres,8,FALSE)*Crit7,"") ->  | I137: =IF(A137<>"",IF(LEFT(VLOOKUP($A137,Base_Arbres,9,FALSE),1)>=LEFT(Cont_Racines,1),0,1),0) -> 0 | J137: =IF(A137<>"",IF(LEFT(VLOOKUP($A137,Base_Arbres,10,FALSE),1)>=LEFT(Cont_Branches,1),0,1),0) -> 0 | K137: =IF(A137<>"",IF(LEFT(VLOOKUP($A137,Base_Arbres,11,FALSE),1)>=LEFT(Cont_Chablis,1),0,1),0) -> 0 | L137: =IF(A137<>"",IF(LEFT(VLOOKUP($A137,Base_Arbres,12,FALSE),1)>=LEFT(Cont_Fructifications,1),0,1),0) -> 0 | M137: =IF(A137<>"",IF(LEFT(VLOOKUP($A137,Base_Arbres,13,FALSE),1)>=LEFT(Cont_Miellat,1),0,1),0) -> 0 | N137: =IF(A137<>"",IF(LEFT(VLOOKUP($A137,Base_Arbres,14,FALSE),1)>=LEFT(Cont_Fruits_Toxiques,1),0,1),0) -> 0 | O137: =IF(A137<>"",IF(LEFT(VLOOKUP($A137,Base_Arbres,15,FALSE),1)>=LEFT(Cont_Hauteur,1),0,1),0) -> 0 | P137: =IF(A137<>"",IF(LEFT(VLOOKUP($A137,Base_Arbres,16,FALSE),1)>=LEFT(Cont_Envergure,1),0,1),0) -> 0 | Q137: =SUM(B137:H137)*I137*J137*K137*L137*M137*N137*O137*P137 -> 0
